Workbook

Sheet Startseite
E2: exactfinance 2020 | G2: Aktueller Monat | H2: März
G3: Aktuelles Jahr | H3: 2020
G4: Start Jahr | H4: 2015
C8: Kontenplan importieren
C10: Der Kontenplan muss einmalig importiert werden. Anschliessend nur noch, wenn neue Konti vorhanden sind.
C13: Journal aller Buchungen importieren
C15: Das Journal sollte sämtliche Jahre enthalten, welche analysiert werden möchten.
C18: Dashboard
C20: Übersicht (Umsatz, Bruttogewinn, Gewinn) anzeigen.
C23: Erfolgsrechnungsdetails anzeigen
C25: Hier wird die gesamte Erfolgsrechnung aller Jahre und Monate angezeigt.
C28: Erfolgsrechnung - Jahres- und Periodenvergleiche
C30: Mittels dieser Funktion kann die gesamte Erfolgrechnung mit Vorperioden verglichen werden.
C33: Datenblatt
C35: Hier werden sämtliche Buchungen angezeigt. Das Datenblatt ist die Basis für sämtliche Auswertungen.
C38: Budgetplanung
C40: Hier erfassen Sie Ihre Budgetzahlen pro Konto auf Monatsbasis.
C43: Kontogruppe und Logo
C45: Hier können Sie für den Export Logos einfügen und die Kontogruppen selbst mit den Abschnitten in der Erfolgsrechnung verknüpfen.
B50: © exact construct GmbH | H50: Version 2021 können Sie hier herunterladen

Sheet Dashboard
K3: Anzeigeart auswählen | L3: Nicht kumuliert
B11: Umsatzentwicklung
C13: =DATE(jahr,1,1) -> 2020-01-01 | D13: =EOMONTH(C13,0)+1 -> 2020-02-01 | E13: =EOMONTH(D13,0)+1 -> 2020-03-01 | F13: 2020-04-01 | G13: 2020-05-01 | H13: 2020-06-01 | I13: 2020-07-01 | J13: 2020-08-01 | K13: 2020-09-01 | L13: 2020-10-01 | M13: 2020-11-01 | N13: 2020-12-01 | P13: ="YTD " & IF(INDEX(tblMonate[Nr],MATCH(monat,tblMonate[Monate],0))<> 1, Einstellungen!$AY$8 &" bis " & monat,Einstellungen!$AY$8) -> YTD Januar bis März | Q13: Total
B14: =B15-1 -> 2014 | C14: =IFERROR( SUMIF(INDIRECT(dshbrdrng_umsatzentwicklung),"<>", INDEX(INDIRECT(dshbrdrng_umsatzentwicklung2),0,MATCH(DATE($B14,MONTH(C$13),1),Erfolgsrechnung_Detail!$O$8:$DF$8,0))), "") ->  | D14: =IFERROR( IF(INDEX(tblUmsatzFltr[Nr],MATCH(filter_umsatz,tblUmsatzFltr[Umsatz Filter],0)) = 1, SUMIF(INDIRECT(dshbrdrng_umsatzentwicklung),"<>", INDEX(INDIRECT(dshbrdrng_umsatzentwicklung2),0,MATCH(DATE($B14,MONTH(D$13),1),Erfolgsrechnung_Detail!$O$8:$DF$8,0))), SUMIF(INDIRECT(dshbrdrng_umsatzentwicklung),"<>", INDEX(INDIRECT(dshbrdrng_umsatzentwicklung2),0,MATCH(DATE($B14,MONTH(D$13),1),Erfolgsrechnung_Detail!$O$8:$DF$8,0)))+C14),"") ->  | E14: =IFERROR( IF(INDEX(tblUmsatzFltr[Nr],MATCH(filter_umsatz,tblUmsatzFltr[Umsatz Filter],0)) = 1, SUMIF(INDIRECT(dshbrdrng_umsatzentwicklung),"<>", INDEX(INDIRECT(dshbrdrng_umsatzentwicklung2),0,MATCH(DATE($B14,MONTH(E$13),1),Erfolgsrechnung_Detail!$O$8:$DF$8,0))), SUMIF(INDIRECT(dshbrdrng_umsatzentwicklung),"<>", INDEX(INDIRECT(dshbrdrng_umsatzentwicklung2),0,MATCH(DATE($B14,MONTH(E$13),1),Erfolgsrechnung_Detail!$O$8:$DF$8,0)))+D14),"") ->  | F14: =IFERROR( IF(INDEX(tblUmsatzFltr[Nr],MATCH(filter_umsatz,tblUmsatzFltr[Umsatz Filter],0)) = 1, SUMIF(INDIRECT(dshbrdrng_umsatzentwicklung),"<>", INDEX(INDIRECT(dshbrdrng_umsatzentwicklung2),0,MATCH(DATE($B14,MONTH(F$13),1),Erfolgsrechnung_Detail!$O$8:$DF$8,0))), SUMIF(INDIRECT(dshbrdrng_umsatzentwicklung),"<>", INDEX(INDIRECT(dshbrdrng_umsatzentwicklung2),0,MATCH(DATE($B14,MONTH(F$13),1),Erfolgsrechnung_Detail!$O$8:$DF$8,0)))+E14),"") ->  | G14: =IFERROR( IF(INDEX(tblUmsatzFltr[Nr],MATCH(filter_umsatz,tblUmsatzFltr[Umsatz Filter],0)) = 1, SUMIF(INDIRECT(dshbrdrng_umsatzentwicklung),"<>", INDEX(INDIRECT(dshbrdrng_umsatzentwicklung2),0,MATCH(DATE($B14,MONTH(G$13),1),Erfolgsrechnung_Detail!$O$8:$DF$8,0))), SUMIF(INDIRECT(dshbrdrng_umsatzentwicklung),"<>", INDEX(INDIRECT(dshbrdrng_umsatzentwicklung2),0,MATCH(DATE($B14,MONTH(G$13),1),Erfolgsrechnung_Detail!$O$8:$DF$8,0)))+F14),"") ->  | H14: =IFERROR( IF(INDEX(tblUmsatzFltr[Nr],MATCH(filter_umsatz,tblUmsatzFltr[Umsatz Filter],0)) = 1, SUMIF(INDIRECT(dshbrdrng_umsatzentwicklung),"<>", INDEX(INDIRECT(dshbrdrng_umsatzentwicklung2),0,MATCH(DATE($B14,MONTH(H$13),1),Erfolgsrechnung_Detail!$O$8:$DF$8,0))), SUMIF(INDIRECT(dshbrdrng_umsatzentwicklung),"<>", INDEX(INDIRECT(dshbrdrng_umsatzentwicklung2),0,MATCH(DATE($B14,MONTH(H$13),1),Erfolgsrechnung_Detail!$O$8:$DF$8,0)))+G14),"") ->  | I14: =IFERROR( IF(INDEX(tblUmsatzFltr[Nr],MATCH(filter_umsatz,tblUmsatzFltr[Umsatz Filter],0)) = 1, SUMIF(INDIRECT(dshbrdrng_umsatzentwicklung),"<>", INDEX(INDIRECT(dshbrdrng_umsatzentwicklung2),0,MATCH(DATE($B14,MONTH(I$13),1),Erfolgsrechnung_Detail!$O$8:$DF$8,0))), SUMIF(INDIRECT(dshbrdrng_umsatzentwicklung),"<>", INDEX(INDIRECT(dshbrdrng_umsatzentwicklung2),0,MATCH(DATE($B14,MONTH(I$13),1),Erfolgsrechnung_Detail!$O$8:$DF$8,0)))+H14),"") ->  | J14: =IFERROR( IF(INDEX(tblUmsatzFltr[Nr],MATCH(filter_umsatz,tblUmsatzFltr[Umsatz Filter],0)) = 1, SUMIF(INDIRECT(dshbrdrng_umsatzentwicklung),"<>", INDEX(INDIRECT(dshbrdrng_umsatzentwicklung2),0,MATCH(DATE($B14,MONTH(J$13),1),Erfolgsrechnung_Detail!$O$8:$DF$8,0))), SUMIF(INDIRECT(dshbrdrng_umsatzentwicklung),"<>", INDEX(INDIRECT(dshbrdrng_umsatzentwicklung2),0,MATCH(DATE($B14,MONTH(J$13),1),Erfolgsrechnung_Detail!$O$8:$DF$8,0)))+I14),"") ->  | K14: =IFERROR( IF(INDEX(tblUmsatzFltr[Nr],MATCH(filter_umsatz,tblUmsatzFltr[Umsatz Filter],0)) = 1, SUMIF(INDIRECT(dshbrdrng_umsatzentwicklung),"<>", INDEX(INDIRECT(dshbrdrng_umsatzentwicklung2),0,MATCH(DATE($B14,MONTH(K$13),1),Erfolgsrechnung_Detail!$O$8:$DF$8,0))), SUMIF(INDIRECT(dshbrdrng_umsatzentwicklung),"<>", INDEX(INDIRECT(dshbrdrng_umsatzentwicklung2),0,MATCH(DATE($B14,MONTH(K$13),1),Erfolgsrechnung_Detail!$O$8:$DF$8,0)))+J14),"") ->  | L14: =IFERROR( IF(INDEX(tblUmsatzFltr[Nr],MATCH(filter_umsatz,tblUmsatzFltr[Umsatz Filter],0)) = 1, SUMIF(INDIRECT(dshbrdrng_umsatzentwicklung),"<>", INDEX(INDIRECT(dshbrdrng_umsatzentwicklung2),0,MATCH(DATE($B14,MONTH(L$13),1),Erfolgsrechnung_Detail!$O$8:$DF$8,0))), SUMIF(INDIRECT(dshbrdrng_umsatzentwicklung),"<>", INDEX(INDIRECT(dshbrdrng_umsatzentwicklung2),0,MATCH(DATE($B14,MONTH(L$13),1),Erfolgsrechnung_Detail!$O$8:$DF$8,0)))+K14),"") ->  | M14: =IFERROR( IF(INDEX(tblUmsatzFltr[Nr],MATCH(filter_umsatz,tblUmsatzFltr[Umsatz Filter],0)) = 1, SUMIF(INDIRECT(dshbrdrng_umsatzentwicklung),"<>", INDEX(INDIRECT(dshbrdrng_umsatzentwicklung2),0,MATCH(DATE($B14,MONTH(M$13),1),Erfolgsrechnung_Detail!$O$8:$DF$8,0))), SUMIF(INDIRECT(dshbrdrng_umsatzentwicklung),"<>", INDEX(INDIRECT(dshbrdrng_umsatzentwicklung2),0,MATCH(DATE($B14,MONTH(M$13),1),Erfolgsrechnung_Detail!$O$8:$DF$8,0)))+L14),"") ->  | N14: =IFERROR( IF(INDEX(tblUmsatzFltr[Nr],MATCH(filter_umsatz,tblUmsatzFltr[Umsatz Filter],0)) = 1, SUMIF(INDIRECT(dshbrdrng_umsatzentwicklung),"<>", INDEX(INDIRECT(dshbrdrng_umsatzentwicklung2),0,MATCH(DATE($B14,MONTH(N$13),1),Erfolgsrechnung_Detail!$O$8:$DF$8,0))), SUMIF(INDIRECT(dshbrdrng_umsatzentwicklung),"<>", INDEX(INDIRECT(dshbrdrng_umsatzentwicklung2),0,MATCH(DATE($B14,MONTH(N$13),1),Erfolgsrechnung_Detail!$O$8:$DF$8,0)))+M14),"") ->  | P14: =IFERROR(IF( INDEX(tblUmsatzFltr[Nr],MATCH(filter_umsatz,tblUmsatzFltr[Umsatz Filter],0))=1, SUM($C14:INDEX($C14:$N14,1,selectedmonat_num)), INDEX($C14:$N14,0,MATCH(monat,tblMonate[Monate],0))),"") -> 0 | Q14: =IFERROR( IF(INDEX(tblUmsatzFltr[Nr],MATCH(filter_umsatz,tblUmsatzFltr[Umsatz Filter],0))=1, SUM(C14:$N14),N14),"") -> 0
B15: 2015 | C15: =IFERROR( SUMIF(INDIRECT(dshbrdrng_umsatzentwicklung),"<>", INDEX(INDIRECT(dshbrdrng_umsatzentwicklung2),0,MATCH(DATE($B15,MONTH(C$13),1),Erfolgsrechnung_Detail!$O$8:$DF$8,0))), "") -> 1914.083722 | D15: =IFERROR( IF(INDEX(tblUmsatzFltr[Nr],MATCH(filter_umsatz,tblUmsatzFltr[Umsatz Filter],0)) = 1, SUMIF(INDIRECT(dshbrdrng_umsatzentwicklung),"<>", INDEX(INDIRECT(dshbrdrng_umsatzentwicklung2),0,MATCH(DATE($B15,MONTH(D$13),1),Erfolgsrechnung_Detail!$O$8:$DF$8,0))), SUMIF(INDIRECT(dshbrdrng_umsatzentwicklung),"<>", INDEX(INDIRECT(dshbrdrng_umsatzentwicklung2),0,MATCH(DATE($B15,MONTH(D$13),1),Erfolgsrechnung_Detail!$O$8:$DF$8,0)))+C15),"") -> 2392 | E15: =IFERROR( IF(INDEX(tblUmsatzFltr[Nr],MATCH(filter_umsatz,tblUmsatzFltr[Umsatz Filter],0)) = 1, SUMIF(INDIRECT(dshbrdrng_umsatzentwicklung),"<>", INDEX(INDIRECT(dshbrdrng_umsatzentwicklung2),0,MATCH(DATE($B15,MONTH(E$13),1),Erfolgsrechnung_Detail!$O$8:$DF$8,0))), SUMIF(INDIRECT(dshbrdrng_umsatzentwicklung),"<>", INDEX(INDIRECT(dshbrdrng_umsatzentwicklung2),0,MATCH(DATE($B15,MONTH(E$13),1),Erfolgsrechnung_Detail!$O$8:$DF$8,0)))+D15),"") -> 2103 | F15: =IFERROR( IF(INDEX(tblUmsatzFltr[Nr],MATCH(filter_umsatz,tblUmsatzFltr[Umsatz Filter],0)) = 1, SUMIF(INDIRECT(dshbrdrng_umsatzentwicklung),"<>", INDEX(INDIRECT(dshbrdrng_umsatzentwicklung2),0,MATCH(DATE($B15,MONTH(F$13),1),Erfolgsrechnung_Detail!$O$8:$DF$8,0))), SUMIF(INDIRECT(dshbrdrng_umsatzentwicklung),"<>", INDEX(INDIRECT(dshbrdrng_umsatzentwicklung2),0,MATCH(DATE($B15,MONTH(F$13),1),Erfolgsrechnung_Detail!$O$8:$DF$8,0)))+E15),"") -> 2152 | G15: =IFERROR( IF(INDEX(tblUmsatzFltr[Nr],MATCH(filter_umsatz,tblUmsatzFltr[Umsatz Filter],0)) = 1, SUMIF(INDIRECT(dshbrdrng_umsatzentwicklung),"<>", INDEX(INDIRECT(dshbrdrng_umsatzentwicklung2),0,MATCH(DATE($B15,MONTH(G$13),1),Erfolgsrechnung_Detail!$O$8:$DF$8,0))), SUMIF(INDIRECT(dshbrdrng_umsatzentwicklung),"<>", INDEX(INDIRECT(dshbrdrng_umsatzentwicklung2),0,MATCH(DATE($B15,MONTH(G$13),1),Erfolgsrechnung_Detail!$O$8:$DF$8,0)))+F15),"") -> 1899 | H15: =IFERROR( IF(INDEX(tblUmsatzFltr[Nr],MATCH(filter_umsatz,tblUmsatzFltr[Umsatz Filter],0)) = 1, SUMIF(INDIRECT(dshbrdrng_umsatzentwicklung),"<>", INDEX(INDIRECT(dshbrdrng_umsatzentwicklung2),0,MATCH(DATE($B15,MONTH(H$13),1),Erfolgsrechnung_Detail!$O$8:$DF$8,0))), SUMIF(INDIRECT(dshbrdrng_umsatzentwicklung),"<>", INDEX(INDIRECT(dshbrdrng_umsatzentwicklung2),0,MATCH(DATE($B15,MONTH(H$13),1),Erfolgsrechnung_Detail!$O$8:$DF$8,0)))+G15),"") -> 2102 | I15: =IFERROR( IF(INDEX(tblUmsatzFltr[Nr],MATCH(filter_umsatz,tblUmsatzFltr[Umsatz Filter],0)) = 1, SUMIF(INDIRECT(dshbrdrng_umsatzentwicklung),"<>", INDEX(INDIRECT(dshbrdrng_umsatzentwicklung2),0,MATCH(DATE($B15,MONTH(I$13),1),Erfolgsrechnung_Detail!$O$8:$DF$8,0))), SUMIF(INDIRECT(dshbrdrng_umsatzentwicklung),"<>", INDEX(INDIRECT(dshbrdrng_umsatzentwicklung2),0,MATCH(DATE($B15,MONTH(I$13),1),Erfolgsrechnung_Detail!$O$8:$DF$8,0)))+H15),"") -> 1896 | J15: =IFERROR( IF(INDEX(tblUmsatzFltr[Nr],MATCH(filter_umsatz,tblUmsatzFltr[Umsatz Filter],0)) = 1, SUMIF(INDIRECT(dshbrdrng_umsatzentwicklung),"<>", INDEX(INDIRECT(dshbrdrng_umsatzentwicklung2),0,MATCH(DATE($B15,MONTH(J$13),1),Erfolgsrechnung_Detail!$O$8:$DF$8,0))), SUMIF(INDIRECT(dshbrdrng_umsatzentwicklung),"<>", INDEX(INDIRECT(dshbrdrng_umsatzentwicklung2),0,MATCH(DATE($B15,MONTH(J$13),1),Erfolgsrechnung_Detail!$O$8:$DF$8,0)))+I15),"") -> 1831 | K15: =IFERROR( IF(INDEX(tblUmsatzFltr[Nr],MATCH(filter_umsatz,tblUmsatzFltr[Umsatz Filter],0)) = 1, SUMIF(INDIRECT(dshbrdrng_umsatzentwicklung),"<>", INDEX(INDIRECT(dshbrdrng_umsatzentwicklung2),0,MATCH(DATE($B15,MONTH(K$13),1),Erfolgsrechnung_Detail!$O$8:$DF$8,0))), SUMIF(INDIRECT(dshbrdrng_umsatzentwicklung),"<>", INDEX(INDIRECT(dshbrdrng_umsatzentwicklung2),0,MATCH(DATE($B15,MONTH(K$13),1),Erfolgsrechnung_Detail!$O$8:$DF$8,0)))+J15),"") -> 1714 | L15: =IFERROR( IF(INDEX(tblUmsatzFltr[Nr],MATCH(filter_umsatz,tblUmsatzFltr[Umsatz Filter],0)) = 1, SUMIF(INDIRECT(dshbrdrng_umsatzentwicklung),"<>", INDEX(INDIRECT(dshbrdrng_umsatzentwicklung2),0,MATCH(DATE($B15,MONTH(L$13),1),Erfolgsrechnung_Detail!$O$8:$DF$8,0))), SUMIF(INDIRECT(dshbrdrng_umsatzentwicklung),"<>", INDEX(INDIRECT(dshbrdrng_umsatzentwicklung2),0,MATCH(DATE($B15,MONTH(L$13),1),Erfolgsrechnung_Detail!$O$8:$DF$8,0)))+K15),"") -> 2164.52 | M15: =IFERROR( IF(INDEX(tblUmsatzFltr[Nr],MATCH(filter_umsatz,tblUmsatzFltr[Umsatz Filter],0)) = 1, SUMIF(INDIRECT(dshbrdrng_umsatzentwicklung),"<>", INDEX(INDIRECT(dshbrdrng_umsatzentwicklung2),0,MATCH(DATE($B15,MONTH(M$13),1),Erfolgsrechnung_Detail!$O$8:$DF$8,0))), SUMIF(INDIRECT(dshbrdrng_umsatzentwicklung),"<>", INDEX(INDIRECT(dshbrdrng_umsatzentwicklung2),0,MATCH(DATE($B15,MONTH(M$13),1),Erfolgsrechnung_Detail!$O$8:$DF$8,0)))+L15),"") -> 2042 | N15: =IFERROR( IF(INDEX(tblUmsatzFltr[Nr],MATCH(filter_umsatz,tblUmsatzFltr[Umsatz Filter],0)) = 1, SUMIF(INDIRECT(dshbrdrng_umsatzentwicklung),"<>", INDEX(INDIRECT(dshbrdrng_umsatzentwicklung2),0,MATCH(DATE($B15,MONTH(N$13),1),Erfolgsrechnung_Detail!$O$8:$DF$8,0))), SUMIF(INDIRECT(dshbrdrng_umsatzentwicklung),"<>", INDEX(INDIRECT(dshbrdrng_umsatzentwicklung2),0,MATCH(DATE($B15,MONTH(N$13),1),Erfolgsrechnung_Detail!$O$8:$DF$8,0)))+M15),"") -> 2030 | P15: =IFERROR(IF( INDEX(tblUmsatzFltr[Nr],MATCH(filter_umsatz,tblUmsatzFltr[Umsatz Filter],0))=1, SUM($C15:INDEX($C15:$N15,1,selectedmonat_num)), INDEX($C15:$N15,0,MATCH(monat,tblMonate[Monate],0))),"") -> 6409.083722 | Q15: =IFERROR( IF(INDEX(tblUmsatzFltr[Nr],MATCH(filter_umsatz,tblUmsatzFltr[Umsatz Filter],0))=1, SUM(C15:$N15),N15),"") -> 24239.60372
B16: 2016 | C16: =IFERROR( SUMIF(INDIRECT(dshbrdrng_umsatzentwicklung),"<>", INDEX(INDIRECT(dshbrdrng_umsatzentwicklung2),0,MATCH(DATE($B16,MONTH(C$13),1),Erfolgsrechnung_Detail!$O$8:$DF$8,0))), "") -> 2130 | D16: =IFERROR( IF(INDEX(tblUmsatzFltr[Nr],MATCH(filter_umsatz,tblUmsatzFltr[Umsatz Filter],0)) = 1, SUMIF(INDIRECT(dshbrdrng_umsatzentwicklung),"<>", INDEX(INDIRECT(dshbrdrng_umsatzentwicklung2),0,MATCH(DATE($B16,MONTH(D$13),1),Erfolgsrechnung_Detail!$O$8:$DF$8,0))), SUMIF(INDIRECT(dshbrdrng_umsatzentwicklung),"<>", INDEX(INDIRECT(dshbrdrng_umsatzentwicklung2),0,MATCH(DATE($B16,MONTH(D$13),1),Erfolgsrechnung_Detail!$O$8:$DF$8,0)))+C16),"") -> 2258.671 | E16: =IFERROR( IF(INDEX(tblUmsatzFltr[Nr],MATCH(filter_umsatz,tblUmsatzFltr[Umsatz Filter],0)) = 1, SUMIF(INDIRECT(dshbrdrng_umsatzentwicklung),"<>", INDEX(INDIRECT(dshbrdrng_umsatzentwicklung2),0,MATCH(DATE($B16,MONTH(E$13),1),Erfolgsrechnung_Detail!$O$8:$DF$8,0))), SUMIF(INDIRECT(dshbrdrng_umsatzentwicklung),"<>", INDEX(INDIRECT(dshbrdrng_umsatzentwicklung2),0,MATCH(DATE($B16,MONTH(E$13),1),Erfolgsrechnung_Detail!$O$8:$DF$8,0)))+D16),"") -> 1713 | F16: =IFERROR( IF(INDEX(tblUmsatzFltr[Nr],MATCH(filter_umsatz,tblUmsatzFltr[Umsatz Filter],0)) = 1, SUMIF(INDIRECT(dshbrdrng_umsatzentwicklung),"<>", INDEX(INDIRECT(dshbrdrng_umsatzentwicklung2),0,MATCH(DATE($B16,MONTH(F$13),1),Erfolgsrechnung_Detail!$O$8:$DF$8,0))), SUMIF(INDIRECT(dshbrdrng_umsatzentwicklung),"<>", INDEX(INDIRECT(dshbrdrng_umsatzentwicklung2),0,MATCH(DATE($B16,MONTH(F$13),1),Erfolgsrechnung_Detail!$O$8:$DF$8,0)))+E16),"") -> 1591 | G16: =IFERROR( IF(INDEX(tblUmsatzFltr[Nr],MATCH(filter_umsatz,tblUmsatzFltr[Umsatz Filter],0)) = 1, SUMIF(INDIRECT(dshbrdrng_umsatzentwicklung),"<>", INDEX(INDIRECT(dshbrdrng_umsatzentwicklung2),0,MATCH(DATE($B16,MONTH(G$13),1),Erfolgsrechnung_Detail!$O$8:$DF$8,0))), SUMIF(INDIRECT(dshbrdrng_umsatzentwicklung),"<>", INDEX(INDIRECT(dshbrdrng_umsatzentwicklung2),0,MATCH(DATE($B16,MONTH(G$13),1),Erfolgsrechnung_Detail!$O$8:$DF$8,0)))+F16),"") -> 1998 | H16: =IFERROR( IF(INDEX(tblUmsatzFltr[Nr],MATCH(filter_umsatz,tblUmsatzFltr[Umsatz Filter],0)) = 1, SUMIF(INDIRECT(dshbrdrng_umsatzentwicklung),"<>", INDEX(INDIRECT(dshbrdrng_umsatzentwicklung2),0,MATCH(DATE($B16,MONTH(H$13),1),Erfolgsrechnung_Detail!$O$8:$DF$8,0))), SUMIF(INDIRECT(dshbrdrng_umsatzentwicklung),"<>", INDEX(INDIRECT(dshbrdrng_umsatzentwicklung2),0,MATCH(DATE($B16,MONTH(H$13),1),Erfolgsrechnung_Detail!$O$8:$DF$8,0)))+G16),"") -> 2138 | I16: =IFERROR( IF(INDEX(tblUmsatzFltr[Nr],MATCH(filter_umsatz,tblUmsatzFltr[Umsatz Filter],0)) = 1, SUMIF(INDIRECT(dshbrdrng_umsatzentwicklung),"<>", INDEX(INDIRECT(dshbrdrng_umsatzentwicklung2),0,MATCH(DATE($B16,MONTH(I$13),1),Erfolgsrechnung_Detail!$O$8:$DF$8,0))), SUMIF(INDIRECT(dshbrdrng_umsatzentwicklung),"<>", INDEX(INDIRECT(dshbrdrng_umsatzentwicklung2),0,MATCH(DATE($B16,MONTH(I$13),1),Erfolgsrechnung_Detail!$O$8:$DF$8,0)))+H16),"") -> 1762 | J16: =IFERROR( IF(INDEX(tblUmsatzFltr[Nr],MATCH(filter_umsatz,tblUmsatzFltr[Umsatz Filter],0)) = 1, SUMIF(INDIRECT(dshbrdrng_umsatzentwicklung),"<>", INDEX(INDIRECT(dshbrdrng_umsatzentwicklung2),0,MATCH(DATE($B16,MONTH(J$13),1),Erfolgsrechnung_Detail!$O$8:$DF$8,0))), SUMIF(INDIRECT(dshbrdrng_umsatzentwicklung),"<>", INDEX(INDIRECT(dshbrdrng_umsatzentwicklung2),0,MATCH(DATE($B16,MONTH(J$13),1),Erfolgsrechnung_Detail!$O$8:$DF$8,0)))+I16),"") -> 1866 | K16: =IFERROR( IF(INDEX(tblUmsatzFltr[Nr],MATCH(filter_umsatz,tblUmsatzFltr[Umsatz Filter],0)) = 1, SUMIF(INDIRECT(dshbrdrng_umsatzentwicklung),"<>", INDEX(INDIRECT(dshbrdrng_umsatzentwicklung2),0,MATCH(DATE($B16,MONTH(K$13),1),Erfolgsrechnung_Detail!$O$8:$DF$8,0))), SUMIF(INDIRECT(dshbrdrng_umsatzentwicklung),"<>", INDEX(INDIRECT(dshbrdrng_umsatzentwicklung2),0,MATCH(DATE($B16,MONTH(K$13),1),Erfolgsrechnung_Detail!$O$8:$DF$8,0)))+J16),"") -> 2312 | L16: =IFERROR( IF(INDEX(tblUmsatzFltr[Nr],MATCH(filter_umsatz,tblUmsatzFltr[Umsatz Filter],0)) = 1, SUMIF(INDIRECT(dshbrdrng_umsatzentwicklung),"<>", INDEX(INDIRECT(dshbrdrng_umsatzentwicklung2),0,MATCH(DATE($B16,MONTH(L$13),1),Erfolgsrechnung_Detail!$O$8:$DF$8,0))), SUMIF(INDIRECT(dshbrdrng_umsatzentwicklung),"<>", INDEX(INDIRECT(dshbrdrng_umsatzentwicklung2),0,MATCH(DATE($B16,MONTH(L$13),1),Erfolgsrechnung_Detail!$O$8:$DF$8,0)))+K16),"") -> 2019 | M16: =IFERROR( IF(INDEX(tblUmsatzFltr[Nr],MATCH(filter_umsatz,tblUmsatzFltr[Umsatz Filter],0)) = 1, SUMIF(INDIRECT(dshbrdrng_umsatzentwicklung),"<>", INDEX(INDIRECT(dshbrdrng_umsatzentwicklung2),0,MATCH(DATE($B16,MONTH(M$13),1),Erfolgsrechnung_Detail!$O$8:$DF$8,0))), SUMIF(INDIRECT(dshbrdrng_umsatzentwicklung),"<>", INDEX(INDIRECT(dshbrdrng_umsatzentwicklung2),0,MATCH(DATE($B16,MONTH(M$13),1),Erfolgsrechnung_Detail!$O$8:$DF$8,0)))+L16),"") -> 2110 | N16: =IFERROR( IF(INDEX(tblUmsatzFltr[Nr],MATCH(filter_umsatz,tblUmsatzFltr[Umsatz Filter],0)) = 1, SUMIF(INDIRECT(dshbrdrng_umsatzentwicklung),"<>", INDEX(INDIRECT(dshbrdrng_umsatzentwicklung2),0,MATCH(DATE($B16,MONTH(N$13),1),Erfolgsrechnung_Detail!$O$8:$DF$8,0))), SUMIF(INDIRECT(dshbrdrng_umsatzentwicklung),"<>", INDEX(INDIRECT(dshbrdrng_umsatzentwicklung2),0,MATCH(DATE($B16,MONTH(N$13),1),Erfolgsrechnung_Detail!$O$8:$DF$8,0)))+M16),"") -> 2000 | P16: =IFERROR(IF( INDEX(tblUmsatzFltr[Nr],MATCH(filter_umsatz,tblUmsatzFltr[Umsatz Filter],0))=1, SUM($C16:INDEX($C16:$N16,1,selectedmonat_num)), INDEX($C16:$N16,0,MATCH(monat,tblMonate[Monate],0))),"") -> 6101.671 | Q16: =IFERROR( IF(INDEX(tblUmsatzFltr[Nr],MATCH(filter_umsatz,tblUmsatzFltr[Umsatz Filter],0))=1, SUM(C16:$N16),N16),"") -> 23897.671
B17: 2017 | C17: =IFERROR( SUMIF(INDIRECT(dshbrdrng_umsatzentwicklung),"<>", INDEX(INDIRECT(dshbrdrng_umsatzentwicklung2),0,MATCH(DATE($B17,MONTH(C$13),1),Erfolgsrechnung_Detail!$O$8:$DF$8,0))), "") -> 2038 | D17: =IFERROR( IF(INDEX(tblUmsatzFltr[Nr],MATCH(filter_umsatz,tblUmsatzFltr[Umsatz Filter],0)) = 1, SUMIF(INDIRECT(dshbrdrng_umsatzentwicklung),"<>", INDEX(INDIRECT(dshbrdrng_umsatzentwicklung2),0,MATCH(DATE($B17,MONTH(D$13),1),Erfolgsrechnung_Detail!$O$8:$DF$8,0))), SUMIF(INDIRECT(dshbrdrng_umsatzentwicklung),"<>", INDEX(INDIRECT(dshbrdrng_umsatzentwicklung2),0,MATCH(DATE($B17,MONTH(D$13),1),Erfolgsrechnung_Detail!$O$8:$DF$8,0)))+C17),"") -> 2604.69 | E17: =IFERROR( IF(INDEX(tblUmsatzFltr[Nr],MATCH(filter_umsatz,tblUmsatzFltr[Umsatz Filter],0)) = 1, SUMIF(INDIRECT(dshbrdrng_umsatzentwicklung),"<>", INDEX(INDIRECT(dshbrdrng_umsatzentwicklung2),0,MATCH(DATE($B17,MONTH(E$13),1),Erfolgsrechnung_Detail!$O$8:$DF$8,0))), SUMIF(INDIRECT(dshbrdrng_umsatzentwicklung),"<>", INDEX(INDIRECT(dshbrdrng_umsatzentwicklung2),0,MATCH(DATE($B17,MONTH(E$13),1),Erfolgsrechnung_Detail!$O$8:$DF$8,0)))+D17),"") -> 2207.58 | F17: =IFERROR( IF(INDEX(tblUmsatzFltr[Nr],MATCH(filter_umsatz,tblUmsatzFltr[Umsatz Filter],0)) = 1, SUMIF(INDIRECT(dshbrdrng_umsatzentwicklung),"<>", INDEX(INDIRECT(dshbrdrng_umsatzentwicklung2),0,MATCH(DATE($B17,MONTH(F$13),1),Erfolgsrechnung_Detail!$O$8:$DF$8,0))), SUMIF(INDIRECT(dshbrdrng_umsatzentwicklung),"<>", INDEX(INDIRECT(dshbrdrng_umsatzentwicklung2),0,MATCH(DATE($B17,MONTH(F$13),1),Erfolgsrechnung_Detail!$O$8:$DF$8,0)))+E17),"") -> 2475.13 | G17: =IFERROR( IF(INDEX(tblUmsatzFltr[Nr],MATCH(filter_umsatz,tblUmsatzFltr[Umsatz Filter],0)) = 1, SUMIF(INDIRECT(dshbrdrng_umsatzentwicklung),"<>", INDEX(INDIRECT(dshbrdrng_umsatzentwicklung2),0,MATCH(DATE($B17,MONTH(G$13),1),Erfolgsrechnung_Detail!$O$8:$DF$8,0))), SUMIF(INDIRECT(dshbrdrng_umsatzentwicklung),"<>", INDEX(INDIRECT(dshbrdrng_umsatzentwicklung2),0,MATCH(DATE($B17,MONTH(G$13),1),Erfolgsrechnung_Detail!$O$8:$DF$8,0)))+F17),"") -> 1735 | H17: =IFERROR( IF(INDEX(tblUmsatzFltr[Nr],MATCH(filter_umsatz,tblUmsatzFltr[Umsatz Filter],0)) = 1, SUMIF(INDIRECT(dshbrdrng_umsatzentwicklung),"<>", INDEX(INDIRECT(dshbrdrng_umsatzentwicklung2),0,MATCH(DATE($B17,MONTH(H$13),1),Erfolgsrechnung_Detail!$O$8:$DF$8,0))), SUMIF(INDIRECT(dshbrdrng_umsatzentwicklung),"<>", INDEX(INDIRECT(dshbrdrng_umsatzentwicklung2),0,MATCH(DATE($B17,MONTH(H$13),1),Erfolgsrechnung_Detail!$O$8:$DF$8,0)))+G17),"") -> 1674 | I17: =IFERROR( IF(INDEX(tblUmsatzFltr[Nr],MATCH(filter_umsatz,tblUmsatzFltr[Umsatz Filter],0)) = 1, SUMIF(INDIRECT(dshbrdrng_umsatzentwicklung),"<>", INDEX(INDIRECT(dshbrdrng_umsatzentwicklung2),0,MATCH(DATE($B17,MONTH(I$13),1),Erfolgsrechnung_Detail!$O$8:$DF$8,0))), SUMIF(INDIRECT(dshbrdrng_umsatzentwicklung),"<>", INDEX(INDIRECT(dshbrdrng_umsatzentwicklung2),0,MATCH(DATE($B17,MONTH(I$13),1),Erfolgsrechnung_Detail!$O$8:$DF$8,0)))+H17),"") -> 1953 | J17: =IFERROR( IF(INDEX(tblUmsatzFltr[Nr],MATCH(filter_umsatz,tblUmsatzFltr[Umsatz Filter],0)) = 1, SUMIF(INDIRECT(dshbrdrng_umsatzentwicklung),"<>", INDEX(INDIRECT(dshbrdrng_umsatzentwicklung2),0,MATCH(DATE($B17,MONTH(J$13),1),Erfolgsrechnung_Detail!$O$8:$DF$8,0))), SUMIF(INDIRECT(dshbrdrng_umsatzentwicklung),"<>", INDEX(INDIRECT(dshbrdrng_umsatzentwicklung2),0,MATCH(DATE($B17,MONTH(J$13),1),Erfolgsrechnung_Detail!$O$8:$DF$8,0)))+I17),"") -> 2251 | K17: =IFERROR( IF(INDEX(tblUmsatzFltr[Nr],MATCH(filter_umsatz,tblUmsatzFltr[Umsatz Filter],0)) = 1, SUMIF(INDIRECT(dshbrdrng_umsatzentwicklung),"<>", INDEX(INDIRECT(dshbrdrng_umsatzentwicklung2),0,MATCH(DATE($B17,MONTH(K$13),1),Erfolgsrechnung_Detail!$O$8:$DF$8,0))), SUMIF(INDIRECT(dshbrdrng_umsatzentwicklung),"<>", INDEX(INDIRECT(dshbrdrng_umsatzentwicklung2),0,MATCH(DATE($B17,MONTH(K$13),1),Erfolgsrechnung_Detail!$O$8:$DF$8,0)))+J17),"") -> 2002 | L17: =IFERROR( IF(INDEX(tblUmsatzFltr[Nr],MATCH(filter_umsatz,tblUmsatzFltr[Umsatz Filter],0)) = 1, SUMIF(INDIRECT(dshbrdrng_umsatzentwicklung),"<>", INDEX(INDIRECT(dshbrdrng_umsatzentwicklung2),0,MATCH(DATE($B17,MONTH(L$13),1),Erfolgsrechnung_Detail!$O$8:$DF$8,0))), SUMIF(INDIRECT(dshbrdrng_umsatzentwicklung),"<>", INDEX(INDIRECT(dshbrdrng_umsatzentwicklung2),0,MATCH(DATE($B17,MONTH(L$13),1),Erfolgsrechnung_Detail!$O$8:$DF$8,0)))+K17),"") -> 1892 | M17: =IFERROR( IF(INDEX(tblUmsatzFltr[Nr],MATCH(filter_umsatz,tblUmsatzFltr[Umsatz Filter],0)) = 1, SUMIF(INDIRECT(dshbrdrng_umsatzentwicklung),"<>", INDEX(INDIRECT(dshbrdrng_umsatzentwicklung2),0,MATCH(DATE($B17,MONTH(M$13),1),Erfolgsrechnung_Detail!$O$8:$DF$8,0))), SUMIF(INDIRECT(dshbrdrng_umsatzentwicklung),"<>", INDEX(INDIRECT(dshbrdrng_umsatzentwicklung2),0,MATCH(DATE($B17,MONTH(M$13),1),Erfolgsrechnung_Detail!$O$8:$DF$8,0)))+L17),"") -> 1850 | N17: =IFERROR( IF(INDEX(tblUmsatzFltr[Nr],MATCH(filter_umsatz,tblUmsatzFltr[Umsatz Filter],0)) = 1, SUMIF(INDIRECT(dshbrdrng_umsatzentwicklung),"<>", INDEX(INDIRECT(dshbrdrng_umsatzentwicklung2),0,MATCH(DATE($B17,MONTH(N$13),1),Erfolgsrechnung_Detail!$O$8:$DF$8,0))), SUMIF(INDIRECT(dshbrdrng_umsatzentwicklung),"<>", INDEX(INDIRECT(dshbrdrng_umsatzentwicklung2),0,MATCH(DATE($B17,MONTH(N$13),1),Erfolgsrechnung_Detail!$O$8:$DF$8,0)))+M17),"") -> 1971 | P17: =IFERROR(IF( INDEX(tblUmsatzFltr[Nr],MATCH(filter_umsatz,tblUmsatzFltr[Umsatz Filter],0))=1, SUM($C17:INDEX($C17:$N17,1,selectedmonat_num)), INDEX($C17:$N17,0,MATCH(monat,tblMonate[Monate],0))),"") -> 6850.27 | Q17: =IFERROR( IF(INDEX(tblUmsatzFltr[Nr],MATCH(filter_umsatz,tblUmsatzFltr[Umsatz Filter],0))=1, SUM(C17:$N17),N17),"") -> 24653.4
B18: 2018 | C18: =IFERROR( SUMIF(INDIRECT(dshbrdrng_umsatzentwicklung),"<>", INDEX(INDIRECT(dshbrdrng_umsatzentwicklung2),0,MATCH(DATE($B18,MONTH(C$13),1),Erfolgsrechnung_Detail!$O$8:$DF$8,0))), "") -> 1914 | D18: =IFERROR( IF(INDEX(tblUmsatzFltr[Nr],MATCH(filter_umsatz,tblUmsatzFltr[Umsatz Filter],0)) = 1, SUMIF(INDIRECT(dshbrdrng_umsatzentwicklung),"<>", INDEX(INDIRECT(dshbrdrng_umsatzentwicklung2),0,MATCH(DATE($B18,MONTH(D$13),1),Erfolgsrechnung_Detail!$O$8:$DF$8,0))), SUMIF(INDIRECT(dshbrdrng_umsatzentwicklung),"<>", INDEX(INDIRECT(dshbrdrng_umsatzentwicklung2),0,MATCH(DATE($B18,MONTH(D$13),1),Erfolgsrechnung_Detail!$O$8:$DF$8,0)))+C18),"") -> 2298 | E18: =IFERROR( IF(INDEX(tblUmsatzFltr[Nr],MATCH(filter_umsatz,tblUmsatzFltr[Umsatz Filter],0)) = 1, SUMIF(INDIRECT(dshbrdrng_umsatzentwicklung),"<>", INDEX(INDIRECT(dshbrdrng_umsatzentwicklung2),0,MATCH(DATE($B18,MONTH(E$13),1),Erfolgsrechnung_Detail!$O$8:$DF$8,0))), SUMIF(INDIRECT(dshbrdrng_umsatzentwicklung),"<>", INDEX(INDIRECT(dshbrdrng_umsatzentwicklung2),0,MATCH(DATE($B18,MONTH(E$13),1),Erfolgsrechnung_Detail!$O$8:$DF$8,0)))+D18),"") -> 1720 | F18: =IFERROR( IF(INDEX(tblUmsatzFltr[Nr],MATCH(filter_umsatz,tblUmsatzFltr[Umsatz Filter],0)) = 1, SUMIF(INDIRECT(dshbrdrng_umsatzentwicklung),"<>", INDEX(INDIRECT(dshbrdrng_umsatzentwicklung2),0,MATCH(DATE($B18,MONTH(F$13),1),Erfolgsrechnung_Detail!$O$8:$DF$8,0))), SUMIF(INDIRECT(dshbrdrng_umsatzentwicklung),"<>", INDEX(INDIRECT(dshbrdrng_umsatzentwicklung2),0,MATCH(DATE($B18,MONTH(F$13),1),Erfolgsrechnung_Detail!$O$8:$DF$8,0)))+E18),"") -> 2171 | G18: =IFERROR( IF(INDEX(tblUmsatzFltr[Nr],MATCH(filter_umsatz,tblUmsatzFltr[Umsatz Filter],0)) = 1, SUMIF(INDIRECT(dshbrdrng_umsatzentwicklung),"<>", INDEX(INDIRECT(dshbrdrng_umsatzentwicklung2),0,MATCH(DATE($B18,MONTH(G$13),1),Erfolgsrechnung_Detail!$O$8:$DF$8,0))), SUMIF(INDIRECT(dshbrdrng_umsatzentwicklung),"<>", INDEX(INDIRECT(dshbrdrng_umsatzentwicklung2),0,MATCH(DATE($B18,MONTH(G$13),1),Erfolgsrechnung_Detail!$O$8:$DF$8,0)))+F18),"") -> 2124 | H18: =IFERROR( IF(INDEX(tblUmsatzFltr[Nr],MATCH(filter_umsatz,tblUmsatzFltr[Umsatz Filter],0)) = 1, SUMIF(INDIRECT(dshbrdrng_umsatzentwicklung),"<>", INDEX(INDIRECT(dshbrdrng_umsatzentwicklung2),0,MATCH(DATE($B18,MONTH(H$13),1),Erfolgsrechnung_Detail!$O$8:$DF$8,0))), SUMIF(INDIRECT(dshbrdrng_umsatzentwicklung),"<>", INDEX(INDIRECT(dshbrdrng_umsatzentwicklung2),0,MATCH(DATE($B18,MONTH(H$13),1),Erfolgsrechnung_Detail!$O$8:$DF$8,0)))+G18),"") -> 2209 | I18: =IFERROR( IF(INDEX(tblUmsatzFltr[Nr],MATCH(filter_umsatz,tblUmsatzFltr[Umsatz Filter],0)) = 1, SUMIF(INDIRECT(dshbrdrng_umsatzentwicklung),"<>", INDEX(INDIRECT(dshbrdrng_umsatzentwicklung2),0,MATCH(DATE($B18,MONTH(I$13),1),Erfolgsrechnung_Detail!$O$8:$DF$8,0))), SUMIF(INDIRECT(dshbrdrng_umsatzentwicklung),"<>", INDEX(INDIRECT(dshbrdrng_umsatzentwicklung2),0,MATCH(DATE($B18,MONTH(I$13),1),Erfolgsrechnung_Detail!$O$8:$DF$8,0)))+H18),"") -> 2006 | J18: =IFERROR( IF(INDEX(tblUmsatzFltr[Nr],MATCH(filter_umsatz,tblUmsatzFltr[Umsatz Filter],0)) = 1, SUMIF(INDIRECT(dshbrdrng_umsatzentwicklung),"<>", INDEX(INDIRECT(dshbrdrng_umsatzentwicklung2),0,MATCH(DATE($B18,MONTH(J$13),1),Erfolgsrechnung_Detail!$O$8:$DF$8,0))), SUMIF(INDIRECT(dshbrdrng_umsatzentwicklung),"<>", INDEX(INDIRECT(dshbrdrng_umsatzentwicklung2),0,MATCH(DATE($B18,MONTH(J$13),1),Erfolgsrechnung_Detail!$O$8:$DF$8,0)))+I18),"") -> 2043 | K18: =IFERROR( IF(INDEX(tblUmsatzFltr[Nr],MATCH(filter_umsatz,tblUmsatzFltr[Umsatz Filter],0)) = 1, SUMIF(INDIRECT(dshbrdrng_umsatzentwicklung),"<>", INDEX(INDIRECT(dshbrdrng_umsatzentwicklung2),0,MATCH(DATE($B18,MONTH(K$13),1),Erfolgsrechnung_Detail!$O$8:$DF$8,0))), SUMIF(INDIRECT(dshbrdrng_umsatzentwicklung),"<>", INDEX(INDIRECT(dshbrdrng_umsatzentwicklung2),0,MATCH(DATE($B18,MONTH(K$13),1),Erfolgsrechnung_Detail!$O$8:$DF$8,0)))+J18),"") -> 1965 | L18: =IFERROR( IF(INDEX(tblUmsatzFltr[Nr],MATCH(filter_umsatz,tblUmsatzFltr[Umsatz Filter],0)) = 1, SUMIF(INDIRECT(dshbrdrng_umsatzentwicklung),"<>", INDEX(INDIRECT(dshbrdrng_umsatzentwicklung2),0,MATCH(DATE($B18,MONTH(L$13),1),Erfolgsrechnung_Detail!$O$8:$DF$8,0))), SUMIF(INDIRECT(dshbrdrng_umsatzentwicklung),"<>", INDEX(INDIRECT(dshbrdrng_umsatzentwicklung2),0,MATCH(DATE($B18,MONTH(L$13),1),Erfolgsrechnung_Detail!$O$8:$DF$8,0)))+K18),"") -> 2329 | M18: =IFERROR( IF(INDEX(tblUmsatzFltr[Nr],MATCH(filter_umsatz,tblUmsatzFltr[Umsatz Filter],0)) = 1, SUMIF(INDIRECT(dshbrdrng_umsatzentwicklung),"<>", INDEX(INDIRECT(dshbrdrng_umsatzentwicklung2),0,MATCH(DATE($B18,MONTH(M$13),1),Erfolgsrechnung_Detail!$O$8:$DF$8,0))), SUMIF(INDIRECT(dshbrdrng_umsatzentwicklung),"<>", INDEX(INDIRECT(dshbrdrng_umsatzentwicklung2),0,MATCH(DATE($B18,MONTH(M$13),1),Erfolgsrechnung_Detail!$O$8:$DF$8,0)))+L18),"") -> 2132 | N18: =IFERROR( IF(INDEX(tblUmsatzFltr[Nr],MATCH(filter_umsatz,tblUmsatzFltr[Umsatz Filter],0)) = 1, SUMIF(INDIRECT(dshbrdrng_umsatzentwicklung),"<>", INDEX(INDIRECT(dshbrdrng_umsatzentwicklung2),0,MATCH(DATE($B18,MONTH(N$13),1),Erfolgsrechnung_Detail!$O$8:$DF$8,0))), SUMIF(INDIRECT(dshbrdrng_umsatzentwicklung),"<>", INDEX(INDIRECT(dshbrdrng_umsatzentwicklung2),0,MATCH(DATE($B18,MONTH(N$13),1),Erfolgsrechnung_Detail!$O$8:$DF$8,0)))+M18),"") -> 2253 | P18: =IFERROR(IF( INDEX(tblUmsatzFltr[Nr],MATCH(filter_umsatz,tblUmsatzFltr[Umsatz Filter],0))=1, SUM($C18:INDEX($C18:$N18,1,selectedmonat_num)), INDEX($C18:$N18,0,MATCH(monat,tblMonate[Monate],0))),"") -> 5932 | Q18: =IFERROR( IF(INDEX(tblUmsatzFltr[Nr],MATCH(filter_umsatz,tblUmsatzFltr[Umsatz Filter],0))=1, SUM(C18:$N18),N18),"") -> 25164
B19: 2019 | C19: =IFERROR( SUMIF(INDIRECT(dshbrdrng_umsatzentwicklung),"<>", INDEX(INDIRECT(dshbrdrng_umsatzentwicklung2),0,MATCH(DATE($B19,MONTH(C$13),1),Erfolgsrechnung_Detail!$O$8:$DF$8,0))), "") -> 2983 | D19: =IFERROR( IF(INDEX(tblUmsatzFltr[Nr],MATCH(filter_umsatz,tblUmsatzFltr[Umsatz Filter],0)) = 1, SUMIF(INDIRECT(dshbrdrng_umsatzentwicklung),"<>", INDEX(INDIRECT(dshbrdrng_umsatzentwicklung2),0,MATCH(DATE($B19,MONTH(D$13),1),Erfolgsrechnung_Detail!$O$8:$DF$8,0))), SUMIF(INDIRECT(dshbrdrng_umsatzentwicklung),"<>", INDEX(INDIRECT(dshbrdrng_umsatzentwicklung2),0,MATCH(DATE($B19,MONTH(D$13),1),Erfolgsrechnung_Detail!$O$8:$DF$8,0)))+C19),"") -> 2683 | E19: =IFERROR( IF(INDEX(tblUmsatzFltr[Nr],MATCH(filter_umsatz,tblUmsatzFltr[Umsatz Filter],0)) = 1, SUMIF(INDIRECT(dshbrdrng_umsatzentwicklung),"<>", INDEX(INDIRECT(dshbrdrng_umsatzentwicklung2),0,MATCH(DATE($B19,MONTH(E$13),1),Erfolgsrechnung_Detail!$O$8:$DF$8,0))), SUMIF(INDIRECT(dshbrdrng_umsatzentwicklung),"<>", INDEX(INDIRECT(dshbrdrng_umsatzentwicklung2),0,MATCH(DATE($B19,MONTH(E$13),1),Erfolgsrechnung_Detail!$O$8:$DF$8,0)))+D19),"") -> 2712 | F19: =IFERROR( IF(INDEX(tblUmsatzFltr[Nr],MATCH(filter_umsatz,tblUmsatzFltr[Umsatz Filter],0)) = 1, SUMIF(INDIRECT(dshbrdrng_umsatzentwicklung),"<>", INDEX(INDIRECT(dshbrdrng_umsatzentwicklung2),0,MATCH(DATE($B19,MONTH(F$13),1),Erfolgsrechnung_Detail!$O$8:$DF$8,0))), SUMIF(INDIRECT(dshbrdrng_umsatzentwicklung),"<>", INDEX(INDIRECT(dshbrdrng_umsatzentwicklung2),0,MATCH(DATE($B19,MONTH(F$13),1),Erfolgsrechnung_Detail!$O$8:$DF$8,0)))+E19),"") -> 2525 | G19: =IFERROR( IF(INDEX(tblUmsatzFltr[Nr],MATCH(filter_umsatz,tblUmsatzFltr[Umsatz Filter],0)) = 1, SUMIF(INDIRECT(dshbrdrng_umsatzentwicklung),"<>", INDEX(INDIRECT(dshbrdrng_umsatzentwicklung2),0,MATCH(DATE($B19,MONTH(G$13),1),Erfolgsrechnung_Detail!$O$8:$DF$8,0))), SUMIF(INDIRECT(dshbrdrng_umsatzentwicklung),"<>", INDEX(INDIRECT(dshbrdrng_umsatzentwicklung2),0,MATCH(DATE($B19,MONTH(G$13),1),Erfolgsrechnung_Detail!$O$8:$DF$8,0)))+F19),"") -> 2521 | H19: =IFERROR( IF(INDEX(tblUmsatzFltr[Nr],MATCH(filter_umsatz,tblUmsatzFltr[Umsatz Filter],0)) = 1, SUMIF(INDIRECT(dshbrdrng_umsatzentwicklung),"<>", INDEX(INDIRECT(dshbrdrng_umsatzentwicklung2),0,MATCH(DATE($B19,MONTH(H$13),1),Erfolgsrechnung_Detail!$O$8:$DF$8,0))), SUMIF(INDIRECT(dshbrdrng_umsatzentwicklung),"<>", INDEX(INDIRECT(dshbrdrng_umsatzentwicklung2),0,MATCH(DATE($B19,MONTH(H$13),1),Erfolgsrechnung_Detail!$O$8:$DF$8,0)))+G19),"") -> 2922 | I19: =IFERROR( IF(INDEX(tblUmsatzFltr[Nr],MATCH(filter_umsatz,tblUmsatzFltr[Umsatz Filter],0)) = 1, SUMIF(INDIRECT(dshbrdrng_umsatzentwicklung),"<>", INDEX(INDIRECT(dshbrdrng_umsatzentwicklung2),0,MATCH(DATE($B19,MONTH(I$13),1),Erfolgsrechnung_Detail!$O$8:$DF$8,0))), SUMIF(INDIRECT(dshbrdrng_umsatzentwicklung),"<>", INDEX(INDIRECT(dshbrdrng_umsatzentwicklung2),0,MATCH(DATE($B19,MONTH(I$13),1),Erfolgsrechnung_Detail!$O$8:$DF$8,0)))+H19),"") -> 3204 | J19: =IFERROR( IF(INDEX(tblUmsatzFltr[Nr],MATCH(filter_umsatz,tblUmsatzFltr[Umsatz Filter],0)) = 1, SUMIF(INDIRECT(dshbrdrng_umsatzentwicklung),"<>", INDEX(INDIRECT(dshbrdrng_umsatzentwicklung2),0,MATCH(DATE($B19,MONTH(J$13),1),Erfolgsrechnung_Detail!$O$8:$DF$8,0))), SUMIF(INDIRECT(dshbrdrng_umsatzentwicklung),"<>", INDEX(INDIRECT(dshbrdrng_umsatzentwicklung2),0,MATCH(DATE($B19,MONTH(J$13),1),Erfolgsrechnung_Detail!$O$8:$DF$8,0)))+I19),"") -> 3009 | K19: =IFERROR( IF(INDEX(tblUmsatzFltr[Nr],MATCH(filter_umsatz,tblUmsatzFltr[Umsatz Filter],0)) = 1, SUMIF(INDIRECT(dshbrdrng_umsatzentwicklung),"<>", INDEX(INDIRECT(dshbrdrng_umsatzentwicklung2),0,MATCH(DATE($B19,MONTH(K$13),1),Erfolgsrechnung_Detail!$O$8:$DF$8,0))), SUMIF(INDIRECT(dshbrdrng_umsatzentwicklung),"<>", INDEX(INDIRECT(dshbrdrng_umsatzentwicklung2),0,MATCH(DATE($B19,MONTH(K$13),1),Erfolgsrechnung_Detail!$O$8:$DF$8,0)))+J19),"") -> 2535 | L19: =IFERROR( IF(INDEX(tblUmsatzFltr[Nr],MATCH(filter_umsatz,tblUmsatzFltr[Umsatz Filter],0)) = 1, SUMIF(INDIRECT(dshbrdrng_umsatzentwicklung),"<>", INDEX(INDIRECT(dshbrdrng_umsatzentwicklung2),0,MATCH(DATE($B19,MONTH(L$13),1),Erfolgsrechnung_Detail!$O$8:$DF$8,0))), SUMIF(INDIRECT(dshbrdrng_umsatzentwicklung),"<>", INDEX(INDIRECT(dshbrdrng_umsatzentwicklung2),0,MATCH(DATE($B19,MONTH(L$13),1),Erfolgsrechnung_Detail!$O$8:$DF$8,0)))+K19),"") -> 3029 | M19: =IFERROR( IF(INDEX(tblUmsatzFltr[Nr],MATCH(filter_umsatz,tblUmsatzFltr[Umsatz Filter],0)) = 1, SUMIF(INDIRECT(dshbrdrng_umsatzentwicklung),"<>", INDEX(INDIRECT(dshbrdrng_umsatzentwicklung2),0,MATCH(DATE($B19,MONTH(M$13),1),Erfolgsrechnung_Detail!$O$8:$DF$8,0))), SUMIF(INDIRECT(dshbrdrng_umsatzentwicklung),"<>", INDEX(INDIRECT(dshbrdrng_umsatzentwicklung2),0,MATCH(DATE($B19,MONTH(M$13),1),Erfolgsrechnung_Detail!$O$8:$DF$8,0)))+L19),"") -> 3045 | N19: =IFERROR( IF(INDEX(tblUmsatzFltr[Nr],MATCH(filter_umsatz,tblUmsatzFltr[Umsatz Filter],0)) = 1, SUMIF(INDIRECT(dshbrdrng_umsatzentwicklung),"<>", INDEX(INDIRECT(dshbrdrng_umsatzentwicklung2),0,MATCH(DATE($B19,MONTH(N$13),1),Erfolgsrechnung_Detail!$O$8:$DF$8,0))), SUMIF(INDIRECT(dshbrdrng_umsatzentwicklung),"<>", INDEX(INDIRECT(dshbrdrng_umsatzentwicklung2),0,MATCH(DATE($B19,MONTH(N$13),1),Erfolgsrechnung_Detail!$O$8:$DF$8,0)))+M19),"") -> 3309 | P19: =IFERROR(IF( INDEX(tblUmsatzFltr[Nr],MATCH(filter_umsatz,tblUmsatzFltr[Umsatz Filter],0))=1, SUM($C19:INDEX($C19:$N19,1,selectedmonat_num)), INDEX($C19:$N19,0,MATCH(monat,tblMonate[Monate],0))),"") -> 8378 | Q19: =IFERROR( IF(INDEX(tblUmsatzFltr[Nr],MATCH(filter_umsatz,tblUmsatzFltr[Umsatz Filter],0))=1, SUM(C19:$N19),N19),"") -> 34477
B20: =jahr -> 2020 | C20: =IFERROR( SUMIF(INDIRECT(dshbrdrng_umsatzentwicklung),"<>", INDEX(INDIRECT(dshbrdrng_umsatzentwicklung2),0,MATCH(DATE($B20,MONTH(C$13),1),Erfolgsrechnung_Detail!$O$8:$DF$8,0))), "") -> 3104 | D20: =IFERROR( IF(INDEX(tblUmsatzFltr[Nr],MATCH(filter_umsatz,tblUmsatzFltr[Umsatz Filter],0)) = 1, SUMIF(INDIRECT(dshbrdrng_umsatzentwicklung),"<>", INDEX(INDIRECT(dshbrdrng_umsatzentwicklung2),0,MATCH(DATE($B20,MONTH(D$13),1),Erfolgsrechnung_Detail!$O$8:$DF$8,0))), SUMIF(INDIRECT(dshbrdrng_umsatzentwicklung),"<>", INDEX(INDIRECT(dshbrdrng_umsatzentwicklung2),0,MATCH(DATE($B20,MONTH(D$13),1),Erfolgsrechnung_Detail!$O$8:$DF$8,0)))+C20),"") -> 3021 | E20: =IFERROR( IF(INDEX(tblUmsatzFltr[Nr],MATCH(filter_umsatz,tblUmsatzFltr[Umsatz Filter],0)) = 1, SUMIF(INDIRECT(dshbrdrng_umsatzentwicklung),"<>", INDEX(INDIRECT(dshbrdrng_umsatzentwicklung2),0,MATCH(DATE($B20,MONTH(E$13),1),Erfolgsrechnung_Detail!$O$8:$DF$8,0))), SUMIF(INDIRECT(dshbrdrng_umsatzentwicklung),"<>", INDEX(INDIRECT(dshbrdrng_umsatzentwicklung2),0,MATCH(DATE($B20,MONTH(E$13),1),Erfolgsrechnung_Detail!$O$8:$DF$8,0)))+D20),"") -> 2913 | F20: =IFERROR( IF(INDEX(tblUmsatzFltr[Nr],MATCH(filter_umsatz,tblUmsatzFltr[Umsatz Filter],0)) = 1, SUMIF(INDIRECT(dshbrdrng_umsatzentwicklung),"<>", INDEX(INDIRECT(dshbrdrng_umsatzentwicklung2),0,MATCH(DATE($B20,MONTH(F$13),1),Erfolgsrechnung_Detail!$O$8:$DF$8,0))), SUMIF(INDIRECT(dshbrdrng_umsatzentwicklung),"<>", INDEX(INDIRECT(dshbrdrng_umsatzentwicklung2),0,MATCH(DATE($B20,MONTH(F$13),1),Erfolgsrechnung_Detail!$O$8:$DF$8,0)))+E20),"") -> 3597 | G20: =IFERROR( IF(INDEX(tblUmsatzFltr[Nr],MATCH(filter_umsatz,tblUmsatzFltr[Umsatz Filter],0)) = 1, SUMIF(INDIRECT(dshbrdrng_umsatzentwicklung),"<>", INDEX(INDIRECT(dshbrdrng_umsatzentwicklung2),0,MATCH(DATE($B20,MONTH(G$13),1),Erfolgsrechnung_Detail!$O$8:$DF$8,0))), SUMIF(INDIRECT(dshbrdrng_umsatzentwicklung),"<>", INDEX(INDIRECT(dshbrdrng_umsatzentwicklung2),0,MATCH(DATE($B20,MONTH(G$13),1),Erfolgsrechnung_Detail!$O$8:$DF$8,0)))+F20),"") -> 3006 | H20: =IFERROR( IF(INDEX(tblUmsatzFltr[Nr],MATCH(filter_umsatz,tblUmsatzFltr[Umsatz Filter],0)) = 1, SUMIF(INDIRECT(dshbrdrng_umsatzentwicklung),"<>", INDEX(INDIRECT(dshbrdrng_umsatzentwicklung2),0,MATCH(DATE($B20,MONTH(H$13),1),Erfolgsrechnung_Detail!$O$8:$DF$8,0))), SUMIF(INDIRECT(dshbrdrng_umsatzentwicklung),"<>", INDEX(INDIRECT(dshbrdrng_umsatzentwicklung2),0,MATCH(DATE($B20,MONTH(H$13),1),Erfolgsrechnung_Detail!$O$8:$DF$8,0)))+G20),"") -> 3080 | I20: =IFERROR( IF(INDEX(tblUmsatzFltr[Nr],MATCH(filter_umsatz,tblUmsatzFltr[Umsatz Filter],0)) = 1, SUMIF(INDIRECT(dshbrdrng_umsatzentwicklung),"<>", INDEX(INDIRECT(dshbrdrng_umsatzentwicklung2),0,MATCH(DATE($B20,MONTH(I$13),1),Erfolgsrechnung_Detail!$O$8:$DF$8,0))), SUMIF(INDIRECT(dshbrdrng_umsatzentwicklung),"<>", INDEX(INDIRECT(dshbrdrng_umsatzentwicklung2),0,MATCH(DATE($B20,MONTH(I$13),1),Erfolgsrechnung_Detail!$O$8:$DF$8,0)))+H20),"") -> 3110 | J20: =IFERROR( IF(INDEX(tblUmsatzFltr[Nr],MATCH(filter_umsatz,tblUmsatzFltr[Umsatz Filter],0)) = 1, SUMIF(INDIRECT(dshbrdrng_umsatzentwicklung),"<>", INDEX(INDIRECT(dshbrdrng_umsatzentwicklung2),0,MATCH(DATE($B20,MONTH(J$13),1),Erfolgsrechnung_Detail!$O$8:$DF$8,0))), SUMIF(INDIRECT(dshbrdrng_umsatzentwicklung),"<>", INDEX(INDIRECT(dshbrdrng_umsatzentwicklung2),0,MATCH(DATE($B20,MONTH(J$13),1),Erfolgsrechnung_Detail!$O$8:$DF$8,0)))+I20),"") -> 2712 | K20: =IFERROR( IF(INDEX(tblUmsatzFltr[Nr],MATCH(filter_umsatz,tblUmsatzFltr[Umsatz Filter],0)) = 1, SUMIF(INDIRECT(dshbrdrng_umsatzentwicklung),"<>", INDEX(INDIRECT(dshbrdrng_umsatzentwicklung2),0,MATCH(DATE($B20,MONTH(K$13),1),Erfolgsrechnung_Detail!$O$8:$DF$8,0))), SUMIF(INDIRECT(dshbrdrng_umsatzentwicklung),"<>", INDEX(INDIRECT(dshbrdrng_umsatzentwicklung2),0,MATCH(DATE($B20,MONTH(K$13),1),Erfolgsrechnung_Detail!$O$8:$DF$8,0)))+J20),"") -> 2950 | L20: =IFERROR( IF(INDEX(tblUmsatzFltr[Nr],MATCH(filter_umsatz,tblUmsatzFltr[Umsatz Filter],0)) = 1, SUMIF(INDIRECT(dshbrdrng_umsatzentwicklung),"<>", INDEX(INDIRECT(dshbrdrng_umsatzentwicklung2),0,MATCH(DATE($B20,MONTH(L$13),1),Erfolgsrechnung_Detail!$O$8:$DF$8,0))), SUMIF(INDIRECT(dshbrdrng_umsatzentwicklung),"<>", INDEX(INDIRECT(dshbrdrng_umsatzentwicklung2),0,MATCH(DATE($B20,MONTH(L$13),1),Erfolgsrechnung_Detail!$O$8:$DF$8,0)))+K20),"") -> 2942 | M20: =IFERROR( IF(INDEX(tblUmsatzFltr[Nr],MATCH(filter_umsatz,tblUmsatzFltr[Umsatz Filter],0)) = 1, SUMIF(INDIRECT(dshbrdrng_umsatzentwicklung),"<>", INDEX(INDIRECT(dshbrdrng_umsatzentwicklung2),0,MATCH(DATE($B20,MONTH(M$13),1),Erfolgsrechnung_Detail!$O$8:$DF$8,0))), SUMIF(INDIRECT(dshbrdrng_umsatzentwicklung),"<>", INDEX(INDIRECT(dshbrdrng_umsatzentwicklung2),0,MATCH(DATE($B20,MONTH(M$13),1),Erfolgsrechnung_Detail!$O$8:$DF$8,0)))+L20),"") -> 2916 | N20: =IFERROR( IF(INDEX(tblUmsatzFltr[Nr],MATCH(filter_umsatz,tblUmsatzFltr[Umsatz Filter],0)) = 1, SUMIF(INDIRECT(dshbrdrng_umsatzentwicklung),"<>", INDEX(INDIRECT(dshbrdrng_umsatzentwicklung2),0,MATCH(DATE($B20,MONTH(N$13),1),Erfolgsrechnung_Detail!$O$8:$DF$8,0))), SUMIF(INDIRECT(dshbrdrng_umsatzentwicklung),"<>", INDEX(INDIRECT(dshbrdrng_umsatzentwicklung2),0,MATCH(DATE($B20,MONTH(N$13),1),Erfolgsrechnung_Detail!$O$8:$DF$8,0)))+M20),"") -> 2797 | P20: =IFERROR(IF( INDEX(tblUmsatzFltr[Nr],MATCH(filter_umsatz,tblUmsatzFltr[Umsatz Filter],0))=1, SUM($C20:INDEX($C20:$N20,1,selectedmonat_num)), INDEX($C20:$N20,0,MATCH(monat,tblMonate[Monate],0))),"") -> 9038 | Q20: =IFERROR( IF(INDEX(tblUmsatzFltr[Nr],MATCH(filter_umsatz,tblUmsatzFltr[Umsatz Filter],0))=1, SUM(C20:$N20),N20),"") -> 36148
B21: YTD Wachstum | C21: =IFERROR(C20/C19-1,0) -> 0.04056319142 | D21: =IFERROR(D20/D19-1,0) -> 0.1259783824 | E21: =IFERROR(E20/E19-1,0) -> 0.07411504425 | F21: 0.4245544554 | G21: 0.1923839746 | H21: 0.05407255305 | I21: -0.02933832709 | J21: -0.09870388833 | K21: 0.1637080868 | L21: -0.02872235061 | M21: -0.04236453202 | N21: -0.1547295255 | P21: =IFERROR(P20/P19-1,0) -> 0.07877775125 | Q21: =IFERROR(Q20/Q19-1,0) -> 0.048467094
B23: Budget | C23: =IFERROR(SUMIFS(INDIRECT(budgetrng_umsatzentwicklung),INDIRECT(budgetrng),"<>"),"") -> 1000 | D23: =IFERROR(SUMIFS(OFFSET(INDIRECT(budgetrng_umsatzentwicklung),0,1),INDIRECT(budgetrng),"<>"),"") -> 1000 | E23: =IFERROR(SUMIFS(OFFSET(INDIRECT(budgetrng_umsatzentwicklung),0,2),INDIRECT(budgetrng),"<>"),"") -> 1500 | F23: =IFERROR(SUMIFS(OFFSET(INDIRECT(budgetrng_umsatzentwicklung),0,3),INDIRECT(budgetrng),"<>"),"") -> 1500 | G23: =IFERROR(SUMIFS(OFFSET(INDIRECT(budgetrng_umsatzentwicklung),0,4),INDIRECT(budgetrng),"<>"),"") -> 2000 | H23: =IFERROR(SUMIFS(OFFSET(INDIRECT(budgetrng_umsatzentwicklung),0,5),INDIRECT(budgetrng),"<>"),"") -> 2000 | I23: =IFERROR(SUMIFS(OFFSET(INDIRECT(budgetrng_umsatzentwicklung),0,6),INDIRECT(budgetrng),"<>"),"") -> 2500 | J23: =IFERROR(SUMIFS(OFFSET(INDIRECT(budgetrng_umsatzentwicklung),0,7),INDIRECT(budgetrng),"<>"),"") -> 2500 | K23: =IFERROR(SUMIFS(OFFSET(INDIRECT(budgetrng_umsatzentwicklung),0,8),INDIRECT(budgetrng),"<>"),"") -> 3000 | L23: =IFERROR(SUMIFS(OFFSET(INDIRECT(budgetrng_umsatzentwicklung),0,9),INDIRECT(budgetrng),"<>"),"") -> 3000 | M23: =IFERROR(SUMIFS(OFFSET(INDIRECT(budgetrng_umsatzentwicklung),0,10),INDIRECT(budgetrng),"<>"),"") -> 3500 | N23: =IFERROR(SUMIFS(OFFSET(INDIRECT(budgetrng_umsatzentwicklung),0,11),INDIRECT(budgetrng),"<>"),"") -> 3500 | P23: =SUM($C23:INDEX($C23:$N23,1,selectedmonat_num)) -> 3500 | Q23: =SUM(rngBudget) -> 27000
B26: Aktuelles Jahr vs. Vorjahr | P26: =IF(INDEX(tblMonate[Nr],MATCH(monat,tblMonate[Monate],0))<> 1, CONCATENATE("YTD ",Einstellungen!$AY$8," - ",monat," Umsatz Zielerreichung"), CONCATENATE("YTD ",Einstellungen!$AY$8," Umsatz Zielerreichungt")) -> YTD Januar - März Umsatz Zielerreichung
B28: Budget | C28: =C23 -> 1000 | D28: =IF(INDEX(tblUmsatzFltr[Nr],MATCH($L$3,tblUmsatzFltr[Umsatz Filter],0)) = 1,D$23,D$23+C$28) -> 1000 | E28: =IF(INDEX(tblUmsatzFltr[Nr],MATCH($L$3,tblUmsatzFltr[Umsatz Filter],0)) = 1,E$23,E$23+D$28) -> 1500 | F28: =IF(INDEX(tblUmsatzFltr[Nr],MATCH($L$3,tblUmsatzFltr[Umsatz Filter],0)) = 1,F$23,F$23+E$28) -> 1500 | G28: =IF(INDEX(tblUmsatzFltr[Nr],MATCH($L$3,tblUmsatzFltr[Umsatz Filter],0)) = 1,G$23,G$23+F$28) -> 2000 | H28: =IF(INDEX(tblUmsatzFltr[Nr],MATCH($L$3,tblUmsatzFltr[Umsatz Filter],0)) = 1,H$23,H$23+G$28) -> 2000 | I28: =IF(INDEX(tblUmsatzFltr[Nr],MATCH($L$3,tblUmsatzFltr[Umsatz Filter],0)) = 1,I$23,I$23+H$28) -> 2500 | J28: =IF(INDEX(tblUmsatzFltr[Nr],MATCH($L$3,tblUmsatzFltr[Umsatz Filter],0)) = 1,J$23,J$23+I$28) -> 2500 | K28: =IF(INDEX(tblUmsatzFltr[Nr],MATCH($L$3,tblUmsatzFltr[Umsatz Filter],0)) = 1,K$23,K$23+J$28) -> 3000 | L28: =IF(INDEX(tblUmsatzFltr[Nr],MATCH($L$3,tblUmsatzFltr[Umsatz Filter],0)) = 1,L$23,L$23+K$28) -> 3000 | M28: =IF(INDEX(tblUmsatzFltr[Nr],MATCH($L$3,tblUmsatzFltr[Umsatz Filter],0)) = 1,M$23,M$23+L$28) -> 3500 | N28: =IF(INDEX(tblUmsatzFltr[Nr],MATCH($L$3,tblUmsatzFltr[Umsatz Filter],0)) = 1,N$23,N$23+M$28) -> 3500
B47: Bruttogewinn /-Verlust
C49: =DATE(jahr,1,1) -> 2020-01-01 | D49: =EOMONTH(C49,0)+1 -> 2020-02-01 | E49: 2020-03-01 | F49: 2020-04-01 | G49: 2020-05-01 | H49: 2020-06-01 | I49: 2020-07-01 | J49: 2020-08-01 | K49: 2020-09-01 | L49: 2020-10-01 | M49: 2020-11-01 | N49: 2020-12-01 | P49: =P13 -> YTD Januar bis März | Q49: Total
B50: =B51-1 -> 2014 | C50: =IFERROR(C14+ SUMIF(INDIRECT(dshbrdrng_bruttogewinn),"<>", INDEX(INDIRECT(dshbrdrng_bruttogewinn2),0,MATCH(DATE($B50,MONTH(C$49),1),Erfolgsrechnung_Detail!$O$8:$DF$8,0))), "") ->  | D50: =IFERROR(SUMIF(INDIRECT(dshbrdrng_umsatzentwicklung),"<>", INDEX(INDIRECT(dshbrdrng_umsatzentwicklung2),0,MATCH(DATE($B14,MONTH(D$13),1),Erfolgsrechnung_Detail!$O$8:$DF$8,0))) + IF(INDEX(tblUmsatzFltr[Nr],MATCH(filter_umsatz,tblUmsatzFltr[Umsatz Filter],0)) = 1, SUMIF(INDIRECT(dshbrdrng_bruttogewinn),"<>", INDEX(INDIRECT(dshbrdrng_bruttogewinn2),0,MATCH(DATE($B50,MONTH(D$49),1),Erfolgsrechnung_Detail!$O$8:$DF$8,0))), SUMIF(INDIRECT(dshbrdrng_bruttogewinn),"<>", INDEX(INDIRECT(dshbrdrng_bruttogewinn2),0,MATCH(DATE($B50,MONTH(D$49),1),Erfolgsrechnung_Detail!$O$8:$DF$8,0)))+C50),"") ->  | E50: =IFERROR(SUMIF(INDIRECT(dshbrdrng_umsatzentwicklung),"<>", INDEX(INDIRECT(dshbrdrng_umsatzentwicklung2),0,MATCH(DATE($B14,MONTH(E$13),1),Erfolgsrechnung_Detail!$O$8:$DF$8,0))) + IF(INDEX(tblUmsatzFltr[Nr],MATCH(filter_umsatz,tblUmsatzFltr[Umsatz Filter],0)) = 1, SUMIF(INDIRECT(dshbrdrng_bruttogewinn),"<>", INDEX(INDIRECT(dshbrdrng_bruttogewinn2),0,MATCH(DATE($B50,MONTH(E$49),1),Erfolgsrechnung_Detail!$O$8:$DF$8,0))), SUMIF(INDIRECT(dshbrdrng_bruttogewinn),"<>", INDEX(INDIRECT(dshbrdrng_bruttogewinn2),0,MATCH(DATE($B50,MONTH(E$49),1),Erfolgsrechnung_Detail!$O$8:$DF$8,0)))+D50),"") ->  | F50: =IFERROR(SUMIF(INDIRECT(dshbrdrng_umsatzentwicklung),"<>", INDEX(INDIRECT(dshbrdrng_umsatzentwicklung2),0,MATCH(DATE($B14,MONTH(F$13),1),Erfolgsrechnung_Detail!$O$8:$DF$8,0))) + IF(INDEX(tblUmsatzFltr[Nr],MATCH(filter_umsatz,tblUmsatzFltr[Umsatz Filter],0)) = 1, SUMIF(INDIRECT(dshbrdrng_bruttogewinn),"<>", INDEX(INDIRECT(dshbrdrng_bruttogewinn2),0,MATCH(DATE($B50,MONTH(F$49),1),Erfolgsrechnung_Detail!$O$8:$DF$8,0))), SUMIF(INDIRECT(dshbrdrng_bruttogewinn),"<>", INDEX(INDIRECT(dshbrdrng_bruttogewinn2),0,MATCH(DATE($B50,MONTH(F$49),1),Erfolgsrechnung_Detail!$O$8:$DF$8,0)))+E50),"") ->  | G50: =IFERROR(SUMIF(INDIRECT(dshbrdrng_umsatzentwicklung),"<>", INDEX(INDIRECT(dshbrdrng_umsatzentwicklung2),0,MATCH(DATE($B14,MONTH(G$13),1),Erfolgsrechnung_Detail!$O$8:$DF$8,0))) + IF(INDEX(tblUmsatzFltr[Nr],MATCH(filter_umsatz,tblUmsatzFltr[Umsatz Filter],0)) = 1, SUMIF(INDIRECT(dshbrdrng_bruttogewinn),"<>", INDEX(INDIRECT(dshbrdrng_bruttogewinn2),0,MATCH(DATE($B50,MONTH(G$49),1),Erfolgsrechnung_Detail!$O$8:$DF$8,0))), SUMIF(INDIRECT(dshbrdrng_bruttogewinn),"<>", INDEX(INDIRECT(dshbrdrng_bruttogewinn2),0,MATCH(DATE($B50,MONTH(G$49),1),Erfolgsrechnung_Detail!$O$8:$DF$8,0)))+F50),"") ->  | H50: =IFERROR(SUMIF(INDIRECT(dshbrdrng_umsatzentwicklung),"<>", INDEX(INDIRECT(dshbrdrng_umsatzentwicklung2),0,MATCH(DATE($B14,MONTH(H$13),1),Erfolgsrechnung_Detail!$O$8:$DF$8,0))) + IF(INDEX(tblUmsatzFltr[Nr],MATCH(filter_umsatz,tblUmsatzFltr[Umsatz Filter],0)) = 1, SUMIF(INDIRECT(dshbrdrng_bruttogewinn),"<>", INDEX(INDIRECT(dshbrdrng_bruttogewinn2),0,MATCH(DATE($B50,MONTH(H$49),1),Erfolgsrechnung_Detail!$O$8:$DF$8,0))), SUMIF(INDIRECT(dshbrdrng_bruttogewinn),"<>", INDEX(INDIRECT(dshbrdrng_bruttogewinn2),0,MATCH(DATE($B50,MONTH(H$49),1),Erfolgsrechnung_Detail!$O$8:$DF$8,0)))+G50),"") ->  | I50: =IFERROR(SUMIF(INDIRECT(dshbrdrng_umsatzentwicklung),"<>", INDEX(INDIRECT(dshbrdrng_umsatzentwicklung2),0,MATCH(DATE($B14,MONTH(I$13),1),Erfolgsrechnung_Detail!$O$8:$DF$8,0))) + IF(INDEX(tblUmsatzFltr[Nr],MATCH(filter_umsatz,tblUmsatzFltr[Umsatz Filter],0)) = 1, SUMIF(INDIRECT(dshbrdrng_bruttogewinn),"<>", INDEX(INDIRECT(dshbrdrng_bruttogewinn2),0,MATCH(DATE($B50,MONTH(I$49),1),Erfolgsrechnung_Detail!$O$8:$DF$8,0))), SUMIF(INDIRECT(dshbrdrng_bruttogewinn),"<>", INDEX(INDIRECT(dshbrdrng_bruttogewinn2),0,MATCH(DATE($B50,MONTH(I$49),1),Erfolgsrechnung_Detail!$O$8:$DF$8,0)))+H50),"") ->  | J50: =IFERROR(SUMIF(INDIRECT(dshbrdrng_umsatzentwicklung),"<>", INDEX(INDIRECT(dshbrdrng_umsatzentwicklung2),0,MATCH(DATE($B14,MONTH(J$13),1),Erfolgsrechnung_Detail!$O$8:$DF$8,0))) + IF(INDEX(tblUmsatzFltr[Nr],MATCH(filter_umsatz,tblUmsatzFltr[Umsatz Filter],0)) = 1, SUMIF(INDIRECT(dshbrdrng_bruttogewinn),"<>", INDEX(INDIRECT(dshbrdrng_bruttogewinn2),0,MATCH(DATE($B50,MONTH(J$49),1),Erfolgsrechnung_Detail!$O$8:$DF$8,0))), SUMIF(INDIRECT(dshbrdrng_bruttogewinn),"<>", INDEX(INDIRECT(dshbrdrng_bruttogewinn2),0,MATCH(DATE($B50,MONTH(J$49),1),Erfolgsrechnung_Detail!$O$8:$DF$8,0)))+I50),"") ->  | K50: =IFERROR(SUMIF(INDIRECT(dshbrdrng_umsatzentwicklung),"<>", INDEX(INDIRECT(dshbrdrng_umsatzentwicklung2),0,MATCH(DATE($B14,MONTH(K$13),1),Erfolgsrechnung_Detail!$O$8:$DF$8,0))) + IF(INDEX(tblUmsatzFltr[Nr],MATCH(filter_umsatz,tblUmsatzFltr[Umsatz Filter],0)) = 1, SUMIF(INDIRECT(dshbrdrng_bruttogewinn),"<>", INDEX(INDIRECT(dshbrdrng_bruttogewinn2),0,MATCH(DATE($B50,MONTH(K$49),1),Erfolgsrechnung_Detail!$O$8:$DF$8,0))), SUMIF(INDIRECT(dshbrdrng_bruttogewinn),"<>", INDEX(INDIRECT(dshbrdrng_bruttogewinn2),0,MATCH(DATE($B50,MONTH(K$49),1),Erfolgsrechnung_Detail!$O$8:$DF$8,0)))+J50),"") ->  | L50: =IFERROR(SUMIF(INDIRECT(dshbrdrng_umsatzentwicklung),"<>", INDEX(INDIRECT(dshbrdrng_umsatzentwicklung2),0,MATCH(DATE($B14,MONTH(L$13),1),Erfolgsrechnung_Detail!$O$8:$DF$8,0))) + IF(INDEX(tblUmsatzFltr[Nr],MATCH(filter_umsatz,tblUmsatzFltr[Umsatz Filter],0)) = 1, SUMIF(INDIRECT(dshbrdrng_bruttogewinn),"<>", INDEX(INDIRECT(dshbrdrng_bruttogewinn2),0,MATCH(DATE($B50,MONTH(L$49),1),Erfolgsrechnung_Detail!$O$8:$DF$8,0))), SUMIF(INDIRECT(dshbrdrng_bruttogewinn),"<>", INDEX(INDIRECT(dshbrdrng_bruttogewinn2),0,MATCH(DATE($B50,MONTH(L$49),1),Erfolgsrechnung_Detail!$O$8:$DF$8,0)))+K50),"") ->  | M50: =IFERROR(SUMIF(INDIRECT(dshbrdrng_umsatzentwicklung),"<>", INDEX(INDIRECT(dshbrdrng_umsatzentwicklung2),0,MATCH(DATE($B14,MONTH(M$13),1),Erfolgsrechnung_Detail!$O$8:$DF$8,0))) + IF(INDEX(tblUmsatzFltr[Nr],MATCH(filter_umsatz,tblUmsatzFltr[Umsatz Filter],0)) = 1, SUMIF(INDIRECT(dshbrdrng_bruttogewinn),"<>", INDEX(INDIRECT(dshbrdrng_bruttogewinn2),0,MATCH(DATE($B50,MONTH(M$49),1),Erfolgsrechnung_Detail!$O$8:$DF$8,0))), SUMIF(INDIRECT(dshbrdrng_bruttogewinn),"<>", INDEX(INDIRECT(dshbrdrng_bruttogewinn2),0,MATCH(DATE($B50,MONTH(M$49),1),Erfolgsrechnung_Detail!$O$8:$DF$8,0)))+L50),"") ->  | N50: =IFERROR(SUMIF(INDIRECT(dshbrdrng_umsatzentwicklung),"<>", INDEX(INDIRECT(dshbrdrng_umsatzentwicklung2),0,MATCH(DATE($B14,MONTH(N$13),1),Erfolgsrechnung_Detail!$O$8:$DF$8,0))) + IF(INDEX(tblUmsatzFltr[Nr],MATCH(filter_umsatz,tblUmsatzFltr[Umsatz Filter],0)) = 1, SUMIF(INDIRECT(dshbrdrng_bruttogewinn),"<>", INDEX(INDIRECT(dshbrdrng_bruttogewinn2),0,MATCH(DATE($B50,MONTH(N$49),1),Erfolgsrechnung_Detail!$O$8:$DF$8,0))), SUMIF(INDIRECT(dshbrdrng_bruttogewinn),"<>", INDEX(INDIRECT(dshbrdrng_bruttogewinn2),0,MATCH(DATE($B50,MONTH(N$49),1),Erfolgsrechnung_Detail!$O$8:$DF$8,0)))+M50),"") ->  | P50: =IFERROR(IF( INDEX(tblUmsatzFltr[Nr],MATCH(filter_umsatz,tblUmsatzFltr[Umsatz Filter],0))=1, SUM($C50:INDEX($C50:$N50,1,selectedmonat_num)), INDEX($C50:$N50,0,MATCH(monat,tblMonate[Monate],0))),"") -> 0 | Q50: =IFERROR( IF(INDEX(tblUmsatzFltr[Nr],MATCH(filter_umsatz,tblUmsatzFltr[Umsatz Filter],0))=1, SUM(C50:$N50),N50),"") -> 0
B51: 2015 | C51: =IFERROR(C15+ SUMIF(INDIRECT(dshbrdrng_bruttogewinn),"<>", INDEX(INDIRECT(dshbrdrng_bruttogewinn2),0,MATCH(DATE($B51,MONTH(C$49),1),Erfolgsrechnung_Detail!$O$8:$DF$8,0))), "") -> 1699.083722 | D51: =IFERROR(SUMIF(INDIRECT(dshbrdrng_umsatzentwicklung),"<>", INDEX(INDIRECT(dshbrdrng_umsatzentwicklung2),0,MATCH(DATE($B15,MONTH(D$13),1),Erfolgsrechnung_Detail!$O$8:$DF$8,0))) + IF(INDEX(tblUmsatzFltr[Nr],MATCH(filter_umsatz,tblUmsatzFltr[Umsatz Filter],0)) = 1, SUMIF(INDIRECT(dshbrdrng_bruttogewinn),"<>", INDEX(INDIRECT(dshbrdrng_bruttogewinn2),0,MATCH(DATE($B51,MONTH(D$49),1),Erfolgsrechnung_Detail!$O$8:$DF$8,0))), SUMIF(INDIRECT(dshbrdrng_bruttogewinn),"<>", INDEX(INDIRECT(dshbrdrng_bruttogewinn2),0,MATCH(DATE($B51,MONTH(D$49),1),Erfolgsrechnung_Detail!$O$8:$DF$8,0)))+C51),"") -> 2131 | E51: =IFERROR(SUMIF(INDIRECT(dshbrdrng_umsatzentwicklung),"<>", INDEX(INDIRECT(dshbrdrng_umsatzentwicklung2),0,MATCH(DATE($B15,MONTH(E$13),1),Erfolgsrechnung_Detail!$O$8:$DF$8,0))) + IF(INDEX(tblUmsatzFltr[Nr],MATCH(filter_umsatz,tblUmsatzFltr[Umsatz Filter],0)) = 1, SUMIF(INDIRECT(dshbrdrng_bruttogewinn),"<>", INDEX(INDIRECT(dshbrdrng_bruttogewinn2),0,MATCH(DATE($B51,MONTH(E$49),1),Erfolgsrechnung_Detail!$O$8:$DF$8,0))), SUMIF(INDIRECT(dshbrdrng_bruttogewinn),"<>", INDEX(INDIRECT(dshbrdrng_bruttogewinn2),0,MATCH(DATE($B51,MONTH(E$49),1),Erfolgsrechnung_Detail!$O$8:$DF$8,0)))+D51),"") -> 1961 | F51: =IFERROR(SUMIF(INDIRECT(dshbrdrng_umsatzentwicklung),"<>", INDEX(INDIRECT(dshbrdrng_umsatzentwicklung2),0,MATCH(DATE($B15,MONTH(F$13),1),Erfolgsrechnung_Detail!$O$8:$DF$8,0))) + IF(INDEX(tblUmsatzFltr[Nr],MATCH(filter_umsatz,tblUmsatzFltr[Umsatz Filter],0)) = 1, SUMIF(INDIRECT(dshbrdrng_bruttogewinn),"<>", INDEX(INDIRECT(dshbrdrng_bruttogewinn2),0,MATCH(DATE($B51,MONTH(F$49),1),Erfolgsrechnung_Detail!$O$8:$DF$8,0))), SUMIF(INDIRECT(dshbrdrng_bruttogewinn),"<>", INDEX(INDIRECT(dshbrdrng_bruttogewinn2),0,MATCH(DATE($B51,MONTH(F$49),1),Erfolgsrechnung_Detail!$O$8:$DF$8,0)))+E51),"") -> 1913 | G51: =IFERROR(SUMIF(INDIRECT(dshbrdrng_umsatzentwicklung),"<>", INDEX(INDIRECT(dshbrdrng_umsatzentwicklung2),0,MATCH(DATE($B15,MONTH(G$13),1),Erfolgsrechnung_Detail!$O$8:$DF$8,0))) + IF(INDEX(tblUmsatzFltr[Nr],MATCH(filter_umsatz,tblUmsatzFltr[Umsatz Filter],0)) = 1, SUMIF(INDIRECT(dshbrdrng_bruttogewinn),"<>", INDEX(INDIRECT(dshbrdrng_bruttogewinn2),0,MATCH(DATE($B51,MONTH(G$49),1),Erfolgsrechnung_Detail!$O$8:$DF$8,0))), SUMIF(INDIRECT(dshbrdrng_bruttogewinn),"<>", INDEX(INDIRECT(dshbrdrng_bruttogewinn2),0,MATCH(DATE($B51,MONTH(G$49),1),Erfolgsrechnung_Detail!$O$8:$DF$8,0)))+F51),"") -> 1645 | H51: =IFERROR(SUMIF(INDIRECT(dshbrdrng_umsatzentwicklung),"<>", INDEX(INDIRECT(dshbrdrng_umsatzentwicklung2),0,MATCH(DATE($B15,MONTH(H$13),1),Erfolgsrechnung_Detail!$O$8:$DF$8,0))) + IF(INDEX(tblUmsatzFltr[Nr],MATCH(filter_umsatz,tblUmsatzFltr[Umsatz Filter],0)) = 1, SUMIF(INDIRECT(dshbrdrng_bruttogewinn),"<>", INDEX(INDIRECT(dshbrdrng_bruttogewinn2),0,MATCH(DATE($B51,MONTH(H$49),1),Erfolgsrechnung_Detail!$O$8:$DF$8,0))), SUMIF(INDIRECT(dshbrdrng_bruttogewinn),"<>", INDEX(INDIRECT(dshbrdrng_bruttogewinn2),0,MATCH(DATE($B51,MONTH(H$49),1),Erfolgsrechnung_Detail!$O$8:$DF$8,0)))+G51),"") -> 1774 | I51: =IFERROR(SUMIF(INDIRECT(dshbrdrng_umsatzentwicklung),"<>", INDEX(INDIRECT(dshbrdrng_umsatzentwicklung2),0,MATCH(DATE($B15,MONTH(I$13),1),Erfolgsrechnung_Detail!$O$8:$DF$8,0))) + IF(INDEX(tblUmsatzFltr[Nr],MATCH(filter_umsatz,tblUmsatzFltr[Umsatz Filter],0)) = 1, SUMIF(INDIRECT(dshbrdrng_bruttogewinn),"<>", INDEX(INDIRECT(dshbrdrng_bruttogewinn2),0,MATCH(DATE($B51,MONTH(I$49),1),Erfolgsrechnung_Detail!$O$8:$DF$8,0))), SUMIF(INDIRECT(dshbrdrng_bruttogewinn),"<>", INDEX(INDIRECT(dshbrdrng_bruttogewinn2),0,MATCH(DATE($B51,MONTH(I$49),1),Erfolgsrechnung_Detail!$O$8:$DF$8,0)))+H51),"") -> 1652 | J51: =IFERROR(SUMIF(INDIRECT(dshbrdrng_umsatzentwicklung),"<>", INDEX(INDIRECT(dshbrdrng_umsatzentwicklung2),0,MATCH(DATE($B15,MONTH(J$13),1),Erfolgsrechnung_Detail!$O$8:$DF$8,0))) + IF(INDEX(tblUmsatzFltr[Nr],MATCH(filter_umsatz,tblUmsatzFltr[Umsatz Filter],0)) = 1, SUMIF(INDIRECT(dshbrdrng_bruttogewinn),"<>", INDEX(INDIRECT(dshbrdrng_bruttogewinn2),0,MATCH(DATE($B51,MONTH(J$49),1),Erfolgsrechnung_Detail!$O$8:$DF$8,0))), SUMIF(INDIRECT(dshbrdrng_bruttogewinn),"<>", INDEX(INDIRECT(dshbrdrng_bruttogewinn2),0,MATCH(DATE($B51,MONTH(J$49),1),Erfolgsrechnung_Detail!$O$8:$DF$8,0)))+I51),"") -> 1605 | K51: =IFERROR(SUMIF(INDIRECT(dshbrdrng_umsatzentwicklung),"<>", INDEX(INDIRECT(dshbrdrng_umsatzentwicklung2),0,MATCH(DATE($B15,MONTH(K$13),1),Erfolgsrechnung_Detail!$O$8:$DF$8,0))) + IF(INDEX(tblUmsatzFltr[Nr],MATCH(filter_umsatz,tblUmsatzFltr[Umsatz Filter],0)) = 1, SUMIF(INDIRECT(dshbrdrng_bruttogewinn),"<>", INDEX(INDIRECT(dshbrdrng_bruttogewinn2),0,MATCH(DATE($B51,MONTH(K$49),1),Erfolgsrechnung_Detail!$O$8:$DF$8,0))), SUMIF(INDIRECT(dshbrdrng_bruttogewinn),"<>", INDEX(INDIRECT(dshbrdrng_bruttogewinn2),0,MATCH(DATE($B51,MONTH(K$49),1),Erfolgsrechnung_Detail!$O$8:$DF$8,0)))+J51),"") -> 1494 | L51: =IFERROR(SUMIF(INDIRECT(dshbrdrng_umsatzentwicklung),"<>", INDEX(INDIRECT(dshbrdrng_umsatzentwicklung2),0,MATCH(DATE($B15,MONTH(L$13),1),Erfolgsrechnung_Detail!$O$8:$DF$8,0))) + IF(INDEX(tblUmsatzFltr[Nr],MATCH(filter_umsatz,tblUmsatzFltr[Umsatz Filter],0)) = 1, SUMIF(INDIRECT(dshbrdrng_bruttogewinn),"<>", INDEX(INDIRECT(dshbrdrng_bruttogewinn2),0,MATCH(DATE($B51,MONTH(L$49),1),Erfolgsrechnung_Detail!$O$8:$DF$8,0))), SUMIF(INDIRECT(dshbrdrng_bruttogewinn),"<>", INDEX(INDIRECT(dshbrdrng_bruttogewinn2),0,MATCH(DATE($B51,MONTH(L$49),1),Erfolgsrechnung_Detail!$O$8:$DF$8,0)))+K51),"") -> 1919.52 | M51: =IFERROR(SUMIF(INDIRECT(dshbrdrng_umsatzentwicklung),"<>", INDEX(INDIRECT(dshbrdrng_umsatzentwicklung2),0,MATCH(DATE($B15,MONTH(M$13),1),Erfolgsrechnung_Detail!$O$8:$DF$8,0))) + IF(INDEX(tblUmsatzFltr[Nr],MATCH(filter_umsatz,tblUmsatzFltr[Umsatz Filter],0)) = 1, SUMIF(INDIRECT(dshbrdrng_bruttogewinn),"<>", INDEX(INDIRECT(dshbrdrng_bruttogewinn2),0,MATCH(DATE($B51,MONTH(M$49),1),Erfolgsrechnung_Detail!$O$8:$DF$8,0))), SUMIF(INDIRECT(dshbrdrng_bruttogewinn),"<>", INDEX(INDIRECT(dshbrdrng_bruttogewinn2),0,MATCH(DATE($B51,MONTH(M$49),1),Erfolgsrechnung_Detail!$O$8:$DF$8,0)))+L51),"") -> 1771 | N51: =IFERROR(SUMIF(INDIRECT(dshbrdrng_umsatzentwicklung),"<>", INDEX(INDIRECT(dshbrdrng_umsatzentwicklung2),0,MATCH(DATE($B15,MONTH(N$13),1),Erfolgsrechnung_Detail!$O$8:$DF$8,0))) + IF(INDEX(tblUmsatzFltr[Nr],MATCH(filter_umsatz,tblUmsatzFltr[Umsatz Filter],0)) = 1, SUMIF(INDIRECT(dshbrdrng_bruttogewinn),"<>", INDEX(INDIRECT(dshbrdrng_bruttogewinn2),0,MATCH(DATE($B51,MONTH(N$49),1),Erfolgsrechnung_Detail!$O$8:$DF$8,0))), SUMIF(INDIRECT(dshbrdrng_bruttogewinn),"<>", INDEX(INDIRECT(dshbrdrng_bruttogewinn2),0,MATCH(DATE($B51,MONTH(N$49),1),Erfolgsrechnung_Detail!$O$8:$DF$8,0)))+M51),"") -> 1818 | P51: =IFERROR(IF( INDEX(tblUmsatzFltr[Nr],MATCH(filter_umsatz,tblUmsatzFltr[Umsatz Filter],0))=1, SUM($C51:INDEX($C51:$N51,1,selectedmonat_num)), INDEX($C51:$N51,0,MATCH(monat,tblMonate[Monate],0))),"") -> 5791.083722 | Q51: =IFERROR( IF(INDEX(tblUmsatzFltr[Nr],MATCH(filter_umsatz,tblUmsatzFltr[Umsatz Filter],0))=1, SUM(C51:$N51),N51),"") -> 21382.60372
B52: 2016 | C52: =IFERROR(C16+ SUMIF(INDIRECT(dshbrdrng_bruttogewinn),"<>", INDEX(INDIRECT(dshbrdrng_bruttogewinn2),0,MATCH(DATE($B52,MONTH(C$49),1),Erfolgsrechnung_Detail!$O$8:$DF$8,0))), "") -> 1848 | D52: =IFERROR(SUMIF(INDIRECT(dshbrdrng_umsatzentwicklung),"<>", INDEX(INDIRECT(dshbrdrng_umsatzentwicklung2),0,MATCH(DATE($B16,MONTH(D$13),1),Erfolgsrechnung_Detail!$O$8:$DF$8,0))) + IF(INDEX(tblUmsatzFltr[Nr],MATCH(filter_umsatz,tblUmsatzFltr[Umsatz Filter],0)) = 1, SUMIF(INDIRECT(dshbrdrng_bruttogewinn),"<>", INDEX(INDIRECT(dshbrdrng_bruttogewinn2),0,MATCH(DATE($B52,MONTH(D$49),1),Erfolgsrechnung_Detail!$O$8:$DF$8,0))), SUMIF(INDIRECT(dshbrdrng_bruttogewinn),"<>", INDEX(INDIRECT(dshbrdrng_bruttogewinn2),0,MATCH(DATE($B52,MONTH(D$49),1),Erfolgsrechnung_Detail!$O$8:$DF$8,0)))+C52),"") -> 2092.671 | E52: =IFERROR(SUMIF(INDIRECT(dshbrdrng_umsatzentwicklung),"<>", INDEX(INDIRECT(dshbrdrng_umsatzentwicklung2),0,MATCH(DATE($B16,MONTH(E$13),1),Erfolgsrechnung_Detail!$O$8:$DF$8,0))) + IF(INDEX(tblUmsatzFltr[Nr],MATCH(filter_umsatz,tblUmsatzFltr[Umsatz Filter],0)) = 1, SUMIF(INDIRECT(dshbrdrng_bruttogewinn),"<>", INDEX(INDIRECT(dshbrdrng_bruttogewinn2),0,MATCH(DATE($B52,MONTH(E$49),1),Erfolgsrechnung_Detail!$O$8:$DF$8,0))), SUMIF(INDIRECT(dshbrdrng_bruttogewinn),"<>", INDEX(INDIRECT(dshbrdrng_bruttogewinn2),0,MATCH(DATE($B52,MONTH(E$49),1),Erfolgsrechnung_Detail!$O$8:$DF$8,0)))+D52),"") -> 1464 | F52: =IFERROR(SUMIF(INDIRECT(dshbrdrng_umsatzentwicklung),"<>", INDEX(INDIRECT(dshbrdrng_umsatzentwicklung2),0,MATCH(DATE($B16,MONTH(F$13),1),Erfolgsrechnung_Detail!$O$8:$DF$8,0))) + IF(INDEX(tblUmsatzFltr[Nr],MATCH(filter_umsatz,tblUmsatzFltr[Umsatz Filter],0)) = 1, SUMIF(INDIRECT(dshbrdrng_bruttogewinn),"<>", INDEX(INDIRECT(dshbrdrng_bruttogewinn2),0,MATCH(DATE($B52,MONTH(F$49),1),Erfolgsrechnung_Detail!$O$8:$DF$8,0))), SUMIF(INDIRECT(dshbrdrng_bruttogewinn),"<>", INDEX(INDIRECT(dshbrdrng_bruttogewinn2),0,MATCH(DATE($B52,MONTH(F$49),1),Erfolgsrechnung_Detail!$O$8:$DF$8,0)))+E52),"") -> 1387 | G52: =IFERROR(SUMIF(INDIRECT(dshbrdrng_umsatzentwicklung),"<>", INDEX(INDIRECT(dshbrdrng_umsatzentwicklung2),0,MATCH(DATE($B16,MONTH(G$13),1),Erfolgsrechnung_Detail!$O$8:$DF$8,0))) + IF(INDEX(tblUmsatzFltr[Nr],MATCH(filter_umsatz,tblUmsatzFltr[Umsatz Filter],0)) = 1, SUMIF(INDIRECT(dshbrdrng_bruttogewinn),"<>", INDEX(INDIRECT(dshbrdrng_bruttogewinn2),0,MATCH(DATE($B52,MONTH(G$49),1),Erfolgsrechnung_Detail!$O$8:$DF$8,0))), SUMIF(INDIRECT(dshbrdrng_bruttogewinn),"<>", INDEX(INDIRECT(dshbrdrng_bruttogewinn2),0,MATCH(DATE($B52,MONTH(G$49),1),Erfolgsrechnung_Detail!$O$8:$DF$8,0)))+F52),"") -> 1776 | H52: =IFERROR(SUMIF(INDIRECT(dshbrdrng_umsatzentwicklung),"<>", INDEX(INDIRECT(dshbrdrng_umsatzentwicklung2),0,MATCH(DATE($B16,MONTH(H$13),1),Erfolgsrechnung_Detail!$O$8:$DF$8,0))) + IF(INDEX(tblUmsatzFltr[Nr],MATCH(filter_umsatz,tblUmsatzFltr[Umsatz Filter],0)) = 1, SUMIF(INDIRECT(dshbrdrng_bruttogewinn),"<>", INDEX(INDIRECT(dshbrdrng_bruttogewinn2),0,MATCH(DATE($B52,MONTH(H$49),1),Erfolgsrechnung_Detail!$O$8:$DF$8,0))), SUMIF(INDIRECT(dshbrdrng_bruttogewinn),"<>", INDEX(INDIRECT(dshbrdrng_bruttogewinn2),0,MATCH(DATE($B52,MONTH(H$49),1),Erfolgsrechnung_Detail!$O$8:$DF$8,0)))+G52),"") -> 1927 | I52: =IFERROR(SUMIF(INDIRECT(dshbrdrng_umsatzentwicklung),"<>", INDEX(INDIRECT(dshbrdrng_umsatzentwicklung2),0,MATCH(DATE($B16,MONTH(I$13),1),Erfolgsrechnung_Detail!$O$8:$DF$8,0))) + IF(INDEX(tblUmsatzFltr[Nr],MATCH(filter_umsatz,tblUmsatzFltr[Umsatz Filter],0)) = 1, SUMIF(INDIRECT(dshbrdrng_bruttogewinn),"<>", INDEX(INDIRECT(dshbrdrng_bruttogewinn2),0,MATCH(DATE($B52,MONTH(I$49),1),Erfolgsrechnung_Detail!$O$8:$DF$8,0))), SUMIF(INDIRECT(dshbrdrng_bruttogewinn),"<>", INDEX(INDIRECT(dshbrdrng_bruttogewinn2),0,MATCH(DATE($B52,MONTH(I$49),1),Erfolgsrechnung_Detail!$O$8:$DF$8,0)))+H52),"") -> 1616 | J52: =IFERROR(SUMIF(INDIRECT(dshbrdrng_umsatzentwicklung),"<>", INDEX(INDIRECT(dshbrdrng_umsatzentwicklung2),0,MATCH(DATE($B16,MONTH(J$13),1),Erfolgsrechnung_Detail!$O$8:$DF$8,0))) + IF(INDEX(tblUmsatzFltr[Nr],MATCH(filter_umsatz,tblUmsatzFltr[Umsatz Filter],0)) = 1, SUMIF(INDIRECT(dshbrdrng_bruttogewinn),"<>", INDEX(INDIRECT(dshbrdrng_bruttogewinn2),0,MATCH(DATE($B52,MONTH(J$49),1),Erfolgsrechnung_Detail!$O$8:$DF$8,0))), SUMIF(INDIRECT(dshbrdrng_bruttogewinn),"<>", INDEX(INDIRECT(dshbrdrng_bruttogewinn2),0,MATCH(DATE($B52,MONTH(J$49),1),Erfolgsrechnung_Detail!$O$8:$DF$8,0)))+I52),"") -> 1705 | K52: =IFERROR(SUMIF(INDIRECT(dshbrdrng_umsatzentwicklung),"<>", INDEX(INDIRECT(dshbrdrng_umsatzentwicklung2),0,MATCH(DATE($B16,MONTH(K$13),1),Erfolgsrechnung_Detail!$O$8:$DF$8,0))) + IF(INDEX(tblUmsatzFltr[Nr],MATCH(filter_umsatz,tblUmsatzFltr[Umsatz Filter],0)) = 1, SUMIF(INDIRECT(dshbrdrng_bruttogewinn),"<>", INDEX(INDIRECT(dshbrdrng_bruttogewinn2),0,MATCH(DATE($B52,MONTH(K$49),1),Erfolgsrechnung_Detail!$O$8:$DF$8,0))), SUMIF(INDIRECT(dshbrdrng_bruttogewinn),"<>", INDEX(INDIRECT(dshbrdrng_bruttogewinn2),0,MATCH(DATE($B52,MONTH(K$49),1),Erfolgsrechnung_Detail!$O$8:$DF$8,0)))+J52),"") -> 2158 | L52: =IFERROR(SUMIF(INDIRECT(dshbrdrng_umsatzentwicklung),"<>", INDEX(INDIRECT(dshbrdrng_umsatzentwicklung2),0,MATCH(DATE($B16,MONTH(L$13),1),Erfolgsrechnung_Detail!$O$8:$DF$8,0))) + IF(INDEX(tblUmsatzFltr[Nr],MATCH(filter_umsatz,tblUmsatzFltr[Umsatz Filter],0)) = 1, SUMIF(INDIRECT(dshbrdrng_bruttogewinn),"<>", INDEX(INDIRECT(dshbrdrng_bruttogewinn2),0,MATCH(DATE($B52,MONTH(L$49),1),Erfolgsrechnung_Detail!$O$8:$DF$8,0))), SUMIF(INDIRECT(dshbrdrng_bruttogewinn),"<>", INDEX(INDIRECT(dshbrdrng_bruttogewinn2),0,MATCH(DATE($B52,MONTH(L$49),1),Erfolgsrechnung_Detail!$O$8:$DF$8,0)))+K52),"") -> 1732 | M52: =IFERROR(SUMIF(INDIRECT(dshbrdrng_umsatzentwicklung),"<>", INDEX(INDIRECT(dshbrdrng_umsatzentwicklung2),0,MATCH(DATE($B16,MONTH(M$13),1),Erfolgsrechnung_Detail!$O$8:$DF$8,0))) + IF(INDEX(tblUmsatzFltr[Nr],MATCH(filter_umsatz,tblUmsatzFltr[Umsatz Filter],0)) = 1, SUMIF(INDIRECT(dshbrdrng_bruttogewinn),"<>", INDEX(INDIRECT(dshbrdrng_bruttogewinn2),0,MATCH(DATE($B52,MONTH(M$49),1),Erfolgsrechnung_Detail!$O$8:$DF$8,0))), SUMIF(INDIRECT(dshbrdrng_bruttogewinn),"<>", INDEX(INDIRECT(dshbrdrng_bruttogewinn2),0,MATCH(DATE($B52,MONTH(M$49),1),Erfolgsrechnung_Detail!$O$8:$DF$8,0)))+L52),"") -> 1906 | N52: =IFERROR(SUMIF(INDIRECT(dshbrdrng_umsatzentwicklung),"<>", INDEX(INDIRECT(dshbrdrng_umsatzentwicklung2),0,MATCH(DATE($B16,MONTH(N$13),1),Erfolgsrechnung_Detail!$O$8:$DF$8,0))) + IF(INDEX(tblUmsatzFltr[Nr],MATCH(filter_umsatz,tblUmsatzFltr[Umsatz Filter],0)) = 1, SUMIF(INDIRECT(dshbrdrng_bruttogewinn),"<>", INDEX(INDIRECT(dshbrdrng_bruttogewinn2),0,MATCH(DATE($B52,MONTH(N$49),1),Erfolgsrechnung_Detail!$O$8:$DF$8,0))), SUMIF(INDIRECT(dshbrdrng_bruttogewinn),"<>", INDEX(INDIRECT(dshbrdrng_bruttogewinn2),0,MATCH(DATE($B52,MONTH(N$49),1),Erfolgsrechnung_Detail!$O$8:$DF$8,0)))+M52),"") -> 1791 | P52: =IFERROR(IF( INDEX(tblUmsatzFltr[Nr],MATCH(filter_umsatz,tblUmsatzFltr[Umsatz Filter],0))=1, SUM($C52:INDEX($C52:$N52,1,selectedmonat_num)), INDEX($C52:$N52,0,MATCH(monat,tblMonate[Monate],0))),"") -> 5404.671 | Q52: =IFERROR( IF(INDEX(tblUmsatzFltr[Nr],MATCH(filter_umsatz,tblUmsatzFltr[Umsatz Filter],0))=1, SUM(C52:$N52),N52),"") -> 21402.671
B53: 2017 | C53: =IFERROR(C17+ SUMIF(INDIRECT(dshbrdrng_bruttogewinn),"<>", INDEX(INDIRECT(dshbrdrng_bruttogewinn2),0,MATCH(DATE($B53,MONTH(C$49),1),Erfolgsrechnung_Detail!$O$8:$DF$8,0))), "") -> 1851 | D53: =IFERROR(SUMIF(INDIRECT(dshbrdrng_umsatzentwicklung),"<>", INDEX(INDIRECT(dshbrdrng_umsatzentwicklung2),0,MATCH(DATE($B17,MONTH(D$13),1),Erfolgsrechnung_Detail!$O$8:$DF$8,0))) + IF(INDEX(tblUmsatzFltr[Nr],MATCH(filter_umsatz,tblUmsatzFltr[Umsatz Filter],0)) = 1, SUMIF(INDIRECT(dshbrdrng_bruttogewinn),"<>", INDEX(INDIRECT(dshbrdrng_bruttogewinn2),0,MATCH(DATE($B53,MONTH(D$49),1),Erfolgsrechnung_Detail!$O$8:$DF$8,0))), SUMIF(INDIRECT(dshbrdrng_bruttogewinn),"<>", INDEX(INDIRECT(dshbrdrng_bruttogewinn2),0,MATCH(DATE($B53,MONTH(D$49),1),Erfolgsrechnung_Detail!$O$8:$DF$8,0)))+C53),"") -> 2432.69 | E53: =IFERROR(SUMIF(INDIRECT(dshbrdrng_umsatzentwicklung),"<>", INDEX(INDIRECT(dshbrdrng_umsatzentwicklung2),0,MATCH(DATE($B17,MONTH(E$13),1),Erfolgsrechnung_Detail!$O$8:$DF$8,0))) + IF(INDEX(tblUmsatzFltr[Nr],MATCH(filter_umsatz,tblUmsatzFltr[Umsatz Filter],0)) = 1, SUMIF(INDIRECT(dshbrdrng_bruttogewinn),"<>", INDEX(INDIRECT(dshbrdrng_bruttogewinn2),0,MATCH(DATE($B53,MONTH(E$49),1),Erfolgsrechnung_Detail!$O$8:$DF$8,0))), SUMIF(INDIRECT(dshbrdrng_bruttogewinn),"<>", INDEX(INDIRECT(dshbrdrng_bruttogewinn2),0,MATCH(DATE($B53,MONTH(E$49),1),Erfolgsrechnung_Detail!$O$8:$DF$8,0)))+D53),"") -> 1913.58 | F53: =IFERROR(SUMIF(INDIRECT(dshbrdrng_umsatzentwicklung),"<>", INDEX(INDIRECT(dshbrdrng_umsatzentwicklung2),0,MATCH(DATE($B17,MONTH(F$13),1),Erfolgsrechnung_Detail!$O$8:$DF$8,0))) + IF(INDEX(tblUmsatzFltr[Nr],MATCH(filter_umsatz,tblUmsatzFltr[Umsatz Filter],0)) = 1, SUMIF(INDIRECT(dshbrdrng_bruttogewinn),"<>", INDEX(INDIRECT(dshbrdrng_bruttogewinn2),0,MATCH(DATE($B53,MONTH(F$49),1),Erfolgsrechnung_Detail!$O$8:$DF$8,0))), SUMIF(INDIRECT(dshbrdrng_bruttogewinn),"<>", INDEX(INDIRECT(dshbrdrng_bruttogewinn2),0,MATCH(DATE($B53,MONTH(F$49),1),Erfolgsrechnung_Detail!$O$8:$DF$8,0)))+E53),"") -> 2168.13 | G53: =IFERROR(SUMIF(INDIRECT(dshbrdrng_umsatzentwicklung),"<>", INDEX(INDIRECT(dshbrdrng_umsatzentwicklung2),0,MATCH(DATE($B17,MONTH(G$13),1),Erfolgsrechnung_Detail!$O$8:$DF$8,0))) + IF(INDEX(tblUmsatzFltr[Nr],MATCH(filter_umsatz,tblUmsatzFltr[Umsatz Filter],0)) = 1, SUMIF(INDIRECT(dshbrdrng_bruttogewinn),"<>", INDEX(INDIRECT(dshbrdrng_bruttogewinn2),0,MATCH(DATE($B53,MONTH(G$49),1),Erfolgsrechnung_Detail!$O$8:$DF$8,0))), SUMIF(INDIRECT(dshbrdrng_bruttogewinn),"<>", INDEX(INDIRECT(dshbrdrng_bruttogewinn2),0,MATCH(DATE($B53,MONTH(G$49),1),Erfolgsrechnung_Detail!$O$8:$DF$8,0)))+F53),"") -> 1518 | H53: =IFERROR(SUMIF(INDIRECT(dshbrdrng_umsatzentwicklung),"<>", INDEX(INDIRECT(dshbrdrng_umsatzentwicklung2),0,MATCH(DATE($B17,MONTH(H$13),1),Erfolgsrechnung_Detail!$O$8:$DF$8,0))) + IF(INDEX(tblUmsatzFltr[Nr],MATCH(filter_umsatz,tblUmsatzFltr[Umsatz Filter],0)) = 1, SUMIF(INDIRECT(dshbrdrng_bruttogewinn),"<>", INDEX(INDIRECT(dshbrdrng_bruttogewinn2),0,MATCH(DATE($B53,MONTH(H$49),1),Erfolgsrechnung_Detail!$O$8:$DF$8,0))), SUMIF(INDIRECT(dshbrdrng_bruttogewinn),"<>", INDEX(INDIRECT(dshbrdrng_bruttogewinn2),0,MATCH(DATE($B53,MONTH(H$49),1),Erfolgsrechnung_Detail!$O$8:$DF$8,0)))+G53),"") -> 1421 | I53: =IFERROR(SUMIF(INDIRECT(dshbrdrng_umsatzentwicklung),"<>", INDEX(INDIRECT(dshbrdrng_umsatzentwicklung2),0,MATCH(DATE($B17,MONTH(I$13),1),Erfolgsrechnung_Detail!$O$8:$DF$8,0))) + IF(INDEX(tblUmsatzFltr[Nr],MATCH(filter_umsatz,tblUmsatzFltr[Umsatz Filter],0)) = 1, SUMIF(INDIRECT(dshbrdrng_bruttogewinn),"<>", INDEX(INDIRECT(dshbrdrng_bruttogewinn2),0,MATCH(DATE($B53,MONTH(I$49),1),Erfolgsrechnung_Detail!$O$8:$DF$8,0))), SUMIF(INDIRECT(dshbrdrng_bruttogewinn),"<>", INDEX(INDIRECT(dshbrdrng_bruttogewinn2),0,MATCH(DATE($B53,MONTH(I$49),1),Erfolgsrechnung_Detail!$O$8:$DF$8,0)))+H53),"") -> 1733 | J53: =IFERROR(SUMIF(INDIRECT(dshbrdrng_umsatzentwicklung),"<>", INDEX(INDIRECT(dshbrdrng_umsatzentwicklung2),0,MATCH(DATE($B17,MONTH(J$13),1),Erfolgsrechnung_Detail!$O$8:$DF$8,0))) + IF(INDEX(tblUmsatzFltr[Nr],MATCH(filter_umsatz,tblUmsatzFltr[Umsatz Filter],0)) = 1, SUMIF(INDIRECT(dshbrdrng_bruttogewinn),"<>", INDEX(INDIRECT(dshbrdrng_bruttogewinn2),0,MATCH(DATE($B53,MONTH(J$49),1),Erfolgsrechnung_Detail!$O$8:$DF$8,0))), SUMIF(INDIRECT(dshbrdrng_bruttogewinn),"<>", INDEX(INDIRECT(dshbrdrng_bruttogewinn2),0,MATCH(DATE($B53,MONTH(J$49),1),Erfolgsrechnung_Detail!$O$8:$DF$8,0)))+I53),"") -> 1981 | K53: =IFERROR(SUMIF(INDIRECT(dshbrdrng_umsatzentwicklung),"<>", INDEX(INDIRECT(dshbrdrng_umsatzentwicklung2),0,MATCH(DATE($B17,MONTH(K$13),1),Erfolgsrechnung_Detail!$O$8:$DF$8,0))) + IF(INDEX(tblUmsatzFltr[Nr],MATCH(filter_umsatz,tblUmsatzFltr[Umsatz Filter],0)) = 1, SUMIF(INDIRECT(dshbrdrng_bruttogewinn),"<>", INDEX(INDIRECT(dshbrdrng_bruttogewinn2),0,MATCH(DATE($B53,MONTH(K$49),1),Erfolgsrechnung_Detail!$O$8:$DF$8,0))), SUMIF(INDIRECT(dshbrdrng_bruttogewinn),"<>", INDEX(INDIRECT(dshbrdrng_bruttogewinn2),0,MATCH(DATE($B53,MONTH(K$49),1),Erfolgsrechnung_Detail!$O$8:$DF$8,0)))+J53),"") -> 1798 | L53: =IFERROR(SUMIF(INDIRECT(dshbrdrng_umsatzentwicklung),"<>", INDEX(INDIRECT(dshbrdrng_umsatzentwicklung2),0,MATCH(DATE($B17,MONTH(L$13),1),Erfolgsrechnung_Detail!$O$8:$DF$8,0))) + IF(INDEX(tblUmsatzFltr[Nr],MATCH(filter_umsatz,tblUmsatzFltr[Umsatz Filter],0)) = 1, SUMIF(INDIRECT(dshbrdrng_bruttogewinn),"<>", INDEX(INDIRECT(dshbrdrng_bruttogewinn2),0,MATCH(DATE($B53,MONTH(L$49),1),Erfolgsrechnung_Detail!$O$8:$DF$8,0))), SUMIF(INDIRECT(dshbrdrng_bruttogewinn),"<>", INDEX(INDIRECT(dshbrdrng_bruttogewinn2),0,MATCH(DATE($B53,MONTH(L$49),1),Erfolgsrechnung_Detail!$O$8:$DF$8,0)))+K53),"") -> 1685 | M53: =IFERROR(SUMIF(INDIRECT(dshbrdrng_umsatzentwicklung),"<>", INDEX(INDIRECT(dshbrdrng_umsatzentwicklung2),0,MATCH(DATE($B17,MONTH(M$13),1),Erfolgsrechnung_Detail!$O$8:$DF$8,0))) + IF(INDEX(tblUmsatzFltr[Nr],MATCH(filter_umsatz,tblUmsatzFltr[Umsatz Filter],0)) = 1, SUMIF(INDIRECT(dshbrdrng_bruttogewinn),"<>", INDEX(INDIRECT(dshbrdrng_bruttogewinn2),0,MATCH(DATE($B53,MONTH(M$49),1),Erfolgsrechnung_Detail!$O$8:$DF$8,0))), SUMIF(INDIRECT(dshbrdrng_bruttogewinn),"<>", INDEX(INDIRECT(dshbrdrng_bruttogewinn2),0,MATCH(DATE($B53,MONTH(M$49),1),Erfolgsrechnung_Detail!$O$8:$DF$8,0)))+L53),"") -> 1687 | N53: =IFERROR(SUMIF(INDIRECT(dshbrdrng_umsatzentwicklung),"<>", INDEX(INDIRECT(dshbrdrng_umsatzentwicklung2),0,MATCH(DATE($B17,MONTH(N$13),1),Erfolgsrechnung_Detail!$O$8:$DF$8,0))) + IF(INDEX(tblUmsatzFltr[Nr],MATCH(filter_umsatz,tblUmsatzFltr[Umsatz Filter],0)) = 1, SUMIF(INDIRECT(dshbrdrng_bruttogewinn),"<>", INDEX(INDIRECT(dshbrdrng_bruttogewinn2),0,MATCH(DATE($B53,MONTH(N$49),1),Erfolgsrechnung_Detail!$O$8:$DF$8,0))), SUMIF(INDIRECT(dshbrdrng_bruttogewinn),"<>", INDEX(INDIRECT(dshbrdrng_bruttogewinn2),0,MATCH(DATE($B53,MONTH(N$49),1),Erfolgsrechnung_Detail!$O$8:$DF$8,0)))+M53),"") -> 1708 | P53: =IFERROR(IF( INDEX(tblUmsatzFltr[Nr],MATCH(filter_umsatz,tblUmsatzFltr[Umsatz Filter],0))=1, SUM($C53:INDEX($C53:$N53,1,selectedmonat_num)), INDEX($C53:$N53,0,MATCH(monat,tblMonate[Monate],0))),"") -> 6197.27 | Q53: =IFERROR( IF(INDEX(tblUmsatzFltr[Nr],MATCH(filter_umsatz,tblUmsatzFltr[Umsatz Filter],0))=1, SUM(C53:$N53),N53),"") -> 21896.4
B54: 2018 | C54: =IFERROR(C18+ SUMIF(INDIRECT(dshbrdrng_bruttogewinn),"<>", INDEX(INDIRECT(dshbrdrng_bruttogewinn2),0,MATCH(DATE($B54,MONTH(C$49),1),Erfolgsrechnung_Detail!$O$8:$DF$8,0))), "") -> 1711 | D54: =IFERROR(SUMIF(INDIRECT(dshbrdrng_umsatzentwicklung),"<>", INDEX(INDIRECT(dshbrdrng_umsatzentwicklung2),0,MATCH(DATE($B18,MONTH(D$13),1),Erfolgsrechnung_Detail!$O$8:$DF$8,0))) + IF(INDEX(tblUmsatzFltr[Nr],MATCH(filter_umsatz,tblUmsatzFltr[Umsatz Filter],0)) = 1, SUMIF(INDIRECT(dshbrdrng_bruttogewinn),"<>", INDEX(INDIRECT(dshbrdrng_bruttogewinn2),0,MATCH(DATE($B54,MONTH(D$49),1),Erfolgsrechnung_Detail!$O$8:$DF$8,0))), SUMIF(INDIRECT(dshbrdrng_bruttogewinn),"<>", INDEX(INDIRECT(dshbrdrng_bruttogewinn2),0,MATCH(DATE($B54,MONTH(D$49),1),Erfolgsrechnung_Detail!$O$8:$DF$8,0)))+C54),"") -> 1986 | E54: =IFERROR(SUMIF(INDIRECT(dshbrdrng_umsatzentwicklung),"<>", INDEX(INDIRECT(dshbrdrng_umsatzentwicklung2),0,MATCH(DATE($B18,MONTH(E$13),1),Erfolgsrechnung_Detail!$O$8:$DF$8,0))) + IF(INDEX(tblUmsatzFltr[Nr],MATCH(filter_umsatz,tblUmsatzFltr[Umsatz Filter],0)) = 1, SUMIF(INDIRECT(dshbrdrng_bruttogewinn),"<>", INDEX(INDIRECT(dshbrdrng_bruttogewinn2),0,MATCH(DATE($B54,MONTH(E$49),1),Erfolgsrechnung_Detail!$O$8:$DF$8,0))), SUMIF(INDIRECT(dshbrdrng_bruttogewinn),"<>", INDEX(INDIRECT(dshbrdrng_bruttogewinn2),0,MATCH(DATE($B54,MONTH(E$49),1),Erfolgsrechnung_Detail!$O$8:$DF$8,0)))+D54),"") -> 1424 | F54: =IFERROR(SUMIF(INDIRECT(dshbrdrng_umsatzentwicklung),"<>", INDEX(INDIRECT(dshbrdrng_umsatzentwicklung2),0,MATCH(DATE($B18,MONTH(F$13),1),Erfolgsrechnung_Detail!$O$8:$DF$8,0))) + IF(INDEX(tblUmsatzFltr[Nr],MATCH(filter_umsatz,tblUmsatzFltr[Umsatz Filter],0)) = 1, SUMIF(INDIRECT(dshbrdrng_bruttogewinn),"<>", INDEX(INDIRECT(dshbrdrng_bruttogewinn2),0,MATCH(DATE($B54,MONTH(F$49),1),Erfolgsrechnung_Detail!$O$8:$DF$8,0))), SUMIF(INDIRECT(dshbrdrng_bruttogewinn),"<>", INDEX(INDIRECT(dshbrdrng_bruttogewinn2),0,MATCH(DATE($B54,MONTH(F$49),1),Erfolgsrechnung_Detail!$O$8:$DF$8,0)))+E54),"") -> 1840 | G54: =IFERROR(SUMIF(INDIRECT(dshbrdrng_umsatzentwicklung),"<>", INDEX(INDIRECT(dshbrdrng_umsatzentwicklung2),0,MATCH(DATE($B18,MONTH(G$13),1),Erfolgsrechnung_Detail!$O$8:$DF$8,0))) + IF(INDEX(tblUmsatzFltr[Nr],MATCH(filter_umsatz,tblUmsatzFltr[Umsatz Filter],0)) = 1, SUMIF(INDIRECT(dshbrdrng_bruttogewinn),"<>", INDEX(INDIRECT(dshbrdrng_bruttogewinn2),0,MATCH(DATE($B54,MONTH(G$49),1),Erfolgsrechnung_Detail!$O$8:$DF$8,0))), SUMIF(INDIRECT(dshbrdrng_bruttogewinn),"<>", INDEX(INDIRECT(dshbrdrng_bruttogewinn2),0,MATCH(DATE($B54,MONTH(G$49),1),Erfolgsrechnung_Detail!$O$8:$DF$8,0)))+F54),"") -> 1953 | H54: =IFERROR(SUMIF(INDIRECT(dshbrdrng_umsatzentwicklung),"<>", INDEX(INDIRECT(dshbrdrng_umsatzentwicklung2),0,MATCH(DATE($B18,MONTH(H$13),1),Erfolgsrechnung_Detail!$O$8:$DF$8,0))) + IF(INDEX(tblUmsatzFltr[Nr],MATCH(filter_umsatz,tblUmsatzFltr[Umsatz Filter],0)) = 1, SUMIF(INDIRECT(dshbrdrng_bruttogewinn),"<>", INDEX(INDIRECT(dshbrdrng_bruttogewinn2),0,MATCH(DATE($B54,MONTH(H$49),1),Erfolgsrechnung_Detail!$O$8:$DF$8,0))), SUMIF(INDIRECT(dshbrdrng_bruttogewinn),"<>", INDEX(INDIRECT(dshbrdrng_bruttogewinn2),0,MATCH(DATE($B54,MONTH(H$49),1),Erfolgsrechnung_Detail!$O$8:$DF$8,0)))+G54),"") -> 2025 | I54: =IFERROR(SUMIF(INDIRECT(dshbrdrng_umsatzentwicklung),"<>", INDEX(INDIRECT(dshbrdrng_umsatzentwicklung2),0,MATCH(DATE($B18,MONTH(I$13),1),Erfolgsrechnung_Detail!$O$8:$DF$8,0))) + IF(INDEX(tblUmsatzFltr[Nr],MATCH(filter_umsatz,tblUmsatzFltr[Umsatz Filter],0)) = 1, SUMIF(INDIRECT(dshbrdrng_bruttogewinn),"<>", INDEX(INDIRECT(dshbrdrng_bruttogewinn2),0,MATCH(DATE($B54,MONTH(I$49),1),Erfolgsrechnung_Detail!$O$8:$DF$8,0))), SUMIF(INDIRECT(dshbrdrng_bruttogewinn),"<>", INDEX(INDIRECT(dshbrdrng_bruttogewinn2),0,MATCH(DATE($B54,MONTH(I$49),1),Erfolgsrechnung_Detail!$O$8:$DF$8,0)))+H54),"") -> 1758 | J54: =IFERROR(SUMIF(INDIRECT(dshbrdrng_umsatzentwicklung),"<>", INDEX(INDIRECT(dshbrdrng_umsatzentwicklung2),0,MATCH(DATE($B18,MONTH(J$13),1),Erfolgsrechnung_Detail!$O$8:$DF$8,0))) + IF(INDEX(tblUmsatzFltr[Nr],MATCH(filter_umsatz,tblUmsatzFltr[Umsatz Filter],0)) = 1, SUMIF(INDIRECT(dshbrdrng_bruttogewinn),"<>", INDEX(INDIRECT(dshbrdrng_bruttogewinn2),0,MATCH(DATE($B54,MONTH(J$49),1),Erfolgsrechnung_Detail!$O$8:$DF$8,0))), SUMIF(INDIRECT(dshbrdrng_bruttogewinn),"<>", INDEX(INDIRECT(dshbrdrng_bruttogewinn2),0,MATCH(DATE($B54,MONTH(J$49),1),Erfolgsrechnung_Detail!$O$8:$DF$8,0)))+I54),"") -> 1749 | K54: =IFERROR(SUMIF(INDIRECT(dshbrdrng_umsatzentwicklung),"<>", INDEX(INDIRECT(dshbrdrng_umsatzentwicklung2),0,MATCH(DATE($B18,MONTH(K$13),1),Erfolgsrechnung_Detail!$O$8:$DF$8,0))) + IF(INDEX(tblUmsatzFltr[Nr],MATCH(filter_umsatz,tblUmsatzFltr[Umsatz Filter],0)) = 1, SUMIF(INDIRECT(dshbrdrng_bruttogewinn),"<>", INDEX(INDIRECT(dshbrdrng_bruttogewinn2),0,MATCH(DATE($B54,MONTH(K$49),1),Erfolgsrechnung_Detail!$O$8:$DF$8,0))), SUMIF(INDIRECT(dshbrdrng_bruttogewinn),"<>", INDEX(INDIRECT(dshbrdrng_bruttogewinn2),0,MATCH(DATE($B54,MONTH(K$49),1),Erfolgsrechnung_Detail!$O$8:$DF$8,0)))+J54),"") -> 1739 | L54: =IFERROR(SUMIF(INDIRECT(dshbrdrng_umsatzentwicklung),"<>", INDEX(INDIRECT(dshbrdrng_umsatzentwicklung2),0,MATCH(DATE($B18,MONTH(L$13),1),Erfolgsrechnung_Detail!$O$8:$DF$8,0))) + IF(INDEX(tblUmsatzFltr[Nr],MATCH(filter_umsatz,tblUmsatzFltr[Umsatz Filter],0)) = 1, SUMIF(INDIRECT(dshbrdrng_bruttogewinn),"<>", INDEX(INDIRECT(dshbrdrng_bruttogewinn2),0,MATCH(DATE($B54,MONTH(L$49),1),Erfolgsrechnung_Detail!$O$8:$DF$8,0))), SUMIF(INDIRECT(dshbrdrng_bruttogewinn),"<>", INDEX(INDIRECT(dshbrdrng_bruttogewinn2),0,MATCH(DATE($B54,MONTH(L$49),1),Erfolgsrechnung_Detail!$O$8:$DF$8,0)))+K54),"") -> 2111 | M54: =IFERROR(SUMIF(INDIRECT(dshbrdrng_umsatzentwicklung),"<>", INDEX(INDIRECT(dshbrdrng_umsatzentwicklung2),0,MATCH(DATE($B18,MONTH(M$13),1),Erfolgsrechnung_Detail!$O$8:$DF$8,0))) + IF(INDEX(tblUmsatzFltr[Nr],MATCH(filter_umsatz,tblUmsatzFltr[Umsatz Filter],0)) = 1, SUMIF(INDIRECT(dshbrdrng_bruttogewinn),"<>", INDEX(INDIRECT(dshbrdrng_bruttogewinn2),0,MATCH(DATE($B54,MONTH(M$49),1),Erfolgsrechnung_Detail!$O$8:$DF$8,0))), SUMIF(INDIRECT(dshbrdrng_bruttogewinn),"<>", INDEX(INDIRECT(dshbrdrng_bruttogewinn2),0,MATCH(DATE($B54,MONTH(M$49),1),Erfolgsrechnung_Detail!$O$8:$DF$8,0)))+L54),"") -> 1851 | N54: =IFERROR(SUMIF(INDIRECT(dshbrdrng_umsatzentwicklung),"<>", INDEX(INDIRECT(dshbrdrng_umsatzentwicklung2),0,MATCH(DATE($B18,MONTH(N$13),1),Erfolgsrechnung_Detail!$O$8:$DF$8,0))) + IF(INDEX(tblUmsatzFltr[Nr],MATCH(filter_umsatz,tblUmsatzFltr[Umsatz Filter],0)) = 1, SUMIF(INDIRECT(dshbrdrng_bruttogewinn),"<>", INDEX(INDIRECT(dshbrdrng_bruttogewinn2),0,MATCH(DATE($B54,MONTH(N$49),1),Erfolgsrechnung_Detail!$O$8:$DF$8,0))), SUMIF(INDIRECT(dshbrdrng_bruttogewinn),"<>", INDEX(INDIRECT(dshbrdrng_bruttogewinn2),0,MATCH(DATE($B54,MONTH(N$49),1),Erfolgsrechnung_Detail!$O$8:$DF$8,0)))+M54),"") -> 2033 | P54: =IFERROR(IF( INDEX(tblUmsatzFltr[Nr],MATCH(filter_umsatz,tblUmsatzFltr[Umsatz Filter],0))=1, SUM($C54:INDEX($C54:$N54,1,selectedmonat_num)), INDEX($C54:$N54,0,MATCH(monat,tblMonate[Monate],0))),"") -> 5121 | Q54: =IFERROR( IF(INDEX(tblUmsatzFltr[Nr],MATCH(filter_umsatz,tblUmsatzFltr[Umsatz Filter],0))=1, SUM(C54:$N54),N54),"") -> 22180
B55: 2019 | C55: =IFERROR(C19+ SUMIF(INDIRECT(dshbrdrng_bruttogewinn),"<>", INDEX(INDIRECT(dshbrdrng_bruttogewinn2),0,MATCH(DATE($B55,MONTH(C$49),1),Erfolgsrechnung_Detail!$O$8:$DF$8,0))), "") -> 2677 | D55: =IFERROR(SUMIF(INDIRECT(dshbrdrng_umsatzentwicklung),"<>", INDEX(INDIRECT(dshbrdrng_umsatzentwicklung2),0,MATCH(DATE($B19,MONTH(D$13),1),Erfolgsrechnung_Detail!$O$8:$DF$8,0))) + IF(INDEX(tblUmsatzFltr[Nr],MATCH(filter_umsatz,tblUmsatzFltr[Umsatz Filter],0)) = 1, SUMIF(INDIRECT(dshbrdrng_bruttogewinn),"<>", INDEX(INDIRECT(dshbrdrng_bruttogewinn2),0,MATCH(DATE($B55,MONTH(D$49),1),Erfolgsrechnung_Detail!$O$8:$DF$8,0))), SUMIF(INDIRECT(dshbrdrng_bruttogewinn),"<>", INDEX(INDIRECT(dshbrdrng_bruttogewinn2),0,MATCH(DATE($B55,MONTH(D$49),1),Erfolgsrechnung_Detail!$O$8:$DF$8,0)))+C55),"") -> 2344 | E55: =IFERROR(SUMIF(INDIRECT(dshbrdrng_umsatzentwicklung),"<>", INDEX(INDIRECT(dshbrdrng_umsatzentwicklung2),0,MATCH(DATE($B19,MONTH(E$13),1),Erfolgsrechnung_Detail!$O$8:$DF$8,0))) + IF(INDEX(tblUmsatzFltr[Nr],MATCH(filter_umsatz,tblUmsatzFltr[Umsatz Filter],0)) = 1, SUMIF(INDIRECT(dshbrdrng_bruttogewinn),"<>", INDEX(INDIRECT(dshbrdrng_bruttogewinn2),0,MATCH(DATE($B55,MONTH(E$49),1),Erfolgsrechnung_Detail!$O$8:$DF$8,0))), SUMIF(INDIRECT(dshbrdrng_bruttogewinn),"<>", INDEX(INDIRECT(dshbrdrng_bruttogewinn2),0,MATCH(DATE($B55,MONTH(E$49),1),Erfolgsrechnung_Detail!$O$8:$DF$8,0)))+D55),"") -> 2406 | F55: =IFERROR(SUMIF(INDIRECT(dshbrdrng_umsatzentwicklung),"<>", INDEX(INDIRECT(dshbrdrng_umsatzentwicklung2),0,MATCH(DATE($B19,MONTH(F$13),1),Erfolgsrechnung_Detail!$O$8:$DF$8,0))) + IF(INDEX(tblUmsatzFltr[Nr],MATCH(filter_umsatz,tblUmsatzFltr[Umsatz Filter],0)) = 1, SUMIF(INDIRECT(dshbrdrng_bruttogewinn),"<>", INDEX(INDIRECT(dshbrdrng_bruttogewinn2),0,MATCH(DATE($B55,MONTH(F$49),1),Erfolgsrechnung_Detail!$O$8:$DF$8,0))), SUMIF(INDIRECT(dshbrdrng_bruttogewinn),"<>", INDEX(INDIRECT(dshbrdrng_bruttogewinn2),0,MATCH(DATE($B55,MONTH(F$49),1),Erfolgsrechnung_Detail!$O$8:$DF$8,0)))+E55),"") -> 2183 | G55: =IFERROR(SUMIF(INDIRECT(dshbrdrng_umsatzentwicklung),"<>", INDEX(INDIRECT(dshbrdrng_umsatzentwicklung2),0,MATCH(DATE($B19,MONTH(G$13),1),Erfolgsrechnung_Detail!$O$8:$DF$8,0))) + IF(INDEX(tblUmsatzFltr[Nr],MATCH(filter_umsatz,tblUmsatzFltr[Umsatz Filter],0)) = 1, SUMIF(INDIRECT(dshbrdrng_bruttogewinn),"<>", INDEX(INDIRECT(dshbrdrng_bruttogewinn2),0,MATCH(DATE($B55,MONTH(G$49),1),Erfolgsrechnung_Detail!$O$8:$DF$8,0))), SUMIF(INDIRECT(dshbrdrng_bruttogewinn),"<>", INDEX(INDIRECT(dshbrdrng_bruttogewinn2),0,MATCH(DATE($B55,MONTH(G$49),1),Erfolgsrechnung_Detail!$O$8:$DF$8,0)))+F55),"") -> 2211 | H55: =IFERROR(SUMIF(INDIRECT(dshbrdrng_umsatzentwicklung),"<>", INDEX(INDIRECT(dshbrdrng_umsatzentwicklung2),0,MATCH(DATE($B19,MONTH(H$13),1),Erfolgsrechnung_Detail!$O$8:$DF$8,0))) + IF(INDEX(tblUmsatzFltr[Nr],MATCH(filter_umsatz,tblUmsatzFltr[Umsatz Filter],0)) = 1, SUMIF(INDIRECT(dshbrdrng_bruttogewinn),"<>", INDEX(INDIRECT(dshbrdrng_bruttogewinn2),0,MATCH(DATE($B55,MONTH(H$49),1),Erfolgsrechnung_Detail!$O$8:$DF$8,0))), SUMIF(INDIRECT(dshbrdrng_bruttogewinn),"<>", INDEX(INDIRECT(dshbrdrng_bruttogewinn2),0,MATCH(DATE($B55,MONTH(H$49),1),Erfolgsrechnung_Detail!$O$8:$DF$8,0)))+G55),"") -> 2554 | I55: =IFERROR(SUMIF(INDIRECT(dshbrdrng_umsatzentwicklung),"<>", INDEX(INDIRECT(dshbrdrng_umsatzentwicklung2),0,MATCH(DATE($B19,MONTH(I$13),1),Erfolgsrechnung_Detail!$O$8:$DF$8,0))) + IF(INDEX(tblUmsatzFltr[Nr],MATCH(filter_umsatz,tblUmsatzFltr[Umsatz Filter],0)) = 1, SUMIF(INDIRECT(dshbrdrng_bruttogewinn),"<>", INDEX(INDIRECT(dshbrdrng_bruttogewinn2),0,MATCH(DATE($B55,MONTH(I$49),1),Erfolgsrechnung_Detail!$O$8:$DF$8,0))), SUMIF(INDIRECT(dshbrdrng_bruttogewinn),"<>", INDEX(INDIRECT(dshbrdrng_bruttogewinn2),0,MATCH(DATE($B55,MONTH(I$49),1),Erfolgsrechnung_Detail!$O$8:$DF$8,0)))+H55),"") -> 2911 | J55: =IFERROR(SUMIF(INDIRECT(dshbrdrng_umsatzentwicklung),"<>", INDEX(INDIRECT(dshbrdrng_umsatzentwicklung2),0,MATCH(DATE($B19,MONTH(J$13),1),Erfolgsrechnung_Detail!$O$8:$DF$8,0))) + IF(INDEX(tblUmsatzFltr[Nr],MATCH(filter_umsatz,tblUmsatzFltr[Umsatz Filter],0)) = 1, SUMIF(INDIRECT(dshbrdrng_bruttogewinn),"<>", INDEX(INDIRECT(dshbrdrng_bruttogewinn2),0,MATCH(DATE($B55,MONTH(J$49),1),Erfolgsrechnung_Detail!$O$8:$DF$8,0))), SUMIF(INDIRECT(dshbrdrng_bruttogewinn),"<>", INDEX(INDIRECT(dshbrdrng_bruttogewinn2),0,MATCH(DATE($B55,MONTH(J$49),1),Erfolgsrechnung_Detail!$O$8:$DF$8,0)))+I55),"") -> 2709 | K55: =IFERROR(SUMIF(INDIRECT(dshbrdrng_umsatzentwicklung),"<>", INDEX(INDIRECT(dshbrdrng_umsatzentwicklung2),0,MATCH(DATE($B19,MONTH(K$13),1),Erfolgsrechnung_Detail!$O$8:$DF$8,0))) + IF(INDEX(tblUmsatzFltr[Nr],MATCH(filter_umsatz,tblUmsatzFltr[Umsatz Filter],0)) = 1, SUMIF(INDIRECT(dshbrdrng_bruttogewinn),"<>", INDEX(INDIRECT(dshbrdrng_bruttogewinn2),0,MATCH(DATE($B55,MONTH(K$49),1),Erfolgsrechnung_Detail!$O$8:$DF$8,0))), SUMIF(INDIRECT(dshbrdrng_bruttogewinn),"<>", INDEX(INDIRECT(dshbrdrng_bruttogewinn2),0,MATCH(DATE($B55,MONTH(K$49),1),Erfolgsrechnung_Detail!$O$8:$DF$8,0)))+J55),"") -> 2226 | L55: =IFERROR(SUMIF(INDIRECT(dshbrdrng_umsatzentwicklung),"<>", INDEX(INDIRECT(dshbrdrng_umsatzentwicklung2),0,MATCH(DATE($B19,MONTH(L$13),1),Erfolgsrechnung_Detail!$O$8:$DF$8,0))) + IF(INDEX(tblUmsatzFltr[Nr],MATCH(filter_umsatz,tblUmsatzFltr[Umsatz Filter],0)) = 1, SUMIF(INDIRECT(dshbrdrng_bruttogewinn),"<>", INDEX(INDIRECT(dshbrdrng_bruttogewinn2),0,MATCH(DATE($B55,MONTH(L$49),1),Erfolgsrechnung_Detail!$O$8:$DF$8,0))), SUMIF(INDIRECT(dshbrdrng_bruttogewinn),"<>", INDEX(INDIRECT(dshbrdrng_bruttogewinn2),0,MATCH(DATE($B55,MONTH(L$49),1),Erfolgsrechnung_Detail!$O$8:$DF$8,0)))+K55),"") -> 2751 | M55: =IFERROR(SUMIF(INDIRECT(dshbrdrng_umsatzentwicklung),"<>", INDEX(INDIRECT(dshbrdrng_umsatzentwicklung2),0,MATCH(DATE($B19,MONTH(M$13),1),Erfolgsrechnung_Detail!$O$8:$DF$8,0))) + IF(INDEX(tblUmsatzFltr[Nr],MATCH(filter_umsatz,tblUmsatzFltr[Umsatz Filter],0)) = 1, SUMIF(INDIRECT(dshbrdrng_bruttogewinn),"<>", INDEX(INDIRECT(dshbrdrng_bruttogewinn2),0,MATCH(DATE($B55,MONTH(M$49),1),Erfolgsrechnung_Detail!$O$8:$DF$8,0))), SUMIF(INDIRECT(dshbrdrng_bruttogewinn),"<>", INDEX(INDIRECT(dshbrdrng_bruttogewinn2),0,MATCH(DATE($B55,MONTH(M$49),1),Erfolgsrechnung_Detail!$O$8:$DF$8,0)))+L55),"") -> 2671 | N55: =IFERROR(SUMIF(INDIRECT(dshbrdrng_umsatzentwicklung),"<>", INDEX(INDIRECT(dshbrdrng_umsatzentwicklung2),0,MATCH(DATE($B19,MONTH(N$13),1),Erfolgsrechnung_Detail!$O$8:$DF$8,0))) + IF(INDEX(tblUmsatzFltr[Nr],MATCH(filter_umsatz,tblUmsatzFltr[Umsatz Filter],0)) = 1, SUMIF(INDIRECT(dshbrdrng_bruttogewinn),"<>", INDEX(INDIRECT(dshbrdrng_bruttogewinn2),0,MATCH(DATE($B55,MONTH(N$49),1),Erfolgsrechnung_Detail!$O$8:$DF$8,0))), SUMIF(INDIRECT(dshbrdrng_bruttogewinn),"<>", INDEX(INDIRECT(dshbrdrng_bruttogewinn2),0,MATCH(DATE($B55,MONTH(N$49),1),Erfolgsrechnung_Detail!$O$8:$DF$8,0)))+M55),"") -> 2893 | P55: =IFERROR(IF( INDEX(tblUmsatzFltr[Nr],MATCH(filter_umsatz,tblUmsatzFltr[Umsatz Filter],0))=1, SUM($C55:INDEX($C55:$N55,1,selectedmonat_num)), INDEX($C55:$N55,0,MATCH(monat,tblMonate[Monate],0))),"") -> 7427 | Q55: =IFERROR( IF(INDEX(tblUmsatzFltr[Nr],MATCH(filter_umsatz,tblUmsatzFltr[Umsatz Filter],0))=1, SUM(C55:$N55),N55),"") -> 30536
B56: =jahr -> 2020 | C56: =IFERROR(C20+ SUMIF(INDIRECT(dshbrdrng_bruttogewinn),"<>", INDEX(INDIRECT(dshbrdrng_bruttogewinn2),0,MATCH(DATE($B56,MONTH(C$49),1),Erfolgsrechnung_Detail!$O$8:$DF$8,0))), "") -> 2823 | D56: =IFERROR(SUMIF(INDIRECT(dshbrdrng_umsatzentwicklung),"<>", INDEX(INDIRECT(dshbrdrng_umsatzentwicklung2),0,MATCH(DATE($B20,MONTH(D$13),1),Erfolgsrechnung_Detail!$O$8:$DF$8,0))) + IF(INDEX(tblUmsatzFltr[Nr],MATCH(filter_umsatz,tblUmsatzFltr[Umsatz Filter],0)) = 1, SUMIF(INDIRECT(dshbrdrng_bruttogewinn),"<>", INDEX(INDIRECT(dshbrdrng_bruttogewinn2),0,MATCH(DATE($B56,MONTH(D$49),1),Erfolgsrechnung_Detail!$O$8:$DF$8,0))), SUMIF(INDIRECT(dshbrdrng_bruttogewinn),"<>", INDEX(INDIRECT(dshbrdrng_bruttogewinn2),0,MATCH(DATE($B56,MONTH(D$49),1),Erfolgsrechnung_Detail!$O$8:$DF$8,0)))+C56),"") -> 2630 | E56: =IFERROR(SUMIF(INDIRECT(dshbrdrng_umsatzentwicklung),"<>", INDEX(INDIRECT(dshbrdrng_umsatzentwicklung2),0,MATCH(DATE($B20,MONTH(E$13),1),Erfolgsrechnung_Detail!$O$8:$DF$8,0))) + IF(INDEX(tblUmsatzFltr[Nr],MATCH(filter_umsatz,tblUmsatzFltr[Umsatz Filter],0)) = 1, SUMIF(INDIRECT(dshbrdrng_bruttogewinn),"<>", INDEX(INDIRECT(dshbrdrng_bruttogewinn2),0,MATCH(DATE($B56,MONTH(E$49),1),Erfolgsrechnung_Detail!$O$8:$DF$8,0))), SUMIF(INDIRECT(dshbrdrng_bruttogewinn),"<>", INDEX(INDIRECT(dshbrdrng_bruttogewinn2),0,MATCH(DATE($B56,MONTH(E$49),1),Erfolgsrechnung_Detail!$O$8:$DF$8,0)))+D56),"") -> 2623 | F56: =IFERROR(SUMIF(INDIRECT(dshbrdrng_umsatzentwicklung),"<>", INDEX(INDIRECT(dshbrdrng_umsatzentwicklung2),0,MATCH(DATE($B20,MONTH(F$13),1),Erfolgsrechnung_Detail!$O$8:$DF$8,0))) + IF(INDEX(tblUmsatzFltr[Nr],MATCH(filter_umsatz,tblUmsatzFltr[Umsatz Filter],0)) = 1, SUMIF(INDIRECT(dshbrdrng_bruttogewinn),"<>", INDEX(INDIRECT(dshbrdrng_bruttogewinn2),0,MATCH(DATE($B56,MONTH(F$49),1),Erfolgsrechnung_Detail!$O$8:$DF$8,0))), SUMIF(INDIRECT(dshbrdrng_bruttogewinn),"<>", INDEX(INDIRECT(dshbrdrng_bruttogewinn2),0,MATCH(DATE($B56,MONTH(F$49),1),Erfolgsrechnung_Detail!$O$8:$DF$8,0)))+E56),"") -> 3323 | G56: =IFERROR(SUMIF(INDIRECT(dshbrdrng_umsatzentwicklung),"<>", INDEX(INDIRECT(dshbrdrng_umsatzentwicklung2),0,MATCH(DATE($B20,MONTH(G$13),1),Erfolgsrechnung_Detail!$O$8:$DF$8,0))) + IF(INDEX(tblUmsatzFltr[Nr],MATCH(filter_umsatz,tblUmsatzFltr[Umsatz Filter],0)) = 1, SUMIF(INDIRECT(dshbrdrng_bruttogewinn),"<>", INDEX(INDIRECT(dshbrdrng_bruttogewinn2),0,MATCH(DATE($B56,MONTH(G$49),1),Erfolgsrechnung_Detail!$O$8:$DF$8,0))), SUMIF(INDIRECT(dshbrdrng_bruttogewinn),"<>", INDEX(INDIRECT(dshbrdrng_bruttogewinn2),0,MATCH(DATE($B56,MONTH(G$49),1),Erfolgsrechnung_Detail!$O$8:$DF$8,0)))+F56),"") -> 2661 | H56: =IFERROR(SUMIF(INDIRECT(dshbrdrng_umsatzentwicklung),"<>", INDEX(INDIRECT(dshbrdrng_umsatzentwicklung2),0,MATCH(DATE($B20,MONTH(H$13),1),Erfolgsrechnung_Detail!$O$8:$DF$8,0))) + IF(INDEX(tblUmsatzFltr[Nr],MATCH(filter_umsatz,tblUmsatzFltr[Umsatz Filter],0)) = 1, SUMIF(INDIRECT(dshbrdrng_bruttogewinn),"<>", INDEX(INDIRECT(dshbrdrng_bruttogewinn2),0,MATCH(DATE($B56,MONTH(H$49),1),Erfolgsrechnung_Detail!$O$8:$DF$8,0))), SUMIF(INDIRECT(dshbrdrng_bruttogewinn),"<>", INDEX(INDIRECT(dshbrdrng_bruttogewinn2),0,MATCH(DATE($B56,MONTH(H$49),1),Erfolgsrechnung_Detail!$O$8:$DF$8,0)))+G56),"") -> 2800 | I56: =IFERROR(SUMIF(INDIRECT(dshbrdrng_umsatzentwicklung),"<>", INDEX(INDIRECT(dshbrdrng_umsatzentwicklung2),0,MATCH(DATE($B20,MONTH(I$13),1),Erfolgsrechnung_Detail!$O$8:$DF$8,0))) + IF(INDEX(tblUmsatzFltr[Nr],MATCH(filter_umsatz,tblUmsatzFltr[Umsatz Filter],0)) = 1, SUMIF(INDIRECT(dshbrdrng_bruttogewinn),"<>", INDEX(INDIRECT(dshbrdrng_bruttogewinn2),0,MATCH(DATE($B56,MONTH(I$49),1),Erfolgsrechnung_Detail!$O$8:$DF$8,0))), SUMIF(INDIRECT(dshbrdrng_bruttogewinn),"<>", INDEX(INDIRECT(dshbrdrng_bruttogewinn2),0,MATCH(DATE($B56,MONTH(I$49),1),Erfolgsrechnung_Detail!$O$8:$DF$8,0)))+H56),"") -> 2724 | J56: =IFERROR(SUMIF(INDIRECT(dshbrdrng_umsatzentwicklung),"<>", INDEX(INDIRECT(dshbrdrng_umsatzentwicklung2),0,MATCH(DATE($B20,MONTH(J$13),1),Erfolgsrechnung_Detail!$O$8:$DF$8,0))) + IF(INDEX(tblUmsatzFltr[Nr],MATCH(filter_umsatz,tblUmsatzFltr[Umsatz Filter],0)) = 1, SUMIF(INDIRECT(dshbrdrng_bruttogewinn),"<>", INDEX(INDIRECT(dshbrdrng_bruttogewinn2),0,MATCH(DATE($B56,MONTH(J$49),1),Erfolgsrechnung_Detail!$O$8:$DF$8,0))), SUMIF(INDIRECT(dshbrdrng_bruttogewinn),"<>", INDEX(INDIRECT(dshbrdrng_bruttogewinn2),0,MATCH(DATE($B56,MONTH(J$49),1),Erfolgsrechnung_Detail!$O$8:$DF$8,0)))+I56),"") -> 2449 | K56: =IFERROR(SUMIF(INDIRECT(dshbrdrng_umsatzentwicklung),"<>", INDEX(INDIRECT(dshbrdrng_umsatzentwicklung2),0,MATCH(DATE($B20,MONTH(K$13),1),Erfolgsrechnung_Detail!$O$8:$DF$8,0))) + IF(INDEX(tblUmsatzFltr[Nr],MATCH(filter_umsatz,tblUmsatzFltr[Umsatz Filter],0)) = 1, SUMIF(INDIRECT(dshbrdrng_bruttogewinn),"<>", INDEX(INDIRECT(dshbrdrng_bruttogewinn2),0,MATCH(DATE($B56,MONTH(K$49),1),Erfolgsrechnung_Detail!$O$8:$DF$8,0))), SUMIF(INDIRECT(dshbrdrng_bruttogewinn),"<>", INDEX(INDIRECT(dshbrdrng_bruttogewinn2),0,MATCH(DATE($B56,MONTH(K$49),1),Erfolgsrechnung_Detail!$O$8:$DF$8,0)))+J56),"") -> 2670 | L56: =IFERROR(SUMIF(INDIRECT(dshbrdrng_umsatzentwicklung),"<>", INDEX(INDIRECT(dshbrdrng_umsatzentwicklung2),0,MATCH(DATE($B20,MONTH(L$13),1),Erfolgsrechnung_Detail!$O$8:$DF$8,0))) + IF(INDEX(tblUmsatzFltr[Nr],MATCH(filter_umsatz,tblUmsatzFltr[Umsatz Filter],0)) = 1, SUMIF(INDIRECT(dshbrdrng_bruttogewinn),"<>", INDEX(INDIRECT(dshbrdrng_bruttogewinn2),0,MATCH(DATE($B56,MONTH(L$49),1),Erfolgsrechnung_Detail!$O$8:$DF$8,0))), SUMIF(INDIRECT(dshbrdrng_bruttogewinn),"<>", INDEX(INDIRECT(dshbrdrng_bruttogewinn2),0,MATCH(DATE($B56,MONTH(L$49),1),Erfolgsrechnung_Detail!$O$8:$DF$8,0)))+K56),"") -> 2595 | M56: =IFERROR(SUMIF(INDIRECT(dshbrdrng_umsatzentwicklung),"<>", INDEX(INDIRECT(dshbrdrng_umsatzentwicklung2),0,MATCH(DATE($B20,MONTH(M$13),1),Erfolgsrechnung_Detail!$O$8:$DF$8,0))) + IF(INDEX(tblUmsatzFltr[Nr],MATCH(filter_umsatz,tblUmsatzFltr[Umsatz Filter],0)) = 1, SUMIF(INDIRECT(dshbrdrng_bruttogewinn),"<>", INDEX(INDIRECT(dshbrdrng_bruttogewinn2),0,MATCH(DATE($B56,MONTH(M$49),1),Erfolgsrechnung_Detail!$O$8:$DF$8,0))), SUMIF(INDIRECT(dshbrdrng_bruttogewinn),"<>", INDEX(INDIRECT(dshbrdrng_bruttogewinn2),0,MATCH(DATE($B56,MONTH(M$49),1),Erfolgsrechnung_Detail!$O$8:$DF$8,0)))+L56),"") -> 2653 | N56: =IFERROR(SUMIF(INDIRECT(dshbrdrng_umsatzentwicklung),"<>", INDEX(INDIRECT(dshbrdrng_umsatzentwicklung2),0,MATCH(DATE($B20,MONTH(N$13),1),Erfolgsrechnung_Detail!$O$8:$DF$8,0))) + IF(INDEX(tblUmsatzFltr[Nr],MATCH(filter_umsatz,tblUmsatzFltr[Umsatz Filter],0)) = 1, SUMIF(INDIRECT(dshbrdrng_bruttogewinn),"<>", INDEX(INDIRECT(dshbrdrng_bruttogewinn2),0,MATCH(DATE($B56,MONTH(N$49),1),Erfolgsrechnung_Detail!$O$8:$DF$8,0))), SUMIF(INDIRECT(dshbrdrng_bruttogewinn),"<>", INDEX(INDIRECT(dshbrdrng_bruttogewinn2),0,MATCH(DATE($B56,MONTH(N$49),1),Erfolgsrechnung_Detail!$O$8:$DF$8,0)))+M56),"") -> 2422 | P56: =IFERROR(IF( INDEX(tblUmsatzFltr[Nr],MATCH(filter_umsatz,tblUmsatzFltr[Umsatz Filter],0))=1, SUM($C56:INDEX($C56:$N56,1,selectedmonat_num)), INDEX($C56:$N56,0,MATCH(monat,tblMonate[Monate],0))),"") -> 8076 | Q56: =IFERROR( IF(INDEX(tblUmsatzFltr[Nr],MATCH(filter_umsatz,tblUmsatzFltr[Umsatz Filter],0))=1, SUM(C56:$N56),N56),"") -> 32373
B57: YTD | C57: =IFERROR(C56/C55-1,0) -> 0.05453866268 | D57: 0.1220136519 | E57: 0.09019118869 | F57: 0.5222171324 | G57: 0.2035278155 | H57: 0.09631949883 | I57: -0.0642390931 | J57: -0.09597637505 | K57: 0.1994609164 | L57: -0.05670665213 | M57: -0.006739049045 | N57: -0.162806775 | P57: =IFERROR(P56/P55-1,0) -> 0.08738386966 | Q57: =IFERROR(Q56/Q55-1,0) -> 0.06015850144
D58: =IFERROR( IF(INDEX(tblUmsatzFltr[Nr],MATCH(filter_umsatz,tblUmsatzFltr[Umsatz Filter],0)) = 1, SUMIF(dshbrdrng_bruttogewinn,"="&Einstellungen!$BI$9, INDEX(dshbrdrng_bruttogewinn2,MATCH(DATE(B58,MONTH(C$49),1),Erfolgsrechnung_Detail!$O$8:$DF$8,0))), SUMIF(dshbrdrng_bruttogewinn,"="&Einstellungen!$BI$9, INDEX(dshbrdrng_bruttogewinn2,MATCH(DATE(B58,MONTH(C$49),1),Erfolgsrechnung_Detail!$O$8:$DF$8,0)))+C58),"") -> 
B59: Budget | C59: =IFERROR(SUMIFS(INDIRECT(budgetrng_umsatzentwicklung),INDIRECT(budgetrng),"<>")- SUMIFS(INDIRECT(budgetrng_bruttogewinn),INDIRECT(budgetrng2),"<>"),"") -> 930 | D59: =IFERROR(SUMIFS(OFFSET(INDIRECT(budgetrng_umsatzentwicklung),0,1),INDIRECT(budgetrng),"<>")- SUMIFS(OFFSET(INDIRECT(budgetrng_bruttogewinn),0,1),INDIRECT(budgetrng2),"<>"),"") -> 930 | E59: =IFERROR(SUMIFS(OFFSET(INDIRECT(budgetrng_umsatzentwicklung),0,2),INDIRECT(budgetrng),"<>")- SUMIFS(OFFSET(INDIRECT(budgetrng_bruttogewinn),0,2),INDIRECT(budgetrng2),"<>"),"") -> 1430 | F59: =IFERROR(SUMIFS(OFFSET(INDIRECT(budgetrng_umsatzentwicklung),0,3),INDIRECT(budgetrng),"<>")- SUMIFS(OFFSET(INDIRECT(budgetrng_bruttogewinn),0,3),INDIRECT(budgetrng2),"<>"),"") -> 1430 | G59: =IFERROR(SUMIFS(OFFSET(INDIRECT(budgetrng_umsatzentwicklung),0,4),INDIRECT(budgetrng),"<>")- SUMIFS(OFFSET(INDIRECT(budgetrng_bruttogewinn),0,4),INDIRECT(budgetrng2),"<>"),"") -> 1930 | H59: =IFERROR(SUMIFS(OFFSET(INDIRECT(budgetrng_umsatzentwicklung),0,5),INDIRECT(budgetrng),"<>")- SUMIFS(OFFSET(INDIRECT(budgetrng_bruttogewinn),0,5),INDIRECT(budgetrng2),"<>"),"") -> 1930 | I59: =IFERROR(SUMIFS(OFFSET(INDIRECT(budgetrng_umsatzentwicklung),0,6),INDIRECT(budgetrng),"<>")- SUMIFS(OFFSET(INDIRECT(budgetrng_bruttogewinn),0,6),INDIRECT(budgetrng2),"<>"),"") -> 2430 | J59: =IFERROR(SUMIFS(OFFSET(INDIRECT(budgetrng_umsatzentwicklung),0,7),INDIRECT(budgetrng),"<>")- SUMIFS(OFFSET(INDIRECT(budgetrng_bruttogewinn),0,7),INDIRECT(budgetrng2),"<>"),"") -> 2430 | K59: =IFERROR(SUMIFS(OFFSET(INDIRECT(budgetrng_umsatzentwicklung),0,8),INDIRECT(budgetrng),"<>")- SUMIFS(OFFSET(INDIRECT(budgetrng_bruttogewinn),0,8),INDIRECT(budgetrng2),"<>"),"") -> 2930 | L59: =IFERROR(SUMIFS(OFFSET(INDIRECT(budgetrng_umsatzentwicklung),0,9),INDIRECT(budgetrng),"<>")- SUMIFS(OFFSET(INDIRECT(budgetrng_bruttogewinn),0,9),INDIRECT(budgetrng2),"<>"),"") -> 2930 | M59: =IFERROR(SUMIFS(OFFSET(INDIRECT(budgetrng_umsatzentwicklung),0,10),INDIRECT(budgetrng),"<>")- SUMIFS(OFFSET(INDIRECT(budgetrng_bruttogewinn),0,10),INDIRECT(budgetrng2),"<>"),"") -> 3430 | N59: =IFERROR(SUMIFS(OFFSET(INDIRECT(budgetrng_umsatzentwicklung),0,11),INDIRECT(budgetrng),"<>")- SUMIFS(OFFSET(INDIRECT(budgetrng_bruttogewinn),0,11),INDIRECT(budgetrng2),"<>"),"") -> 3430 | P59: =SUM($C59:INDEX($C59:$N59,1,selectedmonat_num)) -> 3290 | Q59: =SUM(rngBudgetCost) -> 26160
B62: Aktuelles Jahr vs. Vorjahr | P62: =IF(INDEX(tblMonate[Nr],MATCH(monat,tblMonate[Monate],0))<> 1, CONCATENATE("YTD ",Einstellungen!$AY$8," - ",monat," ",B47," Zielerreichung"), CONCATENATE("YTD ",Einstellungen!$AY$8," ",B47," Zielerreichungt")) -> YTD Januar - März Bruttogewinn /-Verlust Zielerreichung
B64: Budget | C64: =C59 -> 930 | D64: =IF(INDEX(tblUmsatzFltr[Nr],MATCH($L$3,tblUmsatzFltr[Umsatz Filter],0)) = 1,D$59,D$59+C$64) -> 930 | E64: =IF(INDEX(tblUmsatzFltr[Nr],MATCH($L$3,tblUmsatzFltr[Umsatz Filter],0)) = 1,E$59,E$59+D$64) -> 1430 | F64: =IF(INDEX(tblUmsatzFltr[Nr],MATCH($L$3,tblUmsatzFltr[Umsatz Filter],0)) = 1,F$59,F$59+E$64) -> 1430 | G64: =IF(INDEX(tblUmsatzFltr[Nr],MATCH($L$3,tblUmsatzFltr[Umsatz Filter],0)) = 1,G$59,G$59+F$64) -> 1930 | H64: =IF(INDEX(tblUmsatzFltr[Nr],MATCH($L$3,tblUmsatzFltr[Umsatz Filter],0)) = 1,H$59,H$59+G$64) -> 1930 | I64: =IF(INDEX(tblUmsatzFltr[Nr],MATCH($L$3,tblUmsatzFltr[Umsatz Filter],0)) = 1,I$59,I$59+H$64) -> 2430 | J64: =IF(INDEX(tblUmsatzFltr[Nr],MATCH($L$3,tblUmsatzFltr[Umsatz Filter],0)) = 1,J$59,J$59+I$64) -> 2430 | K64: =IF(INDEX(tblUmsatzFltr[Nr],MATCH($L$3,tblUmsatzFltr[Umsatz Filter],0)) = 1,K$59,K$59+J$64) -> 2930 | L64: =IF(INDEX(tblUmsatzFltr[Nr],MATCH($L$3,tblUmsatzFltr[Umsatz Filter],0)) = 1,L$59,L$59+K$64) -> 2930 | M64: =IF(INDEX(tblUmsatzFltr[Nr],MATCH($L$3,tblUmsatzFltr[Umsatz Filter],0)) = 1,M$59,M$59+L$64) -> 3430 | N64: =IF(INDEX(tblUmsatzFltr[Nr],MATCH($L$3,tblUmsatzFltr[Umsatz Filter],0)) = 1,N$59,N$59+M$64) -> 3430
B83: Reingewinn / Reinverlust
C85: =DATE(jahr,1,1) -> 2020-01-01 | D85: =EOMONTH(C85,0)+1 -> 2020-02-01 | E85: 2020-03-01 | F85: 2020-04-01 | G85: 2020-05-01 | H85: 2020-06-01 | I85: 2020-07-01 | J85: 2020-08-01 | K85: 2020-09-01 | L85: 2020-10-01 | M85: 2020-11-01 | N85: 2020-12-01 | P85: =P49 -> YTD Januar bis März | Q85: Total
B86: =Startseite!$H$3-6 -> 2014 | C86: =IFERROR(C14+ SUMIF(INDIRECT(dshbrdrng_reingewinn),"<>", INDEX(INDIRECT(dshbrdrng_reingewinn2),0,MATCH(DATE($B86,MONTH(C$85),1),Erfolgsrechnung_Detail!$O$8:$DF$8,0))), "") ->  | D86: =IFERROR(SUMIF(INDIRECT(dshbrdrng_umsatzentwicklung),"<>", INDEX(INDIRECT(dshbrdrng_umsatzentwicklung2),0,MATCH(DATE($B14,MONTH(D$13),1),Erfolgsrechnung_Detail!$O$8:$DF$8,0))) + IF(INDEX(tblUmsatzFltr[Nr],MATCH(filter_umsatz,tblUmsatzFltr[Umsatz Filter],0)) = 1, SUMIF(INDIRECT(dshbrdrng_reingewinn),"<>", INDEX(INDIRECT(dshbrdrng_reingewinn2),0,MATCH(DATE($B86,MONTH(D$85),1),Erfolgsrechnung_Detail!$O$8:$DF$8,0))), SUMIF(INDIRECT(dshbrdrng_reingewinn),"<>", INDEX(INDIRECT(dshbrdrng_reingewinn2),0,MATCH(DATE($B86,MONTH(D$85),1),Erfolgsrechnung_Detail!$O$8:$DF$8,0)))+C86),"") ->  | E86: =IFERROR(SUMIF(INDIRECT(dshbrdrng_umsatzentwicklung),"<>", INDEX(INDIRECT(dshbrdrng_umsatzentwicklung2),0,MATCH(DATE($B14,MONTH(E$13),1),Erfolgsrechnung_Detail!$O$8:$DF$8,0))) + IF(INDEX(tblUmsatzFltr[Nr],MATCH(filter_umsatz,tblUmsatzFltr[Umsatz Filter],0)) = 1, SUMIF(INDIRECT(dshbrdrng_reingewinn),"<>", INDEX(INDIRECT(dshbrdrng_reingewinn2),0,MATCH(DATE($B86,MONTH(E$85),1),Erfolgsrechnung_Detail!$O$8:$DF$8,0))), SUMIF(INDIRECT(dshbrdrng_reingewinn),"<>", INDEX(INDIRECT(dshbrdrng_reingewinn2),0,MATCH(DATE($B86,MONTH(E$85),1),Erfolgsrechnung_Detail!$O$8:$DF$8,0)))+D86),"") ->  | F86: =IFERROR(SUMIF(INDIRECT(dshbrdrng_umsatzentwicklung),"<>", INDEX(INDIRECT(dshbrdrng_umsatzentwicklung2),0,MATCH(DATE($B14,MONTH(F$13),1),Erfolgsrechnung_Detail!$O$8:$DF$8,0))) + IF(INDEX(tblUmsatzFltr[Nr],MATCH(filter_umsatz,tblUmsatzFltr[Umsatz Filter],0)) = 1, SUMIF(INDIRECT(dshbrdrng_reingewinn),"<>", INDEX(INDIRECT(dshbrdrng_reingewinn2),0,MATCH(DATE($B86,MONTH(F$85),1),Erfolgsrechnung_Detail!$O$8:$DF$8,0))), SUMIF(INDIRECT(dshbrdrng_reingewinn),"<>", INDEX(INDIRECT(dshbrdrng_reingewinn2),0,MATCH(DATE($B86,MONTH(F$85),1),Erfolgsrechnung_Detail!$O$8:$DF$8,0)))+E86),"") ->  | G86: =IFERROR(SUMIF(INDIRECT(dshbrdrng_umsatzentwicklung),"<>", INDEX(INDIRECT(dshbrdrng_umsatzentwicklung2),0,MATCH(DATE($B14,MONTH(G$13),1),Erfolgsrechnung_Detail!$O$8:$DF$8,0))) + IF(INDEX(tblUmsatzFltr[Nr],MATCH(filter_umsatz,tblUmsatzFltr[Umsatz Filter],0)) = 1, SUMIF(INDIRECT(dshbrdrng_reingewinn),"<>", INDEX(INDIRECT(dshbrdrng_reingewinn2),0,MATCH(DATE($B86,MONTH(G$85),1),Erfolgsrechnung_Detail!$O$8:$DF$8,0))), SUMIF(INDIRECT(dshbrdrng_reingewinn),"<>", INDEX(INDIRECT(dshbrdrng_reingewinn2),0,MATCH(DATE($B86,MONTH(G$85),1),Erfolgsrechnung_Detail!$O$8:$DF$8,0)))+F86),"") ->  | H86: =IFERROR(SUMIF(INDIRECT(dshbrdrng_umsatzentwicklung),"<>", INDEX(INDIRECT(dshbrdrng_umsatzentwicklung2),0,MATCH(DATE($B14,MONTH(H$13),1),Erfolgsrechnung_Detail!$O$8:$DF$8,0))) + IF(INDEX(tblUmsatzFltr[Nr],MATCH(filter_umsatz,tblUmsatzFltr[Umsatz Filter],0)) = 1, SUMIF(INDIRECT(dshbrdrng_reingewinn),"<>", INDEX(INDIRECT(dshbrdrng_reingewinn2),0,MATCH(DATE($B86,MONTH(H$85),1),Erfolgsrechnung_Detail!$O$8:$DF$8,0))), SUMIF(INDIRECT(dshbrdrng_reingewinn),"<>", INDEX(INDIRECT(dshbrdrng_reingewinn2),0,MATCH(DATE($B86,MONTH(H$85),1),Erfolgsrechnung_Detail!$O$8:$DF$8,0)))+G86),"") ->  | I86: =IFERROR(SUMIF(INDIRECT(dshbrdrng_umsatzentwicklung),"<>", INDEX(INDIRECT(dshbrdrng_umsatzentwicklung2),0,MATCH(DATE($B14,MONTH(I$13),1),Erfolgsrechnung_Detail!$O$8:$DF$8,0))) + IF(INDEX(tblUmsatzFltr[Nr],MATCH(filter_umsatz,tblUmsatzFltr[Umsatz Filter],0)) = 1, SUMIF(INDIRECT(dshbrdrng_reingewinn),"<>", INDEX(INDIRECT(dshbrdrng_reingewinn2),0,MATCH(DATE($B86,MONTH(I$85),1),Erfolgsrechnung_Detail!$O$8:$DF$8,0))), SUMIF(INDIRECT(dshbrdrng_reingewinn),"<>", INDEX(INDIRECT(dshbrdrng_reingewinn2),0,MATCH(DATE($B86,MONTH(I$85),1),Erfolgsrechnung_Detail!$O$8:$DF$8,0)))+H86),"") ->  | J86: =IFERROR(SUMIF(INDIRECT(dshbrdrng_umsatzentwicklung),"<>", INDEX(INDIRECT(dshbrdrng_umsatzentwicklung2),0,MATCH(DATE($B14,MONTH(J$13),1),Erfolgsrechnung_Detail!$O$8:$DF$8,0))) + IF(INDEX(tblUmsatzFltr[Nr],MATCH(filter_umsatz,tblUmsatzFltr[Umsatz Filter],0)) = 1, SUMIF(INDIRECT(dshbrdrng_reingewinn),"<>", INDEX(INDIRECT(dshbrdrng_reingewinn2),0,MATCH(DATE($B86,MONTH(J$85),1),Erfolgsrechnung_Detail!$O$8:$DF$8,0))), SUMIF(INDIRECT(dshbrdrng_reingewinn),"<>", INDEX(INDIRECT(dshbrdrng_reingewinn2),0,MATCH(DATE($B86,MONTH(J$85),1),Erfolgsrechnung_Detail!$O$8:$DF$8,0)))+I86),"") ->  | K86: =IFERROR(SUMIF(INDIRECT(dshbrdrng_umsatzentwicklung),"<>", INDEX(INDIRECT(dshbrdrng_umsatzentwicklung2),0,MATCH(DATE($B14,MONTH(K$13),1),Erfolgsrechnung_Detail!$O$8:$DF$8,0))) + IF(INDEX(tblUmsatzFltr[Nr],MATCH(filter_umsatz,tblUmsatzFltr[Umsatz Filter],0)) = 1, SUMIF(INDIRECT(dshbrdrng_reingewinn),"<>", INDEX(INDIRECT(dshbrdrng_reingewinn2),0,MATCH(DATE($B86,MONTH(K$85),1),Erfolgsrechnung_Detail!$O$8:$DF$8,0))), SUMIF(INDIRECT(dshbrdrng_reingewinn),"<>", INDEX(INDIRECT(dshbrdrng_reingewinn2),0,MATCH(DATE($B86,MONTH(K$85),1),Erfolgsrechnung_Detail!$O$8:$DF$8,0)))+J86),"") ->  | L86: =IFERROR(SUMIF(INDIRECT(dshbrdrng_umsatzentwicklung),"<>", INDEX(INDIRECT(dshbrdrng_umsatzentwicklung2),0,MATCH(DATE($B14,MONTH(L$13),1),Erfolgsrechnung_Detail!$O$8:$DF$8,0))) + IF(INDEX(tblUmsatzFltr[Nr],MATCH(filter_umsatz,tblUmsatzFltr[Umsatz Filter],0)) = 1, SUMIF(INDIRECT(dshbrdrng_reingewinn),"<>", INDEX(INDIRECT(dshbrdrng_reingewinn2),0,MATCH(DATE($B86,MONTH(L$85),1),Erfolgsrechnung_Detail!$O$8:$DF$8,0))), SUMIF(INDIRECT(dshbrdrng_reingewinn),"<>", INDEX(INDIRECT(dshbrdrng_reingewinn2),0,MATCH(DATE($B86,MONTH(L$85),1),Erfolgsrechnung_Detail!$O$8:$DF$8,0)))+K86),"") ->  | M86: =IFERROR(SUMIF(INDIRECT(dshbrdrng_umsatzentwicklung),"<>", INDEX(INDIRECT(dshbrdrng_umsatzentwicklung2),0,MATCH(DATE($B14,MONTH(M$13),1),Erfolgsrechnung_Detail!$O$8:$DF$8,0))) + IF(INDEX(tblUmsatzFltr[Nr],MATCH(filter_umsatz,tblUmsatzFltr[Umsatz Filter],0)) = 1, SUMIF(INDIRECT(dshbrdrng_reingewinn),"<>", INDEX(INDIRECT(dshbrdrng_reingewinn2),0,MATCH(DATE($B86,MONTH(M$85),1),Erfolgsrechnung_Detail!$O$8:$DF$8,0))), SUMIF(INDIRECT(dshbrdrng_reingewinn),"<>", INDEX(INDIRECT(dshbrdrng_reingewinn2),0,MATCH(DATE($B86,MONTH(M$85),1),Erfolgsrechnung_Detail!$O$8:$DF$8,0)))+L86),"") ->  | N86: =IFERROR(SUMIF(INDIRECT(dshbrdrng_umsatzentwicklung),"<>", INDEX(INDIRECT(dshbrdrng_umsatzentwicklung2),0,MATCH(DATE($B14,MONTH(N$13),1),Erfolgsrechnung_Detail!$O$8:$DF$8,0))) + IF(INDEX(tblUmsatzFltr[Nr],MATCH(filter_umsatz,tblUmsatzFltr[Umsatz Filter],0)) = 1, SUMIF(INDIRECT(dshbrdrng_reingewinn),"<>", INDEX(INDIRECT(dshbrdrng_reingewinn2),0,MATCH(DATE($B86,MONTH(N$85),1),Erfolgsrechnung_Detail!$O$8:$DF$8,0))), SUMIF(INDIRECT(dshbrdrng_reingewinn),"<>", INDEX(INDIRECT(dshbrdrng_reingewinn2),0,MATCH(DATE($B86,MONTH(N$85),1),Erfolgsrechnung_Detail!$O$8:$DF$8,0)))+M86),"") ->  | P86: =IFERROR(IF( INDEX(tblUmsatzFltr[Nr],MATCH(filter_umsatz,tblUmsatzFltr[Umsatz Filter],0))=1, SUM($C86:INDEX($C86:$N86,1,selectedmonat_num)), INDEX($C86:$N86,0,MATCH(monat,tblMonate[Monate],0))),"") -> 0 | Q86: =IFERROR( IF(INDEX(tblUmsatzFltr[Nr],MATCH($L$3,tblUmsatzFltr[Umsatz Filter],0)) = 1, SUM(Dashboard!$C86:$N86),Dashboard!$N86),"") -> 0
B87: =Startseite!$H$3-5 -> 2015 | C87: =IFERROR(C15+ SUMIF(INDIRECT(dshbrdrng_reingewinn),"<>", INDEX(INDIRECT(dshbrdrng_reingewinn2),0,MATCH(DATE($B87,MONTH(C$85),1),Erfolgsrechnung_Detail!$O$8:$DF$8,0))), "") -> 1449.083722 | D87: =IFERROR(SUMIF(INDIRECT(dshbrdrng_umsatzentwicklung),"<>", INDEX(INDIRECT(dshbrdrng_umsatzentwicklung2),0,MATCH(DATE($B15,MONTH(D$13),1),Erfolgsrechnung_Detail!$O$8:$DF$8,0))) + IF(INDEX(tblUmsatzFltr[Nr],MATCH(filter_umsatz,tblUmsatzFltr[Umsatz Filter],0)) = 1, SUMIF(INDIRECT(dshbrdrng_reingewinn),"<>", INDEX(INDIRECT(dshbrdrng_reingewinn2),0,MATCH(DATE($B87,MONTH(D$85),1),Erfolgsrechnung_Detail!$O$8:$DF$8,0))), SUMIF(INDIRECT(dshbrdrng_reingewinn),"<>", INDEX(INDIRECT(dshbrdrng_reingewinn2),0,MATCH(DATE($B87,MONTH(D$85),1),Erfolgsrechnung_Detail!$O$8:$DF$8,0)))+C87),"") -> 1952 | E87: =IFERROR(SUMIF(INDIRECT(dshbrdrng_umsatzentwicklung),"<>", INDEX(INDIRECT(dshbrdrng_umsatzentwicklung2),0,MATCH(DATE($B15,MONTH(E$13),1),Erfolgsrechnung_Detail!$O$8:$DF$8,0))) + IF(INDEX(tblUmsatzFltr[Nr],MATCH(filter_umsatz,tblUmsatzFltr[Umsatz Filter],0)) = 1, SUMIF(INDIRECT(dshbrdrng_reingewinn),"<>", INDEX(INDIRECT(dshbrdrng_reingewinn2),0,MATCH(DATE($B87,MONTH(E$85),1),Erfolgsrechnung_Detail!$O$8:$DF$8,0))), SUMIF(INDIRECT(dshbrdrng_reingewinn),"<>", INDEX(INDIRECT(dshbrdrng_reingewinn2),0,MATCH(DATE($B87,MONTH(E$85),1),Erfolgsrechnung_Detail!$O$8:$DF$8,0)))+D87),"") -> 1673 | F87: =IFERROR(SUMIF(INDIRECT(dshbrdrng_umsatzentwicklung),"<>", INDEX(INDIRECT(dshbrdrng_umsatzentwicklung2),0,MATCH(DATE($B15,MONTH(F$13),1),Erfolgsrechnung_Detail!$O$8:$DF$8,0))) + IF(INDEX(tblUmsatzFltr[Nr],MATCH(filter_umsatz,tblUmsatzFltr[Umsatz Filter],0)) = 1, SUMIF(INDIRECT(dshbrdrng_reingewinn),"<>", INDEX(INDIRECT(dshbrdrng_reingewinn2),0,MATCH(DATE($B87,MONTH(F$85),1),Erfolgsrechnung_Detail!$O$8:$DF$8,0))), SUMIF(INDIRECT(dshbrdrng_reingewinn),"<>", INDEX(INDIRECT(dshbrdrng_reingewinn2),0,MATCH(DATE($B87,MONTH(F$85),1),Erfolgsrechnung_Detail!$O$8:$DF$8,0)))+E87),"") -> 1671 | G87: =IFERROR(SUMIF(INDIRECT(dshbrdrng_umsatzentwicklung),"<>", INDEX(INDIRECT(dshbrdrng_umsatzentwicklung2),0,MATCH(DATE($B15,MONTH(G$13),1),Erfolgsrechnung_Detail!$O$8:$DF$8,0))) + IF(INDEX(tblUmsatzFltr[Nr],MATCH(filter_umsatz,tblUmsatzFltr[Umsatz Filter],0)) = 1, SUMIF(INDIRECT(dshbrdrng_reingewinn),"<>", INDEX(INDIRECT(dshbrdrng_reingewinn2),0,MATCH(DATE($B87,MONTH(G$85),1),Erfolgsrechnung_Detail!$O$8:$DF$8,0))), SUMIF(INDIRECT(dshbrdrng_reingewinn),"<>", INDEX(INDIRECT(dshbrdrng_reingewinn2),0,MATCH(DATE($B87,MONTH(G$85),1),Erfolgsrechnung_Detail!$O$8:$DF$8,0)))+F87),"") -> 1375 | H87: =IFERROR(SUMIF(INDIRECT(dshbrdrng_umsatzentwicklung),"<>", INDEX(INDIRECT(dshbrdrng_umsatzentwicklung2),0,MATCH(DATE($B15,MONTH(H$13),1),Erfolgsrechnung_Detail!$O$8:$DF$8,0))) + IF(INDEX(tblUmsatzFltr[Nr],MATCH(filter_umsatz,tblUmsatzFltr[Umsatz Filter],0)) = 1, SUMIF(INDIRECT(dshbrdrng_reingewinn),"<>", INDEX(INDIRECT(dshbrdrng_reingewinn2),0,MATCH(DATE($B87,MONTH(H$85),1),Erfolgsrechnung_Detail!$O$8:$DF$8,0))), SUMIF(INDIRECT(dshbrdrng_reingewinn),"<>", INDEX(INDIRECT(dshbrdrng_reingewinn2),0,MATCH(DATE($B87,MONTH(H$85),1),Erfolgsrechnung_Detail!$O$8:$DF$8,0)))+G87),"") -> 1590 | I87: =IFERROR(SUMIF(INDIRECT(dshbrdrng_umsatzentwicklung),"<>", INDEX(INDIRECT(dshbrdrng_umsatzentwicklung2),0,MATCH(DATE($B15,MONTH(I$13),1),Erfolgsrechnung_Detail!$O$8:$DF$8,0))) + IF(INDEX(tblUmsatzFltr[Nr],MATCH(filter_umsatz,tblUmsatzFltr[Umsatz Filter],0)) = 1, SUMIF(INDIRECT(dshbrdrng_reingewinn),"<>", INDEX(INDIRECT(dshbrdrng_reingewinn2),0,MATCH(DATE($B87,MONTH(I$85),1),Erfolgsrechnung_Detail!$O$8:$DF$8,0))), SUMIF(INDIRECT(dshbrdrng_reingewinn),"<>", INDEX(INDIRECT(dshbrdrng_reingewinn2),0,MATCH(DATE($B87,MONTH(I$85),1),Erfolgsrechnung_Detail!$O$8:$DF$8,0)))+H87),"") -> 1348 | J87: =IFERROR(SUMIF(INDIRECT(dshbrdrng_umsatzentwicklung),"<>", INDEX(INDIRECT(dshbrdrng_umsatzentwicklung2),0,MATCH(DATE($B15,MONTH(J$13),1),Erfolgsrechnung_Detail!$O$8:$DF$8,0))) + IF(INDEX(tblUmsatzFltr[Nr],MATCH(filter_umsatz,tblUmsatzFltr[Umsatz Filter],0)) = 1, SUMIF(INDIRECT(dshbrdrng_reingewinn),"<>", INDEX(INDIRECT(dshbrdrng_reingewinn2),0,MATCH(DATE($B87,MONTH(J$85),1),Erfolgsrechnung_Detail!$O$8:$DF$8,0))), SUMIF(INDIRECT(dshbrdrng_reingewinn),"<>", INDEX(INDIRECT(dshbrdrng_reingewinn2),0,MATCH(DATE($B87,MONTH(J$85),1),Erfolgsrechnung_Detail!$O$8:$DF$8,0)))+I87),"") -> 1361 | K87: =IFERROR(SUMIF(INDIRECT(dshbrdrng_umsatzentwicklung),"<>", INDEX(INDIRECT(dshbrdrng_umsatzentwicklung2),0,MATCH(DATE($B15,MONTH(K$13),1),Erfolgsrechnung_Detail!$O$8:$DF$8,0))) + IF(INDEX(tblUmsatzFltr[Nr],MATCH(filter_umsatz,tblUmsatzFltr[Umsatz Filter],0)) = 1, SUMIF(INDIRECT(dshbrdrng_reingewinn),"<>", INDEX(INDIRECT(dshbrdrng_reingewinn2),0,MATCH(DATE($B87,MONTH(K$85),1),Erfolgsrechnung_Detail!$O$8:$DF$8,0))), SUMIF(INDIRECT(dshbrdrng_reingewinn),"<>", INDEX(INDIRECT(dshbrdrng_reingewinn2),0,MATCH(DATE($B87,MONTH(K$85),1),Erfolgsrechnung_Detail!$O$8:$DF$8,0)))+J87),"") -> 1311 | L87: =IFERROR(SUMIF(INDIRECT(dshbrdrng_umsatzentwicklung),"<>", INDEX(INDIRECT(dshbrdrng_umsatzentwicklung2),0,MATCH(DATE($B15,MONTH(L$13),1),Erfolgsrechnung_Detail!$O$8:$DF$8,0))) + IF(INDEX(tblUmsatzFltr[Nr],MATCH(filter_umsatz,tblUmsatzFltr[Umsatz Filter],0)) = 1, SUMIF(INDIRECT(dshbrdrng_reingewinn),"<>", INDEX(INDIRECT(dshbrdrng_reingewinn2),0,MATCH(DATE($B87,MONTH(L$85),1),Erfolgsrechnung_Detail!$O$8:$DF$8,0))), SUMIF(INDIRECT(dshbrdrng_reingewinn),"<>", INDEX(INDIRECT(dshbrdrng_reingewinn2),0,MATCH(DATE($B87,MONTH(L$85),1),Erfolgsrechnung_Detail!$O$8:$DF$8,0)))+K87),"") -> 1595.52 | M87: =IFERROR(SUMIF(INDIRECT(dshbrdrng_umsatzentwicklung),"<>", INDEX(INDIRECT(dshbrdrng_umsatzentwicklung2),0,MATCH(DATE($B15,MONTH(M$13),1),Erfolgsrechnung_Detail!$O$8:$DF$8,0))) + IF(INDEX(tblUmsatzFltr[Nr],MATCH(filter_umsatz,tblUmsatzFltr[Umsatz Filter],0)) = 1, SUMIF(INDIRECT(dshbrdrng_reingewinn),"<>", INDEX(INDIRECT(dshbrdrng_reingewinn2),0,MATCH(DATE($B87,MONTH(M$85),1),Erfolgsrechnung_Detail!$O$8:$DF$8,0))), SUMIF(INDIRECT(dshbrdrng_reingewinn),"<>", INDEX(INDIRECT(dshbrdrng_reingewinn2),0,MATCH(DATE($B87,MONTH(M$85),1),Erfolgsrechnung_Detail!$O$8:$DF$8,0)))+L87),"") -> 1564 | N87: =IFERROR(SUMIF(INDIRECT(dshbrdrng_umsatzentwicklung),"<>", INDEX(INDIRECT(dshbrdrng_umsatzentwicklung2),0,MATCH(DATE($B15,MONTH(N$13),1),Erfolgsrechnung_Detail!$O$8:$DF$8,0))) + IF(INDEX(tblUmsatzFltr[Nr],MATCH(filter_umsatz,tblUmsatzFltr[Umsatz Filter],0)) = 1, SUMIF(INDIRECT(dshbrdrng_reingewinn),"<>", INDEX(INDIRECT(dshbrdrng_reingewinn2),0,MATCH(DATE($B87,MONTH(N$85),1),Erfolgsrechnung_Detail!$O$8:$DF$8,0))), SUMIF(INDIRECT(dshbrdrng_reingewinn),"<>", INDEX(INDIRECT(dshbrdrng_reingewinn2),0,MATCH(DATE($B87,MONTH(N$85),1),Erfolgsrechnung_Detail!$O$8:$DF$8,0)))+M87),"") -> 1652 | P87: =IFERROR(IF( INDEX(tblUmsatzFltr[Nr],MATCH(filter_umsatz,tblUmsatzFltr[Umsatz Filter],0))=1, SUM($C87:INDEX($C87:$N87,1,selectedmonat_num)), INDEX($C87:$N87,0,MATCH(monat,tblMonate[Monate],0))),"") -> 5074.083722 | Q87: =IFERROR( IF(INDEX(tblUmsatzFltr[Nr],MATCH($L$3,tblUmsatzFltr[Umsatz Filter],0)) = 1, SUM(Dashboard!$C87:$N87),Dashboard!$N87),"") -> 18541.60372
B88: =Startseite!$H$3-4 -> 2016 | C88: =IFERROR(C16+ SUMIF(INDIRECT(dshbrdrng_reingewinn),"<>", INDEX(INDIRECT(dshbrdrng_reingewinn2),0,MATCH(DATE($B88,MONTH(C$85),1),Erfolgsrechnung_Detail!$O$8:$DF$8,0))), "") -> 1591 | D88: =IFERROR(SUMIF(INDIRECT(dshbrdrng_umsatzentwicklung),"<>", INDEX(INDIRECT(dshbrdrng_umsatzentwicklung2),0,MATCH(DATE($B16,MONTH(D$13),1),Erfolgsrechnung_Detail!$O$8:$DF$8,0))) + IF(INDEX(tblUmsatzFltr[Nr],MATCH(filter_umsatz,tblUmsatzFltr[Umsatz Filter],0)) = 1, SUMIF(INDIRECT(dshbrdrng_reingewinn),"<>", INDEX(INDIRECT(dshbrdrng_reingewinn2),0,MATCH(DATE($B88,MONTH(D$85),1),Erfolgsrechnung_Detail!$O$8:$DF$8,0))), SUMIF(INDIRECT(dshbrdrng_reingewinn),"<>", INDEX(INDIRECT(dshbrdrng_reingewinn2),0,MATCH(DATE($B88,MONTH(D$85),1),Erfolgsrechnung_Detail!$O$8:$DF$8,0)))+C88),"") -> 1921.671 | E88: =IFERROR(SUMIF(INDIRECT(dshbrdrng_umsatzentwicklung),"<>", INDEX(INDIRECT(dshbrdrng_umsatzentwicklung2),0,MATCH(DATE($B16,MONTH(E$13),1),Erfolgsrechnung_Detail!$O$8:$DF$8,0))) + IF(INDEX(tblUmsatzFltr[Nr],MATCH(filter_umsatz,tblUmsatzFltr[Umsatz Filter],0)) = 1, SUMIF(INDIRECT(dshbrdrng_reingewinn),"<>", INDEX(INDIRECT(dshbrdrng_reingewinn2),0,MATCH(DATE($B88,MONTH(E$85),1),Erfolgsrechnung_Detail!$O$8:$DF$8,0))), SUMIF(INDIRECT(dshbrdrng_reingewinn),"<>", INDEX(INDIRECT(dshbrdrng_reingewinn2),0,MATCH(DATE($B88,MONTH(E$85),1),Erfolgsrechnung_Detail!$O$8:$DF$8,0)))+D88),"") -> 1213 | F88: =IFERROR(SUMIF(INDIRECT(dshbrdrng_umsatzentwicklung),"<>", INDEX(INDIRECT(dshbrdrng_umsatzentwicklung2),0,MATCH(DATE($B16,MONTH(F$13),1),Erfolgsrechnung_Detail!$O$8:$DF$8,0))) + IF(INDEX(tblUmsatzFltr[Nr],MATCH(filter_umsatz,tblUmsatzFltr[Umsatz Filter],0)) = 1, SUMIF(INDIRECT(dshbrdrng_reingewinn),"<>", INDEX(INDIRECT(dshbrdrng_reingewinn2),0,MATCH(DATE($B88,MONTH(F$85),1),Erfolgsrechnung_Detail!$O$8:$DF$8,0))), SUMIF(INDIRECT(dshbrdrng_reingewinn),"<>", INDEX(INDIRECT(dshbrdrng_reingewinn2),0,MATCH(DATE($B88,MONTH(F$85),1),Erfolgsrechnung_Detail!$O$8:$DF$8,0)))+E88),"") -> 1260 | G88: =IFERROR(SUMIF(INDIRECT(dshbrdrng_umsatzentwicklung),"<>", INDEX(INDIRECT(dshbrdrng_umsatzentwicklung2),0,MATCH(DATE($B16,MONTH(G$13),1),Erfolgsrechnung_Detail!$O$8:$DF$8,0))) + IF(INDEX(tblUmsatzFltr[Nr],MATCH(filter_umsatz,tblUmsatzFltr[Umsatz Filter],0)) = 1, SUMIF(INDIRECT(dshbrdrng_reingewinn),"<>", INDEX(INDIRECT(dshbrdrng_reingewinn2),0,MATCH(DATE($B88,MONTH(G$85),1),Erfolgsrechnung_Detail!$O$8:$DF$8,0))), SUMIF(INDIRECT(dshbrdrng_reingewinn),"<>", INDEX(INDIRECT(dshbrdrng_reingewinn2),0,MATCH(DATE($B88,MONTH(G$85),1),Erfolgsrechnung_Detail!$O$8:$DF$8,0)))+F88),"") -> 1609 | H88: =IFERROR(SUMIF(INDIRECT(dshbrdrng_umsatzentwicklung),"<>", INDEX(INDIRECT(dshbrdrng_umsatzentwicklung2),0,MATCH(DATE($B16,MONTH(H$13),1),Erfolgsrechnung_Detail!$O$8:$DF$8,0))) + IF(INDEX(tblUmsatzFltr[Nr],MATCH(filter_umsatz,tblUmsatzFltr[Umsatz Filter],0)) = 1, SUMIF(INDIRECT(dshbrdrng_reingewinn),"<>", INDEX(INDIRECT(dshbrdrng_reingewinn2),0,MATCH(DATE($B88,MONTH(H$85),1),Erfolgsrechnung_Detail!$O$8:$DF$8,0))), SUMIF(INDIRECT(dshbrdrng_reingewinn),"<>", INDEX(INDIRECT(dshbrdrng_reingewinn2),0,MATCH(DATE($B88,MONTH(H$85),1),Erfolgsrechnung_Detail!$O$8:$DF$8,0)))+G88),"") -> 1838 | I88: =IFERROR(SUMIF(INDIRECT(dshbrdrng_umsatzentwicklung),"<>", INDEX(INDIRECT(dshbrdrng_umsatzentwicklung2),0,MATCH(DATE($B16,MONTH(I$13),1),Erfolgsrechnung_Detail!$O$8:$DF$8,0))) + IF(INDEX(tblUmsatzFltr[Nr],MATCH(filter_umsatz,tblUmsatzFltr[Umsatz Filter],0)) = 1, SUMIF(INDIRECT(dshbrdrng_reingewinn),"<>", INDEX(INDIRECT(dshbrdrng_reingewinn2),0,MATCH(DATE($B88,MONTH(I$85),1),Erfolgsrechnung_Detail!$O$8:$DF$8,0))), SUMIF(INDIRECT(dshbrdrng_reingewinn),"<>", INDEX(INDIRECT(dshbrdrng_reingewinn2),0,MATCH(DATE($B88,MONTH(I$85),1),Erfolgsrechnung_Detail!$O$8:$DF$8,0)))+H88),"") -> 1403 | J88: =IFERROR(SUMIF(INDIRECT(dshbrdrng_umsatzentwicklung),"<>", INDEX(INDIRECT(dshbrdrng_umsatzentwicklung2),0,MATCH(DATE($B16,MONTH(J$13),1),Erfolgsrechnung_Detail!$O$8:$DF$8,0))) + IF(INDEX(tblUmsatzFltr[Nr],MATCH(filter_umsatz,tblUmsatzFltr[Umsatz Filter],0)) = 1, SUMIF(INDIRECT(dshbrdrng_reingewinn),"<>", INDEX(INDIRECT(dshbrdrng_reingewinn2),0,MATCH(DATE($B88,MONTH(J$85),1),Erfolgsrechnung_Detail!$O$8:$DF$8,0))), SUMIF(INDIRECT(dshbrdrng_reingewinn),"<>", INDEX(INDIRECT(dshbrdrng_reingewinn2),0,MATCH(DATE($B88,MONTH(J$85),1),Erfolgsrechnung_Detail!$O$8:$DF$8,0)))+I88),"") -> 1498 | K88: =IFERROR(SUMIF(INDIRECT(dshbrdrng_umsatzentwicklung),"<>", INDEX(INDIRECT(dshbrdrng_umsatzentwicklung2),0,MATCH(DATE($B16,MONTH(K$13),1),Erfolgsrechnung_Detail!$O$8:$DF$8,0))) + IF(INDEX(tblUmsatzFltr[Nr],MATCH(filter_umsatz,tblUmsatzFltr[Umsatz Filter],0)) = 1, SUMIF(INDIRECT(dshbrdrng_reingewinn),"<>", INDEX(INDIRECT(dshbrdrng_reingewinn2),0,MATCH(DATE($B88,MONTH(K$85),1),Erfolgsrechnung_Detail!$O$8:$DF$8,0))), SUMIF(INDIRECT(dshbrdrng_reingewinn),"<>", INDEX(INDIRECT(dshbrdrng_reingewinn2),0,MATCH(DATE($B88,MONTH(K$85),1),Erfolgsrechnung_Detail!$O$8:$DF$8,0)))+J88),"") -> 1986 | L88: =IFERROR(SUMIF(INDIRECT(dshbrdrng_umsatzentwicklung),"<>", INDEX(INDIRECT(dshbrdrng_umsatzentwicklung2),0,MATCH(DATE($B16,MONTH(L$13),1),Erfolgsrechnung_Detail!$O$8:$DF$8,0))) + IF(INDEX(tblUmsatzFltr[Nr],MATCH(filter_umsatz,tblUmsatzFltr[Umsatz Filter],0)) = 1, SUMIF(INDIRECT(dshbrdrng_reingewinn),"<>", INDEX(INDIRECT(dshbrdrng_reingewinn2),0,MATCH(DATE($B88,MONTH(L$85),1),Erfolgsrechnung_Detail!$O$8:$DF$8,0))), SUMIF(INDIRECT(dshbrdrng_reingewinn),"<>", INDEX(INDIRECT(dshbrdrng_reingewinn2),0,MATCH(DATE($B88,MONTH(L$85),1),Erfolgsrechnung_Detail!$O$8:$DF$8,0)))+K88),"") -> 1517 | M88: =IFERROR(SUMIF(INDIRECT(dshbrdrng_umsatzentwicklung),"<>", INDEX(INDIRECT(dshbrdrng_umsatzentwicklung2),0,MATCH(DATE($B16,MONTH(M$13),1),Erfolgsrechnung_Detail!$O$8:$DF$8,0))) + IF(INDEX(tblUmsatzFltr[Nr],MATCH(filter_umsatz,tblUmsatzFltr[Umsatz Filter],0)) = 1, SUMIF(INDIRECT(dshbrdrng_reingewinn),"<>", INDEX(INDIRECT(dshbrdrng_reingewinn2),0,MATCH(DATE($B88,MONTH(M$85),1),Erfolgsrechnung_Detail!$O$8:$DF$8,0))), SUMIF(INDIRECT(dshbrdrng_reingewinn),"<>", INDEX(INDIRECT(dshbrdrng_reingewinn2),0,MATCH(DATE($B88,MONTH(M$85),1),Erfolgsrechnung_Detail!$O$8:$DF$8,0)))+L88),"") -> 1626 | N88: =IFERROR(SUMIF(INDIRECT(dshbrdrng_umsatzentwicklung),"<>", INDEX(INDIRECT(dshbrdrng_umsatzentwicklung2),0,MATCH(DATE($B16,MONTH(N$13),1),Erfolgsrechnung_Detail!$O$8:$DF$8,0))) + IF(INDEX(tblUmsatzFltr[Nr],MATCH(filter_umsatz,tblUmsatzFltr[Umsatz Filter],0)) = 1, SUMIF(INDIRECT(dshbrdrng_reingewinn),"<>", INDEX(INDIRECT(dshbrdrng_reingewinn2),0,MATCH(DATE($B88,MONTH(N$85),1),Erfolgsrechnung_Detail!$O$8:$DF$8,0))), SUMIF(INDIRECT(dshbrdrng_reingewinn),"<>", INDEX(INDIRECT(dshbrdrng_reingewinn2),0,MATCH(DATE($B88,MONTH(N$85),1),Erfolgsrechnung_Detail!$O$8:$DF$8,0)))+M88),"") -> 1522 | P88: =IFERROR(IF( INDEX(tblUmsatzFltr[Nr],MATCH(filter_umsatz,tblUmsatzFltr[Umsatz Filter],0))=1, SUM($C88:INDEX($C88:$N88,1,selectedmonat_num)), INDEX($C88:$N88,0,MATCH(monat,tblMonate[Monate],0))),"") -> 4725.671 | Q88: =IFERROR( IF(INDEX(tblUmsatzFltr[Nr],MATCH($L$3,tblUmsatzFltr[Umsatz Filter],0)) = 1, SUM(Dashboard!$C88:$N88),Dashboard!$N88),"") -> 18984.671
B89: =Startseite!$H$3-3 -> 2017 | C89: =IFERROR(C17+ SUMIF(INDIRECT(dshbrdrng_reingewinn),"<>", INDEX(INDIRECT(dshbrdrng_reingewinn2),0,MATCH(DATE($B89,MONTH(C$85),1),Erfolgsrechnung_Detail!$O$8:$DF$8,0))), "") -> 1674 | D89: =IFERROR(SUMIF(INDIRECT(dshbrdrng_umsatzentwicklung),"<>", INDEX(INDIRECT(dshbrdrng_umsatzentwicklung2),0,MATCH(DATE($B17,MONTH(D$13),1),Erfolgsrechnung_Detail!$O$8:$DF$8,0))) + IF(INDEX(tblUmsatzFltr[Nr],MATCH(filter_umsatz,tblUmsatzFltr[Umsatz Filter],0)) = 1, SUMIF(INDIRECT(dshbrdrng_reingewinn),"<>", INDEX(INDIRECT(dshbrdrng_reingewinn2),0,MATCH(DATE($B89,MONTH(D$85),1),Erfolgsrechnung_Detail!$O$8:$DF$8,0))), SUMIF(INDIRECT(dshbrdrng_reingewinn),"<>", INDEX(INDIRECT(dshbrdrng_reingewinn2),0,MATCH(DATE($B89,MONTH(D$85),1),Erfolgsrechnung_Detail!$O$8:$DF$8,0)))+C89),"") -> 2347.69 | E89: =IFERROR(SUMIF(INDIRECT(dshbrdrng_umsatzentwicklung),"<>", INDEX(INDIRECT(dshbrdrng_umsatzentwicklung2),0,MATCH(DATE($B17,MONTH(E$13),1),Erfolgsrechnung_Detail!$O$8:$DF$8,0))) + IF(INDEX(tblUmsatzFltr[Nr],MATCH(filter_umsatz,tblUmsatzFltr[Umsatz Filter],0)) = 1, SUMIF(INDIRECT(dshbrdrng_reingewinn),"<>", INDEX(INDIRECT(dshbrdrng_reingewinn2),0,MATCH(DATE($B89,MONTH(E$85),1),Erfolgsrechnung_Detail!$O$8:$DF$8,0))), SUMIF(INDIRECT(dshbrdrng_reingewinn),"<>", INDEX(INDIRECT(dshbrdrng_reingewinn2),0,MATCH(DATE($B89,MONTH(E$85),1),Erfolgsrechnung_Detail!$O$8:$DF$8,0)))+D89),"") -> 1715.58 | F89: =IFERROR(SUMIF(INDIRECT(dshbrdrng_umsatzentwicklung),"<>", INDEX(INDIRECT(dshbrdrng_umsatzentwicklung2),0,MATCH(DATE($B17,MONTH(F$13),1),Erfolgsrechnung_Detail!$O$8:$DF$8,0))) + IF(INDEX(tblUmsatzFltr[Nr],MATCH(filter_umsatz,tblUmsatzFltr[Umsatz Filter],0)) = 1, SUMIF(INDIRECT(dshbrdrng_reingewinn),"<>", INDEX(INDIRECT(dshbrdrng_reingewinn2),0,MATCH(DATE($B89,MONTH(F$85),1),Erfolgsrechnung_Detail!$O$8:$DF$8,0))), SUMIF(INDIRECT(dshbrdrng_reingewinn),"<>", INDEX(INDIRECT(dshbrdrng_reingewinn2),0,MATCH(DATE($B89,MONTH(F$85),1),Erfolgsrechnung_Detail!$O$8:$DF$8,0)))+E89),"") -> 2039.13 | G89: =IFERROR(SUMIF(INDIRECT(dshbrdrng_umsatzentwicklung),"<>", INDEX(INDIRECT(dshbrdrng_umsatzentwicklung2),0,MATCH(DATE($B17,MONTH(G$13),1),Erfolgsrechnung_Detail!$O$8:$DF$8,0))) + IF(INDEX(tblUmsatzFltr[Nr],MATCH(filter_umsatz,tblUmsatzFltr[Umsatz Filter],0)) = 1, SUMIF(INDIRECT(dshbrdrng_reingewinn),"<>", INDEX(INDIRECT(dshbrdrng_reingewinn2),0,MATCH(DATE($B89,MONTH(G$85),1),Erfolgsrechnung_Detail!$O$8:$DF$8,0))), SUMIF(INDIRECT(dshbrdrng_reingewinn),"<>", INDEX(INDIRECT(dshbrdrng_reingewinn2),0,MATCH(DATE($B89,MONTH(G$85),1),Erfolgsrechnung_Detail!$O$8:$DF$8,0)))+F89),"") -> 1319 | H89: =IFERROR(SUMIF(INDIRECT(dshbrdrng_umsatzentwicklung),"<>", INDEX(INDIRECT(dshbrdrng_umsatzentwicklung2),0,MATCH(DATE($B17,MONTH(H$13),1),Erfolgsrechnung_Detail!$O$8:$DF$8,0))) + IF(INDEX(tblUmsatzFltr[Nr],MATCH(filter_umsatz,tblUmsatzFltr[Umsatz Filter],0)) = 1, SUMIF(INDIRECT(dshbrdrng_reingewinn),"<>", INDEX(INDIRECT(dshbrdrng_reingewinn2),0,MATCH(DATE($B89,MONTH(H$85),1),Erfolgsrechnung_Detail!$O$8:$DF$8,0))), SUMIF(INDIRECT(dshbrdrng_reingewinn),"<>", INDEX(INDIRECT(dshbrdrng_reingewinn2),0,MATCH(DATE($B89,MONTH(H$85),1),Erfolgsrechnung_Detail!$O$8:$DF$8,0)))+G89),"") -> 1247 | I89: =IFERROR(SUMIF(INDIRECT(dshbrdrng_umsatzentwicklung),"<>", INDEX(INDIRECT(dshbrdrng_umsatzentwicklung2),0,MATCH(DATE($B17,MONTH(I$13),1),Erfolgsrechnung_Detail!$O$8:$DF$8,0))) + IF(INDEX(tblUmsatzFltr[Nr],MATCH(filter_umsatz,tblUmsatzFltr[Umsatz Filter],0)) = 1, SUMIF(INDIRECT(dshbrdrng_reingewinn),"<>", INDEX(INDIRECT(dshbrdrng_reingewinn2),0,MATCH(DATE($B89,MONTH(I$85),1),Erfolgsrechnung_Detail!$O$8:$DF$8,0))), SUMIF(INDIRECT(dshbrdrng_reingewinn),"<>", INDEX(INDIRECT(dshbrdrng_reingewinn2),0,MATCH(DATE($B89,MONTH(I$85),1),Erfolgsrechnung_Detail!$O$8:$DF$8,0)))+H89),"") -> 1527 | J89: =IFERROR(SUMIF(INDIRECT(dshbrdrng_umsatzentwicklung),"<>", INDEX(INDIRECT(dshbrdrng_umsatzentwicklung2),0,MATCH(DATE($B17,MONTH(J$13),1),Erfolgsrechnung_Detail!$O$8:$DF$8,0))) + IF(INDEX(tblUmsatzFltr[Nr],MATCH(filter_umsatz,tblUmsatzFltr[Umsatz Filter],0)) = 1, SUMIF(INDIRECT(dshbrdrng_reingewinn),"<>", INDEX(INDIRECT(dshbrdrng_reingewinn2),0,MATCH(DATE($B89,MONTH(J$85),1),Erfolgsrechnung_Detail!$O$8:$DF$8,0))), SUMIF(INDIRECT(dshbrdrng_reingewinn),"<>", INDEX(INDIRECT(dshbrdrng_reingewinn2),0,MATCH(DATE($B89,MONTH(J$85),1),Erfolgsrechnung_Detail!$O$8:$DF$8,0)))+I89),"") -> 1755 | K89: =IFERROR(SUMIF(INDIRECT(dshbrdrng_umsatzentwicklung),"<>", INDEX(INDIRECT(dshbrdrng_umsatzentwicklung2),0,MATCH(DATE($B17,MONTH(K$13),1),Erfolgsrechnung_Detail!$O$8:$DF$8,0))) + IF(INDEX(tblUmsatzFltr[Nr],MATCH(filter_umsatz,tblUmsatzFltr[Umsatz Filter],0)) = 1, SUMIF(INDIRECT(dshbrdrng_reingewinn),"<>", INDEX(INDIRECT(dshbrdrng_reingewinn2),0,MATCH(DATE($B89,MONTH(K$85),1),Erfolgsrechnung_Detail!$O$8:$DF$8,0))), SUMIF(INDIRECT(dshbrdrng_reingewinn),"<>", INDEX(INDIRECT(dshbrdrng_reingewinn2),0,MATCH(DATE($B89,MONTH(K$85),1),Erfolgsrechnung_Detail!$O$8:$DF$8,0)))+J89),"") -> 1531 | L89: =IFERROR(SUMIF(INDIRECT(dshbrdrng_umsatzentwicklung),"<>", INDEX(INDIRECT(dshbrdrng_umsatzentwicklung2),0,MATCH(DATE($B17,MONTH(L$13),1),Erfolgsrechnung_Detail!$O$8:$DF$8,0))) + IF(INDEX(tblUmsatzFltr[Nr],MATCH(filter_umsatz,tblUmsatzFltr[Umsatz Filter],0)) = 1, SUMIF(INDIRECT(dshbrdrng_reingewinn),"<>", INDEX(INDIRECT(dshbrdrng_reingewinn2),0,MATCH(DATE($B89,MONTH(L$85),1),Erfolgsrechnung_Detail!$O$8:$DF$8,0))), SUMIF(INDIRECT(dshbrdrng_reingewinn),"<>", INDEX(INDIRECT(dshbrdrng_reingewinn2),0,MATCH(DATE($B89,MONTH(L$85),1),Erfolgsrechnung_Detail!$O$8:$DF$8,0)))+K89),"") -> 1399 | M89: =IFERROR(SUMIF(INDIRECT(dshbrdrng_umsatzentwicklung),"<>", INDEX(INDIRECT(dshbrdrng_umsatzentwicklung2),0,MATCH(DATE($B17,MONTH(M$13),1),Erfolgsrechnung_Detail!$O$8:$DF$8,0))) + IF(INDEX(tblUmsatzFltr[Nr],MATCH(filter_umsatz,tblUmsatzFltr[Umsatz Filter],0)) = 1, SUMIF(INDIRECT(dshbrdrng_reingewinn),"<>", INDEX(INDIRECT(dshbrdrng_reingewinn2),0,MATCH(DATE($B89,MONTH(M$85),1),Erfolgsrechnung_Detail!$O$8:$DF$8,0))), SUMIF(INDIRECT(dshbrdrng_reingewinn),"<>", INDEX(INDIRECT(dshbrdrng_reingewinn2),0,MATCH(DATE($B89,MONTH(M$85),1),Erfolgsrechnung_Detail!$O$8:$DF$8,0)))+L89),"") -> 1403 | N89: =IFERROR(SUMIF(INDIRECT(dshbrdrng_umsatzentwicklung),"<>", INDEX(INDIRECT(dshbrdrng_umsatzentwicklung2),0,MATCH(DATE($B17,MONTH(N$13),1),Erfolgsrechnung_Detail!$O$8:$DF$8,0))) + IF(INDEX(tblUmsatzFltr[Nr],MATCH(filter_umsatz,tblUmsatzFltr[Umsatz Filter],0)) = 1, SUMIF(INDIRECT(dshbrdrng_reingewinn),"<>", INDEX(INDIRECT(dshbrdrng_reingewinn2),0,MATCH(DATE($B89,MONTH(N$85),1),Erfolgsrechnung_Detail!$O$8:$DF$8,0))), SUMIF(INDIRECT(dshbrdrng_reingewinn),"<>", INDEX(INDIRECT(dshbrdrng_reingewinn2),0,MATCH(DATE($B89,MONTH(N$85),1),Erfolgsrechnung_Detail!$O$8:$DF$8,0)))+M89),"") -> 1441 | P89: =IFERROR(IF( INDEX(tblUmsatzFltr[Nr],MATCH(filter_umsatz,tblUmsatzFltr[Umsatz Filter],0))=1, SUM($C89:INDEX($C89:$N89,1,selectedmonat_num)), INDEX($C89:$N89,0,MATCH(monat,tblMonate[Monate],0))),"") -> 5737.27 | Q89: =IFERROR( IF(INDEX(tblUmsatzFltr[Nr],MATCH($L$3,tblUmsatzFltr[Umsatz Filter],0)) = 1, SUM(Dashboard!$C89:$N89),Dashboard!$N89),"") -> 19398.4
B90: =Startseite!$H$3-2 -> 2018 | C90: =IFERROR(C18+ SUMIF(INDIRECT(dshbrdrng_reingewinn),"<>", INDEX(INDIRECT(dshbrdrng_reingewinn2),0,MATCH(DATE($B90,MONTH(C$85),1),Erfolgsrechnung_Detail!$O$8:$DF$8,0))), "") -> 1536 | D90: =IFERROR(SUMIF(INDIRECT(dshbrdrng_umsatzentwicklung),"<>", INDEX(INDIRECT(dshbrdrng_umsatzentwicklung2),0,MATCH(DATE($B18,MONTH(D$13),1),Erfolgsrechnung_Detail!$O$8:$DF$8,0))) + IF(INDEX(tblUmsatzFltr[Nr],MATCH(filter_umsatz,tblUmsatzFltr[Umsatz Filter],0)) = 1, SUMIF(INDIRECT(dshbrdrng_reingewinn),"<>", INDEX(INDIRECT(dshbrdrng_reingewinn2),0,MATCH(DATE($B90,MONTH(D$85),1),Erfolgsrechnung_Detail!$O$8:$DF$8,0))), SUMIF(INDIRECT(dshbrdrng_reingewinn),"<>", INDEX(INDIRECT(dshbrdrng_reingewinn2),0,MATCH(DATE($B90,MONTH(D$85),1),Erfolgsrechnung_Detail!$O$8:$DF$8,0)))+C90),"") -> 1867 | E90: =IFERROR(SUMIF(INDIRECT(dshbrdrng_umsatzentwicklung),"<>", INDEX(INDIRECT(dshbrdrng_umsatzentwicklung2),0,MATCH(DATE($B18,MONTH(E$13),1),Erfolgsrechnung_Detail!$O$8:$DF$8,0))) + IF(INDEX(tblUmsatzFltr[Nr],MATCH(filter_umsatz,tblUmsatzFltr[Umsatz Filter],0)) = 1, SUMIF(INDIRECT(dshbrdrng_reingewinn),"<>", INDEX(INDIRECT(dshbrdrng_reingewinn2),0,MATCH(DATE($B90,MONTH(E$85),1),Erfolgsrechnung_Detail!$O$8:$DF$8,0))), SUMIF(INDIRECT(dshbrdrng_reingewinn),"<>", INDEX(INDIRECT(dshbrdrng_reingewinn2),0,MATCH(DATE($B90,MONTH(E$85),1),Erfolgsrechnung_Detail!$O$8:$DF$8,0)))+D90),"") -> 1163 | F90: =IFERROR(SUMIF(INDIRECT(dshbrdrng_umsatzentwicklung),"<>", INDEX(INDIRECT(dshbrdrng_umsatzentwicklung2),0,MATCH(DATE($B18,MONTH(F$13),1),Erfolgsrechnung_Detail!$O$8:$DF$8,0))) + IF(INDEX(tblUmsatzFltr[Nr],MATCH(filter_umsatz,tblUmsatzFltr[Umsatz Filter],0)) = 1, SUMIF(INDIRECT(dshbrdrng_reingewinn),"<>", INDEX(INDIRECT(dshbrdrng_reingewinn2),0,MATCH(DATE($B90,MONTH(F$85),1),Erfolgsrechnung_Detail!$O$8:$DF$8,0))), SUMIF(INDIRECT(dshbrdrng_reingewinn),"<>", INDEX(INDIRECT(dshbrdrng_reingewinn2),0,MATCH(DATE($B90,MONTH(F$85),1),Erfolgsrechnung_Detail!$O$8:$DF$8,0)))+E90),"") -> 1627 | G90: =IFERROR(SUMIF(INDIRECT(dshbrdrng_umsatzentwicklung),"<>", INDEX(INDIRECT(dshbrdrng_umsatzentwicklung2),0,MATCH(DATE($B18,MONTH(G$13),1),Erfolgsrechnung_Detail!$O$8:$DF$8,0))) + IF(INDEX(tblUmsatzFltr[Nr],MATCH(filter_umsatz,tblUmsatzFltr[Umsatz Filter],0)) = 1, SUMIF(INDIRECT(dshbrdrng_reingewinn),"<>", INDEX(INDIRECT(dshbrdrng_reingewinn2),0,MATCH(DATE($B90,MONTH(G$85),1),Erfolgsrechnung_Detail!$O$8:$DF$8,0))), SUMIF(INDIRECT(dshbrdrng_reingewinn),"<>", INDEX(INDIRECT(dshbrdrng_reingewinn2),0,MATCH(DATE($B90,MONTH(G$85),1),Erfolgsrechnung_Detail!$O$8:$DF$8,0)))+F90),"") -> 1671 | H90: =IFERROR(SUMIF(INDIRECT(dshbrdrng_umsatzentwicklung),"<>", INDEX(INDIRECT(dshbrdrng_umsatzentwicklung2),0,MATCH(DATE($B18,MONTH(H$13),1),Erfolgsrechnung_Detail!$O$8:$DF$8,0))) + IF(INDEX(tblUmsatzFltr[Nr],MATCH(filter_umsatz,tblUmsatzFltr[Umsatz Filter],0)) = 1, SUMIF(INDIRECT(dshbrdrng_reingewinn),"<>", INDEX(INDIRECT(dshbrdrng_reingewinn2),0,MATCH(DATE($B90,MONTH(H$85),1),Erfolgsrechnung_Detail!$O$8:$DF$8,0))), SUMIF(INDIRECT(dshbrdrng_reingewinn),"<>", INDEX(INDIRECT(dshbrdrng_reingewinn2),0,MATCH(DATE($B90,MONTH(H$85),1),Erfolgsrechnung_Detail!$O$8:$DF$8,0)))+G90),"") -> 1795 | I90: =IFERROR(SUMIF(INDIRECT(dshbrdrng_umsatzentwicklung),"<>", INDEX(INDIRECT(dshbrdrng_umsatzentwicklung2),0,MATCH(DATE($B18,MONTH(I$13),1),Erfolgsrechnung_Detail!$O$8:$DF$8,0))) + IF(INDEX(tblUmsatzFltr[Nr],MATCH(filter_umsatz,tblUmsatzFltr[Umsatz Filter],0)) = 1, SUMIF(INDIRECT(dshbrdrng_reingewinn),"<>", INDEX(INDIRECT(dshbrdrng_reingewinn2),0,MATCH(DATE($B90,MONTH(I$85),1),Erfolgsrechnung_Detail!$O$8:$DF$8,0))), SUMIF(INDIRECT(dshbrdrng_reingewinn),"<>", INDEX(INDIRECT(dshbrdrng_reingewinn2),0,MATCH(DATE($B90,MONTH(I$85),1),Erfolgsrechnung_Detail!$O$8:$DF$8,0)))+H90),"") -> 1473 | J90: =IFERROR(SUMIF(INDIRECT(dshbrdrng_umsatzentwicklung),"<>", INDEX(INDIRECT(dshbrdrng_umsatzentwicklung2),0,MATCH(DATE($B18,MONTH(J$13),1),Erfolgsrechnung_Detail!$O$8:$DF$8,0))) + IF(INDEX(tblUmsatzFltr[Nr],MATCH(filter_umsatz,tblUmsatzFltr[Umsatz Filter],0)) = 1, SUMIF(INDIRECT(dshbrdrng_reingewinn),"<>", INDEX(INDIRECT(dshbrdrng_reingewinn2),0,MATCH(DATE($B90,MONTH(J$85),1),Erfolgsrechnung_Detail!$O$8:$DF$8,0))), SUMIF(INDIRECT(dshbrdrng_reingewinn),"<>", INDEX(INDIRECT(dshbrdrng_reingewinn2),0,MATCH(DATE($B90,MONTH(J$85),1),Erfolgsrechnung_Detail!$O$8:$DF$8,0)))+I90),"") -> 1441 | K90: =IFERROR(SUMIF(INDIRECT(dshbrdrng_umsatzentwicklung),"<>", INDEX(INDIRECT(dshbrdrng_umsatzentwicklung2),0,MATCH(DATE($B18,MONTH(K$13),1),Erfolgsrechnung_Detail!$O$8:$DF$8,0))) + IF(INDEX(tblUmsatzFltr[Nr],MATCH(filter_umsatz,tblUmsatzFltr[Umsatz Filter],0)) = 1, SUMIF(INDIRECT(dshbrdrng_reingewinn),"<>", INDEX(INDIRECT(dshbrdrng_reingewinn2),0,MATCH(DATE($B90,MONTH(K$85),1),Erfolgsrechnung_Detail!$O$8:$DF$8,0))), SUMIF(INDIRECT(dshbrdrng_reingewinn),"<>", INDEX(INDIRECT(dshbrdrng_reingewinn2),0,MATCH(DATE($B90,MONTH(K$85),1),Erfolgsrechnung_Detail!$O$8:$DF$8,0)))+J90),"") -> 1521 | L90: =IFERROR(SUMIF(INDIRECT(dshbrdrng_umsatzentwicklung),"<>", INDEX(INDIRECT(dshbrdrng_umsatzentwicklung2),0,MATCH(DATE($B18,MONTH(L$13),1),Erfolgsrechnung_Detail!$O$8:$DF$8,0))) + IF(INDEX(tblUmsatzFltr[Nr],MATCH(filter_umsatz,tblUmsatzFltr[Umsatz Filter],0)) = 1, SUMIF(INDIRECT(dshbrdrng_reingewinn),"<>", INDEX(INDIRECT(dshbrdrng_reingewinn2),0,MATCH(DATE($B90,MONTH(L$85),1),Erfolgsrechnung_Detail!$O$8:$DF$8,0))), SUMIF(INDIRECT(dshbrdrng_reingewinn),"<>", INDEX(INDIRECT(dshbrdrng_reingewinn2),0,MATCH(DATE($B90,MONTH(L$85),1),Erfolgsrechnung_Detail!$O$8:$DF$8,0)))+K90),"") -> 1866 | M90: =IFERROR(SUMIF(INDIRECT(dshbrdrng_umsatzentwicklung),"<>", INDEX(INDIRECT(dshbrdrng_umsatzentwicklung2),0,MATCH(DATE($B18,MONTH(M$13),1),Erfolgsrechnung_Detail!$O$8:$DF$8,0))) + IF(INDEX(tblUmsatzFltr[Nr],MATCH(filter_umsatz,tblUmsatzFltr[Umsatz Filter],0)) = 1, SUMIF(INDIRECT(dshbrdrng_reingewinn),"<>", INDEX(INDIRECT(dshbrdrng_reingewinn2),0,MATCH(DATE($B90,MONTH(M$85),1),Erfolgsrechnung_Detail!$O$8:$DF$8,0))), SUMIF(INDIRECT(dshbrdrng_reingewinn),"<>", INDEX(INDIRECT(dshbrdrng_reingewinn2),0,MATCH(DATE($B90,MONTH(M$85),1),Erfolgsrechnung_Detail!$O$8:$DF$8,0)))+L90),"") -> 1694 | N90: =IFERROR(SUMIF(INDIRECT(dshbrdrng_umsatzentwicklung),"<>", INDEX(INDIRECT(dshbrdrng_umsatzentwicklung2),0,MATCH(DATE($B18,MONTH(N$13),1),Erfolgsrechnung_Detail!$O$8:$DF$8,0))) + IF(INDEX(tblUmsatzFltr[Nr],MATCH(filter_umsatz,tblUmsatzFltr[Umsatz Filter],0)) = 1, SUMIF(INDIRECT(dshbrdrng_reingewinn),"<>", INDEX(INDIRECT(dshbrdrng_reingewinn2),0,MATCH(DATE($B90,MONTH(N$85),1),Erfolgsrechnung_Detail!$O$8:$DF$8,0))), SUMIF(INDIRECT(dshbrdrng_reingewinn),"<>", INDEX(INDIRECT(dshbrdrng_reingewinn2),0,MATCH(DATE($B90,MONTH(N$85),1),Erfolgsrechnung_Detail!$O$8:$DF$8,0)))+M90),"") -> 1760 | P90: =IFERROR(IF( INDEX(tblUmsatzFltr[Nr],MATCH(filter_umsatz,tblUmsatzFltr[Umsatz Filter],0))=1, SUM($C90:INDEX($C90:$N90,1,selectedmonat_num)), INDEX($C90:$N90,0,MATCH(monat,tblMonate[Monate],0))),"") -> 4566 | Q90: =IFERROR( IF(INDEX(tblUmsatzFltr[Nr],MATCH($L$3,tblUmsatzFltr[Umsatz Filter],0)) = 1, SUM(Dashboard!$C90:$N90),Dashboard!$N90),"") -> 19414
B91: =Startseite!$H$3-1 -> 2019 | C91: =IFERROR(C19+ SUMIF(INDIRECT(dshbrdrng_reingewinn),"<>", INDEX(INDIRECT(dshbrdrng_reingewinn2),0,MATCH(DATE($B91,MONTH(C$85),1),Erfolgsrechnung_Detail!$O$8:$DF$8,0))), "") -> 2498 | D91: =IFERROR(SUMIF(INDIRECT(dshbrdrng_umsatzentwicklung),"<>", INDEX(INDIRECT(dshbrdrng_umsatzentwicklung2),0,MATCH(DATE($B19,MONTH(D$13),1),Erfolgsrechnung_Detail!$O$8:$DF$8,0))) + IF(INDEX(tblUmsatzFltr[Nr],MATCH(filter_umsatz,tblUmsatzFltr[Umsatz Filter],0)) = 1, SUMIF(INDIRECT(dshbrdrng_reingewinn),"<>", INDEX(INDIRECT(dshbrdrng_reingewinn2),0,MATCH(DATE($B91,MONTH(D$85),1),Erfolgsrechnung_Detail!$O$8:$DF$8,0))), SUMIF(INDIRECT(dshbrdrng_reingewinn),"<>", INDEX(INDIRECT(dshbrdrng_reingewinn2),0,MATCH(DATE($B91,MONTH(D$85),1),Erfolgsrechnung_Detail!$O$8:$DF$8,0)))+C91),"") -> 2205 | E91: =IFERROR(SUMIF(INDIRECT(dshbrdrng_umsatzentwicklung),"<>", INDEX(INDIRECT(dshbrdrng_umsatzentwicklung2),0,MATCH(DATE($B19,MONTH(E$13),1),Erfolgsrechnung_Detail!$O$8:$DF$8,0))) + IF(INDEX(tblUmsatzFltr[Nr],MATCH(filter_umsatz,tblUmsatzFltr[Umsatz Filter],0)) = 1, SUMIF(INDIRECT(dshbrdrng_reingewinn),"<>", INDEX(INDIRECT(dshbrdrng_reingewinn2),0,MATCH(DATE($B91,MONTH(E$85),1),Erfolgsrechnung_Detail!$O$8:$DF$8,0))), SUMIF(INDIRECT(dshbrdrng_reingewinn),"<>", INDEX(INDIRECT(dshbrdrng_reingewinn2),0,MATCH(DATE($B91,MONTH(E$85),1),Erfolgsrechnung_Detail!$O$8:$DF$8,0)))+D91),"") -> 2024 | F91: =IFERROR(SUMIF(INDIRECT(dshbrdrng_umsatzentwicklung),"<>", INDEX(INDIRECT(dshbrdrng_umsatzentwicklung2),0,MATCH(DATE($B19,MONTH(F$13),1),Erfolgsrechnung_Detail!$O$8:$DF$8,0))) + IF(INDEX(tblUmsatzFltr[Nr],MATCH(filter_umsatz,tblUmsatzFltr[Umsatz Filter],0)) = 1, SUMIF(INDIRECT(dshbrdrng_reingewinn),"<>", INDEX(INDIRECT(dshbrdrng_reingewinn2),0,MATCH(DATE($B91,MONTH(F$85),1),Erfolgsrechnung_Detail!$O$8:$DF$8,0))), SUMIF(INDIRECT(dshbrdrng_reingewinn),"<>", INDEX(INDIRECT(dshbrdrng_reingewinn2),0,MATCH(DATE($B91,MONTH(F$85),1),Erfolgsrechnung_Detail!$O$8:$DF$8,0)))+E91),"") -> 1900 | G91: =IFERROR(SUMIF(INDIRECT(dshbrdrng_umsatzentwicklung),"<>", INDEX(INDIRECT(dshbrdrng_umsatzentwicklung2),0,MATCH(DATE($B19,MONTH(G$13),1),Erfolgsrechnung_Detail!$O$8:$DF$8,0))) + IF(INDEX(tblUmsatzFltr[Nr],MATCH(filter_umsatz,tblUmsatzFltr[Umsatz Filter],0)) = 1, SUMIF(INDIRECT(dshbrdrng_reingewinn),"<>", INDEX(INDIRECT(dshbrdrng_reingewinn2),0,MATCH(DATE($B91,MONTH(G$85),1),Erfolgsrechnung_Detail!$O$8:$DF$8,0))), SUMIF(INDIRECT(dshbrdrng_reingewinn),"<>", INDEX(INDIRECT(dshbrdrng_reingewinn2),0,MATCH(DATE($B91,MONTH(G$85),1),Erfolgsrechnung_Detail!$O$8:$DF$8,0)))+F91),"") -> 1920 | H91: =IFERROR(SUMIF(INDIRECT(dshbrdrng_umsatzentwicklung),"<>", INDEX(INDIRECT(dshbrdrng_umsatzentwicklung2),0,MATCH(DATE($B19,MONTH(H$13),1),Erfolgsrechnung_Detail!$O$8:$DF$8,0))) + IF(INDEX(tblUmsatzFltr[Nr],MATCH(filter_umsatz,tblUmsatzFltr[Umsatz Filter],0)) = 1, SUMIF(INDIRECT(dshbrdrng_reingewinn),"<>", INDEX(INDIRECT(dshbrdrng_reingewinn2),0,MATCH(DATE($B91,MONTH(H$85),1),Erfolgsrechnung_Detail!$O$8:$DF$8,0))), SUMIF(INDIRECT(dshbrdrng_reingewinn),"<>", INDEX(INDIRECT(dshbrdrng_reingewinn2),0,MATCH(DATE($B91,MONTH(H$85),1),Erfolgsrechnung_Detail!$O$8:$DF$8,0)))+G91),"") -> 2237 | I91: =IFERROR(SUMIF(INDIRECT(dshbrdrng_umsatzentwicklung),"<>", INDEX(INDIRECT(dshbrdrng_umsatzentwicklung2),0,MATCH(DATE($B19,MONTH(I$13),1),Erfolgsrechnung_Detail!$O$8:$DF$8,0))) + IF(INDEX(tblUmsatzFltr[Nr],MATCH(filter_umsatz,tblUmsatzFltr[Umsatz Filter],0)) = 1, SUMIF(INDIRECT(dshbrdrng_reingewinn),"<>", INDEX(INDIRECT(dshbrdrng_reingewinn2),0,MATCH(DATE($B91,MONTH(I$85),1),Erfolgsrechnung_Detail!$O$8:$DF$8,0))), SUMIF(INDIRECT(dshbrdrng_reingewinn),"<>", INDEX(INDIRECT(dshbrdrng_reingewinn2),0,MATCH(DATE($B91,MONTH(I$85),1),Erfolgsrechnung_Detail!$O$8:$DF$8,0)))+H91),"") -> 2570 | J91: =IFERROR(SUMIF(INDIRECT(dshbrdrng_umsatzentwicklung),"<>", INDEX(INDIRECT(dshbrdrng_umsatzentwicklung2),0,MATCH(DATE($B19,MONTH(J$13),1),Erfolgsrechnung_Detail!$O$8:$DF$8,0))) + IF(INDEX(tblUmsatzFltr[Nr],MATCH(filter_umsatz,tblUmsatzFltr[Umsatz Filter],0)) = 1, SUMIF(INDIRECT(dshbrdrng_reingewinn),"<>", INDEX(INDIRECT(dshbrdrng_reingewinn2),0,MATCH(DATE($B91,MONTH(J$85),1),Erfolgsrechnung_Detail!$O$8:$DF$8,0))), SUMIF(INDIRECT(dshbrdrng_reingewinn),"<>", INDEX(INDIRECT(dshbrdrng_reingewinn2),0,MATCH(DATE($B91,MONTH(J$85),1),Erfolgsrechnung_Detail!$O$8:$DF$8,0)))+I91),"") -> 2436 | K91: =IFERROR(SUMIF(INDIRECT(dshbrdrng_umsatzentwicklung),"<>", INDEX(INDIRECT(dshbrdrng_umsatzentwicklung2),0,MATCH(DATE($B19,MONTH(K$13),1),Erfolgsrechnung_Detail!$O$8:$DF$8,0))) + IF(INDEX(tblUmsatzFltr[Nr],MATCH(filter_umsatz,tblUmsatzFltr[Umsatz Filter],0)) = 1, SUMIF(INDIRECT(dshbrdrng_reingewinn),"<>", INDEX(INDIRECT(dshbrdrng_reingewinn2),0,MATCH(DATE($B91,MONTH(K$85),1),Erfolgsrechnung_Detail!$O$8:$DF$8,0))), SUMIF(INDIRECT(dshbrdrng_reingewinn),"<>", INDEX(INDIRECT(dshbrdrng_reingewinn2),0,MATCH(DATE($B91,MONTH(K$85),1),Erfolgsrechnung_Detail!$O$8:$DF$8,0)))+J91),"") -> 2033 | L91: =IFERROR(SUMIF(INDIRECT(dshbrdrng_umsatzentwicklung),"<>", INDEX(INDIRECT(dshbrdrng_umsatzentwicklung2),0,MATCH(DATE($B19,MONTH(L$13),1),Erfolgsrechnung_Detail!$O$8:$DF$8,0))) + IF(INDEX(tblUmsatzFltr[Nr],MATCH(filter_umsatz,tblUmsatzFltr[Umsatz Filter],0)) = 1, SUMIF(INDIRECT(dshbrdrng_reingewinn),"<>", INDEX(INDIRECT(dshbrdrng_reingewinn2),0,MATCH(DATE($B91,MONTH(L$85),1),Erfolgsrechnung_Detail!$O$8:$DF$8,0))), SUMIF(INDIRECT(dshbrdrng_reingewinn),"<>", INDEX(INDIRECT(dshbrdrng_reingewinn2),0,MATCH(DATE($B91,MONTH(L$85),1),Erfolgsrechnung_Detail!$O$8:$DF$8,0)))+K91),"") -> 2427 | M91: =IFERROR(SUMIF(INDIRECT(dshbrdrng_umsatzentwicklung),"<>", INDEX(INDIRECT(dshbrdrng_umsatzentwicklung2),0,MATCH(DATE($B19,MONTH(M$13),1),Erfolgsrechnung_Detail!$O$8:$DF$8,0))) + IF(INDEX(tblUmsatzFltr[Nr],MATCH(filter_umsatz,tblUmsatzFltr[Umsatz Filter],0)) = 1, SUMIF(INDIRECT(dshbrdrng_reingewinn),"<>", INDEX(INDIRECT(dshbrdrng_reingewinn2),0,MATCH(DATE($B91,MONTH(M$85),1),Erfolgsrechnung_Detail!$O$8:$DF$8,0))), SUMIF(INDIRECT(dshbrdrng_reingewinn),"<>", INDEX(INDIRECT(dshbrdrng_reingewinn2),0,MATCH(DATE($B91,MONTH(M$85),1),Erfolgsrechnung_Detail!$O$8:$DF$8,0)))+L91),"") -> 2503 | N91: =IFERROR(SUMIF(INDIRECT(dshbrdrng_umsatzentwicklung),"<>", INDEX(INDIRECT(dshbrdrng_umsatzentwicklung2),0,MATCH(DATE($B19,MONTH(N$13),1),Erfolgsrechnung_Detail!$O$8:$DF$8,0))) + IF(INDEX(tblUmsatzFltr[Nr],MATCH(filter_umsatz,tblUmsatzFltr[Umsatz Filter],0)) = 1, SUMIF(INDIRECT(dshbrdrng_reingewinn),"<>", INDEX(INDIRECT(dshbrdrng_reingewinn2),0,MATCH(DATE($B91,MONTH(N$85),1),Erfolgsrechnung_Detail!$O$8:$DF$8,0))), SUMIF(INDIRECT(dshbrdrng_reingewinn),"<>", INDEX(INDIRECT(dshbrdrng_reingewinn2),0,MATCH(DATE($B91,MONTH(N$85),1),Erfolgsrechnung_Detail!$O$8:$DF$8,0)))+M91),"") -> 2646 | P91: =IFERROR(IF( INDEX(tblUmsatzFltr[Nr],MATCH(filter_umsatz,tblUmsatzFltr[Umsatz Filter],0))=1, SUM($C91:INDEX($C91:$N91,1,selectedmonat_num)), INDEX($C91:$N91,0,MATCH(monat,tblMonate[Monate],0))),"") -> 6727 | Q91: =IFERROR( IF(INDEX(tblUmsatzFltr[Nr],MATCH($L$3,tblUmsatzFltr[Umsatz Filter],0)) = 1, SUM(Dashboard!$C91:$N91),Dashboard!$N91),"") -> 27399
B92: =Startseite!$H$3 -> 2020 | C92: =IFERROR(C20+ SUMIF(INDIRECT(dshbrdrng_reingewinn),"<>", INDEX(INDIRECT(dshbrdrng_reingewinn2),0,MATCH(DATE($B92,MONTH(C$85),1),Erfolgsrechnung_Detail!$O$8:$DF$8,0))), "") -> 2676 | D92: =IFERROR(SUMIF(INDIRECT(dshbrdrng_umsatzentwicklung),"<>", INDEX(INDIRECT(dshbrdrng_umsatzentwicklung2),0,MATCH(DATE($B20,MONTH(D$13),1),Erfolgsrechnung_Detail!$O$8:$DF$8,0))) + IF(INDEX(tblUmsatzFltr[Nr],MATCH(filter_umsatz,tblUmsatzFltr[Umsatz Filter],0)) = 1, SUMIF(INDIRECT(dshbrdrng_reingewinn),"<>", INDEX(INDIRECT(dshbrdrng_reingewinn2),0,MATCH(DATE($B92,MONTH(D$85),1),Erfolgsrechnung_Detail!$O$8:$DF$8,0))), SUMIF(INDIRECT(dshbrdrng_reingewinn),"<>", INDEX(INDIRECT(dshbrdrng_reingewinn2),0,MATCH(DATE($B92,MONTH(D$85),1),Erfolgsrechnung_Detail!$O$8:$DF$8,0)))+C92),"") -> 2407 | E92: =IFERROR(SUMIF(INDIRECT(dshbrdrng_umsatzentwicklung),"<>", INDEX(INDIRECT(dshbrdrng_umsatzentwicklung2),0,MATCH(DATE($B20,MONTH(E$13),1),Erfolgsrechnung_Detail!$O$8:$DF$8,0))) + IF(INDEX(tblUmsatzFltr[Nr],MATCH(filter_umsatz,tblUmsatzFltr[Umsatz Filter],0)) = 1, SUMIF(INDIRECT(dshbrdrng_reingewinn),"<>", INDEX(INDIRECT(dshbrdrng_reingewinn2),0,MATCH(DATE($B92,MONTH(E$85),1),Erfolgsrechnung_Detail!$O$8:$DF$8,0))), SUMIF(INDIRECT(dshbrdrng_reingewinn),"<>", INDEX(INDIRECT(dshbrdrng_reingewinn2),0,MATCH(DATE($B92,MONTH(E$85),1),Erfolgsrechnung_Detail!$O$8:$DF$8,0)))+D92),"") -> 2290 | F92: =IFERROR(SUMIF(INDIRECT(dshbrdrng_umsatzentwicklung),"<>", INDEX(INDIRECT(dshbrdrng_umsatzentwicklung2),0,MATCH(DATE($B20,MONTH(F$13),1),Erfolgsrechnung_Detail!$O$8:$DF$8,0))) + IF(INDEX(tblUmsatzFltr[Nr],MATCH(filter_umsatz,tblUmsatzFltr[Umsatz Filter],0)) = 1, SUMIF(INDIRECT(dshbrdrng_reingewinn),"<>", INDEX(INDIRECT(dshbrdrng_reingewinn2),0,MATCH(DATE($B92,MONTH(F$85),1),Erfolgsrechnung_Detail!$O$8:$DF$8,0))), SUMIF(INDIRECT(dshbrdrng_reingewinn),"<>", INDEX(INDIRECT(dshbrdrng_reingewinn2),0,MATCH(DATE($B92,MONTH(F$85),1),Erfolgsrechnung_Detail!$O$8:$DF$8,0)))+E92),"") -> 3007 | G92: =IFERROR(SUMIF(INDIRECT(dshbrdrng_umsatzentwicklung),"<>", INDEX(INDIRECT(dshbrdrng_umsatzentwicklung2),0,MATCH(DATE($B20,MONTH(G$13),1),Erfolgsrechnung_Detail!$O$8:$DF$8,0))) + IF(INDEX(tblUmsatzFltr[Nr],MATCH(filter_umsatz,tblUmsatzFltr[Umsatz Filter],0)) = 1, SUMIF(INDIRECT(dshbrdrng_reingewinn),"<>", INDEX(INDIRECT(dshbrdrng_reingewinn2),0,MATCH(DATE($B92,MONTH(G$85),1),Erfolgsrechnung_Detail!$O$8:$DF$8,0))), SUMIF(INDIRECT(dshbrdrng_reingewinn),"<>", INDEX(INDIRECT(dshbrdrng_reingewinn2),0,MATCH(DATE($B92,MONTH(G$85),1),Erfolgsrechnung_Detail!$O$8:$DF$8,0)))+F92),"") -> 2391 | H92: =IFERROR(SUMIF(INDIRECT(dshbrdrng_umsatzentwicklung),"<>", INDEX(INDIRECT(dshbrdrng_umsatzentwicklung2),0,MATCH(DATE($B20,MONTH(H$13),1),Erfolgsrechnung_Detail!$O$8:$DF$8,0))) + IF(INDEX(tblUmsatzFltr[Nr],MATCH(filter_umsatz,tblUmsatzFltr[Umsatz Filter],0)) = 1, SUMIF(INDIRECT(dshbrdrng_reingewinn),"<>", INDEX(INDIRECT(dshbrdrng_reingewinn2),0,MATCH(DATE($B92,MONTH(H$85),1),Erfolgsrechnung_Detail!$O$8:$DF$8,0))), SUMIF(INDIRECT(dshbrdrng_reingewinn),"<>", INDEX(INDIRECT(dshbrdrng_reingewinn2),0,MATCH(DATE($B92,MONTH(H$85),1),Erfolgsrechnung_Detail!$O$8:$DF$8,0)))+G92),"") -> 2609 | I92: =IFERROR(SUMIF(INDIRECT(dshbrdrng_umsatzentwicklung),"<>", INDEX(INDIRECT(dshbrdrng_umsatzentwicklung2),0,MATCH(DATE($B20,MONTH(I$13),1),Erfolgsrechnung_Detail!$O$8:$DF$8,0))) + IF(INDEX(tblUmsatzFltr[Nr],MATCH(filter_umsatz,tblUmsatzFltr[Umsatz Filter],0)) = 1, SUMIF(INDIRECT(dshbrdrng_reingewinn),"<>", INDEX(INDIRECT(dshbrdrng_reingewinn2),0,MATCH(DATE($B92,MONTH(I$85),1),Erfolgsrechnung_Detail!$O$8:$DF$8,0))), SUMIF(INDIRECT(dshbrdrng_reingewinn),"<>", INDEX(INDIRECT(dshbrdrng_reingewinn2),0,MATCH(DATE($B92,MONTH(I$85),1),Erfolgsrechnung_Detail!$O$8:$DF$8,0)))+H92),"") -> 2431 | J92: =IFERROR(SUMIF(INDIRECT(dshbrdrng_umsatzentwicklung),"<>", INDEX(INDIRECT(dshbrdrng_umsatzentwicklung2),0,MATCH(DATE($B20,MONTH(J$13),1),Erfolgsrechnung_Detail!$O$8:$DF$8,0))) + IF(INDEX(tblUmsatzFltr[Nr],MATCH(filter_umsatz,tblUmsatzFltr[Umsatz Filter],0)) = 1, SUMIF(INDIRECT(dshbrdrng_reingewinn),"<>", INDEX(INDIRECT(dshbrdrng_reingewinn2),0,MATCH(DATE($B92,MONTH(J$85),1),Erfolgsrechnung_Detail!$O$8:$DF$8,0))), SUMIF(INDIRECT(dshbrdrng_reingewinn),"<>", INDEX(INDIRECT(dshbrdrng_reingewinn2),0,MATCH(DATE($B92,MONTH(J$85),1),Erfolgsrechnung_Detail!$O$8:$DF$8,0)))+I92),"") -> 2141 | K92: =IFERROR(SUMIF(INDIRECT(dshbrdrng_umsatzentwicklung),"<>", INDEX(INDIRECT(dshbrdrng_umsatzentwicklung2),0,MATCH(DATE($B20,MONTH(K$13),1),Erfolgsrechnung_Detail!$O$8:$DF$8,0))) + IF(INDEX(tblUmsatzFltr[Nr],MATCH(filter_umsatz,tblUmsatzFltr[Umsatz Filter],0)) = 1, SUMIF(INDIRECT(dshbrdrng_reingewinn),"<>", INDEX(INDIRECT(dshbrdrng_reingewinn2),0,MATCH(DATE($B92,MONTH(K$85),1),Erfolgsrechnung_Detail!$O$8:$DF$8,0))), SUMIF(INDIRECT(dshbrdrng_reingewinn),"<>", INDEX(INDIRECT(dshbrdrng_reingewinn2),0,MATCH(DATE($B92,MONTH(K$85),1),Erfolgsrechnung_Detail!$O$8:$DF$8,0)))+J92),"") -> 2409 | L92: =IFERROR(SUMIF(INDIRECT(dshbrdrng_umsatzentwicklung),"<>", INDEX(INDIRECT(dshbrdrng_umsatzentwicklung2),0,MATCH(DATE($B20,MONTH(L$13),1),Erfolgsrechnung_Detail!$O$8:$DF$8,0))) + IF(INDEX(tblUmsatzFltr[Nr],MATCH(filter_umsatz,tblUmsatzFltr[Umsatz Filter],0)) = 1, SUMIF(INDIRECT(dshbrdrng_reingewinn),"<>", INDEX(INDIRECT(dshbrdrng_reingewinn2),0,MATCH(DATE($B92,MONTH(L$85),1),Erfolgsrechnung_Detail!$O$8:$DF$8,0))), SUMIF(INDIRECT(dshbrdrng_reingewinn),"<>", INDEX(INDIRECT(dshbrdrng_reingewinn2),0,MATCH(DATE($B92,MONTH(L$85),1),Erfolgsrechnung_Detail!$O$8:$DF$8,0)))+K92),"") -> 2228 | M92: =IFERROR(SUMIF(INDIRECT(dshbrdrng_umsatzentwicklung),"<>", INDEX(INDIRECT(dshbrdrng_umsatzentwicklung2),0,MATCH(DATE($B20,MONTH(M$13),1),Erfolgsrechnung_Detail!$O$8:$DF$8,0))) + IF(INDEX(tblUmsatzFltr[Nr],MATCH(filter_umsatz,tblUmsatzFltr[Umsatz Filter],0)) = 1, SUMIF(INDIRECT(dshbrdrng_reingewinn),"<>", INDEX(INDIRECT(dshbrdrng_reingewinn2),0,MATCH(DATE($B92,MONTH(M$85),1),Erfolgsrechnung_Detail!$O$8:$DF$8,0))), SUMIF(INDIRECT(dshbrdrng_reingewinn),"<>", INDEX(INDIRECT(dshbrdrng_reingewinn2),0,MATCH(DATE($B92,MONTH(M$85),1),Erfolgsrechnung_Detail!$O$8:$DF$8,0)))+L92),"") -> 2386 | N92: =IFERROR(SUMIF(INDIRECT(dshbrdrng_umsatzentwicklung),"<>", INDEX(INDIRECT(dshbrdrng_umsatzentwicklung2),0,MATCH(DATE($B20,MONTH(N$13),1),Erfolgsrechnung_Detail!$O$8:$DF$8,0))) + IF(INDEX(tblUmsatzFltr[Nr],MATCH(filter_umsatz,tblUmsatzFltr[Umsatz Filter],0)) = 1, SUMIF(INDIRECT(dshbrdrng_reingewinn),"<>", INDEX(INDIRECT(dshbrdrng_reingewinn2),0,MATCH(DATE($B92,MONTH(N$85),1),Erfolgsrechnung_Detail!$O$8:$DF$8,0))), SUMIF(INDIRECT(dshbrdrng_reingewinn),"<>", INDEX(INDIRECT(dshbrdrng_reingewinn2),0,MATCH(DATE($B92,MONTH(N$85),1),Erfolgsrechnung_Detail!$O$8:$DF$8,0)))+M92),"") -> 2235 | P92: =IFERROR(IF( INDEX(tblUmsatzFltr[Nr],MATCH(filter_umsatz,tblUmsatzFltr[Umsatz Filter],0))=1, SUM($C92:INDEX($C92:$N92,1,selectedmonat_num)), INDEX($C92:$N92,0,MATCH(monat,tblMonate[Monate],0))),"") -> 7373 | Q92: =IFERROR( IF(INDEX(tblUmsatzFltr[Nr],MATCH($L$3,tblUmsatzFltr[Umsatz Filter],0)) = 1, SUM(Dashboard!$C92:$N92),Dashboard!$N92),"") -> 29210
B93: YTD | C93: =IFERROR(C92/C91-1,0) -> 0.0712570056 | D93: 0.09160997732 | E93: 0.1314229249 | F93: 0.5826315789 | G93: 0.2453125 | H93: 0.1662941439 | I93: -0.05408560311 | J93: -0.1211001642 | K93: 0.1849483522 | L93: -0.08199423156 | M93: -0.04674390731 | N93: -0.1553287982 | P93: =IFERROR(P92/P91-1,0) -> 0.09603092017 | Q93: =IFERROR(Q92/Q91-1,0) -> 0.06609730282
B95: Budget | C95: =IFERROR((SUMIFS(INDIRECT(budgetrng_umsatzentwicklung),INDIRECT(budgetrng),"<>")- SUMIFS(INDIRECT(budgetrng_bruttogewinn),INDIRECT(budgetrng2),"<>"))- SUMIFS(INDIRECT(budgetrng_reingewinn),INDIRECT(budgetrng3),"<>"),"") -> 370 | D95: =IFERROR((SUMIFS(OFFSET(INDIRECT(budgetrng_umsatzentwicklung),0,1),INDIRECT(budgetrng),"<>")- SUMIFS(OFFSET(INDIRECT(budgetrng_bruttogewinn),0,1),INDIRECT(budgetrng2),"<>"))- SUMIFS(OFFSET(INDIRECT(budgetrng_reingewinn),0,1),INDIRECT(budgetrng3),"<>"),"") -> 370 | E95: =IFERROR((SUMIFS(OFFSET(INDIRECT(budgetrng_umsatzentwicklung),0,2),INDIRECT(budgetrng),"<>")- SUMIFS(OFFSET(INDIRECT(budgetrng_bruttogewinn),0,2),INDIRECT(budgetrng2),"<>"))- SUMIFS(OFFSET(INDIRECT(budgetrng_reingewinn),0,2),INDIRECT(budgetrng3),"<>"),"") -> 870 | F95: =IFERROR((SUMIFS(OFFSET(INDIRECT(budgetrng_umsatzentwicklung),0,3),INDIRECT(budgetrng),"<>")- SUMIFS(OFFSET(INDIRECT(budgetrng_bruttogewinn),0,3),INDIRECT(budgetrng2),"<>"))- SUMIFS(OFFSET(INDIRECT(budgetrng_reingewinn),0,3),INDIRECT(budgetrng3),"<>"),"") -> 870 | G95: =IFERROR((SUMIFS(OFFSET(INDIRECT(budgetrng_umsatzentwicklung),0,4),INDIRECT(budgetrng),"<>")- SUMIFS(OFFSET(INDIRECT(budgetrng_bruttogewinn),0,4),INDIRECT(budgetrng2),"<>"))- SUMIFS(OFFSET(INDIRECT(budgetrng_reingewinn),0,4),INDIRECT(budgetrng3),"<>"),"") -> 1370 | H95: =IFERROR((SUMIFS(OFFSET(INDIRECT(budgetrng_umsatzentwicklung),0,5),INDIRECT(budgetrng),"<>")- SUMIFS(OFFSET(INDIRECT(budgetrng_bruttogewinn),0,5),INDIRECT(budgetrng2),"<>"))- SUMIFS(OFFSET(INDIRECT(budgetrng_reingewinn),0,5),INDIRECT(budgetrng3),"<>"),"") -> 1370 | I95: =IFERROR((SUMIFS(OFFSET(INDIRECT(budgetrng_umsatzentwicklung),0,6),INDIRECT(budgetrng),"<>")- SUMIFS(OFFSET(INDIRECT(budgetrng_bruttogewinn),0,6),INDIRECT(budgetrng2),"<>"))- SUMIFS(OFFSET(INDIRECT(budgetrng_reingewinn),0,6),INDIRECT(budgetrng3),"<>"),"") -> 1870 | J95: =IFERROR((SUMIFS(OFFSET(INDIRECT(budgetrng_umsatzentwicklung),0,7),INDIRECT(budgetrng),"<>")- SUMIFS(OFFSET(INDIRECT(budgetrng_bruttogewinn),0,7),INDIRECT(budgetrng2),"<>"))- SUMIFS(OFFSET(INDIRECT(budgetrng_reingewinn),0,7),INDIRECT(budgetrng3),"<>"),"") -> 1870 | K95: =IFERROR((SUMIFS(OFFSET(INDIRECT(budgetrng_umsatzentwicklung),0,8),INDIRECT(budgetrng),"<>")- SUMIFS(OFFSET(INDIRECT(budgetrng_bruttogewinn),0,8),INDIRECT(budgetrng2),"<>"))- SUMIFS(OFFSET(INDIRECT(budgetrng_reingewinn),0,8),INDIRECT(budgetrng3),"<>"),"") -> 2370 | L95: =IFERROR((SUMIFS(OFFSET(INDIRECT(budgetrng_umsatzentwicklung),0,9),INDIRECT(budgetrng),"<>")- SUMIFS(OFFSET(INDIRECT(budgetrng_bruttogewinn),0,9),INDIRECT(budgetrng2),"<>"))- SUMIFS(OFFSET(INDIRECT(budgetrng_reingewinn),0,9),INDIRECT(budgetrng3),"<>"),"") -> 2370 | M95: =IFERROR((SUMIFS(OFFSET(INDIRECT(budgetrng_umsatzentwicklung),0,10),INDIRECT(budgetrng),"<>")- SUMIFS(OFFSET(INDIRECT(budgetrng_bruttogewinn),0,10),INDIRECT(budgetrng2),"<>"))- SUMIFS(OFFSET(INDIRECT(budgetrng_reingewinn),0,10),INDIRECT(budgetrng3),"<>"),"") -> 2870 | N95: =IFERROR((SUMIFS(OFFSET(INDIRECT(budgetrng_umsatzentwicklung),0,11),INDIRECT(budgetrng),"<>")- SUMIFS(OFFSET(INDIRECT(budgetrng_bruttogewinn),0,11),INDIRECT(budgetrng2),"<>"))- SUMIFS(OFFSET(INDIRECT(budgetrng_reingewinn),0,11),INDIRECT(budgetrng3),"<>"),"") -> 2870 | P95: =SUM($C95:INDEX($C95:$N95,1,selectedmonat_num)) -> 1610 | Q95: =SUM(rngBudgetSalesCost) -> 19440
B98: Aktuelles Jahr vs. Vorjahr | P98: =IF(INDEX(tblMonate[Nr],MATCH(monat,tblMonate[Monate],0))<>1, CONCATENATE("YTD ",Einstellungen!$AY$8," - ",monat," ",B83," Zielerreichung"), CONCATENATE("YTD ",Einstellungen!$AY$8," ",B83," Zielerreichungt")) -> YTD Januar - März Reingewinn / Reinverlust Zielerreichung
B100: Budget | C100: =C95 -> 370 | D100: =IF(INDEX(tblUmsatzFltr[Nr],MATCH($L$3,tblUmsatzFltr[Umsatz Filter],0)) = 1,D$95,D$95+C$100) -> 370 | E100: =IF(INDEX(tblUmsatzFltr[Nr],MATCH($L$3,tblUmsatzFltr[Umsatz Filter],0)) = 1,E$95,E$95+D$100) -> 870 | F100: =IF(INDEX(tblUmsatzFltr[Nr],MATCH($L$3,tblUmsatzFltr[Umsatz Filter],0)) = 1,F$95,F$95+E$100) -> 870 | G100: =IF(INDEX(tblUmsatzFltr[Nr],MATCH($L$3,tblUmsatzFltr[Umsatz Filter],0)) = 1,G$95,G$95+F$100) -> 1370 | H100: =IF(INDEX(tblUmsatzFltr[Nr],MATCH($L$3,tblUmsatzFltr[Umsatz Filter],0)) = 1,H$95,H$95+G$100) -> 1370 | I100: =IF(INDEX(tblUmsatzFltr[Nr],MATCH($L$3,tblUmsatzFltr[Umsatz Filter],0)) = 1,I$95,I$95+H$100) -> 1870 | J100: =IF(INDEX(tblUmsatzFltr[Nr],MATCH($L$3,tblUmsatzFltr[Umsatz Filter],0)) = 1,J$95,J$95+I$100) -> 1870 | K100: =IF(INDEX(tblUmsatzFltr[Nr],MATCH($L$3,tblUmsatzFltr[Umsatz Filter],0)) = 1,K$95,K$95+J$100) -> 2370 | L100: =IF(INDEX(tblUmsatzFltr[Nr],MATCH($L$3,tblUmsatzFltr[Umsatz Filter],0)) = 1,L$95,L$95+K$100) -> 2370 | M100: =IF(INDEX(tblUmsatzFltr[Nr],MATCH($L$3,tblUmsatzFltr[Umsatz Filter],0)) = 1,M$95,M$95+L$100) -> 2870 | N100: =IF(INDEX(tblUmsatzFltr[Nr],MATCH($L$3,tblUmsatzFltr[Umsatz Filter],0)) = 1,N$95,N$95+M$100) -> 2870

Sheet Erfolgsrechnung_Detail
B8: Negativ (-1)/Positiv (1) | D8: Bezeichnung | E8: Gegenkonto | F8: Gegenkonto (Beschrieb) | G8: =DATE(startjahr,1,1) -> 2015-01-01 | H8: =DATE(YEAR(G8)+1,MONTH(G8),DAY(G8)) -> 2016-01-01 | I8: 2017-01-01 | J8: 2018-01-01 | K8: 2019-01-01 | L8: 2020-01-01 | M8: 2021-01-01 | N8: 2022-01-01 | O8: =G8 -> 2015-01-01 | P8: =EOMONTH(O8,0)+1 -> 2015-02-01 | Q8: =EOMONTH(P8,0)+1 -> 2015-03-01 | R8: 2015-04-01 | S8: 2015-05-01 | T8: 2015-06-01 | U8: 2015-07-01 | V8: 2015-08-01 | W8: 2015-09-01 | X8: 2015-10-01 | Y8: 2015-11-01 | Z8: 2015-12-01 | AA8: 2016-01-01 | AB8: 2016-02-01 | AC8: 2016-03-01 | AD8: 2016-04-01 | AE8: 2016-05-01 | AF8: 2016-06-01 | AG8: 2016-07-01 | AH8: 2016-08-01 | AI8: 2016-09-01 | AJ8: 2016-10-01 | AK8: 2016-11-01 | AL8: 2016-12-01 | AM8: 2017-01-01 | AN8: 2017-02-01 | AO8: 2017-03-01 | AP8: 2017-04-01 | AQ8: 2017-05-01 | AR8: 2017-06-01 | AS8: 2017-07-01 | AT8: 2017-08-01 | AU8: 2017-09-01 | AV8: 2017-10-01 | AW8: 2017-11-01 | AX8: 2017-12-01 | AY8: 2018-01-01 | AZ8: 2018-02-01 | BA8: 2018-03-01 | BB8: 2018-04-01 | BC8: 2018-05-01 | BD8: 2018-06-01 | BE8: 2018-07-01 | BF8: 2018-08-01 | BG8: 2018-09-01 | BH8: 2018-10-01 | BI8: 2018-11-01 | BJ8: 2018-12-01 | BK8: 2019-01-01 | BL8: 2019-02-01 | BM8: 2019-03-01 | BN8: 2019-04-01 | BO8: 2019-05-01 | BP8: 2019-06-01 | BQ8: 2019-07-01 | BR8: 2019-08-01 | BS8: 2019-09-01 | BT8: 2019-10-01 | BU8: 2019-11-01 | BV8: 2019-12-01 | BW8: 2020-01-01 | BX8: 2020-02-01 | BY8: 2020-03-01 | BZ8: 2020-04-01 | CA8: 2020-05-01 | CB8: 2020-06-01 | CC8: =EOMONTH(CB8,0)+1 -> 2020-07-01 | CD8: 2020-08-01 | CE8: 2020-09-01 | CF8: 2020-10-01 | CG8: 2020-11-01 | CH8: 2020-12-01 | CI8: 2021-01-01 | CJ8: 2021-02-01 | CK8: 2021-03-01 | CL8: 2021-04-01 | CM8: 2021-05-01 | CN8: 2021-06-01 | CO8: 2021-07-01 | CP8: 2021-08-01 | CQ8: 2021-09-01 | CR8: 2021-10-01 | CS8: 2021-11-01 | CT8: 2021-12-01 | CU8: 2022-01-01 | CV8: 2022-02-01 | CW8: 2022-03-01 | CX8: 2022-04-01 | CY8: 2022-05-01 | CZ8: 2022-06-01 | DA8: 2022-07-01 | DB8: 2022-08-01 | DC8: 2022-09-01 | DD8: 2022-10-01 | DE8: 2022-11-01 | DF8: 2022-12-01
C9: 3 - Betrieblicher Ertrag aus Lieferungen und Leistungen
B10: Ertrag | C10: 3000 | D10: Produktionserlöse | G10: =IF(ISNUMBER($C10), SUMIFS(Datenblatt!$M:$M, Datenblatt!$G:$G,$C10, Datenblatt!$R:$R,">="&G$8,Datenblatt!$R:$R,"<="&EOMONTH(G$8,11)) - SUMIFS(Datenblatt!$M:$M, Datenblatt!$E:$E,$C10, Datenblatt!$R:$R,">="&G$8,Datenblatt!$R:$R,"<="&EOMONTH(G$8,11)), "") -> 1669.788318 | H10: =IF(ISNUMBER($C10), SUMIFS(Datenblatt!$M:$M, Datenblatt!$G:$G,$C10, Datenblatt!$R:$R,">="&H$8,Datenblatt!$R:$R,"<="&EOMONTH(H$8,11)) - SUMIFS(Datenblatt!$M:$M, Datenblatt!$E:$E,$C10, Datenblatt!$R:$R,">="&H$8,Datenblatt!$R:$R,"<="&EOMONTH(H$8,11)), "") -> 1829 | I10: =IF(ISNUMBER($C10), SUMIFS(Datenblatt!$M:$M, Datenblatt!$G:$G,$C10, Datenblatt!$R:$R,">="&I$8,Datenblatt!$R:$R,"<="&EOMONTH(I$8,11)) - SUMIFS(Datenblatt!$M:$M, Datenblatt!$E:$E,$C10, Datenblatt!$R:$R,">="&I$8,Datenblatt!$R:$R,"<="&EOMONTH(I$8,11)), "") -> 1865 | J10: =IF(ISNUMBER($C10), SUMIFS(Datenblatt!$M:$M, Datenblatt!$G:$G,$C10, Datenblatt!$R:$R,">="&J$8,Datenblatt!$R:$R,"<="&EOMONTH(J$8,11)) - SUMIFS(Datenblatt!$M:$M, Datenblatt!$E:$E,$C10, Datenblatt!$R:$R,">="&J$8,Datenblatt!$R:$R,"<="&EOMONTH(J$8,11)), "") -> 1737 | K10: =IF(ISNUMBER($C10), SUMIFS(Datenblatt!$M:$M, Datenblatt!$G:$G,$C10, Datenblatt!$R:$R,">="&K$8,Datenblatt!$R:$R,"<="&EOMONTH(K$8,11)) - SUMIFS(Datenblatt!$M:$M, Datenblatt!$E:$E,$C10, Datenblatt!$R:$R,">="&K$8,Datenblatt!$R:$R,"<="&EOMONTH(K$8,11)), "") -> 4025 | L10: =IF(ISNUMBER($C10), SUMIFS(Datenblatt!$M:$M, Datenblatt!$G:$G,$C10, Datenblatt!$R:$R,">="&L$8,Datenblatt!$R:$R,"<="&EOMONTH(L$8,11)) - SUMIFS(Datenblatt!$M:$M, Datenblatt!$E:$E,$C10, Datenblatt!$R:$R,">="&L$8,Datenblatt!$R:$R,"<="&EOMONTH(L$8,11)), "") -> 3567 | M10: =IF(ISNUMBER($C10), SUMIFS(Datenblatt!$M:$M, Datenblatt!$G:$G,$C10, Datenblatt!$R:$R,">="&M$8,Datenblatt!$R:$R,"<="&EOMONTH(M$8,11)) - SUMIFS(Datenblatt!$M:$M, Datenblatt!$E:$E,$C10, Datenblatt!$R:$R,">="&M$8,Datenblatt!$R:$R,"<="&EOMONTH(M$8,11)), "") -> 0 | N10: =IF(ISNUMBER($C10), SUMIFS(Datenblatt!$M:$M, Datenblatt!$G:$G,$C10, Datenblatt!$R:$R,">="&N$8,Datenblatt!$R:$R,"<="&EOMONTH(N$8,11)) - SUMIFS(Datenblatt!$M:$M, Datenblatt!$E:$E,$C10, Datenblatt!$R:$R,">="&N$8,Datenblatt!$R:$R,"<="&EOMONTH(N$8,11)), "") -> 0 | O10: =IF(ISNUMBER($C10), SUMIFS(Datenblatt!$M:$M, Datenblatt!$G:$G,$C10, Datenblatt!$R:$R,">="&O$8,Datenblatt!$R:$R,"<="&EOMONTH(O$8,0)) - SUMIFS(Datenblatt!$M:$M, Datenblatt!$E:$E,$C10, Datenblatt!$R:$R,">="&O$8,Datenblatt!$R:$R,"<="&EOMONTH(O$8,0)), "") -> 500.788318 | P10: =IF(ISNUMBER($C10), SUMIFS(Datenblatt!$M:$M, Datenblatt!$G:$G,$C10, Datenblatt!$R:$R,">="&P$8,Datenblatt!$R:$R,"<="&EOMONTH(P$8,0)) - SUMIFS(Datenblatt!$M:$M, Datenblatt!$E:$E,$C10, Datenblatt!$R:$R,">="&P$8,Datenblatt!$R:$R,"<="&EOMONTH(P$8,0)), "") -> 111 | Q10: =IF(ISNUMBER($C10), SUMIFS(Datenblatt!$M:$M, Datenblatt!$G:$G,$C10, Datenblatt!$R:$R,">="&Q$8,Datenblatt!$R:$R,"<="&EOMONTH(Q$8,0)) - SUMIFS(Datenblatt!$M:$M, Datenblatt!$E:$E,$C10, Datenblatt!$R:$R,">="&Q$8,Datenblatt!$R:$R,"<="&EOMONTH(Q$8,0)), "") -> 0 | R10: =IF(ISNUMBER($C10), SUMIFS(Datenblatt!$M:$M, Datenblatt!$G:$G,$C10, Datenblatt!$R:$R,">="&R$8,Datenblatt!$R:$R,"<="&EOMONTH(R$8,0)) - SUMIFS(Datenblatt!$M:$M, Datenblatt!$E:$E,$C10, Datenblatt!$R:$R,">="&R$8,Datenblatt!$R:$R,"<="&EOMONTH(R$8,0)), "") -> 148 | S10: =IF(ISNUMBER($C10), SUMIFS(Datenblatt!$M:$M, Datenblatt!$G:$G,$C10, Datenblatt!$R:$R,">="&S$8,Datenblatt!$R:$R,"<="&EOMONTH(S$8,0)) - SUMIFS(Datenblatt!$M:$M, Datenblatt!$E:$E,$C10, Datenblatt!$R:$R,">="&S$8,Datenblatt!$R:$R,"<="&EOMONTH(S$8,0)), "") -> 106 | T10: =IF(ISNUMBER($C10), SUMIFS(Datenblatt!$M:$M, Datenblatt!$G:$G,$C10, Datenblatt!$R:$R,">="&T$8,Datenblatt!$R:$R,"<="&EOMONTH(T$8,0)) - SUMIFS(Datenblatt!$M:$M, Datenblatt!$E:$E,$C10, Datenblatt!$R:$R,">="&T$8,Datenblatt!$R:$R,"<="&EOMONTH(T$8,0)), "") -> 30 | U10: =IF(ISNUMBER($C10), SUMIFS(Datenblatt!$M:$M, Datenblatt!$G:$G,$C10, Datenblatt!$R:$R,">="&U$8,Datenblatt!$R:$R,"<="&EOMONTH(U$8,0)) - SUMIFS(Datenblatt!$M:$M, Datenblatt!$E:$E,$C10, Datenblatt!$R:$R,">="&U$8,Datenblatt!$R:$R,"<="&EOMONTH(U$8,0)), "") -> 122 | V10: =IF(ISNUMBER($C10), SUMIFS(Datenblatt!$M:$M, Datenblatt!$G:$G,$C10, Datenblatt!$R:$R,">="&V$8,Datenblatt!$R:$R,"<="&EOMONTH(V$8,0)) - SUMIFS(Datenblatt!$M:$M, Datenblatt!$E:$E,$C10, Datenblatt!$R:$R,">="&V$8,Datenblatt!$R:$R,"<="&EOMONTH(V$8,0)), "") -> 297 | W10: =IF(ISNUMBER($C10), SUMIFS(Datenblatt!$M:$M, Datenblatt!$G:$G,$C10, Datenblatt!$R:$R,">="&W$8,Datenblatt!$R:$R,"<="&EOMONTH(W$8,0)) - SUMIFS(Datenblatt!$M:$M, Datenblatt!$E:$E,$C10, Datenblatt!$R:$R,">="&W$8,Datenblatt!$R:$R,"<="&EOMONTH(W$8,0)), "") -> 0 | X10: =IF(ISNUMBER($C10), SUMIFS(Datenblatt!$M:$M, Datenblatt!$G:$G,$C10, Datenblatt!$R:$R,">="&X$8,Datenblatt!$R:$R,"<="&EOMONTH(X$8,0)) - SUMIFS(Datenblatt!$M:$M, Datenblatt!$E:$E,$C10, Datenblatt!$R:$R,">="&X$8,Datenblatt!$R:$R,"<="&EOMONTH(X$8,0)), "") -> 99 | Y10: =IF(ISNUMBER($C10), SUMIFS(Datenblatt!$M:$M, Datenblatt!$G:$G,$C10, Datenblatt!$R:$R,">="&Y$8,Datenblatt!$R:$R,"<="&EOMONTH(Y$8,0)) - SUMIFS(Datenblatt!$M:$M, Datenblatt!$E:$E,$C10, Datenblatt!$R:$R,">="&Y$8,Datenblatt!$R:$R,"<="&EOMONTH(Y$8,0)), "") -> 192 | Z10: =IF(ISNUMBER($C10), SUMIFS(Datenblatt!$M:$M, Datenblatt!$G:$G,$C10, Datenblatt!$R:$R,">="&Z$8,Datenblatt!$R:$R,"<="&EOMONTH(Z$8,0)) - SUMIFS(Datenblatt!$M:$M, Datenblatt!$E:$E,$C10, Datenblatt!$R:$R,">="&Z$8,Datenblatt!$R:$R,"<="&EOMONTH(Z$8,0)), "") -> 64 | AA10: =IF(ISNUMBER($C10), SUMIFS(Datenblatt!$M:$M, Datenblatt!$G:$G,$C10, Datenblatt!$R:$R,">="&AA$8,Datenblatt!$R:$R,"<="&EOMONTH(AA$8,0)) - SUMIFS(Datenblatt!$M:$M, Datenblatt!$E:$E,$C10, Datenblatt!$R:$R,">="&AA$8,Datenblatt!$R:$R,"<="&EOMONTH(AA$8,0)), "") -> 291 | AB10: =IF(ISNUMBER($C10), SUMIFS(Datenblatt!$M:$M, Datenblatt!$G:$G,$C10, Datenblatt!$R:$R,">="&AB$8,Datenblatt!$R:$R,"<="&EOMONTH(AB$8,0)) - SUMIFS(Datenblatt!$M:$M, Datenblatt!$E:$E,$C10, Datenblatt!$R:$R,">="&AB$8,Datenblatt!$R:$R,"<="&EOMONTH(AB$8,0)), "") -> 26 | AC10: =IF(ISNUMBER($C10), SUMIFS(Datenblatt!$M:$M, Datenblatt!$G:$G,$C10, Datenblatt!$R:$R,">="&AC$8,Datenblatt!$R:$R,"<="&EOMONTH(AC$8,0)) - SUMIFS(Datenblatt!$M:$M, Datenblatt!$E:$E,$C10, Datenblatt!$R:$R,">="&AC$8,Datenblatt!$R:$R,"<="&EOMONTH(AC$8,0)), "") -> 72 | AD10: =IF(ISNUMBER($C10), SUMIFS(Datenblatt!$M:$M, Datenblatt!$G:$G,$C10, Datenblatt!$R:$R,">="&AD$8,Datenblatt!$R:$R,"<="&EOMONTH(AD$8,0)) - SUMIFS(Datenblatt!$M:$M, Datenblatt!$E:$E,$C10, Datenblatt!$R:$R,">="&AD$8,Datenblatt!$R:$R,"<="&EOMONTH(AD$8,0)), "") -> 105 | AE10: =IF(ISNUMBER($C10), SUMIFS(Datenblatt!$M:$M, Datenblatt!$G:$G,$C10, Datenblatt!$R:$R,">="&AE$8,Datenblatt!$R:$R,"<="&EOMONTH(AE$8,0)) - SUMIFS(Datenblatt!$M:$M, Datenblatt!$E:$E,$C10, Datenblatt!$R:$R,">="&AE$8,Datenblatt!$R:$R,"<="&EOMONTH(AE$8,0)), "") -> 105 | AF10: =IF(ISNUMBER($C10), SUMIFS(Datenblatt!$M:$M, Datenblatt!$G:$G,$C10, Datenblatt!$R:$R,">="&AF$8,Datenblatt!$R:$R,"<="&EOMONTH(AF$8,0)) - SUMIFS(Datenblatt!$M:$M, Datenblatt!$E:$E,$C10, Datenblatt!$R:$R,">="&AF$8,Datenblatt!$R:$R,"<="&EOMONTH(AF$8,0)), "") -> 258 | AG10: =IF(ISNUMBER($C10), SUMIFS(Datenblatt!$M:$M, Datenblatt!$G:$G,$C10, Datenblatt!$R:$R,">="&AG$8,Datenblatt!$R:$R,"<="&EOMONTH(AG$8,0)) - SUMIFS(Datenblatt!$M:$M, Datenblatt!$E:$E,$C10, Datenblatt!$R:$R,">="&AG$8,Datenblatt!$R:$R,"<="&EOMONTH(AG$8,0)), "") -> 141 | AH10: =IF(ISNUMBER($C10), SUMIFS(Datenblatt!$M:$M, Datenblatt!$G:$G,$C10, Datenblatt!$R:$R,">="&AH$8,Datenblatt!$R:$R,"<="&EOMONTH(AH$8,0)) - SUMIFS(Datenblatt!$M:$M, Datenblatt!$E:$E,$C10, Datenblatt!$R:$R,">="&AH$8,Datenblatt!$R:$R,"<="&EOMONTH(AH$8,0)), "") -> 425 | AI10: =IF(ISNUMBER($C10), SUMIFS(Datenblatt!$M:$M, Datenblatt!$G:$G,$C10, Datenblatt!$R:$R,">="&AI$8,Datenblatt!$R:$R,"<="&EOMONTH(AI$8,0)) - SUMIFS(Datenblatt!$M:$M, Datenblatt!$E:$E,$C10, Datenblatt!$R:$R,">="&AI$8,Datenblatt!$R:$R,"<="&EOMONTH(AI$8,0)), "") -> 222 | AJ10: =IF(ISNUMBER($C10), SUMIFS(Datenblatt!$M:$M, Datenblatt!$G:$G,$C10, Datenblatt!$R:$R,">="&AJ$8,Datenblatt!$R:$R,"<="&EOMONTH(AJ$8,0)) - SUMIFS(Datenblatt!$M:$M, Datenblatt!$E:$E,$C10, Datenblatt!$R:$R,">="&AJ$8,Datenblatt!$R:$R,"<="&EOMONTH(AJ$8,0)), "") -> 34 | AK10: =IF(ISNUMBER($C10), SUMIFS(Datenblatt!$M:$M, Datenblatt!$G:$G,$C10, Datenblatt!$R:$R,">="&AK$8,Datenblatt!$R:$R,"<="&EOMONTH(AK$8,0)) - SUMIFS(Datenblatt!$M:$M, Datenblatt!$E:$E,$C10, Datenblatt!$R:$R,">="&AK$8,Datenblatt!$R:$R,"<="&EOMONTH(AK$8,0)), "") -> 97 | AL10: =IF(ISNUMBER($C10), SUMIFS(Datenblatt!$M:$M, Datenblatt!$G:$G,$C10, Datenblatt!$R:$R,">="&AL$8,Datenblatt!$R:$R,"<="&EOMONTH(AL$8,0)) - SUMIFS(Datenblatt!$M:$M, Datenblatt!$E:$E,$C10, Datenblatt!$R:$R,">="&AL$8,Datenblatt!$R:$R,"<="&EOMONTH(AL$8,0)), "") -> 53 | AM10: =IF(ISNUMBER($C10), SUMIFS(Datenblatt!$M:$M, Datenblatt!$G:$G,$C10, Datenblatt!$R:$R,">="&AM$8,Datenblatt!$R:$R,"<="&EOMONTH(AM$8,0)) - SUMIFS(Datenblatt!$M:$M, Datenblatt!$E:$E,$C10, Datenblatt!$R:$R,">="&AM$8,Datenblatt!$R:$R,"<="&EOMONTH(AM$8,0)), "") -> 119 | AN10: =IF(ISNUMBER($C10), SUMIFS(Datenblatt!$M:$M, Datenblatt!$G:$G,$C10, Datenblatt!$R:$R,">="&AN$8,Datenblatt!$R:$R,"<="&EOMONTH(AN$8,0)) - SUMIFS(Datenblatt!$M:$M, Datenblatt!$E:$E,$C10, Datenblatt!$R:$R,">="&AN$8,Datenblatt!$R:$R,"<="&EOMONTH(AN$8,0)), "") -> 60 | AO10: =IF(ISNUMBER($C10), SUMIFS(Datenblatt!$M:$M, Datenblatt!$G:$G,$C10, Datenblatt!$R:$R,">="&AO$8,Datenblatt!$R:$R,"<="&EOMONTH(AO$8,0)) - SUMIFS(Datenblatt!$M:$M, Datenblatt!$E:$E,$C10, Datenblatt!$R:$R,">="&AO$8,Datenblatt!$R:$R,"<="&EOMONTH(AO$8,0)), "") -> 420 | AP10: =IF(ISNUMBER($C10), SUMIFS(Datenblatt!$M:$M, Datenblatt!$G:$G,$C10, Datenblatt!$R:$R,">="&AP$8,Datenblatt!$R:$R,"<="&EOMONTH(AP$8,0)) - SUMIFS(Datenblatt!$M:$M, Datenblatt!$E:$E,$C10, Datenblatt!$R:$R,">="&AP$8,Datenblatt!$R:$R,"<="&EOMONTH(AP$8,0)), "") -> 0 | AQ10: =IF(ISNUMBER($C10), SUMIFS(Datenblatt!$M:$M, Datenblatt!$G:$G,$C10, Datenblatt!$R:$R,">="&AQ$8,Datenblatt!$R:$R,"<="&EOMONTH(AQ$8,0)) - SUMIFS(Datenblatt!$M:$M, Datenblatt!$E:$E,$C10, Datenblatt!$R:$R,">="&AQ$8,Datenblatt!$R:$R,"<="&EOMONTH(AQ$8,0)), "") -> 107 | AR10: =IF(ISNUMBER($C10), SUMIFS(Datenblatt!$M:$M, Datenblatt!$G:$G,$C10, Datenblatt!$R:$R,">="&AR$8,Datenblatt!$R:$R,"<="&EOMONTH(AR$8,0)) - SUMIFS(Datenblatt!$M:$M, Datenblatt!$E:$E,$C10, Datenblatt!$R:$R,">="&AR$8,Datenblatt!$R:$R,"<="&EOMONTH(AR$8,0)), "") -> 196 | AS10: =IF(ISNUMBER($C10), SUMIFS(Datenblatt!$M:$M, Datenblatt!$G:$G,$C10, Datenblatt!$R:$R,">="&AS$8,Datenblatt!$R:$R,"<="&EOMONTH(AS$8,0)) - SUMIFS(Datenblatt!$M:$M, Datenblatt!$E:$E,$C10, Datenblatt!$R:$R,">="&AS$8,Datenblatt!$R:$R,"<="&EOMONTH(AS$8,0)), "") -> 168 | AT10: =IF(ISNUMBER($C10), SUMIFS(Datenblatt!$M:$M, Datenblatt!$G:$G,$C10, Datenblatt!$R:$R,">="&AT$8,Datenblatt!$R:$R,"<="&EOMONTH(AT$8,0)) - SUMIFS(Datenblatt!$M:$M, Datenblatt!$E:$E,$C10, Datenblatt!$R:$R,">="&AT$8,Datenblatt!$R:$R,"<="&EOMONTH(AT$8,0)), "") -> 250 | AU10: =IF(ISNUMBER($C10), SUMIFS(Datenblatt!$M:$M, Datenblatt!$G:$G,$C10, Datenblatt!$R:$R,">="&AU$8,Datenblatt!$R:$R,"<="&EOMONTH(AU$8,0)) - SUMIFS(Datenblatt!$M:$M, Datenblatt!$E:$E,$C10, Datenblatt!$R:$R,">="&AU$8,Datenblatt!$R:$R,"<="&EOMONTH(AU$8,0)), "") -> 218 | AV10: =IF(ISNUMBER($C10), SUMIFS(Datenblatt!$M:$M, Datenblatt!$G:$G,$C10, Datenblatt!$R:$R,">="&AV$8,Datenblatt!$R:$R,"<="&EOMONTH(AV$8,0)) - SUMIFS(Datenblatt!$M:$M, Datenblatt!$E:$E,$C10, Datenblatt!$R:$R,">="&AV$8,Datenblatt!$R:$R,"<="&EOMONTH(AV$8,0)), "") -> 183 | AW10: =IF(ISNUMBER($C10), SUMIFS(Datenblatt!$M:$M, Datenblatt!$G:$G,$C10, Datenblatt!$R:$R,">="&AW$8,Datenblatt!$R:$R,"<="&EOMONTH(AW$8,0)) - SUMIFS(Datenblatt!$M:$M, Datenblatt!$E:$E,$C10, Datenblatt!$R:$R,">="&AW$8,Datenblatt!$R:$R,"<="&EOMONTH(AW$8,0)), "") -> 0 | AX10: =IF(ISNUMBER($C10), SUMIFS(Datenblatt!$M:$M, Datenblatt!$G:$G,$C10, Datenblatt!$R:$R,">="&AX$8,Datenblatt!$R:$R,"<="&EOMONTH(AX$8,0)) - SUMIFS(Datenblatt!$M:$M, Datenblatt!$E:$E,$C10, Datenblatt!$R:$R,">="&AX$8,Datenblatt!$R:$R,"<="&EOMONTH(AX$8,0)), "") -> 144 | AY10: =IF(ISNUMBER($C10), SUMIFS(Datenblatt!$M:$M, Datenblatt!$G:$G,$C10, Datenblatt!$R:$R,">="&AY$8,Datenblatt!$R:$R,"<="&EOMONTH(AY$8,0)) - SUMIFS(Datenblatt!$M:$M, Datenblatt!$E:$E,$C10, Datenblatt!$R:$R,">="&AY$8,Datenblatt!$R:$R,"<="&EOMONTH(AY$8,0)), "") -> 93 | AZ10: =IF(ISNUMBER($C10), SUMIFS(Datenblatt!$M:$M, Datenblatt!$G:$G,$C10, Datenblatt!$R:$R,">="&AZ$8,Datenblatt!$R:$R,"<="&EOMONTH(AZ$8,0)) - SUMIFS(Datenblatt!$M:$M, Datenblatt!$E:$E,$C10, Datenblatt!$R:$R,">="&AZ$8,Datenblatt!$R:$R,"<="&EOMONTH(AZ$8,0)), "") -> 218 | BA10: =IF(ISNUMBER($C10), SUMIFS(Datenblatt!$M:$M, Datenblatt!$G:$G,$C10, Datenblatt!$R:$R,">="&BA$8,Datenblatt!$R:$R,"<="&EOMONTH(BA$8,0)) - SUMIFS(Datenblatt!$M:$M, Datenblatt!$E:$E,$C10, Datenblatt!$R:$R,">="&BA$8,Datenblatt!$R:$R,"<="&EOMONTH(BA$8,0)), "") -> 132 | BB10: =IF(ISNUMBER($C10), SUMIFS(Datenblatt!$M:$M, Datenblatt!$G:$G,$C10, Datenblatt!$R:$R,">="&BB$8,Datenblatt!$R:$R,"<="&EOMONTH(BB$8,0)) - SUMIFS(Datenblatt!$M:$M, Datenblatt!$E:$E,$C10, Datenblatt!$R:$R,">="&BB$8,Datenblatt!$R:$R,"<="&EOMONTH(BB$8,0)), "") -> 87 | BC10: =IF(ISNUMBER($C10), SUMIFS(Datenblatt!$M:$M, Datenblatt!$G:$G,$C10, Datenblatt!$R:$R,">="&BC$8,Datenblatt!$R:$R,"<="&EOMONTH(BC$8,0)) - SUMIFS(Datenblatt!$M:$M, Datenblatt!$E:$E,$C10, Datenblatt!$R:$R,">="&BC$8,Datenblatt!$R:$R,"<="&EOMONTH(BC$8,0)), "") -> 160 | BD10: =IF(ISNUMBER($C10), SUMIFS(Datenblatt!$M:$M, Datenblatt!$G:$G,$C10, Datenblatt!$R:$R,">="&BD$8,Datenblatt!$R:$R,"<="&EOMONTH(BD$8,0)) - SUMIFS(Datenblatt!$M:$M, Datenblatt!$E:$E,$C10, Datenblatt!$R:$R,">="&BD$8,Datenblatt!$R:$R,"<="&EOMONTH(BD$8,0)), "") -> 134 | BE10: =IF(ISNUMBER($C10), SUMIFS(Datenblatt!$M:$M, Datenblatt!$G:$G,$C10, Datenblatt!$R:$R,">="&BE$8,Datenblatt!$R:$R,"<="&EOMONTH(BE$8,0)) - SUMIFS(Datenblatt!$M:$M, Datenblatt!$E:$E,$C10, Datenblatt!$R:$R,">="&BE$8,Datenblatt!$R:$R,"<="&EOMONTH(BE$8,0)), "") -> 40 | BF10: =IF(ISNUMBER($C10), SUMIFS(Datenblatt!$M:$M, Datenblatt!$G:$G,$C10, Datenblatt!$R:$R,">="&BF$8,Datenblatt!$R:$R,"<="&EOMONTH(BF$8,0)) - SUMIFS(Datenblatt!$M:$M, Datenblatt!$E:$E,$C10, Datenblatt!$R:$R,">="&BF$8,Datenblatt!$R:$R,"<="&EOMONTH(BF$8,0)), "") -> 113 | BG10: =IF(ISNUMBER($C10), SUMIFS(Datenblatt!$M:$M, Datenblatt!$G:$G,$C10, Datenblatt!$R:$R,">="&BG$8,Datenblatt!$R:$R,"<="&EOMONTH(BG$8,0)) - SUMIFS(Datenblatt!$M:$M, Datenblatt!$E:$E,$C10, Datenblatt!$R:$R,">="&BG$8,Datenblatt!$R:$R,"<="&EOMONTH(BG$8,0)), "") -> 293 | BH10: =IF(ISNUMBER($C10), SUMIFS(Datenblatt!$M:$M, Datenblatt!$G:$G,$C10, Datenblatt!$R:$R,">="&BH$8,Datenblatt!$R:$R,"<="&EOMONTH(BH$8,0)) - SUMIFS(Datenblatt!$M:$M, Datenblatt!$E:$E,$C10, Datenblatt!$R:$R,">="&BH$8,Datenblatt!$R:$R,"<="&EOMONTH(BH$8,0)), "") -> 128 | BI10: =IF(ISNUMBER($C10), SUMIFS(Datenblatt!$M:$M, Datenblatt!$G:$G,$C10, Datenblatt!$R:$R,">="&BI$8,Datenblatt!$R:$R,"<="&EOMONTH(BI$8,0)) - SUMIFS(Datenblatt!$M:$M, Datenblatt!$E:$E,$C10, Datenblatt!$R:$R,">="&BI$8,Datenblatt!$R:$R,"<="&EOMONTH(BI$8,0)), "") -> 260 | BJ10: =IF(ISNUMBER($C10), SUMIFS(Datenblatt!$M:$M, Datenblatt!$G:$G,$C10, Datenblatt!$R:$R,">="&BJ$8,Datenblatt!$R:$R,"<="&EOMONTH(BJ$8,0)) - SUMIFS(Datenblatt!$M:$M, Datenblatt!$E:$E,$C10, Datenblatt!$R:$R,">="&BJ$8,Datenblatt!$R:$R,"<="&EOMONTH(BJ$8,0)), "") -> 79 | BK10: =IF(ISNUMBER($C10), SUMIFS(Datenblatt!$M:$M, Datenblatt!$G:$G,$C10, Datenblatt!$R:$R,">="&BK$8,Datenblatt!$R:$R,"<="&EOMONTH(BK$8,0)) - SUMIFS(Datenblatt!$M:$M, Datenblatt!$E:$E,$C10, Datenblatt!$R:$R,">="&BK$8,Datenblatt!$R:$R,"<="&EOMONTH(BK$8,0)), "") -> 493 | BL10: =IF(ISNUMBER($C10), SUMIFS(Datenblatt!$M:$M, Datenblatt!$G:$G,$C10, Datenblatt!$R:$R,">="&BL$8,Datenblatt!$R:$R,"<="&EOMONTH(BL$8,0)) - SUMIFS(Datenblatt!$M:$M, Datenblatt!$E:$E,$C10, Datenblatt!$R:$R,">="&BL$8,Datenblatt!$R:$R,"<="&EOMONTH(BL$8,0)), "") -> 236 | BM10: =IF(ISNUMBER($C10), SUMIFS(Datenblatt!$M:$M, Datenblatt!$G:$G,$C10, Datenblatt!$R:$R,">="&BM$8,Datenblatt!$R:$R,"<="&EOMONTH(BM$8,0)) - SUMIFS(Datenblatt!$M:$M, Datenblatt!$E:$E,$C10, Datenblatt!$R:$R,">="&BM$8,Datenblatt!$R:$R,"<="&EOMONTH(BM$8,0)), "") -> 105 | BN10: =IF(ISNUMBER($C10), SUMIFS(Datenblatt!$M:$M, Datenblatt!$G:$G,$C10, Datenblatt!$R:$R,">="&BN$8,Datenblatt!$R:$R,"<="&EOMONTH(BN$8,0)) - SUMIFS(Datenblatt!$M:$M, Datenblatt!$E:$E,$C10, Datenblatt!$R:$R,">="&BN$8,Datenblatt!$R:$R,"<="&EOMONTH(BN$8,0)), "") -> 42 | BO10: =IF(ISNUMBER($C10), SUMIFS(Datenblatt!$M:$M, Datenblatt!$G:$G,$C10, Datenblatt!$R:$R,">="&BO$8,Datenblatt!$R:$R,"<="&EOMONTH(BO$8,0)) - SUMIFS(Datenblatt!$M:$M, Datenblatt!$E:$E,$C10, Datenblatt!$R:$R,">="&BO$8,Datenblatt!$R:$R,"<="&EOMONTH(BO$8,0)), "") -> 250 | BP10: =IF(ISNUMBER($C10), SUMIFS(Datenblatt!$M:$M, Datenblatt!$G:$G,$C10, Datenblatt!$R:$R,">="&BP$8,Datenblatt!$R:$R,"<="&EOMONTH(BP$8,0)) - SUMIFS(Datenblatt!$M:$M, Datenblatt!$E:$E,$C10, Datenblatt!$R:$R,">="&BP$8,Datenblatt!$R:$R,"<="&EOMONTH(BP$8,0)), "") -> 288 | BQ10: =IF(ISNUMBER($C10), SUMIFS(Datenblatt!$M:$M, Datenblatt!$G:$G,$C10, Datenblatt!$R:$R,">="&BQ$8,Datenblatt!$R:$R,"<="&EOMONTH(BQ$8,0)) - SUMIFS(Datenblatt!$M:$M, Datenblatt!$E:$E,$C10, Datenblatt!$R:$R,">="&BQ$8,Datenblatt!$R:$R,"<="&EOMONTH(BQ$8,0)), "") -> 412 | BR10: =IF(ISNUMBER($C10), SUMIFS(Datenblatt!$M:$M, Datenblatt!$G:$G,$C10, Datenblatt!$R:$R,">="&BR$8,Datenblatt!$R:$R,"<="&EOMONTH(BR$8,0)) - SUMIFS(Datenblatt!$M:$M, Datenblatt!$E:$E,$C10, Datenblatt!$R:$R,">="&BR$8,Datenblatt!$R:$R,"<="&EOMONTH(BR$8,0)), "") -> 344 | BS10: =IF(ISNUMBER($C10), SUMIFS(Datenblatt!$M:$M, Datenblatt!$G:$G,$C10, Datenblatt!$R:$R,">="&BS$8,Datenblatt!$R:$R,"<="&EOMONTH(BS$8,0)) - SUMIFS(Datenblatt!$M:$M, Datenblatt!$E:$E,$C10, Datenblatt!$R:$R,">="&BS$8,Datenblatt!$R:$R,"<="&EOMONTH(BS$8,0)), "") -> 350 | BT10: =IF(ISNUMBER($C10), SUMIFS(Datenblatt!$M:$M, Datenblatt!$G:$G,$C10, Datenblatt!$R:$R,">="&BT$8,Datenblatt!$R:$R,"<="&EOMONTH(BT$8,0)) - SUMIFS(Datenblatt!$M:$M, Datenblatt!$E:$E,$C10, Datenblatt!$R:$R,">="&BT$8,Datenblatt!$R:$R,"<="&EOMONTH(BT$8,0)), "") -> 267 | BU10: =IF(ISNUMBER($C10), SUMIFS(Datenblatt!$M:$M, Datenblatt!$G:$G,$C10, Datenblatt!$R:$R,">="&BU$8,Datenblatt!$R:$R,"<="&EOMONTH(BU$8,0)) - SUMIFS(Datenblatt!$M:$M, Datenblatt!$E:$E,$C10, Datenblatt!$R:$R,">="&BU$8,Datenblatt!$R:$R,"<="&EOMONTH(BU$8,0)), "") -> 937 | BV10: =IF(ISNUMBER($C10), SUMIFS(Datenblatt!$M:$M, Datenblatt!$G:$G,$C10, Datenblatt!$R:$R,">="&BV$8,Datenblatt!$R:$R,"<="&EOMONTH(BV$8,0)) - SUMIFS(Datenblatt!$M:$M, Datenblatt!$E:$E,$C10, Datenblatt!$R:$R,">="&BV$8,Datenblatt!$R:$R,"<="&EOMONTH(BV$8,0)), "") -> 301 | BW10: =IF(ISNUMBER($C10), SUMIFS(Datenblatt!$M:$M, Datenblatt!$G:$G,$C10, Datenblatt!$R:$R,">="&BW$8,Datenblatt!$R:$R,"<="&EOMONTH(BW$8,0)) - SUMIFS(Datenblatt!$M:$M, Datenblatt!$E:$E,$C10, Datenblatt!$R:$R,">="&BW$8,Datenblatt!$R:$R,"<="&EOMONTH(BW$8,0)), "") -> 769 | BX10: =IF(ISNUMBER($C10), SUMIFS(Datenblatt!$M:$M, Datenblatt!$G:$G,$C10, Datenblatt!$R:$R,">="&BX$8,Datenblatt!$R:$R,"<="&EOMONTH(BX$8,0)) - SUMIFS(Datenblatt!$M:$M, Datenblatt!$E:$E,$C10, Datenblatt!$R:$R,">="&BX$8,Datenblatt!$R:$R,"<="&EOMONTH(BX$8,0)), "") -> 300 | BY10: =IF(ISNUMBER($C10), SUMIFS(Datenblatt!$M:$M, Datenblatt!$G:$G,$C10, Datenblatt!$R:$R,">="&BY$8,Datenblatt!$R:$R,"<="&EOMONTH(BY$8,0)) - SUMIFS(Datenblatt!$M:$M, Datenblatt!$E:$E,$C10, Datenblatt!$R:$R,">="&BY$8,Datenblatt!$R:$R,"<="&EOMONTH(BY$8,0)), "") -> 401 | BZ10: =IF(ISNUMBER($C10), SUMIFS(Datenblatt!$M:$M, Datenblatt!$G:$G,$C10, Datenblatt!$R:$R,">="&BZ$8,Datenblatt!$R:$R,"<="&EOMONTH(BZ$8,0)) - SUMIFS(Datenblatt!$M:$M, Datenblatt!$E:$E,$C10, Datenblatt!$R:$R,">="&BZ$8,Datenblatt!$R:$R,"<="&EOMONTH(BZ$8,0)), "") -> 420 | CA10: =IF(ISNUMBER($C10), SUMIFS(Datenblatt!$M:$M, Datenblatt!$G:$G,$C10, Datenblatt!$R:$R,">="&CA$8,Datenblatt!$R:$R,"<="&EOMONTH(CA$8,0)) - SUMIFS(Datenblatt!$M:$M, Datenblatt!$E:$E,$C10, Datenblatt!$R:$R,">="&CA$8,Datenblatt!$R:$R,"<="&EOMONTH(CA$8,0)), "") -> 317 | CB10: =IF(ISNUMBER($C10), SUMIFS(Datenblatt!$M:$M, Datenblatt!$G:$G,$C10, Datenblatt!$R:$R,">="&CB$8,Datenblatt!$R:$R,"<="&EOMONTH(CB$8,0)) - SUMIFS(Datenblatt!$M:$M, Datenblatt!$E:$E,$C10, Datenblatt!$R:$R,">="&CB$8,Datenblatt!$R:$R,"<="&EOMONTH(CB$8,0)), "") -> 289 | CC10: =IF(ISNUMBER($C10), SUMIFS(Datenblatt!$M:$M, Datenblatt!$G:$G,$C10, Datenblatt!$R:$R,">="&CC$8,Datenblatt!$R:$R,"<="&EOMONTH(CC$8,0)) - SUMIFS(Datenblatt!$M:$M, Datenblatt!$E:$E,$C10, Datenblatt!$R:$R,">="&CC$8,Datenblatt!$R:$R,"<="&EOMONTH(CC$8,0)), "") -> 393 | CD10: =IF(ISNUMBER($C10), SUMIFS(Datenblatt!$M:$M, Datenblatt!$G:$G,$C10, Datenblatt!$R:$R,">="&CD$8,Datenblatt!$R:$R,"<="&EOMONTH(CD$8,0)) - SUMIFS(Datenblatt!$M:$M, Datenblatt!$E:$E,$C10, Datenblatt!$R:$R,">="&CD$8,Datenblatt!$R:$R,"<="&EOMONTH(CD$8,0)), "") -> 144 | CE10: =IF(ISNUMBER($C10), SUMIFS(Datenblatt!$M:$M, Datenblatt!$G:$G,$C10, Datenblatt!$R:$R,">="&CE$8,Datenblatt!$R:$R,"<="&EOMONTH(CE$8,0)) - SUMIFS(Datenblatt!$M:$M, Datenblatt!$E:$E,$C10, Datenblatt!$R:$R,">="&CE$8,Datenblatt!$R:$R,"<="&EOMONTH(CE$8,0)), "") -> 178 | CF10: =IF(ISNUMBER($C10), SUMIFS(Datenblatt!$M:$M, Datenblatt!$G:$G,$C10, Datenblatt!$R:$R,">="&CF$8,Datenblatt!$R:$R,"<="&EOMONTH(CF$8,0)) - SUMIFS(Datenblatt!$M:$M, Datenblatt!$E:$E,$C10, Datenblatt!$R:$R,">="&CF$8,Datenblatt!$R:$R,"<="&EOMONTH(CF$8,0)), "") -> 77 | CG10: =IF(ISNUMBER($C10), SUMIFS(Datenblatt!$M:$M, Datenblatt!$G:$G,$C10, Datenblatt!$R:$R,">="&CG$8,Datenblatt!$R:$R,"<="&EOMONTH(CG$8,0)) - SUMIFS(Datenblatt!$M:$M, Datenblatt!$E:$E,$C10, Datenblatt!$R:$R,">="&CG$8,Datenblatt!$R:$R,"<="&EOMONTH(CG$8,0)), "") -> 0 | CH10: =IF(ISNUMBER($C10), SUMIFS(Datenblatt!$M:$M, Datenblatt!$G:$G,$C10, Datenblatt!$R:$R,">="&CH$8,Datenblatt!$R:$R,"<="&EOMONTH(CH$8,0)) - SUMIFS(Datenblatt!$M:$M, Datenblatt!$E:$E,$C10, Datenblatt!$R:$R,">="&CH$8,Datenblatt!$R:$R,"<="&EOMONTH(CH$8,0)), "") -> 279 | CI10: =IF(ISNUMBER($C10), SUMIFS(Datenblatt!$M:$M, Datenblatt!$G:$G,$C10, Datenblatt!$R:$R,">="&CI$8,Datenblatt!$R:$R,"<="&EOMONTH(CI$8,0)) - SUMIFS(Datenblatt!$M:$M, Datenblatt!$E:$E,$C10, Datenblatt!$R:$R,">="&CI$8,Datenblatt!$R:$R,"<="&EOMONTH(CI$8,0)), "") -> 0 | CJ10: =IF(ISNUMBER($C10), SUMIFS(Datenblatt!$M:$M, Datenblatt!$G:$G,$C10, Datenblatt!$R:$R,">="&CJ$8,Datenblatt!$R:$R,"<="&EOMONTH(CJ$8,0)) - SUMIFS(Datenblatt!$M:$M, Datenblatt!$E:$E,$C10, Datenblatt!$R:$R,">="&CJ$8,Datenblatt!$R:$R,"<="&EOMONTH(CJ$8,0)), "") -> 0 | CK10: =IF(ISNUMBER($C10), SUMIFS(Datenblatt!$M:$M, Datenblatt!$G:$G,$C10, Datenblatt!$R:$R,">="&CK$8,Datenblatt!$R:$R,"<="&EOMONTH(CK$8,0)) - SUMIFS(Datenblatt!$M:$M, Datenblatt!$E:$E,$C10, Datenblatt!$R:$R,">="&CK$8,Datenblatt!$R:$R,"<="&EOMONTH(CK$8,0)), "") -> 0 | CL10: =IF(ISNUMBER($C10), SUMIFS(Datenblatt!$M:$M, Datenblatt!$G:$G,$C10, Datenblatt!$R:$R,">="&CL$8,Datenblatt!$R:$R,"<="&EOMONTH(CL$8,0)) - SUMIFS(Datenblatt!$M:$M, Datenblatt!$E:$E,$C10, Datenblatt!$R:$R,">="&CL$8,Datenblatt!$R:$R,"<="&EOMONTH(CL$8,0)), "") -> 0 | CM10: =IF(ISNUMBER($C10), SUMIFS(Datenblatt!$M:$M, Datenblatt!$G:$G,$C10, Datenblatt!$R:$R,">="&CM$8,Datenblatt!$R:$R,"<="&EOMONTH(CM$8,0)) - SUMIFS(Datenblatt!$M:$M, Datenblatt!$E:$E,$C10, Datenblatt!$R:$R,">="&CM$8,Datenblatt!$R:$R,"<="&EOMONTH(CM$8,0)), "") -> 0 | CN10: =IF(ISNUMBER($C10), SUMIFS(Datenblatt!$M:$M, Datenblatt!$G:$G,$C10, Datenblatt!$R:$R,">="&CN$8,Datenblatt!$R:$R,"<="&EOMONTH(CN$8,0)) - SUMIFS(Datenblatt!$M:$M, Datenblatt!$E:$E,$C10, Datenblatt!$R:$R,">="&CN$8,Datenblatt!$R:$R,"<="&EOMONTH(CN$8,0)), "") -> 0 | CO10: =IF(ISNUMBER($C10), SUMIFS(Datenblatt!$M:$M, Datenblatt!$G:$G,$C10, Datenblatt!$R:$R,">="&CO$8,Datenblatt!$R:$R,"<="&EOMONTH(CO$8,0)) - SUMIFS(Datenblatt!$M:$M, Datenblatt!$E:$E,$C10, Datenblatt!$R:$R,">="&CO$8,Datenblatt!$R:$R,"<="&EOMONTH(CO$8,0)), "") -> 0 | CP10: =IF(ISNUMBER($C10), SUMIFS(Datenblatt!$M:$M, Datenblatt!$G:$G,$C10, Datenblatt!$R:$R,">="&CP$8,Datenblatt!$R:$R,"<="&EOMONTH(CP$8,0)) - SUMIFS(Datenblatt!$M:$M, Datenblatt!$E:$E,$C10, Datenblatt!$R:$R,">="&CP$8,Datenblatt!$R:$R,"<="&EOMONTH(CP$8,0)), "") -> 0 | CQ10: =IF(ISNUMBER($C10), SUMIFS(Datenblatt!$M:$M, Datenblatt!$G:$G,$C10, Datenblatt!$R:$R,">="&CQ$8,Datenblatt!$R:$R,"<="&EOMONTH(CQ$8,0)) - SUMIFS(Datenblatt!$M:$M, Datenblatt!$E:$E,$C10, Datenblatt!$R:$R,">="&CQ$8,Datenblatt!$R:$R,"<="&EOMONTH(CQ$8,0)), "") -> 0 | CR10: =IF(ISNUMBER($C10), SUMIFS(Datenblatt!$M:$M, Datenblatt!$G:$G,$C10, Datenblatt!$R:$R,">="&CR$8,Datenblatt!$R:$R,"<="&EOMONTH(CR$8,0)) - SUMIFS(Datenblatt!$M:$M, Datenblatt!$E:$E,$C10, Datenblatt!$R:$R,">="&CR$8,Datenblatt!$R:$R,"<="&EOMONTH(CR$8,0)), "") -> 0 | CS10: =IF(ISNUMBER($C10), SUMIFS(Datenblatt!$M:$M, Datenblatt!$G:$G,$C10, Datenblatt!$R:$R,">="&CS$8,Datenblatt!$R:$R,"<="&EOMONTH(CS$8,0)) - SUMIFS(Datenblatt!$M:$M, Datenblatt!$E:$E,$C10, Datenblatt!$R:$R,">="&CS$8,Datenblatt!$R:$R,"<="&EOMONTH(CS$8,0)), "") -> 0 | CT10: =IF(ISNUMBER($C10), SUMIFS(Datenblatt!$M:$M, Datenblatt!$G:$G,$C10, Datenblatt!$R:$R,">="&CT$8,Datenblatt!$R:$R,"<="&EOMONTH(CT$8,0)) - SUMIFS(Datenblatt!$M:$M, Datenblatt!$E:$E,$C10, Datenblatt!$R:$R,">="&CT$8,Datenblatt!$R:$R,"<="&EOMONTH(CT$8,0)), "") -> 0 | CU10: =IF(ISNUMBER($C10), SUMIFS(Datenblatt!$M:$M, Datenblatt!$G:$G,$C10, Datenblatt!$R:$R,">="&CU$8,Datenblatt!$R:$R,"<="&EOMONTH(CU$8,0)) - SUMIFS(Datenblatt!$M:$M, Datenblatt!$E:$E,$C10, Datenblatt!$R:$R,">="&CU$8,Datenblatt!$R:$R,"<="&EOMONTH(CU$8,0)), "") -> 0 | CV10: =IF(ISNUMBER($C10), SUMIFS(Datenblatt!$M:$M, Datenblatt!$G:$G,$C10, Datenblatt!$R:$R,">="&CV$8,Datenblatt!$R:$R,"<="&EOMONTH(CV$8,0)) - SUMIFS(Datenblatt!$M:$M, Datenblatt!$E:$E,$C10, Datenblatt!$R:$R,">="&CV$8,Datenblatt!$R:$R,"<="&EOMONTH(CV$8,0)), "") -> 0 | CW10: =IF(ISNUMBER($C10), SUMIFS(Datenblatt!$M:$M, Datenblatt!$G:$G,$C10, Datenblatt!$R:$R,">="&CW$8,Datenblatt!$R:$R,"<="&EOMONTH(CW$8,0)) - SUMIFS(Datenblatt!$M:$M, Datenblatt!$E:$E,$C10, Datenblatt!$R:$R,">="&CW$8,Datenblatt!$R:$R,"<="&EOMONTH(CW$8,0)), "") -> 0 | CX10: =IF(ISNUMBER($C10), SUMIFS(Datenblatt!$M:$M, Datenblatt!$G:$G,$C10, Datenblatt!$R:$R,">="&CX$8,Datenblatt!$R:$R,"<="&EOMONTH(CX$8,0)) - SUMIFS(Datenblatt!$M:$M, Datenblatt!$E:$E,$C10, Datenblatt!$R:$R,">="&CX$8,Datenblatt!$R:$R,"<="&EOMONTH(CX$8,0)), "") -> 0 | CY10: =IF(ISNUMBER($C10), SUMIFS(Datenblatt!$M:$M, Datenblatt!$G:$G,$C10, Datenblatt!$R:$R,">="&CY$8,Datenblatt!$R:$R,"<="&EOMONTH(CY$8,0)) - SUMIFS(Datenblatt!$M:$M, Datenblatt!$E:$E,$C10, Datenblatt!$R:$R,">="&CY$8,Datenblatt!$R:$R,"<="&EOMONTH(CY$8,0)), "") -> 0 | CZ10: =IF(ISNUMBER($C10), SUMIFS(Datenblatt!$M:$M, Datenblatt!$G:$G,$C10, Datenblatt!$R:$R,">="&CZ$8,Datenblatt!$R:$R,"<="&EOMONTH(CZ$8,0)) - SUMIFS(Datenblatt!$M:$M, Datenblatt!$E:$E,$C10, Datenblatt!$R:$R,">="&CZ$8,Datenblatt!$R:$R,"<="&EOMONTH(CZ$8,0)), "") -> 0 | DA10: =IF(ISNUMBER($C10), SUMIFS(Datenblatt!$M:$M, Datenblatt!$G:$G,$C10, Datenblatt!$R:$R,">="&DA$8,Datenblatt!$R:$R,"<="&EOMONTH(DA$8,0)) - SUMIFS(Datenblatt!$M:$M, Datenblatt!$E:$E,$C10, Datenblatt!$R:$R,">="&DA$8,Datenblatt!$R:$R,"<="&EOMONTH(DA$8,0)), "") -> 0 | DB10: =IF(ISNUMBER($C10), SUMIFS(Datenblatt!$M:$M, Datenblatt!$G:$G,$C10, Datenblatt!$R:$R,">="&DB$8,Datenblatt!$R:$R,"<="&EOMONTH(DB$8,0)) - SUMIFS(Datenblatt!$M:$M, Datenblatt!$E:$E,$C10, Datenblatt!$R:$R,">="&DB$8,Datenblatt!$R:$R,"<="&EOMONTH(DB$8,0)), "") -> 0 | DC10: =IF(ISNUMBER($C10), SUMIFS(Datenblatt!$M:$M, Datenblatt!$G:$G,$C10, Datenblatt!$R:$R,">="&DC$8,Datenblatt!$R:$R,"<="&EOMONTH(DC$8,0)) - SUMIFS(Datenblatt!$M:$M, Datenblatt!$E:$E,$C10, Datenblatt!$R:$R,">="&DC$8,Datenblatt!$R:$R,"<="&EOMONTH(DC$8,0)), "") -> 0 | DD10: =IF(ISNUMBER($C10), SUMIFS(Datenblatt!$M:$M, Datenblatt!$G:$G,$C10, Datenblatt!$R:$R,">="&DD$8,Datenblatt!$R:$R,"<="&EOMONTH(DD$8,0)) - SUMIFS(Datenblatt!$M:$M, Datenblatt!$E:$E,$C10, Datenblatt!$R:$R,">="&DD$8,Datenblatt!$R:$R,"<="&EOMONTH(DD$8,0)), "") -> 0 | DE10: =IF(ISNUMBER($C10), SUMIFS(Datenblatt!$M:$M, Datenblatt!$G:$G,$C10, Datenblatt!$R:$R,">="&DE$8,Datenblatt!$R:$R,"<="&EOMONTH(DE$8,0)) - SUMIFS(Datenblatt!$M:$M, Datenblatt!$E:$E,$C10, Datenblatt!$R:$R,">="&DE$8,Datenblatt!$R:$R,"<="&EOMONTH(DE$8,0)), "") -> 0 | DF10: =IF(ISNUMBER($C10), SUMIFS(Datenblatt!$M:$M, Datenblatt!$G:$G,$C10, Datenblatt!$R:$R,">="&DF$8,Datenblatt!$R:$R,"<="&EOMONTH(DF$8,0)) - SUMIFS(Datenblatt!$M:$M, Datenblatt!$E:$E,$C10, Datenblatt!$R:$R,">="&DF$8,Datenblatt!$R:$R,"<="&EOMONTH(DF$8,0)), "") -> 0
B11: Ertrag | C11: 3200 | D11: Handelserlöse | G11: =IF(ISNUMBER($C11), SUMIFS(Datenblatt!$M:$M, Datenblatt!$G:$G,$C11, Datenblatt!$R:$R,">="&G$8,Datenblatt!$R:$R,"<="&EOMONTH(G$8,11)) - SUMIFS(Datenblatt!$M:$M, Datenblatt!$E:$E,$C11, Datenblatt!$R:$R,">="&G$8,Datenblatt!$R:$R,"<="&EOMONTH(G$8,11)), "") -> 1944.65454 | H11: =IF(ISNUMBER($C11), SUMIFS(Datenblatt!$M:$M, Datenblatt!$G:$G,$C11, Datenblatt!$R:$R,">="&H$8,Datenblatt!$R:$R,"<="&EOMONTH(H$8,11)) - SUMIFS(Datenblatt!$M:$M, Datenblatt!$E:$E,$C11, Datenblatt!$R:$R,">="&H$8,Datenblatt!$R:$R,"<="&EOMONTH(H$8,11)), "") -> 2272 | I11: =IF(ISNUMBER($C11), SUMIFS(Datenblatt!$M:$M, Datenblatt!$G:$G,$C11, Datenblatt!$R:$R,">="&I$8,Datenblatt!$R:$R,"<="&EOMONTH(I$8,11)) - SUMIFS(Datenblatt!$M:$M, Datenblatt!$E:$E,$C11, Datenblatt!$R:$R,">="&I$8,Datenblatt!$R:$R,"<="&EOMONTH(I$8,11)), "") -> 2405 | J11: =IF(ISNUMBER($C11), SUMIFS(Datenblatt!$M:$M, Datenblatt!$G:$G,$C11, Datenblatt!$R:$R,">="&J$8,Datenblatt!$R:$R,"<="&EOMONTH(J$8,11)) - SUMIFS(Datenblatt!$M:$M, Datenblatt!$E:$E,$C11, Datenblatt!$R:$R,">="&J$8,Datenblatt!$R:$R,"<="&EOMONTH(J$8,11)), "") -> 2677 | K11: =IF(ISNUMBER($C11), SUMIFS(Datenblatt!$M:$M, Datenblatt!$G:$G,$C11, Datenblatt!$R:$R,">="&K$8,Datenblatt!$R:$R,"<="&EOMONTH(K$8,11)) - SUMIFS(Datenblatt!$M:$M, Datenblatt!$E:$E,$C11, Datenblatt!$R:$R,">="&K$8,Datenblatt!$R:$R,"<="&EOMONTH(K$8,11)), "") -> 2982 | L11: =IF(ISNUMBER($C11), SUMIFS(Datenblatt!$M:$M, Datenblatt!$G:$G,$C11, Datenblatt!$R:$R,">="&L$8,Datenblatt!$R:$R,"<="&EOMONTH(L$8,11)) - SUMIFS(Datenblatt!$M:$M, Datenblatt!$E:$E,$C11, Datenblatt!$R:$R,">="&L$8,Datenblatt!$R:$R,"<="&EOMONTH(L$8,11)), "") -> 3082 | M11: =IF(ISNUMBER($C11), SUMIFS(Datenblatt!$M:$M, Datenblatt!$G:$G,$C11, Datenblatt!$R:$R,">="&M$8,Datenblatt!$R:$R,"<="&EOMONTH(M$8,11)) - SUMIFS(Datenblatt!$M:$M, Datenblatt!$E:$E,$C11, Datenblatt!$R:$R,">="&M$8,Datenblatt!$R:$R,"<="&EOMONTH(M$8,11)), "") -> 0 | N11: =IF(ISNUMBER($C11), SUMIFS(Datenblatt!$M:$M, Datenblatt!$G:$G,$C11, Datenblatt!$R:$R,">="&N$8,Datenblatt!$R:$R,"<="&EOMONTH(N$8,11)) - SUMIFS(Datenblatt!$M:$M, Datenblatt!$E:$E,$C11, Datenblatt!$R:$R,">="&N$8,Datenblatt!$R:$R,"<="&EOMONTH(N$8,11)), "") -> 0 | O11: =IF(ISNUMBER($C11), SUMIFS(Datenblatt!$M:$M, Datenblatt!$G:$G,$C11, Datenblatt!$R:$R,">="&O$8,Datenblatt!$R:$R,"<="&EOMONTH(O$8,0)) - SUMIFS(Datenblatt!$M:$M, Datenblatt!$E:$E,$C11, Datenblatt!$R:$R,">="&O$8,Datenblatt!$R:$R,"<="&EOMONTH(O$8,0)), "") -> 294.6545405 | P11: =IF(ISNUMBER($C11), SUMIFS(Datenblatt!$M:$M, Datenblatt!$G:$G,$C11, Datenblatt!$R:$R,">="&P$8,Datenblatt!$R:$R,"<="&EOMONTH(P$8,0)) - SUMIFS(Datenblatt!$M:$M, Datenblatt!$E:$E,$C11, Datenblatt!$R:$R,">="&P$8,Datenblatt!$R:$R,"<="&EOMONTH(P$8,0)), "") -> 405 | Q11: =IF(ISNUMBER($C11), SUMIFS(Datenblatt!$M:$M, Datenblatt!$G:$G,$C11, Datenblatt!$R:$R,">="&Q$8,Datenblatt!$R:$R,"<="&EOMONTH(Q$8,0)) - SUMIFS(Datenblatt!$M:$M, Datenblatt!$E:$E,$C11, Datenblatt!$R:$R,">="&Q$8,Datenblatt!$R:$R,"<="&EOMONTH(Q$8,0)), "") -> 246 | R11: =IF(ISNUMBER($C11), SUMIFS(Datenblatt!$M:$M, Datenblatt!$G:$G,$C11, Datenblatt!$R:$R,">="&R$8,Datenblatt!$R:$R,"<="&EOMONTH(R$8,0)) - SUMIFS(Datenblatt!$M:$M, Datenblatt!$E:$E,$C11, Datenblatt!$R:$R,">="&R$8,Datenblatt!$R:$R,"<="&EOMONTH(R$8,0)), "") -> 27 | S11: =IF(ISNUMBER($C11), SUMIFS(Datenblatt!$M:$M, Datenblatt!$G:$G,$C11, Datenblatt!$R:$R,">="&S$8,Datenblatt!$R:$R,"<="&EOMONTH(S$8,0)) - SUMIFS(Datenblatt!$M:$M, Datenblatt!$E:$E,$C11, Datenblatt!$R:$R,">="&S$8,Datenblatt!$R:$R,"<="&EOMONTH(S$8,0)), "") -> 190 | T11: =IF(ISNUMBER($C11), SUMIFS(Datenblatt!$M:$M, Datenblatt!$G:$G,$C11, Datenblatt!$R:$R,">="&T$8,Datenblatt!$R:$R,"<="&EOMONTH(T$8,0)) - SUMIFS(Datenblatt!$M:$M, Datenblatt!$E:$E,$C11, Datenblatt!$R:$R,">="&T$8,Datenblatt!$R:$R,"<="&EOMONTH(T$8,0)), "") -> 47 | U11: =IF(ISNUMBER($C11), SUMIFS(Datenblatt!$M:$M, Datenblatt!$G:$G,$C11, Datenblatt!$R:$R,">="&U$8,Datenblatt!$R:$R,"<="&EOMONTH(U$8,0)) - SUMIFS(Datenblatt!$M:$M, Datenblatt!$E:$E,$C11, Datenblatt!$R:$R,">="&U$8,Datenblatt!$R:$R,"<="&EOMONTH(U$8,0)), "") -> 303 | V11: =IF(ISNUMBER($C11), SUMIFS(Datenblatt!$M:$M, Datenblatt!$G:$G,$C11, Datenblatt!$R:$R,">="&V$8,Datenblatt!$R:$R,"<="&EOMONTH(V$8,0)) - SUMIFS(Datenblatt!$M:$M, Datenblatt!$E:$E,$C11, Datenblatt!$R:$R,">="&V$8,Datenblatt!$R:$R,"<="&EOMONTH(V$8,0)), "") -> 186 | W11: =IF(ISNUMBER($C11), SUMIFS(Datenblatt!$M:$M, Datenblatt!$G:$G,$C11, Datenblatt!$R:$R,">="&W$8,Datenblatt!$R:$R,"<="&EOMONTH(W$8,0)) - SUMIFS(Datenblatt!$M:$M, Datenblatt!$E:$E,$C11, Datenblatt!$R:$R,">="&W$8,Datenblatt!$R:$R,"<="&EOMONTH(W$8,0)), "") -> 27 | X11: =IF(ISNUMBER($C11), SUMIFS(Datenblatt!$M:$M, Datenblatt!$G:$G,$C11, Datenblatt!$R:$R,">="&X$8,Datenblatt!$R:$R,"<="&EOMONTH(X$8,0)) - SUMIFS(Datenblatt!$M:$M, Datenblatt!$E:$E,$C11, Datenblatt!$R:$R,">="&X$8,Datenblatt!$R:$R,"<="&EOMONTH(X$8,0)), "") -> 51 | Y11: =IF(ISNUMBER($C11), SUMIFS(Datenblatt!$M:$M, Datenblatt!$G:$G,$C11, Datenblatt!$R:$R,">="&Y$8,Datenblatt!$R:$R,"<="&EOMONTH(Y$8,0)) - SUMIFS(Datenblatt!$M:$M, Datenblatt!$E:$E,$C11, Datenblatt!$R:$R,">="&Y$8,Datenblatt!$R:$R,"<="&EOMONTH(Y$8,0)), "") -> 131 | Z11: =IF(ISNUMBER($C11), SUMIFS(Datenblatt!$M:$M, Datenblatt!$G:$G,$C11, Datenblatt!$R:$R,">="&Z$8,Datenblatt!$R:$R,"<="&EOMONTH(Z$8,0)) - SUMIFS(Datenblatt!$M:$M, Datenblatt!$E:$E,$C11, Datenblatt!$R:$R,">="&Z$8,Datenblatt!$R:$R,"<="&EOMONTH(Z$8,0)), "") -> 37 | AA11: =IF(ISNUMBER($C11), SUMIFS(Datenblatt!$M:$M, Datenblatt!$G:$G,$C11, Datenblatt!$R:$R,">="&AA$8,Datenblatt!$R:$R,"<="&EOMONTH(AA$8,0)) - SUMIFS(Datenblatt!$M:$M, Datenblatt!$E:$E,$C11, Datenblatt!$R:$R,">="&AA$8,Datenblatt!$R:$R,"<="&EOMONTH(AA$8,0)), "") -> 202 | AB11: =IF(ISNUMBER($C11), SUMIFS(Datenblatt!$M:$M, Datenblatt!$G:$G,$C11, Datenblatt!$R:$R,">="&AB$8,Datenblatt!$R:$R,"<="&EOMONTH(AB$8,0)) - SUMIFS(Datenblatt!$M:$M, Datenblatt!$E:$E,$C11, Datenblatt!$R:$R,">="&AB$8,Datenblatt!$R:$R,"<="&EOMONTH(AB$8,0)), "") -> 266 | AC11: =IF(ISNUMBER($C11), SUMIFS(Datenblatt!$M:$M, Datenblatt!$G:$G,$C11, Datenblatt!$R:$R,">="&AC$8,Datenblatt!$R:$R,"<="&EOMONTH(AC$8,0)) - SUMIFS(Datenblatt!$M:$M, Datenblatt!$E:$E,$C11, Datenblatt!$R:$R,">="&AC$8,Datenblatt!$R:$R,"<="&EOMONTH(AC$8,0)), "") -> 127 | AD11: =IF(ISNUMBER($C11), SUMIFS(Datenblatt!$M:$M, Datenblatt!$G:$G,$C11, Datenblatt!$R:$R,">="&AD$8,Datenblatt!$R:$R,"<="&EOMONTH(AD$8,0)) - SUMIFS(Datenblatt!$M:$M, Datenblatt!$E:$E,$C11, Datenblatt!$R:$R,">="&AD$8,Datenblatt!$R:$R,"<="&EOMONTH(AD$8,0)), "") -> 177 | AE11: =IF(ISNUMBER($C11), SUMIFS(Datenblatt!$M:$M, Datenblatt!$G:$G,$C11, Datenblatt!$R:$R,">="&AE$8,Datenblatt!$R:$R,"<="&EOMONTH(AE$8,0)) - SUMIFS(Datenblatt!$M:$M, Datenblatt!$E:$E,$C11, Datenblatt!$R:$R,">="&AE$8,Datenblatt!$R:$R,"<="&EOMONTH(AE$8,0)), "") -> 297 | AF11: =IF(ISNUMBER($C11), SUMIFS(Datenblatt!$M:$M, Datenblatt!$G:$G,$C11, Datenblatt!$R:$R,">="&AF$8,Datenblatt!$R:$R,"<="&EOMONTH(AF$8,0)) - SUMIFS(Datenblatt!$M:$M, Datenblatt!$E:$E,$C11, Datenblatt!$R:$R,">="&AF$8,Datenblatt!$R:$R,"<="&EOMONTH(AF$8,0)), "") -> 125 | AG11: =IF(ISNUMBER($C11), SUMIFS(Datenblatt!$M:$M, Datenblatt!$G:$G,$C11, Datenblatt!$R:$R,">="&AG$8,Datenblatt!$R:$R,"<="&EOMONTH(AG$8,0)) - SUMIFS(Datenblatt!$M:$M, Datenblatt!$E:$E,$C11, Datenblatt!$R:$R,">="&AG$8,Datenblatt!$R:$R,"<="&EOMONTH(AG$8,0)), "") -> 210 | AH11: =IF(ISNUMBER($C11), SUMIFS(Datenblatt!$M:$M, Datenblatt!$G:$G,$C11, Datenblatt!$R:$R,">="&AH$8,Datenblatt!$R:$R,"<="&EOMONTH(AH$8,0)) - SUMIFS(Datenblatt!$M:$M, Datenblatt!$E:$E,$C11, Datenblatt!$R:$R,">="&AH$8,Datenblatt!$R:$R,"<="&EOMONTH(AH$8,0)), "") -> 68 | AI11: =IF(ISNUMBER($C11), SUMIFS(Datenblatt!$M:$M, Datenblatt!$G:$G,$C11, Datenblatt!$R:$R,">="&AI$8,Datenblatt!$R:$R,"<="&EOMONTH(AI$8,0)) - SUMIFS(Datenblatt!$M:$M, Datenblatt!$E:$E,$C11, Datenblatt!$R:$R,">="&AI$8,Datenblatt!$R:$R,"<="&EOMONTH(AI$8,0)), "") -> 174 | AJ11: =IF(ISNUMBER($C11), SUMIFS(Datenblatt!$M:$M, Datenblatt!$G:$G,$C11, Datenblatt!$R:$R,">="&AJ$8,Datenblatt!$R:$R,"<="&EOMONTH(AJ$8,0)) - SUMIFS(Datenblatt!$M:$M, Datenblatt!$E:$E,$C11, Datenblatt!$R:$R,">="&AJ$8,Datenblatt!$R:$R,"<="&EOMONTH(AJ$8,0)), "") -> 373 | AK11: =IF(ISNUMBER($C11), SUMIFS(Datenblatt!$M:$M, Datenblatt!$G:$G,$C11, Datenblatt!$R:$R,">="&AK$8,Datenblatt!$R:$R,"<="&EOMONTH(AK$8,0)) - SUMIFS(Datenblatt!$M:$M, Datenblatt!$E:$E,$C11, Datenblatt!$R:$R,">="&AK$8,Datenblatt!$R:$R,"<="&EOMONTH(AK$8,0)), "") -> 226 | AL11: =IF(ISNUMBER($C11), SUMIFS(Datenblatt!$M:$M, Datenblatt!$G:$G,$C11, Datenblatt!$R:$R,">="&AL$8,Datenblatt!$R:$R,"<="&EOMONTH(AL$8,0)) - SUMIFS(Datenblatt!$M:$M, Datenblatt!$E:$E,$C11, Datenblatt!$R:$R,">="&AL$8,Datenblatt!$R:$R,"<="&EOMONTH(AL$8,0)), "") -> 27 | AM11: =IF(ISNUMBER($C11), SUMIFS(Datenblatt!$M:$M, Datenblatt!$G:$G,$C11, Datenblatt!$R:$R,">="&AM$8,Datenblatt!$R:$R,"<="&EOMONTH(AM$8,0)) - SUMIFS(Datenblatt!$M:$M, Datenblatt!$E:$E,$C11, Datenblatt!$R:$R,">="&AM$8,Datenblatt!$R:$R,"<="&EOMONTH(AM$8,0)), "") -> 438 | AN11: =IF(ISNUMBER($C11), SUMIFS(Datenblatt!$M:$M, Datenblatt!$G:$G,$C11, Datenblatt!$R:$R,">="&AN$8,Datenblatt!$R:$R,"<="&EOMONTH(AN$8,0)) - SUMIFS(Datenblatt!$M:$M, Datenblatt!$E:$E,$C11, Datenblatt!$R:$R,">="&AN$8,Datenblatt!$R:$R,"<="&EOMONTH(AN$8,0)), "") -> 139 | AO11: =IF(ISNUMBER($C11), SUMIFS(Datenblatt!$M:$M, Datenblatt!$G:$G,$C11, Datenblatt!$R:$R,">="&AO$8,Datenblatt!$R:$R,"<="&EOMONTH(AO$8,0)) - SUMIFS(Datenblatt!$M:$M, Datenblatt!$E:$E,$C11, Datenblatt!$R:$R,">="&AO$8,Datenblatt!$R:$R,"<="&EOMONTH(AO$8,0)), "") -> 0 | AP11: =IF(ISNUMBER($C11), SUMIFS(Datenblatt!$M:$M, Datenblatt!$G:$G,$C11, Datenblatt!$R:$R,">="&AP$8,Datenblatt!$R:$R,"<="&EOMONTH(AP$8,0)) - SUMIFS(Datenblatt!$M:$M, Datenblatt!$E:$E,$C11, Datenblatt!$R:$R,">="&AP$8,Datenblatt!$R:$R,"<="&EOMONTH(AP$8,0)), "") -> 187 | AQ11: =IF(ISNUMBER($C11), SUMIFS(Datenblatt!$M:$M, Datenblatt!$G:$G,$C11, Datenblatt!$R:$R,">="&AQ$8,Datenblatt!$R:$R,"<="&EOMONTH(AQ$8,0)) - SUMIFS(Datenblatt!$M:$M, Datenblatt!$E:$E,$C11, Datenblatt!$R:$R,">="&AQ$8,Datenblatt!$R:$R,"<="&EOMONTH(AQ$8,0)), "") -> 106 | AR11: =IF(ISNUMBER($C11), SUMIFS(Datenblatt!$M:$M, Datenblatt!$G:$G,$C11, Datenblatt!$R:$R,">="&AR$8,Datenblatt!$R:$R,"<="&EOMONTH(AR$8,0)) - SUMIFS(Datenblatt!$M:$M, Datenblatt!$E:$E,$C11, Datenblatt!$R:$R,">="&AR$8,Datenblatt!$R:$R,"<="&EOMONTH(AR$8,0)), "") -> 74 | AS11: =IF(ISNUMBER($C11), SUMIFS(Datenblatt!$M:$M, Datenblatt!$G:$G,$C11, Datenblatt!$R:$R,">="&AS$8,Datenblatt!$R:$R,"<="&EOMONTH(AS$8,0)) - SUMIFS(Datenblatt!$M:$M, Datenblatt!$E:$E,$C11, Datenblatt!$R:$R,">="&AS$8,Datenblatt!$R:$R,"<="&EOMONTH(AS$8,0)), "") -> 182 | AT11: =IF(ISNUMBER($C11), SUMIFS(Datenblatt!$M:$M, Datenblatt!$G:$G,$C11, Datenblatt!$R:$R,">="&AT$8,Datenblatt!$R:$R,"<="&EOMONTH(AT$8,0)) - SUMIFS(Datenblatt!$M:$M, Datenblatt!$E:$E,$C11, Datenblatt!$R:$R,">="&AT$8,Datenblatt!$R:$R,"<="&EOMONTH(AT$8,0)), "") -> 370 | AU11: =IF(ISNUMBER($C11), SUMIFS(Datenblatt!$M:$M, Datenblatt!$G:$G,$C11, Datenblatt!$R:$R,">="&AU$8,Datenblatt!$R:$R,"<="&EOMONTH(AU$8,0)) - SUMIFS(Datenblatt!$M:$M, Datenblatt!$E:$E,$C11, Datenblatt!$R:$R,">="&AU$8,Datenblatt!$R:$R,"<="&EOMONTH(AU$8,0)), "") -> 238 | AV11: =IF(ISNUMBER($C11), SUMIFS(Datenblatt!$M:$M, Datenblatt!$G:$G,$C11, Datenblatt!$R:$R,">="&AV$8,Datenblatt!$R:$R,"<="&EOMONTH(AV$8,0)) - SUMIFS(Datenblatt!$M:$M, Datenblatt!$E:$E,$C11, Datenblatt!$R:$R,">="&AV$8,Datenblatt!$R:$R,"<="&EOMONTH(AV$8,0)), "") -> 165 | AW11: =IF(ISNUMBER($C11), SUMIFS(Datenblatt!$M:$M, Datenblatt!$G:$G,$C11, Datenblatt!$R:$R,">="&AW$8,Datenblatt!$R:$R,"<="&EOMONTH(AW$8,0)) - SUMIFS(Datenblatt!$M:$M, Datenblatt!$E:$E,$C11, Datenblatt!$R:$R,">="&AW$8,Datenblatt!$R:$R,"<="&EOMONTH(AW$8,0)), "") -> 252 | AX11: =IF(ISNUMBER($C11), SUMIFS(Datenblatt!$M:$M, Datenblatt!$G:$G,$C11, Datenblatt!$R:$R,">="&AX$8,Datenblatt!$R:$R,"<="&EOMONTH(AX$8,0)) - SUMIFS(Datenblatt!$M:$M, Datenblatt!$E:$E,$C11, Datenblatt!$R:$R,">="&AX$8,Datenblatt!$R:$R,"<="&EOMONTH(AX$8,0)), "") -> 254 | AY11: =IF(ISNUMBER($C11), SUMIFS(Datenblatt!$M:$M, Datenblatt!$G:$G,$C11, Datenblatt!$R:$R,">="&AY$8,Datenblatt!$R:$R,"<="&EOMONTH(AY$8,0)) - SUMIFS(Datenblatt!$M:$M, Datenblatt!$E:$E,$C11, Datenblatt!$R:$R,">="&AY$8,Datenblatt!$R:$R,"<="&EOMONTH(AY$8,0)), "") -> 319 | AZ11: =IF(ISNUMBER($C11), SUMIFS(Datenblatt!$M:$M, Datenblatt!$G:$G,$C11, Datenblatt!$R:$R,">="&AZ$8,Datenblatt!$R:$R,"<="&EOMONTH(AZ$8,0)) - SUMIFS(Datenblatt!$M:$M, Datenblatt!$E:$E,$C11, Datenblatt!$R:$R,">="&AZ$8,Datenblatt!$R:$R,"<="&EOMONTH(AZ$8,0)), "") -> 218 | BA11: =IF(ISNUMBER($C11), SUMIFS(Datenblatt!$M:$M, Datenblatt!$G:$G,$C11, Datenblatt!$R:$R,">="&BA$8,Datenblatt!$R:$R,"<="&EOMONTH(BA$8,0)) - SUMIFS(Datenblatt!$M:$M, Datenblatt!$E:$E,$C11, Datenblatt!$R:$R,">="&BA$8,Datenblatt!$R:$R,"<="&EOMONTH(BA$8,0)), "") -> 183 | BB11: =IF(ISNUMBER($C11), SUMIFS(Datenblatt!$M:$M, Datenblatt!$G:$G,$C11, Datenblatt!$R:$R,">="&BB$8,Datenblatt!$R:$R,"<="&EOMONTH(BB$8,0)) - SUMIFS(Datenblatt!$M:$M, Datenblatt!$E:$E,$C11, Datenblatt!$R:$R,">="&BB$8,Datenblatt!$R:$R,"<="&EOMONTH(BB$8,0)), "") -> 234 | BC11: =IF(ISNUMBER($C11), SUMIFS(Datenblatt!$M:$M, Datenblatt!$G:$G,$C11, Datenblatt!$R:$R,">="&BC$8,Datenblatt!$R:$R,"<="&EOMONTH(BC$8,0)) - SUMIFS(Datenblatt!$M:$M, Datenblatt!$E:$E,$C11, Datenblatt!$R:$R,">="&BC$8,Datenblatt!$R:$R,"<="&EOMONTH(BC$8,0)), "") -> 128 | BD11: =IF(ISNUMBER($C11), SUMIFS(Datenblatt!$M:$M, Datenblatt!$G:$G,$C11, Datenblatt!$R:$R,">="&BD$8,Datenblatt!$R:$R,"<="&EOMONTH(BD$8,0)) - SUMIFS(Datenblatt!$M:$M, Datenblatt!$E:$E,$C11, Datenblatt!$R:$R,">="&BD$8,Datenblatt!$R:$R,"<="&EOMONTH(BD$8,0)), "") -> 230 | BE11: =IF(ISNUMBER($C11), SUMIFS(Datenblatt!$M:$M, Datenblatt!$G:$G,$C11, Datenblatt!$R:$R,">="&BE$8,Datenblatt!$R:$R,"<="&EOMONTH(BE$8,0)) - SUMIFS(Datenblatt!$M:$M, Datenblatt!$E:$E,$C11, Datenblatt!$R:$R,">="&BE$8,Datenblatt!$R:$R,"<="&EOMONTH(BE$8,0)), "") -> 348 | BF11: =IF(ISNUMBER($C11), SUMIFS(Datenblatt!$M:$M, Datenblatt!$G:$G,$C11, Datenblatt!$R:$R,">="&BF$8,Datenblatt!$R:$R,"<="&EOMONTH(BF$8,0)) - SUMIFS(Datenblatt!$M:$M, Datenblatt!$E:$E,$C11, Datenblatt!$R:$R,">="&BF$8,Datenblatt!$R:$R,"<="&EOMONTH(BF$8,0)), "") -> 112 | BG11: =IF(ISNUMBER($C11), SUMIFS(Datenblatt!$M:$M, Datenblatt!$G:$G,$C11, Datenblatt!$R:$R,">="&BG$8,Datenblatt!$R:$R,"<="&EOMONTH(BG$8,0)) - SUMIFS(Datenblatt!$M:$M, Datenblatt!$E:$E,$C11, Datenblatt!$R:$R,">="&BG$8,Datenblatt!$R:$R,"<="&EOMONTH(BG$8,0)), "") -> 194 | BH11: =IF(ISNUMBER($C11), SUMIFS(Datenblatt!$M:$M, Datenblatt!$G:$G,$C11, Datenblatt!$R:$R,">="&BH$8,Datenblatt!$R:$R,"<="&EOMONTH(BH$8,0)) - SUMIFS(Datenblatt!$M:$M, Datenblatt!$E:$E,$C11, Datenblatt!$R:$R,">="&BH$8,Datenblatt!$R:$R,"<="&EOMONTH(BH$8,0)), "") -> 173 | BI11: =IF(ISNUMBER($C11), SUMIFS(Datenblatt!$M:$M, Datenblatt!$G:$G,$C11, Datenblatt!$R:$R,">="&BI$8,Datenblatt!$R:$R,"<="&EOMONTH(BI$8,0)) - SUMIFS(Datenblatt!$M:$M, Datenblatt!$E:$E,$C11, Datenblatt!$R:$R,">="&BI$8,Datenblatt!$R:$R,"<="&EOMONTH(BI$8,0)), "") -> 45 | BJ11: =IF(ISNUMBER($C11), SUMIFS(Datenblatt!$M:$M, Datenblatt!$G:$G,$C11, Datenblatt!$R:$R,">="&BJ$8,Datenblatt!$R:$R,"<="&EOMONTH(BJ$8,0)) - SUMIFS(Datenblatt!$M:$M, Datenblatt!$E:$E,$C11, Datenblatt!$R:$R,">="&BJ$8,Datenblatt!$R:$R,"<="&EOMONTH(BJ$8,0)), "") -> 493 | BK11: =IF(ISNUMBER($C11), SUMIFS(Datenblatt!$M:$M, Datenblatt!$G:$G,$C11, Datenblatt!$R:$R,">="&BK$8,Datenblatt!$R:$R,"<="&EOMONTH(BK$8,0)) - SUMIFS(Datenblatt!$M:$M, Datenblatt!$E:$E,$C11, Datenblatt!$R:$R,">="&BK$8,Datenblatt!$R:$R,"<="&EOMONTH(BK$8,0)), "") -> 261 | BL11: =IF(ISNUMBER($C11), SUMIFS(Datenblatt!$M:$M, Datenblatt!$G:$G,$C11, Datenblatt!$R:$R,">="&BL$8,Datenblatt!$R:$R,"<="&EOMONTH(BL$8,0)) - SUMIFS(Datenblatt!$M:$M, Datenblatt!$E:$E,$C11, Datenblatt!$R:$R,">="&BL$8,Datenblatt!$R:$R,"<="&EOMONTH(BL$8,0)), "") -> 142 | BM11: =IF(ISNUMBER($C11), SUMIFS(Datenblatt!$M:$M, Datenblatt!$G:$G,$C11, Datenblatt!$R:$R,">="&BM$8,Datenblatt!$R:$R,"<="&EOMONTH(BM$8,0)) - SUMIFS(Datenblatt!$M:$M, Datenblatt!$E:$E,$C11, Datenblatt!$R:$R,">="&BM$8,Datenblatt!$R:$R,"<="&EOMONTH(BM$8,0)), "") -> 109 | BN11: =IF(ISNUMBER($C11), SUMIFS(Datenblatt!$M:$M, Datenblatt!$G:$G,$C11, Datenblatt!$R:$R,">="&BN$8,Datenblatt!$R:$R,"<="&EOMONTH(BN$8,0)) - SUMIFS(Datenblatt!$M:$M, Datenblatt!$E:$E,$C11, Datenblatt!$R:$R,">="&BN$8,Datenblatt!$R:$R,"<="&EOMONTH(BN$8,0)), "") -> 280 | BO11: =IF(ISNUMBER($C11), SUMIFS(Datenblatt!$M:$M, Datenblatt!$G:$G,$C11, Datenblatt!$R:$R,">="&BO$8,Datenblatt!$R:$R,"<="&EOMONTH(BO$8,0)) - SUMIFS(Datenblatt!$M:$M, Datenblatt!$E:$E,$C11, Datenblatt!$R:$R,">="&BO$8,Datenblatt!$R:$R,"<="&EOMONTH(BO$8,0)), "") -> 198 | BP11: =IF(ISNUMBER($C11), SUMIFS(Datenblatt!$M:$M, Datenblatt!$G:$G,$C11, Datenblatt!$R:$R,">="&BP$8,Datenblatt!$R:$R,"<="&EOMONTH(BP$8,0)) - SUMIFS(Datenblatt!$M:$M, Datenblatt!$E:$E,$C11, Datenblatt!$R:$R,">="&BP$8,Datenblatt!$R:$R,"<="&EOMONTH(BP$8,0)), "") -> 259 | BQ11: =IF(ISNUMBER($C11), SUMIFS(Datenblatt!$M:$M, Datenblatt!$G:$G,$C11, Datenblatt!$R:$R,">="&BQ$8,Datenblatt!$R:$R,"<="&EOMONTH(BQ$8,0)) - SUMIFS(Datenblatt!$M:$M, Datenblatt!$E:$E,$C11, Datenblatt!$R:$R,">="&BQ$8,Datenblatt!$R:$R,"<="&EOMONTH(BQ$8,0)), "") -> 461 | BR11: =IF(ISNUMBER($C11), SUMIFS(Datenblatt!$M:$M, Datenblatt!$G:$G,$C11, Datenblatt!$R:$R,">="&BR$8,Datenblatt!$R:$R,"<="&EOMONTH(BR$8,0)) - SUMIFS(Datenblatt!$M:$M, Datenblatt!$E:$E,$C11, Datenblatt!$R:$R,">="&BR$8,Datenblatt!$R:$R,"<="&EOMONTH(BR$8,0)), "") -> 208 | BS11: =IF(ISNUMBER($C11), SUMIFS(Datenblatt!$M:$M, Datenblatt!$G:$G,$C11, Datenblatt!$R:$R,">="&BS$8,Datenblatt!$R:$R,"<="&EOMONTH(BS$8,0)) - SUMIFS(Datenblatt!$M:$M, Datenblatt!$E:$E,$C11, Datenblatt!$R:$R,">="&BS$8,Datenblatt!$R:$R,"<="&EOMONTH(BS$8,0)), "") -> 367 | BT11: =IF(ISNUMBER($C11), SUMIFS(Datenblatt!$M:$M, Datenblatt!$G:$G,$C11, Datenblatt!$R:$R,">="&BT$8,Datenblatt!$R:$R,"<="&EOMONTH(BT$8,0)) - SUMIFS(Datenblatt!$M:$M, Datenblatt!$E:$E,$C11, Datenblatt!$R:$R,">="&BT$8,Datenblatt!$R:$R,"<="&EOMONTH(BT$8,0)), "") -> 176 | BU11: =IF(ISNUMBER($C11), SUMIFS(Datenblatt!$M:$M, Datenblatt!$G:$G,$C11, Datenblatt!$R:$R,">="&BU$8,Datenblatt!$R:$R,"<="&EOMONTH(BU$8,0)) - SUMIFS(Datenblatt!$M:$M, Datenblatt!$E:$E,$C11, Datenblatt!$R:$R,">="&BU$8,Datenblatt!$R:$R,"<="&EOMONTH(BU$8,0)), "") -> 336 | BV11: =IF(ISNUMBER($C11), SUMIFS(Datenblatt!$M:$M, Datenblatt!$G:$G,$C11, Datenblatt!$R:$R,">="&BV$8,Datenblatt!$R:$R,"<="&EOMONTH(BV$8,0)) - SUMIFS(Datenblatt!$M:$M, Datenblatt!$E:$E,$C11, Datenblatt!$R:$R,">="&BV$8,Datenblatt!$R:$R,"<="&EOMONTH(BV$8,0)), "") -> 185 | BW11: =IF(ISNUMBER($C11), SUMIFS(Datenblatt!$M:$M, Datenblatt!$G:$G,$C11, Datenblatt!$R:$R,">="&BW$8,Datenblatt!$R:$R,"<="&EOMONTH(BW$8,0)) - SUMIFS(Datenblatt!$M:$M, Datenblatt!$E:$E,$C11, Datenblatt!$R:$R,">="&BW$8,Datenblatt!$R:$R,"<="&EOMONTH(BW$8,0)), "") -> 266 | BX11: =IF(ISNUMBER($C11), SUMIFS(Datenblatt!$M:$M, Datenblatt!$G:$G,$C11, Datenblatt!$R:$R,">="&BX$8,Datenblatt!$R:$R,"<="&EOMONTH(BX$8,0)) - SUMIFS(Datenblatt!$M:$M, Datenblatt!$E:$E,$C11, Datenblatt!$R:$R,">="&BX$8,Datenblatt!$R:$R,"<="&EOMONTH(BX$8,0)), "") -> 375 | BY11: =IF(ISNUMBER($C11), SUMIFS(Datenblatt!$M:$M, Datenblatt!$G:$G,$C11, Datenblatt!$R:$R,">="&BY$8,Datenblatt!$R:$R,"<="&EOMONTH(BY$8,0)) - SUMIFS(Datenblatt!$M:$M, Datenblatt!$E:$E,$C11, Datenblatt!$R:$R,">="&BY$8,Datenblatt!$R:$R,"<="&EOMONTH(BY$8,0)), "") -> 42 | BZ11: =IF(ISNUMBER($C11), SUMIFS(Datenblatt!$M:$M, Datenblatt!$G:$G,$C11, Datenblatt!$R:$R,">="&BZ$8,Datenblatt!$R:$R,"<="&EOMONTH(BZ$8,0)) - SUMIFS(Datenblatt!$M:$M, Datenblatt!$E:$E,$C11, Datenblatt!$R:$R,">="&BZ$8,Datenblatt!$R:$R,"<="&EOMONTH(BZ$8,0)), "") -> 274 | CA11: =IF(ISNUMBER($C11), SUMIFS(Datenblatt!$M:$M, Datenblatt!$G:$G,$C11, Datenblatt!$R:$R,">="&CA$8,Datenblatt!$R:$R,"<="&EOMONTH(CA$8,0)) - SUMIFS(Datenblatt!$M:$M, Datenblatt!$E:$E,$C11, Datenblatt!$R:$R,">="&CA$8,Datenblatt!$R:$R,"<="&EOMONTH(CA$8,0)), "") -> 459 | CB11: =IF(ISNUMBER($C11), SUMIFS(Datenblatt!$M:$M, Datenblatt!$G:$G,$C11, Datenblatt!$R:$R,">="&CB$8,Datenblatt!$R:$R,"<="&EOMONTH(CB$8,0)) - SUMIFS(Datenblatt!$M:$M, Datenblatt!$E:$E,$C11, Datenblatt!$R:$R,">="&CB$8,Datenblatt!$R:$R,"<="&EOMONTH(CB$8,0)), "") -> 216 | CC11: =IF(ISNUMBER($C11), SUMIFS(Datenblatt!$M:$M, Datenblatt!$G:$G,$C11, Datenblatt!$R:$R,">="&CC$8,Datenblatt!$R:$R,"<="&EOMONTH(CC$8,0)) - SUMIFS(Datenblatt!$M:$M, Datenblatt!$E:$E,$C11, Datenblatt!$R:$R,">="&CC$8,Datenblatt!$R:$R,"<="&EOMONTH(CC$8,0)), "") -> 0 | CD11: =IF(ISNUMBER($C11), SUMIFS(Datenblatt!$M:$M, Datenblatt!$G:$G,$C11, Datenblatt!$R:$R,">="&CD$8,Datenblatt!$R:$R,"<="&EOMONTH(CD$8,0)) - SUMIFS(Datenblatt!$M:$M, Datenblatt!$E:$E,$C11, Datenblatt!$R:$R,">="&CD$8,Datenblatt!$R:$R,"<="&EOMONTH(CD$8,0)), "") -> 422 | CE11: =IF(ISNUMBER($C11), SUMIFS(Datenblatt!$M:$M, Datenblatt!$G:$G,$C11, Datenblatt!$R:$R,">="&CE$8,Datenblatt!$R:$R,"<="&EOMONTH(CE$8,0)) - SUMIFS(Datenblatt!$M:$M, Datenblatt!$E:$E,$C11, Datenblatt!$R:$R,">="&CE$8,Datenblatt!$R:$R,"<="&EOMONTH(CE$8,0)), "") -> 172 | CF11: =IF(ISNUMBER($C11), SUMIFS(Datenblatt!$M:$M, Datenblatt!$G:$G,$C11, Datenblatt!$R:$R,">="&CF$8,Datenblatt!$R:$R,"<="&EOMONTH(CF$8,0)) - SUMIFS(Datenblatt!$M:$M, Datenblatt!$E:$E,$C11, Datenblatt!$R:$R,">="&CF$8,Datenblatt!$R:$R,"<="&EOMONTH(CF$8,0)), "") -> 154 | CG11: =IF(ISNUMBER($C11), SUMIFS(Datenblatt!$M:$M, Datenblatt!$G:$G,$C11, Datenblatt!$R:$R,">="&CG$8,Datenblatt!$R:$R,"<="&EOMONTH(CG$8,0)) - SUMIFS(Datenblatt!$M:$M, Datenblatt!$E:$E,$C11, Datenblatt!$R:$R,">="&CG$8,Datenblatt!$R:$R,"<="&EOMONTH(CG$8,0)), "") -> 702 | CH11: =IF(ISNUMBER($C11), SUMIFS(Datenblatt!$M:$M, Datenblatt!$G:$G,$C11, Datenblatt!$R:$R,">="&CH$8,Datenblatt!$R:$R,"<="&EOMONTH(CH$8,0)) - SUMIFS(Datenblatt!$M:$M, Datenblatt!$E:$E,$C11, Datenblatt!$R:$R,">="&CH$8,Datenblatt!$R:$R,"<="&EOMONTH(CH$8,0)), "") -> 0 | CI11: =IF(ISNUMBER($C11), SUMIFS(Datenblatt!$M:$M, Datenblatt!$G:$G,$C11, Datenblatt!$R:$R,">="&CI$8,Datenblatt!$R:$R,"<="&EOMONTH(CI$8,0)) - SUMIFS(Datenblatt!$M:$M, Datenblatt!$E:$E,$C11, Datenblatt!$R:$R,">="&CI$8,Datenblatt!$R:$R,"<="&EOMONTH(CI$8,0)), "") -> 0 | CJ11: =IF(ISNUMBER($C11), SUMIFS(Datenblatt!$M:$M, Datenblatt!$G:$G,$C11, Datenblatt!$R:$R,">="&CJ$8,Datenblatt!$R:$R,"<="&EOMONTH(CJ$8,0)) - SUMIFS(Datenblatt!$M:$M, Datenblatt!$E:$E,$C11, Datenblatt!$R:$R,">="&CJ$8,Datenblatt!$R:$R,"<="&EOMONTH(CJ$8,0)), "") -> 0 | CK11: =IF(ISNUMBER($C11), SUMIFS(Datenblatt!$M:$M, Datenblatt!$G:$G,$C11, Datenblatt!$R:$R,">="&CK$8,Datenblatt!$R:$R,"<="&EOMONTH(CK$8,0)) - SUMIFS(Datenblatt!$M:$M, Datenblatt!$E:$E,$C11, Datenblatt!$R:$R,">="&CK$8,Datenblatt!$R:$R,"<="&EOMONTH(CK$8,0)), "") -> 0 | CL11: =IF(ISNUMBER($C11), SUMIFS(Datenblatt!$M:$M, Datenblatt!$G:$G,$C11, Datenblatt!$R:$R,">="&CL$8,Datenblatt!$R:$R,"<="&EOMONTH(CL$8,0)) - SUMIFS(Datenblatt!$M:$M, Datenblatt!$E:$E,$C11, Datenblatt!$R:$R,">="&CL$8,Datenblatt!$R:$R,"<="&EOMONTH(CL$8,0)), "") -> 0 | CM11: =IF(ISNUMBER($C11), SUMIFS(Datenblatt!$M:$M, Datenblatt!$G:$G,$C11, Datenblatt!$R:$R,">="&CM$8,Datenblatt!$R:$R,"<="&EOMONTH(CM$8,0)) - SUMIFS(Datenblatt!$M:$M, Datenblatt!$E:$E,$C11, Datenblatt!$R:$R,">="&CM$8,Datenblatt!$R:$R,"<="&EOMONTH(CM$8,0)), "") -> 0 | CN11: =IF(ISNUMBER($C11), SUMIFS(Datenblatt!$M:$M, Datenblatt!$G:$G,$C11, Datenblatt!$R:$R,">="&CN$8,Datenblatt!$R:$R,"<="&EOMONTH(CN$8,0)) - SUMIFS(Datenblatt!$M:$M, Datenblatt!$E:$E,$C11, Datenblatt!$R:$R,">="&CN$8,Datenblatt!$R:$R,"<="&EOMONTH(CN$8,0)), "") -> 0 | CO11: =IF(ISNUMBER($C11), SUMIFS(Datenblatt!$M:$M, Datenblatt!$G:$G,$C11, Datenblatt!$R:$R,">="&CO$8,Datenblatt!$R:$R,"<="&EOMONTH(CO$8,0)) - SUMIFS(Datenblatt!$M:$M, Datenblatt!$E:$E,$C11, Datenblatt!$R:$R,">="&CO$8,Datenblatt!$R:$R,"<="&EOMONTH(CO$8,0)), "") -> 0 | CP11: =IF(ISNUMBER($C11), SUMIFS(Datenblatt!$M:$M, Datenblatt!$G:$G,$C11, Datenblatt!$R:$R,">="&CP$8,Datenblatt!$R:$R,"<="&EOMONTH(CP$8,0)) - SUMIFS(Datenblatt!$M:$M, Datenblatt!$E:$E,$C11, Datenblatt!$R:$R,">="&CP$8,Datenblatt!$R:$R,"<="&EOMONTH(CP$8,0)), "") -> 0 | CQ11: =IF(ISNUMBER($C11), SUMIFS(Datenblatt!$M:$M, Datenblatt!$G:$G,$C11, Datenblatt!$R:$R,">="&CQ$8,Datenblatt!$R:$R,"<="&EOMONTH(CQ$8,0)) - SUMIFS(Datenblatt!$M:$M, Datenblatt!$E:$E,$C11, Datenblatt!$R:$R,">="&CQ$8,Datenblatt!$R:$R,"<="&EOMONTH(CQ$8,0)), "") -> 0 | CR11: =IF(ISNUMBER($C11), SUMIFS(Datenblatt!$M:$M, Datenblatt!$G:$G,$C11, Datenblatt!$R:$R,">="&CR$8,Datenblatt!$R:$R,"<="&EOMONTH(CR$8,0)) - SUMIFS(Datenblatt!$M:$M, Datenblatt!$E:$E,$C11, Datenblatt!$R:$R,">="&CR$8,Datenblatt!$R:$R,"<="&EOMONTH(CR$8,0)), "") -> 0 | CS11: =IF(ISNUMBER($C11), SUMIFS(Datenblatt!$M:$M, Datenblatt!$G:$G,$C11, Datenblatt!$R:$R,">="&CS$8,Datenblatt!$R:$R,"<="&EOMONTH(CS$8,0)) - SUMIFS(Datenblatt!$M:$M, Datenblatt!$E:$E,$C11, Datenblatt!$R:$R,">="&CS$8,Datenblatt!$R:$R,"<="&EOMONTH(CS$8,0)), "") -> 0 | CT11: =IF(ISNUMBER($C11), SUMIFS(Datenblatt!$M:$M, Datenblatt!$G:$G,$C11, Datenblatt!$R:$R,">="&CT$8,Datenblatt!$R:$R,"<="&EOMONTH(CT$8,0)) - SUMIFS(Datenblatt!$M:$M, Datenblatt!$E:$E,$C11, Datenblatt!$R:$R,">="&CT$8,Datenblatt!$R:$R,"<="&EOMONTH(CT$8,0)), "") -> 0 | CU11: =IF(ISNUMBER($C11), SUMIFS(Datenblatt!$M:$M, Datenblatt!$G:$G,$C11, Datenblatt!$R:$R,">="&CU$8,Datenblatt!$R:$R,"<="&EOMONTH(CU$8,0)) - SUMIFS(Datenblatt!$M:$M, Datenblatt!$E:$E,$C11, Datenblatt!$R:$R,">="&CU$8,Datenblatt!$R:$R,"<="&EOMONTH(CU$8,0)), "") -> 0 | CV11: =IF(ISNUMBER($C11), SUMIFS(Datenblatt!$M:$M, Datenblatt!$G:$G,$C11, Datenblatt!$R:$R,">="&CV$8,Datenblatt!$R:$R,"<="&EOMONTH(CV$8,0)) - SUMIFS(Datenblatt!$M:$M, Datenblatt!$E:$E,$C11, Datenblatt!$R:$R,">="&CV$8,Datenblatt!$R:$R,"<="&EOMONTH(CV$8,0)), "") -> 0 | CW11: =IF(ISNUMBER($C11), SUMIFS(Datenblatt!$M:$M, Datenblatt!$G:$G,$C11, Datenblatt!$R:$R,">="&CW$8,Datenblatt!$R:$R,"<="&EOMONTH(CW$8,0)) - SUMIFS(Datenblatt!$M:$M, Datenblatt!$E:$E,$C11, Datenblatt!$R:$R,">="&CW$8,Datenblatt!$R:$R,"<="&EOMONTH(CW$8,0)), "") -> 0 | CX11: =IF(ISNUMBER($C11), SUMIFS(Datenblatt!$M:$M, Datenblatt!$G:$G,$C11, Datenblatt!$R:$R,">="&CX$8,Datenblatt!$R:$R,"<="&EOMONTH(CX$8,0)) - SUMIFS(Datenblatt!$M:$M, Datenblatt!$E:$E,$C11, Datenblatt!$R:$R,">="&CX$8,Datenblatt!$R:$R,"<="&EOMONTH(CX$8,0)), "") -> 0 | CY11: =IF(ISNUMBER($C11), SUMIFS(Datenblatt!$M:$M, Datenblatt!$G:$G,$C11, Datenblatt!$R:$R,">="&CY$8,Datenblatt!$R:$R,"<="&EOMONTH(CY$8,0)) - SUMIFS(Datenblatt!$M:$M, Datenblatt!$E:$E,$C11, Datenblatt!$R:$R,">="&CY$8,Datenblatt!$R:$R,"<="&EOMONTH(CY$8,0)), "") -> 0 | CZ11: =IF(ISNUMBER($C11), SUMIFS(Datenblatt!$M:$M, Datenblatt!$G:$G,$C11, Datenblatt!$R:$R,">="&CZ$8,Datenblatt!$R:$R,"<="&EOMONTH(CZ$8,0)) - SUMIFS(Datenblatt!$M:$M, Datenblatt!$E:$E,$C11, Datenblatt!$R:$R,">="&CZ$8,Datenblatt!$R:$R,"<="&EOMONTH(CZ$8,0)), "") -> 0 | DA11: =IF(ISNUMBER($C11), SUMIFS(Datenblatt!$M:$M, Datenblatt!$G:$G,$C11, Datenblatt!$R:$R,">="&DA$8,Datenblatt!$R:$R,"<="&EOMONTH(DA$8,0)) - SUMIFS(Datenblatt!$M:$M, Datenblatt!$E:$E,$C11, Datenblatt!$R:$R,">="&DA$8,Datenblatt!$R:$R,"<="&EOMONTH(DA$8,0)), "") -> 0 | DB11: =IF(ISNUMBER($C11), SUMIFS(Datenblatt!$M:$M, Datenblatt!$G:$G,$C11, Datenblatt!$R:$R,">="&DB$8,Datenblatt!$R:$R,"<="&EOMONTH(DB$8,0)) - SUMIFS(Datenblatt!$M:$M, Datenblatt!$E:$E,$C11, Datenblatt!$R:$R,">="&DB$8,Datenblatt!$R:$R,"<="&EOMONTH(DB$8,0)), "") -> 0 | DC11: =IF(ISNUMBER($C11), SUMIFS(Datenblatt!$M:$M, Datenblatt!$G:$G,$C11, Datenblatt!$R:$R,">="&DC$8,Datenblatt!$R:$R,"<="&EOMONTH(DC$8,0)) - SUMIFS(Datenblatt!$M:$M, Datenblatt!$E:$E,$C11, Datenblatt!$R:$R,">="&DC$8,Datenblatt!$R:$R,"<="&EOMONTH(DC$8,0)), "") -> 0 | DD11: =IF(ISNUMBER($C11), SUMIFS(Datenblatt!$M:$M, Datenblatt!$G:$G,$C11, Datenblatt!$R:$R,">="&DD$8,Datenblatt!$R:$R,"<="&EOMONTH(DD$8,0)) - SUMIFS(Datenblatt!$M:$M, Datenblatt!$E:$E,$C11, Datenblatt!$R:$R,">="&DD$8,Datenblatt!$R:$R,"<="&EOMONTH(DD$8,0)), "") -> 0 | DE11: =IF(ISNUMBER($C11), SUMIFS(Datenblatt!$M:$M, Datenblatt!$G:$G,$C11, Datenblatt!$R:$R,">="&DE$8,Datenblatt!$R:$R,"<="&EOMONTH(DE$8,0)) - SUMIFS(Datenblatt!$M:$M, Datenblatt!$E:$E,$C11, Datenblatt!$R:$R,">="&DE$8,Datenblatt!$R:$R,"<="&EOMONTH(DE$8,0)), "") -> 0 | DF11: =IF(ISNUMBER($C11), SUMIFS(Datenblatt!$M:$M, Datenblatt!$G:$G,$C11, Datenblatt!$R:$R,">="&DF$8,Datenblatt!$R:$R,"<="&EOMONTH(DF$8,0)) - SUMIFS(Datenblatt!$M:$M, Datenblatt!$E:$E,$C11, Datenblatt!$R:$R,">="&DF$8,Datenblatt!$R:$R,"<="&EOMONTH(DF$8,0)), "") -> 0
B12: Ertrag | C12: 3600 | D12: Übrige Erlöse aus Lieferungen und Leistungen | G12: =IF(ISNUMBER($C12), SUMIFS(Datenblatt!$M:$M, Datenblatt!$G:$G,$C12, Datenblatt!$R:$R,">="&G$8,Datenblatt!$R:$R,"<="&EOMONTH(G$8,11)) - SUMIFS(Datenblatt!$M:$M, Datenblatt!$E:$E,$C12, Datenblatt!$R:$R,">="&G$8,Datenblatt!$R:$R,"<="&EOMONTH(G$8,11)), "") -> 1701 | H12: =IF(ISNUMBER($C12), SUMIFS(Datenblatt!$M:$M, Datenblatt!$G:$G,$C12, Datenblatt!$R:$R,">="&H$8,Datenblatt!$R:$R,"<="&EOMONTH(H$8,11)) - SUMIFS(Datenblatt!$M:$M, Datenblatt!$E:$E,$C12, Datenblatt!$R:$R,">="&H$8,Datenblatt!$R:$R,"<="&EOMONTH(H$8,11)), "") -> 1926.621 | I12: =IF(ISNUMBER($C12), SUMIFS(Datenblatt!$M:$M, Datenblatt!$G:$G,$C12, Datenblatt!$R:$R,">="&I$8,Datenblatt!$R:$R,"<="&EOMONTH(I$8,11)) - SUMIFS(Datenblatt!$M:$M, Datenblatt!$E:$E,$C12, Datenblatt!$R:$R,">="&I$8,Datenblatt!$R:$R,"<="&EOMONTH(I$8,11)), "") -> 2341.32 | J12: =IF(ISNUMBER($C12), SUMIFS(Datenblatt!$M:$M, Datenblatt!$G:$G,$C12, Datenblatt!$R:$R,">="&J$8,Datenblatt!$R:$R,"<="&EOMONTH(J$8,11)) - SUMIFS(Datenblatt!$M:$M, Datenblatt!$E:$E,$C12, Datenblatt!$R:$R,">="&J$8,Datenblatt!$R:$R,"<="&EOMONTH(J$8,11)), "") -> 2815 | K12: =IF(ISNUMBER($C12), SUMIFS(Datenblatt!$M:$M, Datenblatt!$G:$G,$C12, Datenblatt!$R:$R,">="&K$8,Datenblatt!$R:$R,"<="&EOMONTH(K$8,11)) - SUMIFS(Datenblatt!$M:$M, Datenblatt!$E:$E,$C12, Datenblatt!$R:$R,">="&K$8,Datenblatt!$R:$R,"<="&EOMONTH(K$8,11)), "") -> 3022 | L12: =IF(ISNUMBER($C12), SUMIFS(Datenblatt!$M:$M, Datenblatt!$G:$G,$C12, Datenblatt!$R:$R,">="&L$8,Datenblatt!$R:$R,"<="&EOMONTH(L$8,11)) - SUMIFS(Datenblatt!$M:$M, Datenblatt!$E:$E,$C12, Datenblatt!$R:$R,">="&L$8,Datenblatt!$R:$R,"<="&EOMONTH(L$8,11)), "") -> 2361 | M12: =IF(ISNUMBER($C12), SUMIFS(Datenblatt!$M:$M, Datenblatt!$G:$G,$C12, Datenblatt!$R:$R,">="&M$8,Datenblatt!$R:$R,"<="&EOMONTH(M$8,11)) - SUMIFS(Datenblatt!$M:$M, Datenblatt!$E:$E,$C12, Datenblatt!$R:$R,">="&M$8,Datenblatt!$R:$R,"<="&EOMONTH(M$8,11)), "") -> 0 | N12: =IF(ISNUMBER($C12), SUMIFS(Datenblatt!$M:$M, Datenblatt!$G:$G,$C12, Datenblatt!$R:$R,">="&N$8,Datenblatt!$R:$R,"<="&EOMONTH(N$8,11)) - SUMIFS(Datenblatt!$M:$M, Datenblatt!$E:$E,$C12, Datenblatt!$R:$R,">="&N$8,Datenblatt!$R:$R,"<="&EOMONTH(N$8,11)), "") -> 0 | O12: =IF(ISNUMBER($C12), SUMIFS(Datenblatt!$M:$M, Datenblatt!$G:$G,$C12, Datenblatt!$R:$R,">="&O$8,Datenblatt!$R:$R,"<="&EOMONTH(O$8,0)) - SUMIFS(Datenblatt!$M:$M, Datenblatt!$E:$E,$C12, Datenblatt!$R:$R,">="&O$8,Datenblatt!$R:$R,"<="&EOMONTH(O$8,0)), "") -> 0 | P12: =IF(ISNUMBER($C12), SUMIFS(Datenblatt!$M:$M, Datenblatt!$G:$G,$C12, Datenblatt!$R:$R,">="&P$8,Datenblatt!$R:$R,"<="&EOMONTH(P$8,0)) - SUMIFS(Datenblatt!$M:$M, Datenblatt!$E:$E,$C12, Datenblatt!$R:$R,">="&P$8,Datenblatt!$R:$R,"<="&EOMONTH(P$8,0)), "") -> 286 | Q12: =IF(ISNUMBER($C12), SUMIFS(Datenblatt!$M:$M, Datenblatt!$G:$G,$C12, Datenblatt!$R:$R,">="&Q$8,Datenblatt!$R:$R,"<="&EOMONTH(Q$8,0)) - SUMIFS(Datenblatt!$M:$M, Datenblatt!$E:$E,$C12, Datenblatt!$R:$R,">="&Q$8,Datenblatt!$R:$R,"<="&EOMONTH(Q$8,0)), "") -> 0 | R12: =IF(ISNUMBER($C12), SUMIFS(Datenblatt!$M:$M, Datenblatt!$G:$G,$C12, Datenblatt!$R:$R,">="&R$8,Datenblatt!$R:$R,"<="&EOMONTH(R$8,0)) - SUMIFS(Datenblatt!$M:$M, Datenblatt!$E:$E,$C12, Datenblatt!$R:$R,">="&R$8,Datenblatt!$R:$R,"<="&EOMONTH(R$8,0)), "") -> 256 | S12: =IF(ISNUMBER($C12), SUMIFS(Datenblatt!$M:$M, Datenblatt!$G:$G,$C12, Datenblatt!$R:$R,">="&S$8,Datenblatt!$R:$R,"<="&EOMONTH(S$8,0)) - SUMIFS(Datenblatt!$M:$M, Datenblatt!$E:$E,$C12, Datenblatt!$R:$R,">="&S$8,Datenblatt!$R:$R,"<="&EOMONTH(S$8,0)), "") -> 134 | T12: =IF(ISNUMBER($C12), SUMIFS(Datenblatt!$M:$M, Datenblatt!$G:$G,$C12, Datenblatt!$R:$R,">="&T$8,Datenblatt!$R:$R,"<="&EOMONTH(T$8,0)) - SUMIFS(Datenblatt!$M:$M, Datenblatt!$E:$E,$C12, Datenblatt!$R:$R,">="&T$8,Datenblatt!$R:$R,"<="&EOMONTH(T$8,0)), "") -> 282 | U12: =IF(ISNUMBER($C12), SUMIFS(Datenblatt!$M:$M, Datenblatt!$G:$G,$C12, Datenblatt!$R:$R,">="&U$8,Datenblatt!$R:$R,"<="&EOMONTH(U$8,0)) - SUMIFS(Datenblatt!$M:$M, Datenblatt!$E:$E,$C12, Datenblatt!$R:$R,">="&U$8,Datenblatt!$R:$R,"<="&EOMONTH(U$8,0)), "") -> 44 | V12: =IF(ISNUMBER($C12), SUMIFS(Datenblatt!$M:$M, Datenblatt!$G:$G,$C12, Datenblatt!$R:$R,">="&V$8,Datenblatt!$R:$R,"<="&EOMONTH(V$8,0)) - SUMIFS(Datenblatt!$M:$M, Datenblatt!$E:$E,$C12, Datenblatt!$R:$R,">="&V$8,Datenblatt!$R:$R,"<="&EOMONTH(V$8,0)), "") -> 87 | W12: =IF(ISNUMBER($C12), SUMIFS(Datenblatt!$M:$M, Datenblatt!$G:$G,$C12, Datenblatt!$R:$R,">="&W$8,Datenblatt!$R:$R,"<="&EOMONTH(W$8,0)) - SUMIFS(Datenblatt!$M:$M, Datenblatt!$E:$E,$C12, Datenblatt!$R:$R,">="&W$8,Datenblatt!$R:$R,"<="&EOMONTH(W$8,0)), "") -> 0 | X12: =IF(ISNUMBER($C12), SUMIFS(Datenblatt!$M:$M, Datenblatt!$G:$G,$C12, Datenblatt!$R:$R,">="&X$8,Datenblatt!$R:$R,"<="&EOMONTH(X$8,0)) - SUMIFS(Datenblatt!$M:$M, Datenblatt!$E:$E,$C12, Datenblatt!$R:$R,">="&X$8,Datenblatt!$R:$R,"<="&EOMONTH(X$8,0)), "") -> 226 | Y12: =IF(ISNUMBER($C12), SUMIFS(Datenblatt!$M:$M, Datenblatt!$G:$G,$C12, Datenblatt!$R:$R,">="&Y$8,Datenblatt!$R:$R,"<="&EOMONTH(Y$8,0)) - SUMIFS(Datenblatt!$M:$M, Datenblatt!$E:$E,$C12, Datenblatt!$R:$R,">="&Y$8,Datenblatt!$R:$R,"<="&EOMONTH(Y$8,0)), "") -> 193 | Z12: =IF(ISNUMBER($C12), SUMIFS(Datenblatt!$M:$M, Datenblatt!$G:$G,$C12, Datenblatt!$R:$R,">="&Z$8,Datenblatt!$R:$R,"<="&EOMONTH(Z$8,0)) - SUMIFS(Datenblatt!$M:$M, Datenblatt!$E:$E,$C12, Datenblatt!$R:$R,">="&Z$8,Datenblatt!$R:$R,"<="&EOMONTH(Z$8,0)), "") -> 193 | AA12: =IF(ISNUMBER($C12), SUMIFS(Datenblatt!$M:$M, Datenblatt!$G:$G,$C12, Datenblatt!$R:$R,">="&AA$8,Datenblatt!$R:$R,"<="&EOMONTH(AA$8,0)) - SUMIFS(Datenblatt!$M:$M, Datenblatt!$E:$E,$C12, Datenblatt!$R:$R,">="&AA$8,Datenblatt!$R:$R,"<="&EOMONTH(AA$8,0)), "") -> 243 | AB12: =IF(ISNUMBER($C12), SUMIFS(Datenblatt!$M:$M, Datenblatt!$G:$G,$C12, Datenblatt!$R:$R,">="&AB$8,Datenblatt!$R:$R,"<="&EOMONTH(AB$8,0)) - SUMIFS(Datenblatt!$M:$M, Datenblatt!$E:$E,$C12, Datenblatt!$R:$R,">="&AB$8,Datenblatt!$R:$R,"<="&EOMONTH(AB$8,0)), "") -> 122.621 | AC12: =IF(ISNUMBER($C12), SUMIFS(Datenblatt!$M:$M, Datenblatt!$G:$G,$C12, Datenblatt!$R:$R,">="&AC$8,Datenblatt!$R:$R,"<="&EOMONTH(AC$8,0)) - SUMIFS(Datenblatt!$M:$M, Datenblatt!$E:$E,$C12, Datenblatt!$R:$R,">="&AC$8,Datenblatt!$R:$R,"<="&EOMONTH(AC$8,0)), "") -> 147 | AD12: =IF(ISNUMBER($C12), SUMIFS(Datenblatt!$M:$M, Datenblatt!$G:$G,$C12, Datenblatt!$R:$R,">="&AD$8,Datenblatt!$R:$R,"<="&EOMONTH(AD$8,0)) - SUMIFS(Datenblatt!$M:$M, Datenblatt!$E:$E,$C12, Datenblatt!$R:$R,">="&AD$8,Datenblatt!$R:$R,"<="&EOMONTH(AD$8,0)), "") -> 18 | AE12: =IF(ISNUMBER($C12), SUMIFS(Datenblatt!$M:$M, Datenblatt!$G:$G,$C12, Datenblatt!$R:$R,">="&AE$8,Datenblatt!$R:$R,"<="&EOMONTH(AE$8,0)) - SUMIFS(Datenblatt!$M:$M, Datenblatt!$E:$E,$C12, Datenblatt!$R:$R,">="&AE$8,Datenblatt!$R:$R,"<="&EOMONTH(AE$8,0)), "") -> 292 | AF12: =IF(ISNUMBER($C12), SUMIFS(Datenblatt!$M:$M, Datenblatt!$G:$G,$C12, Datenblatt!$R:$R,">="&AF$8,Datenblatt!$R:$R,"<="&EOMONTH(AF$8,0)) - SUMIFS(Datenblatt!$M:$M, Datenblatt!$E:$E,$C12, Datenblatt!$R:$R,">="&AF$8,Datenblatt!$R:$R,"<="&EOMONTH(AF$8,0)), "") -> 198 | AG12: =IF(ISNUMBER($C12), SUMIFS(Datenblatt!$M:$M, Datenblatt!$G:$G,$C12, Datenblatt!$R:$R,">="&AG$8,Datenblatt!$R:$R,"<="&EOMONTH(AG$8,0)) - SUMIFS(Datenblatt!$M:$M, Datenblatt!$E:$E,$C12, Datenblatt!$R:$R,">="&AG$8,Datenblatt!$R:$R,"<="&EOMONTH(AG$8,0)), "") -> 234 | AH12: =IF(ISNUMBER($C12), SUMIFS(Datenblatt!$M:$M, Datenblatt!$G:$G,$C12, Datenblatt!$R:$R,">="&AH$8,Datenblatt!$R:$R,"<="&EOMONTH(AH$8,0)) - SUMIFS(Datenblatt!$M:$M, Datenblatt!$E:$E,$C12, Datenblatt!$R:$R,">="&AH$8,Datenblatt!$R:$R,"<="&EOMONTH(AH$8,0)), "") -> 216 | AI12: =IF(ISNUMBER($C12), SUMIFS(Datenblatt!$M:$M, Datenblatt!$G:$G,$C12, Datenblatt!$R:$R,">="&AI$8,Datenblatt!$R:$R,"<="&EOMONTH(AI$8,0)) - SUMIFS(Datenblatt!$M:$M, Datenblatt!$E:$E,$C12, Datenblatt!$R:$R,">="&AI$8,Datenblatt!$R:$R,"<="&EOMONTH(AI$8,0)), "") -> 0 | AJ12: =IF(ISNUMBER($C12), SUMIFS(Datenblatt!$M:$M, Datenblatt!$G:$G,$C12, Datenblatt!$R:$R,">="&AJ$8,Datenblatt!$R:$R,"<="&EOMONTH(AJ$8,0)) - SUMIFS(Datenblatt!$M:$M, Datenblatt!$E:$E,$C12, Datenblatt!$R:$R,">="&AJ$8,Datenblatt!$R:$R,"<="&EOMONTH(AJ$8,0)), "") -> 174 | AK12: =IF(ISNUMBER($C12), SUMIFS(Datenblatt!$M:$M, Datenblatt!$G:$G,$C12, Datenblatt!$R:$R,">="&AK$8,Datenblatt!$R:$R,"<="&EOMONTH(AK$8,0)) - SUMIFS(Datenblatt!$M:$M, Datenblatt!$E:$E,$C12, Datenblatt!$R:$R,">="&AK$8,Datenblatt!$R:$R,"<="&EOMONTH(AK$8,0)), "") -> 160 | AL12: =IF(ISNUMBER($C12), SUMIFS(Datenblatt!$M:$M, Datenblatt!$G:$G,$C12, Datenblatt!$R:$R,">="&AL$8,Datenblatt!$R:$R,"<="&EOMONTH(AL$8,0)) - SUMIFS(Datenblatt!$M:$M, Datenblatt!$E:$E,$C12, Datenblatt!$R:$R,">="&AL$8,Datenblatt!$R:$R,"<="&EOMONTH(AL$8,0)), "") -> 122 | AM12: =IF(ISNUMBER($C12), SUMIFS(Datenblatt!$M:$M, Datenblatt!$G:$G,$C12, Datenblatt!$R:$R,">="&AM$8,Datenblatt!$R:$R,"<="&EOMONTH(AM$8,0)) - SUMIFS(Datenblatt!$M:$M, Datenblatt!$E:$E,$C12, Datenblatt!$R:$R,">="&AM$8,Datenblatt!$R:$R,"<="&EOMONTH(AM$8,0)), "") -> 290 | AN12: =IF(ISNUMBER($C12), SUMIFS(Datenblatt!$M:$M, Datenblatt!$G:$G,$C12, Datenblatt!$R:$R,">="&AN$8,Datenblatt!$R:$R,"<="&EOMONTH(AN$8,0)) - SUMIFS(Datenblatt!$M:$M, Datenblatt!$E:$E,$C12, Datenblatt!$R:$R,">="&AN$8,Datenblatt!$R:$R,"<="&EOMONTH(AN$8,0)), "") -> 282.32 | AO12: =IF(ISNUMBER($C12), SUMIFS(Datenblatt!$M:$M, Datenblatt!$G:$G,$C12, Datenblatt!$R:$R,">="&AO$8,Datenblatt!$R:$R,"<="&EOMONTH(AO$8,0)) - SUMIFS(Datenblatt!$M:$M, Datenblatt!$E:$E,$C12, Datenblatt!$R:$R,">="&AO$8,Datenblatt!$R:$R,"<="&EOMONTH(AO$8,0)), "") -> 68 | AP12: =IF(ISNUMBER($C12), SUMIFS(Datenblatt!$M:$M, Datenblatt!$G:$G,$C12, Datenblatt!$R:$R,">="&AP$8,Datenblatt!$R:$R,"<="&EOMONTH(AP$8,0)) - SUMIFS(Datenblatt!$M:$M, Datenblatt!$E:$E,$C12, Datenblatt!$R:$R,">="&AP$8,Datenblatt!$R:$R,"<="&EOMONTH(AP$8,0)), "") -> 280 | AQ12: =IF(ISNUMBER($C12), SUMIFS(Datenblatt!$M:$M, Datenblatt!$G:$G,$C12, Datenblatt!$R:$R,">="&AQ$8,Datenblatt!$R:$R,"<="&EOMONTH(AQ$8,0)) - SUMIFS(Datenblatt!$M:$M, Datenblatt!$E:$E,$C12, Datenblatt!$R:$R,">="&AQ$8,Datenblatt!$R:$R,"<="&EOMONTH(AQ$8,0)), "") -> 81 | AR12: =IF(ISNUMBER($C12), SUMIFS(Datenblatt!$M:$M, Datenblatt!$G:$G,$C12, Datenblatt!$R:$R,">="&AR$8,Datenblatt!$R:$R,"<="&EOMONTH(AR$8,0)) - SUMIFS(Datenblatt!$M:$M, Datenblatt!$E:$E,$C12, Datenblatt!$R:$R,">="&AR$8,Datenblatt!$R:$R,"<="&EOMONTH(AR$8,0)), "") -> 217 | AS12: =IF(ISNUMBER($C12), SUMIFS(Datenblatt!$M:$M, Datenblatt!$G:$G,$C12, Datenblatt!$R:$R,">="&AS$8,Datenblatt!$R:$R,"<="&EOMONTH(AS$8,0)) - SUMIFS(Datenblatt!$M:$M, Datenblatt!$E:$E,$C12, Datenblatt!$R:$R,">="&AS$8,Datenblatt!$R:$R,"<="&EOMONTH(AS$8,0)), "") -> 181 | AT12: =IF(ISNUMBER($C12), SUMIFS(Datenblatt!$M:$M, Datenblatt!$G:$G,$C12, Datenblatt!$R:$R,">="&AT$8,Datenblatt!$R:$R,"<="&EOMONTH(AT$8,0)) - SUMIFS(Datenblatt!$M:$M, Datenblatt!$E:$E,$C12, Datenblatt!$R:$R,">="&AT$8,Datenblatt!$R:$R,"<="&EOMONTH(AT$8,0)), "") -> 284 | AU12: =IF(ISNUMBER($C12), SUMIFS(Datenblatt!$M:$M, Datenblatt!$G:$G,$C12, Datenblatt!$R:$R,">="&AU$8,Datenblatt!$R:$R,"<="&EOMONTH(AU$8,0)) - SUMIFS(Datenblatt!$M:$M, Datenblatt!$E:$E,$C12, Datenblatt!$R:$R,">="&AU$8,Datenblatt!$R:$R,"<="&EOMONTH(AU$8,0)), "") -> 193 | AV12: =IF(ISNUMBER($C12), SUMIFS(Datenblatt!$M:$M, Datenblatt!$G:$G,$C12, Datenblatt!$R:$R,">="&AV$8,Datenblatt!$R:$R,"<="&EOMONTH(AV$8,0)) - SUMIFS(Datenblatt!$M:$M, Datenblatt!$E:$E,$C12, Datenblatt!$R:$R,">="&AV$8,Datenblatt!$R:$R,"<="&EOMONTH(AV$8,0)), "") -> 159 | AW12: =IF(ISNUMBER($C12), SUMIFS(Datenblatt!$M:$M, Datenblatt!$G:$G,$C12, Datenblatt!$R:$R,">="&AW$8,Datenblatt!$R:$R,"<="&EOMONTH(AW$8,0)) - SUMIFS(Datenblatt!$M:$M, Datenblatt!$E:$E,$C12, Datenblatt!$R:$R,">="&AW$8,Datenblatt!$R:$R,"<="&EOMONTH(AW$8,0)), "") -> 128 | AX12: =IF(ISNUMBER($C12), SUMIFS(Datenblatt!$M:$M, Datenblatt!$G:$G,$C12, Datenblatt!$R:$R,">="&AX$8,Datenblatt!$R:$R,"<="&EOMONTH(AX$8,0)) - SUMIFS(Datenblatt!$M:$M, Datenblatt!$E:$E,$C12, Datenblatt!$R:$R,">="&AX$8,Datenblatt!$R:$R,"<="&EOMONTH(AX$8,0)), "") -> 178 | AY12: =IF(ISNUMBER($C12), SUMIFS(Datenblatt!$M:$M, Datenblatt!$G:$G,$C12, Datenblatt!$R:$R,">="&AY$8,Datenblatt!$R:$R,"<="&EOMONTH(AY$8,0)) - SUMIFS(Datenblatt!$M:$M, Datenblatt!$E:$E,$C12, Datenblatt!$R:$R,">="&AY$8,Datenblatt!$R:$R,"<="&EOMONTH(AY$8,0)), "") -> 260 | AZ12: =IF(ISNUMBER($C12), SUMIFS(Datenblatt!$M:$M, Datenblatt!$G:$G,$C12, Datenblatt!$R:$R,">="&AZ$8,Datenblatt!$R:$R,"<="&EOMONTH(AZ$8,0)) - SUMIFS(Datenblatt!$M:$M, Datenblatt!$E:$E,$C12, Datenblatt!$R:$R,">="&AZ$8,Datenblatt!$R:$R,"<="&EOMONTH(AZ$8,0)), "") -> 16 | BA12: =IF(ISNUMBER($C12), SUMIFS(Datenblatt!$M:$M, Datenblatt!$G:$G,$C12, Datenblatt!$R:$R,">="&BA$8,Datenblatt!$R:$R,"<="&EOMONTH(BA$8,0)) - SUMIFS(Datenblatt!$M:$M, Datenblatt!$E:$E,$C12, Datenblatt!$R:$R,">="&BA$8,Datenblatt!$R:$R,"<="&EOMONTH(BA$8,0)), "") -> 385 | BB12: =IF(ISNUMBER($C12), SUMIFS(Datenblatt!$M:$M, Datenblatt!$G:$G,$C12, Datenblatt!$R:$R,">="&BB$8,Datenblatt!$R:$R,"<="&EOMONTH(BB$8,0)) - SUMIFS(Datenblatt!$M:$M, Datenblatt!$E:$E,$C12, Datenblatt!$R:$R,">="&BB$8,Datenblatt!$R:$R,"<="&EOMONTH(BB$8,0)), "") -> 507 | BC12: =IF(ISNUMBER($C12), SUMIFS(Datenblatt!$M:$M, Datenblatt!$G:$G,$C12, Datenblatt!$R:$R,">="&BC$8,Datenblatt!$R:$R,"<="&EOMONTH(BC$8,0)) - SUMIFS(Datenblatt!$M:$M, Datenblatt!$E:$E,$C12, Datenblatt!$R:$R,">="&BC$8,Datenblatt!$R:$R,"<="&EOMONTH(BC$8,0)), "") -> 325 | BD12: =IF(ISNUMBER($C12), SUMIFS(Datenblatt!$M:$M, Datenblatt!$G:$G,$C12, Datenblatt!$R:$R,">="&BD$8,Datenblatt!$R:$R,"<="&EOMONTH(BD$8,0)) - SUMIFS(Datenblatt!$M:$M, Datenblatt!$E:$E,$C12, Datenblatt!$R:$R,">="&BD$8,Datenblatt!$R:$R,"<="&EOMONTH(BD$8,0)), "") -> 443 | BE12: =IF(ISNUMBER($C12), SUMIFS(Datenblatt!$M:$M, Datenblatt!$G:$G,$C12, Datenblatt!$R:$R,">="&BE$8,Datenblatt!$R:$R,"<="&EOMONTH(BE$8,0)) - SUMIFS(Datenblatt!$M:$M, Datenblatt!$E:$E,$C12, Datenblatt!$R:$R,">="&BE$8,Datenblatt!$R:$R,"<="&EOMONTH(BE$8,0)), "") -> 160 | BF12: =IF(ISNUMBER($C12), SUMIFS(Datenblatt!$M:$M, Datenblatt!$G:$G,$C12, Datenblatt!$R:$R,">="&BF$8,Datenblatt!$R:$R,"<="&EOMONTH(BF$8,0)) - SUMIFS(Datenblatt!$M:$M, Datenblatt!$E:$E,$C12, Datenblatt!$R:$R,">="&BF$8,Datenblatt!$R:$R,"<="&EOMONTH(BF$8,0)), "") -> 255 | BG12: =IF(ISNUMBER($C12), SUMIFS(Datenblatt!$M:$M, Datenblatt!$G:$G,$C12, Datenblatt!$R:$R,">="&BG$8,Datenblatt!$R:$R,"<="&EOMONTH(BG$8,0)) - SUMIFS(Datenblatt!$M:$M, Datenblatt!$E:$E,$C12, Datenblatt!$R:$R,">="&BG$8,Datenblatt!$R:$R,"<="&EOMONTH(BG$8,0)), "") -> 91 | BH12: =IF(ISNUMBER($C12), SUMIFS(Datenblatt!$M:$M, Datenblatt!$G:$G,$C12, Datenblatt!$R:$R,">="&BH$8,Datenblatt!$R:$R,"<="&EOMONTH(BH$8,0)) - SUMIFS(Datenblatt!$M:$M, Datenblatt!$E:$E,$C12, Datenblatt!$R:$R,">="&BH$8,Datenblatt!$R:$R,"<="&EOMONTH(BH$8,0)), "") -> 114 | BI12: =IF(ISNUMBER($C12), SUMIFS(Datenblatt!$M:$M, Datenblatt!$G:$G,$C12, Datenblatt!$R:$R,">="&BI$8,Datenblatt!$R:$R,"<="&EOMONTH(BI$8,0)) - SUMIFS(Datenblatt!$M:$M, Datenblatt!$E:$E,$C12, Datenblatt!$R:$R,">="&BI$8,Datenblatt!$R:$R,"<="&EOMONTH(BI$8,0)), "") -> 176 | BJ12: =IF(ISNUMBER($C12), SUMIFS(Datenblatt!$M:$M, Datenblatt!$G:$G,$C12, Datenblatt!$R:$R,">="&BJ$8,Datenblatt!$R:$R,"<="&EOMONTH(BJ$8,0)) - SUMIFS(Datenblatt!$M:$M, Datenblatt!$E:$E,$C12, Datenblatt!$R:$R,">="&BJ$8,Datenblatt!$R:$R,"<="&EOMONTH(BJ$8,0)), "") -> 83 | BK12: =IF(ISNUMBER($C12), SUMIFS(Datenblatt!$M:$M, Datenblatt!$G:$G,$C12, Datenblatt!$R:$R,">="&BK$8,Datenblatt!$R:$R,"<="&EOMONTH(BK$8,0)) - SUMIFS(Datenblatt!$M:$M, Datenblatt!$E:$E,$C12, Datenblatt!$R:$R,">="&BK$8,Datenblatt!$R:$R,"<="&EOMONTH(BK$8,0)), "") -> 696 | BL12: =IF(ISNUMBER($C12), SUMIFS(Datenblatt!$M:$M, Datenblatt!$G:$G,$C12, Datenblatt!$R:$R,">="&BL$8,Datenblatt!$R:$R,"<="&EOMONTH(BL$8,0)) - SUMIFS(Datenblatt!$M:$M, Datenblatt!$E:$E,$C12, Datenblatt!$R:$R,">="&BL$8,Datenblatt!$R:$R,"<="&EOMONTH(BL$8,0)), "") -> 129 | BM12: =IF(ISNUMBER($C12), SUMIFS(Datenblatt!$M:$M, Datenblatt!$G:$G,$C12, Datenblatt!$R:$R,">="&BM$8,Datenblatt!$R:$R,"<="&EOMONTH(BM$8,0)) - SUMIFS(Datenblatt!$M:$M, Datenblatt!$E:$E,$C12, Datenblatt!$R:$R,">="&BM$8,Datenblatt!$R:$R,"<="&EOMONTH(BM$8,0)), "") -> 423 | BN12: =IF(ISNUMBER($C12), SUMIFS(Datenblatt!$M:$M, Datenblatt!$G:$G,$C12, Datenblatt!$R:$R,">="&BN$8,Datenblatt!$R:$R,"<="&EOMONTH(BN$8,0)) - SUMIFS(Datenblatt!$M:$M, Datenblatt!$E:$E,$C12, Datenblatt!$R:$R,">="&BN$8,Datenblatt!$R:$R,"<="&EOMONTH(BN$8,0)), "") -> 88 | BO12: =IF(ISNUMBER($C12), SUMIFS(Datenblatt!$M:$M, Datenblatt!$G:$G,$C12, Datenblatt!$R:$R,">="&BO$8,Datenblatt!$R:$R,"<="&EOMONTH(BO$8,0)) - SUMIFS(Datenblatt!$M:$M, Datenblatt!$E:$E,$C12, Datenblatt!$R:$R,">="&BO$8,Datenblatt!$R:$R,"<="&EOMONTH(BO$8,0)), "") -> 87 | BP12: =IF(ISNUMBER($C12), SUMIFS(Datenblatt!$M:$M, Datenblatt!$G:$G,$C12, Datenblatt!$R:$R,">="&BP$8,Datenblatt!$R:$R,"<="&EOMONTH(BP$8,0)) - SUMIFS(Datenblatt!$M:$M, Datenblatt!$E:$E,$C12, Datenblatt!$R:$R,">="&BP$8,Datenblatt!$R:$R,"<="&EOMONTH(BP$8,0)), "") -> 78 | BQ12: =IF(ISNUMBER($C12), SUMIFS(Datenblatt!$M:$M, Datenblatt!$G:$G,$C12, Datenblatt!$R:$R,">="&BQ$8,Datenblatt!$R:$R,"<="&EOMONTH(BQ$8,0)) - SUMIFS(Datenblatt!$M:$M, Datenblatt!$E:$E,$C12, Datenblatt!$R:$R,">="&BQ$8,Datenblatt!$R:$R,"<="&EOMONTH(BQ$8,0)), "") -> 126 | BR12: =IF(ISNUMBER($C12), SUMIFS(Datenblatt!$M:$M, Datenblatt!$G:$G,$C12, Datenblatt!$R:$R,">="&BR$8,Datenblatt!$R:$R,"<="&EOMONTH(BR$8,0)) - SUMIFS(Datenblatt!$M:$M, Datenblatt!$E:$E,$C12, Datenblatt!$R:$R,">="&BR$8,Datenblatt!$R:$R,"<="&EOMONTH(BR$8,0)), "") -> 332 | BS12: =IF(ISNUMBER($C12), SUMIFS(Datenblatt!$M:$M, Datenblatt!$G:$G,$C12, Datenblatt!$R:$R,">="&BS$8,Datenblatt!$R:$R,"<="&EOMONTH(BS$8,0)) - SUMIFS(Datenblatt!$M:$M, Datenblatt!$E:$E,$C12, Datenblatt!$R:$R,">="&BS$8,Datenblatt!$R:$R,"<="&EOMONTH(BS$8,0)), "") -> 227 | BT12: =IF(ISNUMBER($C12), SUMIFS(Datenblatt!$M:$M, Datenblatt!$G:$G,$C12, Datenblatt!$R:$R,">="&BT$8,Datenblatt!$R:$R,"<="&EOMONTH(BT$8,0)) - SUMIFS(Datenblatt!$M:$M, Datenblatt!$E:$E,$C12, Datenblatt!$R:$R,">="&BT$8,Datenblatt!$R:$R,"<="&EOMONTH(BT$8,0)), "") -> 351 | BU12: =IF(ISNUMBER($C12), SUMIFS(Datenblatt!$M:$M, Datenblatt!$G:$G,$C12, Datenblatt!$R:$R,">="&BU$8,Datenblatt!$R:$R,"<="&EOMONTH(BU$8,0)) - SUMIFS(Datenblatt!$M:$M, Datenblatt!$E:$E,$C12, Datenblatt!$R:$R,">="&BU$8,Datenblatt!$R:$R,"<="&EOMONTH(BU$8,0)), "") -> 168 | BV12: =IF(ISNUMBER($C12), SUMIFS(Datenblatt!$M:$M, Datenblatt!$G:$G,$C12, Datenblatt!$R:$R,">="&BV$8,Datenblatt!$R:$R,"<="&EOMONTH(BV$8,0)) - SUMIFS(Datenblatt!$M:$M, Datenblatt!$E:$E,$C12, Datenblatt!$R:$R,">="&BV$8,Datenblatt!$R:$R,"<="&EOMONTH(BV$8,0)), "") -> 317 | BW12: =IF(ISNUMBER($C12), SUMIFS(Datenblatt!$M:$M, Datenblatt!$G:$G,$C12, Datenblatt!$R:$R,">="&BW$8,Datenblatt!$R:$R,"<="&EOMONTH(BW$8,0)) - SUMIFS(Datenblatt!$M:$M, Datenblatt!$E:$E,$C12, Datenblatt!$R:$R,">="&BW$8,Datenblatt!$R:$R,"<="&EOMONTH(BW$8,0)), "") -> 44 | BX12: =IF(ISNUMBER($C12), SUMIFS(Datenblatt!$M:$M, Datenblatt!$G:$G,$C12, Datenblatt!$R:$R,">="&BX$8,Datenblatt!$R:$R,"<="&EOMONTH(BX$8,0)) - SUMIFS(Datenblatt!$M:$M, Datenblatt!$E:$E,$C12, Datenblatt!$R:$R,">="&BX$8,Datenblatt!$R:$R,"<="&EOMONTH(BX$8,0)), "") -> 102 | BY12: =IF(ISNUMBER($C12), SUMIFS(Datenblatt!$M:$M, Datenblatt!$G:$G,$C12, Datenblatt!$R:$R,">="&BY$8,Datenblatt!$R:$R,"<="&EOMONTH(BY$8,0)) - SUMIFS(Datenblatt!$M:$M, Datenblatt!$E:$E,$C12, Datenblatt!$R:$R,">="&BY$8,Datenblatt!$R:$R,"<="&EOMONTH(BY$8,0)), "") -> 261 | BZ12: =IF(ISNUMBER($C12), SUMIFS(Datenblatt!$M:$M, Datenblatt!$G:$G,$C12, Datenblatt!$R:$R,">="&BZ$8,Datenblatt!$R:$R,"<="&EOMONTH(BZ$8,0)) - SUMIFS(Datenblatt!$M:$M, Datenblatt!$E:$E,$C12, Datenblatt!$R:$R,">="&BZ$8,Datenblatt!$R:$R,"<="&EOMONTH(BZ$8,0)), "") -> 79 | CA12: =IF(ISNUMBER($C12), SUMIFS(Datenblatt!$M:$M, Datenblatt!$G:$G,$C12, Datenblatt!$R:$R,">="&CA$8,Datenblatt!$R:$R,"<="&EOMONTH(CA$8,0)) - SUMIFS(Datenblatt!$M:$M, Datenblatt!$E:$E,$C12, Datenblatt!$R:$R,">="&CA$8,Datenblatt!$R:$R,"<="&EOMONTH(CA$8,0)), "") -> 515 | CB12: =IF(ISNUMBER($C12), SUMIFS(Datenblatt!$M:$M, Datenblatt!$G:$G,$C12, Datenblatt!$R:$R,">="&CB$8,Datenblatt!$R:$R,"<="&EOMONTH(CB$8,0)) - SUMIFS(Datenblatt!$M:$M, Datenblatt!$E:$E,$C12, Datenblatt!$R:$R,">="&CB$8,Datenblatt!$R:$R,"<="&EOMONTH(CB$8,0)), "") -> 279 | CC12: =IF(ISNUMBER($C12), SUMIFS(Datenblatt!$M:$M, Datenblatt!$G:$G,$C12, Datenblatt!$R:$R,">="&CC$8,Datenblatt!$R:$R,"<="&EOMONTH(CC$8,0)) - SUMIFS(Datenblatt!$M:$M, Datenblatt!$E:$E,$C12, Datenblatt!$R:$R,">="&CC$8,Datenblatt!$R:$R,"<="&EOMONTH(CC$8,0)), "") -> 122 | CD12: =IF(ISNUMBER($C12), SUMIFS(Datenblatt!$M:$M, Datenblatt!$G:$G,$C12, Datenblatt!$R:$R,">="&CD$8,Datenblatt!$R:$R,"<="&EOMONTH(CD$8,0)) - SUMIFS(Datenblatt!$M:$M, Datenblatt!$E:$E,$C12, Datenblatt!$R:$R,">="&CD$8,Datenblatt!$R:$R,"<="&EOMONTH(CD$8,0)), "") -> 159 | CE12: =IF(ISNUMBER($C12), SUMIFS(Datenblatt!$M:$M, Datenblatt!$G:$G,$C12, Datenblatt!$R:$R,">="&CE$8,Datenblatt!$R:$R,"<="&EOMONTH(CE$8,0)) - SUMIFS(Datenblatt!$M:$M, Datenblatt!$E:$E,$C12, Datenblatt!$R:$R,">="&CE$8,Datenblatt!$R:$R,"<="&EOMONTH(CE$8,0)), "") -> 352 | CF12: =IF(ISNUMBER($C12), SUMIFS(Datenblatt!$M:$M, Datenblatt!$G:$G,$C12, Datenblatt!$R:$R,">="&CF$8,Datenblatt!$R:$R,"<="&EOMONTH(CF$8,0)) - SUMIFS(Datenblatt!$M:$M, Datenblatt!$E:$E,$C12, Datenblatt!$R:$R,">="&CF$8,Datenblatt!$R:$R,"<="&EOMONTH(CF$8,0)), "") -> 448 | CG12: =IF(ISNUMBER($C12), SUMIFS(Datenblatt!$M:$M, Datenblatt!$G:$G,$C12, Datenblatt!$R:$R,">="&CG$8,Datenblatt!$R:$R,"<="&EOMONTH(CG$8,0)) - SUMIFS(Datenblatt!$M:$M, Datenblatt!$E:$E,$C12, Datenblatt!$R:$R,">="&CG$8,Datenblatt!$R:$R,"<="&EOMONTH(CG$8,0)), "") -> 0 | CH12: =IF(ISNUMBER($C12), SUMIFS(Datenblatt!$M:$M, Datenblatt!$G:$G,$C12, Datenblatt!$R:$R,">="&CH$8,Datenblatt!$R:$R,"<="&EOMONTH(CH$8,0)) - SUMIFS(Datenblatt!$M:$M, Datenblatt!$E:$E,$C12, Datenblatt!$R:$R,">="&CH$8,Datenblatt!$R:$R,"<="&EOMONTH(CH$8,0)), "") -> 0 | CI12: =IF(ISNUMBER($C12), SUMIFS(Datenblatt!$M:$M, Datenblatt!$G:$G,$C12, Datenblatt!$R:$R,">="&CI$8,Datenblatt!$R:$R,"<="&EOMONTH(CI$8,0)) - SUMIFS(Datenblatt!$M:$M, Datenblatt!$E:$E,$C12, Datenblatt!$R:$R,">="&CI$8,Datenblatt!$R:$R,"<="&EOMONTH(CI$8,0)), "") -> 0 | CJ12: =IF(ISNUMBER($C12), SUMIFS(Datenblatt!$M:$M, Datenblatt!$G:$G,$C12, Datenblatt!$R:$R,">="&CJ$8,Datenblatt!$R:$R,"<="&EOMONTH(CJ$8,0)) - SUMIFS(Datenblatt!$M:$M, Datenblatt!$E:$E,$C12, Datenblatt!$R:$R,">="&CJ$8,Datenblatt!$R:$R,"<="&EOMONTH(CJ$8,0)), "") -> 0 | CK12: =IF(ISNUMBER($C12), SUMIFS(Datenblatt!$M:$M, Datenblatt!$G:$G,$C12, Datenblatt!$R:$R,">="&CK$8,Datenblatt!$R:$R,"<="&EOMONTH(CK$8,0)) - SUMIFS(Datenblatt!$M:$M, Datenblatt!$E:$E,$C12, Datenblatt!$R:$R,">="&CK$8,Datenblatt!$R:$R,"<="&EOMONTH(CK$8,0)), "") -> 0 | CL12: =IF(ISNUMBER($C12), SUMIFS(Datenblatt!$M:$M, Datenblatt!$G:$G,$C12, Datenblatt!$R:$R,">="&CL$8,Datenblatt!$R:$R,"<="&EOMONTH(CL$8,0)) - SUMIFS(Datenblatt!$M:$M, Datenblatt!$E:$E,$C12, Datenblatt!$R:$R,">="&CL$8,Datenblatt!$R:$R,"<="&EOMONTH(CL$8,0)), "") -> 0 | CM12: =IF(ISNUMBER($C12), SUMIFS(Datenblatt!$M:$M, Datenblatt!$G:$G,$C12, Datenblatt!$R:$R,">="&CM$8,Datenblatt!$R:$R,"<="&EOMONTH(CM$8,0)) - SUMIFS(Datenblatt!$M:$M, Datenblatt!$E:$E,$C12, Datenblatt!$R:$R,">="&CM$8,Datenblatt!$R:$R,"<="&EOMONTH(CM$8,0)), "") -> 0 | CN12: =IF(ISNUMBER($C12), SUMIFS(Datenblatt!$M:$M, Datenblatt!$G:$G,$C12, Datenblatt!$R:$R,">="&CN$8,Datenblatt!$R:$R,"<="&EOMONTH(CN$8,0)) - SUMIFS(Datenblatt!$M:$M, Datenblatt!$E:$E,$C12, Datenblatt!$R:$R,">="&CN$8,Datenblatt!$R:$R,"<="&EOMONTH(CN$8,0)), "") -> 0 | CO12: =IF(ISNUMBER($C12), SUMIFS(Datenblatt!$M:$M, Datenblatt!$G:$G,$C12, Datenblatt!$R:$R,">="&CO$8,Datenblatt!$R:$R,"<="&EOMONTH(CO$8,0)) - SUMIFS(Datenblatt!$M:$M, Datenblatt!$E:$E,$C12, Datenblatt!$R:$R,">="&CO$8,Datenblatt!$R:$R,"<="&EOMONTH(CO$8,0)), "") -> 0 | CP12: =IF(ISNUMBER($C12), SUMIFS(Datenblatt!$M:$M, Datenblatt!$G:$G,$C12, Datenblatt!$R:$R,">="&CP$8,Datenblatt!$R:$R,"<="&EOMONTH(CP$8,0)) - SUMIFS(Datenblatt!$M:$M, Datenblatt!$E:$E,$C12, Datenblatt!$R:$R,">="&CP$8,Datenblatt!$R:$R,"<="&EOMONTH(CP$8,0)), "") -> 0 | CQ12: =IF(ISNUMBER($C12), SUMIFS(Datenblatt!$M:$M, Datenblatt!$G:$G,$C12, Datenblatt!$R:$R,">="&CQ$8,Datenblatt!$R:$R,"<="&EOMONTH(CQ$8,0)) - SUMIFS(Datenblatt!$M:$M, Datenblatt!$E:$E,$C12, Datenblatt!$R:$R,">="&CQ$8,Datenblatt!$R:$R,"<="&EOMONTH(CQ$8,0)), "") -> 0 | CR12: =IF(ISNUMBER($C12), SUMIFS(Datenblatt!$M:$M, Datenblatt!$G:$G,$C12, Datenblatt!$R:$R,">="&CR$8,Datenblatt!$R:$R,"<="&EOMONTH(CR$8,0)) - SUMIFS(Datenblatt!$M:$M, Datenblatt!$E:$E,$C12, Datenblatt!$R:$R,">="&CR$8,Datenblatt!$R:$R,"<="&EOMONTH(CR$8,0)), "") -> 0 | CS12: =IF(ISNUMBER($C12), SUMIFS(Datenblatt!$M:$M, Datenblatt!$G:$G,$C12, Datenblatt!$R:$R,">="&CS$8,Datenblatt!$R:$R,"<="&EOMONTH(CS$8,0)) - SUMIFS(Datenblatt!$M:$M, Datenblatt!$E:$E,$C12, Datenblatt!$R:$R,">="&CS$8,Datenblatt!$R:$R,"<="&EOMONTH(CS$8,0)), "") -> 0 | CT12: =IF(ISNUMBER($C12), SUMIFS(Datenblatt!$M:$M, Datenblatt!$G:$G,$C12, Datenblatt!$R:$R,">="&CT$8,Datenblatt!$R:$R,"<="&EOMONTH(CT$8,0)) - SUMIFS(Datenblatt!$M:$M, Datenblatt!$E:$E,$C12, Datenblatt!$R:$R,">="&CT$8,Datenblatt!$R:$R,"<="&EOMONTH(CT$8,0)), "") -> 0 | CU12: =IF(ISNUMBER($C12), SUMIFS(Datenblatt!$M:$M, Datenblatt!$G:$G,$C12, Datenblatt!$R:$R,">="&CU$8,Datenblatt!$R:$R,"<="&EOMONTH(CU$8,0)) - SUMIFS(Datenblatt!$M:$M, Datenblatt!$E:$E,$C12, Datenblatt!$R:$R,">="&CU$8,Datenblatt!$R:$R,"<="&EOMONTH(CU$8,0)), "") -> 0 | CV12: =IF(ISNUMBER($C12), SUMIFS(Datenblatt!$M:$M, Datenblatt!$G:$G,$C12, Datenblatt!$R:$R,">="&CV$8,Datenblatt!$R:$R,"<="&EOMONTH(CV$8,0)) - SUMIFS(Datenblatt!$M:$M, Datenblatt!$E:$E,$C12, Datenblatt!$R:$R,">="&CV$8,Datenblatt!$R:$R,"<="&EOMONTH(CV$8,0)), "") -> 0 | CW12: =IF(ISNUMBER($C12), SUMIFS(Datenblatt!$M:$M, Datenblatt!$G:$G,$C12, Datenblatt!$R:$R,">="&CW$8,Datenblatt!$R:$R,"<="&EOMONTH(CW$8,0)) - SUMIFS(Datenblatt!$M:$M, Datenblatt!$E:$E,$C12, Datenblatt!$R:$R,">="&CW$8,Datenblatt!$R:$R,"<="&EOMONTH(CW$8,0)), "") -> 0 | CX12: =IF(ISNUMBER($C12), SUMIFS(Datenblatt!$M:$M, Datenblatt!$G:$G,$C12, Datenblatt!$R:$R,">="&CX$8,Datenblatt!$R:$R,"<="&EOMONTH(CX$8,0)) - SUMIFS(Datenblatt!$M:$M, Datenblatt!$E:$E,$C12, Datenblatt!$R:$R,">="&CX$8,Datenblatt!$R:$R,"<="&EOMONTH(CX$8,0)), "") -> 0 | CY12: =IF(ISNUMBER($C12), SUMIFS(Datenblatt!$M:$M, Datenblatt!$G:$G,$C12, Datenblatt!$R:$R,">="&CY$8,Datenblatt!$R:$R,"<="&EOMONTH(CY$8,0)) - SUMIFS(Datenblatt!$M:$M, Datenblatt!$E:$E,$C12, Datenblatt!$R:$R,">="&CY$8,Datenblatt!$R:$R,"<="&EOMONTH(CY$8,0)), "") -> 0 | CZ12: =IF(ISNUMBER($C12), SUMIFS(Datenblatt!$M:$M, Datenblatt!$G:$G,$C12, Datenblatt!$R:$R,">="&CZ$8,Datenblatt!$R:$R,"<="&EOMONTH(CZ$8,0)) - SUMIFS(Datenblatt!$M:$M, Datenblatt!$E:$E,$C12, Datenblatt!$R:$R,">="&CZ$8,Datenblatt!$R:$R,"<="&EOMONTH(CZ$8,0)), "") -> 0 | DA12: =IF(ISNUMBER($C12), SUMIFS(Datenblatt!$M:$M, Datenblatt!$G:$G,$C12, Datenblatt!$R:$R,">="&DA$8,Datenblatt!$R:$R,"<="&EOMONTH(DA$8,0)) - SUMIFS(Datenblatt!$M:$M, Datenblatt!$E:$E,$C12, Datenblatt!$R:$R,">="&DA$8,Datenblatt!$R:$R,"<="&EOMONTH(DA$8,0)), "") -> 0 | DB12: =IF(ISNUMBER($C12), SUMIFS(Datenblatt!$M:$M, Datenblatt!$G:$G,$C12, Datenblatt!$R:$R,">="&DB$8,Datenblatt!$R:$R,"<="&EOMONTH(DB$8,0)) - SUMIFS(Datenblatt!$M:$M, Datenblatt!$E:$E,$C12, Datenblatt!$R:$R,">="&DB$8,Datenblatt!$R:$R,"<="&EOMONTH(DB$8,0)), "") -> 0 | DC12: =IF(ISNUMBER($C12), SUMIFS(Datenblatt!$M:$M, Datenblatt!$G:$G,$C12, Datenblatt!$R:$R,">="&DC$8,Datenblatt!$R:$R,"<="&EOMONTH(DC$8,0)) - SUMIFS(Datenblatt!$M:$M, Datenblatt!$E:$E,$C12, Datenblatt!$R:$R,">="&DC$8,Datenblatt!$R:$R,"<="&EOMONTH(DC$8,0)), "") -> 0 | DD12: =IF(ISNUMBER($C12), SUMIFS(Datenblatt!$M:$M, Datenblatt!$G:$G,$C12, Datenblatt!$R:$R,">="&DD$8,Datenblatt!$R:$R,"<="&EOMONTH(DD$8,0)) - SUMIFS(Datenblatt!$M:$M, Datenblatt!$E:$E,$C12, Datenblatt!$R:$R,">="&DD$8,Datenblatt!$R:$R,"<="&EOMONTH(DD$8,0)), "") -> 0 | DE12: =IF(ISNUMBER($C12), SUMIFS(Datenblatt!$M:$M, Datenblatt!$G:$G,$C12, Datenblatt!$R:$R,">="&DE$8,Datenblatt!$R:$R,"<="&EOMONTH(DE$8,0)) - SUMIFS(Datenblatt!$M:$M, Datenblatt!$E:$E,$C12, Datenblatt!$R:$R,">="&DE$8,Datenblatt!$R:$R,"<="&EOMONTH(DE$8,0)), "") -> 0 | DF12: =IF(ISNUMBER($C12), SUMIFS(Datenblatt!$M:$M, Datenblatt!$G:$G,$C12, Datenblatt!$R:$R,">="&DF$8,Datenblatt!$R:$R,"<="&EOMONTH(DF$8,0)) - SUMIFS(Datenblatt!$M:$M, Datenblatt!$E:$E,$C12, Datenblatt!$R:$R,">="&DF$8,Datenblatt!$R:$R,"<="&EOMONTH(DF$8,0)), "") -> 0
B13: Ertrag | C13: 3700 | D13: Eigenleistungen | G13: =IF(ISNUMBER($C13), SUMIFS(Datenblatt!$M:$M, Datenblatt!$G:$G,$C13, Datenblatt!$R:$R,">="&G$8,Datenblatt!$R:$R,"<="&EOMONTH(G$8,11)) - SUMIFS(Datenblatt!$M:$M, Datenblatt!$E:$E,$C13, Datenblatt!$R:$R,">="&G$8,Datenblatt!$R:$R,"<="&EOMONTH(G$8,11)), "") -> 1709 | H13: =IF(ISNUMBER($C13), SUMIFS(Datenblatt!$M:$M, Datenblatt!$G:$G,$C13, Datenblatt!$R:$R,">="&H$8,Datenblatt!$R:$R,"<="&EOMONTH(H$8,11)) - SUMIFS(Datenblatt!$M:$M, Datenblatt!$E:$E,$C13, Datenblatt!$R:$R,">="&H$8,Datenblatt!$R:$R,"<="&EOMONTH(H$8,11)), "") -> 2723.05 | I13: =IF(ISNUMBER($C13), SUMIFS(Datenblatt!$M:$M, Datenblatt!$G:$G,$C13, Datenblatt!$R:$R,">="&I$8,Datenblatt!$R:$R,"<="&EOMONTH(I$8,11)) - SUMIFS(Datenblatt!$M:$M, Datenblatt!$E:$E,$C13, Datenblatt!$R:$R,">="&I$8,Datenblatt!$R:$R,"<="&EOMONTH(I$8,11)), "") -> 2119.83 | J13: =IF(ISNUMBER($C13), SUMIFS(Datenblatt!$M:$M, Datenblatt!$G:$G,$C13, Datenblatt!$R:$R,">="&J$8,Datenblatt!$R:$R,"<="&EOMONTH(J$8,11)) - SUMIFS(Datenblatt!$M:$M, Datenblatt!$E:$E,$C13, Datenblatt!$R:$R,">="&J$8,Datenblatt!$R:$R,"<="&EOMONTH(J$8,11)), "") -> 2136 | K13: =IF(ISNUMBER($C13), SUMIFS(Datenblatt!$M:$M, Datenblatt!$G:$G,$C13, Datenblatt!$R:$R,">="&K$8,Datenblatt!$R:$R,"<="&EOMONTH(K$8,11)) - SUMIFS(Datenblatt!$M:$M, Datenblatt!$E:$E,$C13, Datenblatt!$R:$R,">="&K$8,Datenblatt!$R:$R,"<="&EOMONTH(K$8,11)), "") -> 3381 | L13: =IF(ISNUMBER($C13), SUMIFS(Datenblatt!$M:$M, Datenblatt!$G:$G,$C13, Datenblatt!$R:$R,">="&L$8,Datenblatt!$R:$R,"<="&EOMONTH(L$8,11)) - SUMIFS(Datenblatt!$M:$M, Datenblatt!$E:$E,$C13, Datenblatt!$R:$R,">="&L$8,Datenblatt!$R:$R,"<="&EOMONTH(L$8,11)), "") -> 3929 | M13: =IF(ISNUMBER($C13), SUMIFS(Datenblatt!$M:$M, Datenblatt!$G:$G,$C13, Datenblatt!$R:$R,">="&M$8,Datenblatt!$R:$R,"<="&EOMONTH(M$8,11)) - SUMIFS(Datenblatt!$M:$M, Datenblatt!$E:$E,$C13, Datenblatt!$R:$R,">="&M$8,Datenblatt!$R:$R,"<="&EOMONTH(M$8,11)), "") -> 0 | N13: =IF(ISNUMBER($C13), SUMIFS(Datenblatt!$M:$M, Datenblatt!$G:$G,$C13, Datenblatt!$R:$R,">="&N$8,Datenblatt!$R:$R,"<="&EOMONTH(N$8,11)) - SUMIFS(Datenblatt!$M:$M, Datenblatt!$E:$E,$C13, Datenblatt!$R:$R,">="&N$8,Datenblatt!$R:$R,"<="&EOMONTH(N$8,11)), "") -> 0 | O13: =IF(ISNUMBER($C13), SUMIFS(Datenblatt!$M:$M, Datenblatt!$G:$G,$C13, Datenblatt!$R:$R,">="&O$8,Datenblatt!$R:$R,"<="&EOMONTH(O$8,0)) - SUMIFS(Datenblatt!$M:$M, Datenblatt!$E:$E,$C13, Datenblatt!$R:$R,">="&O$8,Datenblatt!$R:$R,"<="&EOMONTH(O$8,0)), "") -> 0 | P13: =IF(ISNUMBER($C13), SUMIFS(Datenblatt!$M:$M, Datenblatt!$G:$G,$C13, Datenblatt!$R:$R,">="&P$8,Datenblatt!$R:$R,"<="&EOMONTH(P$8,0)) - SUMIFS(Datenblatt!$M:$M, Datenblatt!$E:$E,$C13, Datenblatt!$R:$R,">="&P$8,Datenblatt!$R:$R,"<="&EOMONTH(P$8,0)), "") -> 210 | Q13: =IF(ISNUMBER($C13), SUMIFS(Datenblatt!$M:$M, Datenblatt!$G:$G,$C13, Datenblatt!$R:$R,">="&Q$8,Datenblatt!$R:$R,"<="&EOMONTH(Q$8,0)) - SUMIFS(Datenblatt!$M:$M, Datenblatt!$E:$E,$C13, Datenblatt!$R:$R,">="&Q$8,Datenblatt!$R:$R,"<="&EOMONTH(Q$8,0)), "") -> 62 | R13: =IF(ISNUMBER($C13), SUMIFS(Datenblatt!$M:$M, Datenblatt!$G:$G,$C13, Datenblatt!$R:$R,">="&R$8,Datenblatt!$R:$R,"<="&EOMONTH(R$8,0)) - SUMIFS(Datenblatt!$M:$M, Datenblatt!$E:$E,$C13, Datenblatt!$R:$R,">="&R$8,Datenblatt!$R:$R,"<="&EOMONTH(R$8,0)), "") -> 0 | S13: =IF(ISNUMBER($C13), SUMIFS(Datenblatt!$M:$M, Datenblatt!$G:$G,$C13, Datenblatt!$R:$R,">="&S$8,Datenblatt!$R:$R,"<="&EOMONTH(S$8,0)) - SUMIFS(Datenblatt!$M:$M, Datenblatt!$E:$E,$C13, Datenblatt!$R:$R,">="&S$8,Datenblatt!$R:$R,"<="&EOMONTH(S$8,0)), "") -> 332 | T13: =IF(ISNUMBER($C13), SUMIFS(Datenblatt!$M:$M, Datenblatt!$G:$G,$C13, Datenblatt!$R:$R,">="&T$8,Datenblatt!$R:$R,"<="&EOMONTH(T$8,0)) - SUMIFS(Datenblatt!$M:$M, Datenblatt!$E:$E,$C13, Datenblatt!$R:$R,">="&T$8,Datenblatt!$R:$R,"<="&EOMONTH(T$8,0)), "") -> 90 | U13: =IF(ISNUMBER($C13), SUMIFS(Datenblatt!$M:$M, Datenblatt!$G:$G,$C13, Datenblatt!$R:$R,">="&U$8,Datenblatt!$R:$R,"<="&EOMONTH(U$8,0)) - SUMIFS(Datenblatt!$M:$M, Datenblatt!$E:$E,$C13, Datenblatt!$R:$R,">="&U$8,Datenblatt!$R:$R,"<="&EOMONTH(U$8,0)), "") -> 31 | V13: =IF(ISNUMBER($C13), SUMIFS(Datenblatt!$M:$M, Datenblatt!$G:$G,$C13, Datenblatt!$R:$R,">="&V$8,Datenblatt!$R:$R,"<="&EOMONTH(V$8,0)) - SUMIFS(Datenblatt!$M:$M, Datenblatt!$E:$E,$C13, Datenblatt!$R:$R,">="&V$8,Datenblatt!$R:$R,"<="&EOMONTH(V$8,0)), "") -> 0 | W13: =IF(ISNUMBER($C13), SUMIFS(Datenblatt!$M:$M, Datenblatt!$G:$G,$C13, Datenblatt!$R:$R,">="&W$8,Datenblatt!$R:$R,"<="&EOMONTH(W$8,0)) - SUMIFS(Datenblatt!$M:$M, Datenblatt!$E:$E,$C13, Datenblatt!$R:$R,">="&W$8,Datenblatt!$R:$R,"<="&EOMONTH(W$8,0)), "") -> 364 | X13: =IF(ISNUMBER($C13), SUMIFS(Datenblatt!$M:$M, Datenblatt!$G:$G,$C13, Datenblatt!$R:$R,">="&X$8,Datenblatt!$R:$R,"<="&EOMONTH(X$8,0)) - SUMIFS(Datenblatt!$M:$M, Datenblatt!$E:$E,$C13, Datenblatt!$R:$R,">="&X$8,Datenblatt!$R:$R,"<="&EOMONTH(X$8,0)), "") -> 200 | Y13: =IF(ISNUMBER($C13), SUMIFS(Datenblatt!$M:$M, Datenblatt!$G:$G,$C13, Datenblatt!$R:$R,">="&Y$8,Datenblatt!$R:$R,"<="&EOMONTH(Y$8,0)) - SUMIFS(Datenblatt!$M:$M, Datenblatt!$E:$E,$C13, Datenblatt!$R:$R,">="&Y$8,Datenblatt!$R:$R,"<="&EOMONTH(Y$8,0)), "") -> 207 | Z13: =IF(ISNUMBER($C13), SUMIFS(Datenblatt!$M:$M, Datenblatt!$G:$G,$C13, Datenblatt!$R:$R,">="&Z$8,Datenblatt!$R:$R,"<="&EOMONTH(Z$8,0)) - SUMIFS(Datenblatt!$M:$M, Datenblatt!$E:$E,$C13, Datenblatt!$R:$R,">="&Z$8,Datenblatt!$R:$R,"<="&EOMONTH(Z$8,0)), "") -> 213 | AA13: =IF(ISNUMBER($C13), SUMIFS(Datenblatt!$M:$M, Datenblatt!$G:$G,$C13, Datenblatt!$R:$R,">="&AA$8,Datenblatt!$R:$R,"<="&EOMONTH(AA$8,0)) - SUMIFS(Datenblatt!$M:$M, Datenblatt!$E:$E,$C13, Datenblatt!$R:$R,">="&AA$8,Datenblatt!$R:$R,"<="&EOMONTH(AA$8,0)), "") -> 109 | AB13: =IF(ISNUMBER($C13), SUMIFS(Datenblatt!$M:$M, Datenblatt!$G:$G,$C13, Datenblatt!$R:$R,">="&AB$8,Datenblatt!$R:$R,"<="&EOMONTH(AB$8,0)) - SUMIFS(Datenblatt!$M:$M, Datenblatt!$E:$E,$C13, Datenblatt!$R:$R,">="&AB$8,Datenblatt!$R:$R,"<="&EOMONTH(AB$8,0)), "") -> 259.05 | AC13: =IF(ISNUMBER($C13), SUMIFS(Datenblatt!$M:$M, Datenblatt!$G:$G,$C13, Datenblatt!$R:$R,">="&AC$8,Datenblatt!$R:$R,"<="&EOMONTH(AC$8,0)) - SUMIFS(Datenblatt!$M:$M, Datenblatt!$E:$E,$C13, Datenblatt!$R:$R,">="&AC$8,Datenblatt!$R:$R,"<="&EOMONTH(AC$8,0)), "") -> 307 | AD13: =IF(ISNUMBER($C13), SUMIFS(Datenblatt!$M:$M, Datenblatt!$G:$G,$C13, Datenblatt!$R:$R,">="&AD$8,Datenblatt!$R:$R,"<="&EOMONTH(AD$8,0)) - SUMIFS(Datenblatt!$M:$M, Datenblatt!$E:$E,$C13, Datenblatt!$R:$R,">="&AD$8,Datenblatt!$R:$R,"<="&EOMONTH(AD$8,0)), "") -> 358 | AE13: =IF(ISNUMBER($C13), SUMIFS(Datenblatt!$M:$M, Datenblatt!$G:$G,$C13, Datenblatt!$R:$R,">="&AE$8,Datenblatt!$R:$R,"<="&EOMONTH(AE$8,0)) - SUMIFS(Datenblatt!$M:$M, Datenblatt!$E:$E,$C13, Datenblatt!$R:$R,">="&AE$8,Datenblatt!$R:$R,"<="&EOMONTH(AE$8,0)), "") -> 440 | AF13: =IF(ISNUMBER($C13), SUMIFS(Datenblatt!$M:$M, Datenblatt!$G:$G,$C13, Datenblatt!$R:$R,">="&AF$8,Datenblatt!$R:$R,"<="&EOMONTH(AF$8,0)) - SUMIFS(Datenblatt!$M:$M, Datenblatt!$E:$E,$C13, Datenblatt!$R:$R,">="&AF$8,Datenblatt!$R:$R,"<="&EOMONTH(AF$8,0)), "") -> 371 | AG13: =IF(ISNUMBER($C13), SUMIFS(Datenblatt!$M:$M, Datenblatt!$G:$G,$C13, Datenblatt!$R:$R,">="&AG$8,Datenblatt!$R:$R,"<="&EOMONTH(AG$8,0)) - SUMIFS(Datenblatt!$M:$M, Datenblatt!$E:$E,$C13, Datenblatt!$R:$R,">="&AG$8,Datenblatt!$R:$R,"<="&EOMONTH(AG$8,0)), "") -> 246 | AH13: =IF(ISNUMBER($C13), SUMIFS(Datenblatt!$M:$M, Datenblatt!$G:$G,$C13, Datenblatt!$R:$R,">="&AH$8,Datenblatt!$R:$R,"<="&EOMONTH(AH$8,0)) - SUMIFS(Datenblatt!$M:$M, Datenblatt!$E:$E,$C13, Datenblatt!$R:$R,">="&AH$8,Datenblatt!$R:$R,"<="&EOMONTH(AH$8,0)), "") -> 126 | AI13: =IF(ISNUMBER($C13), SUMIFS(Datenblatt!$M:$M, Datenblatt!$G:$G,$C13, Datenblatt!$R:$R,">="&AI$8,Datenblatt!$R:$R,"<="&EOMONTH(AI$8,0)) - SUMIFS(Datenblatt!$M:$M, Datenblatt!$E:$E,$C13, Datenblatt!$R:$R,">="&AI$8,Datenblatt!$R:$R,"<="&EOMONTH(AI$8,0)), "") -> 131 | AJ13: =IF(ISNUMBER($C13), SUMIFS(Datenblatt!$M:$M, Datenblatt!$G:$G,$C13, Datenblatt!$R:$R,">="&AJ$8,Datenblatt!$R:$R,"<="&EOMONTH(AJ$8,0)) - SUMIFS(Datenblatt!$M:$M, Datenblatt!$E:$E,$C13, Datenblatt!$R:$R,">="&AJ$8,Datenblatt!$R:$R,"<="&EOMONTH(AJ$8,0)), "") -> 35 | AK13: =IF(ISNUMBER($C13), SUMIFS(Datenblatt!$M:$M, Datenblatt!$G:$G,$C13, Datenblatt!$R:$R,">="&AK$8,Datenblatt!$R:$R,"<="&EOMONTH(AK$8,0)) - SUMIFS(Datenblatt!$M:$M, Datenblatt!$E:$E,$C13, Datenblatt!$R:$R,">="&AK$8,Datenblatt!$R:$R,"<="&EOMONTH(AK$8,0)), "") -> 128 | AL13: =IF(ISNUMBER($C13), SUMIFS(Datenblatt!$M:$M, Datenblatt!$G:$G,$C13, Datenblatt!$R:$R,">="&AL$8,Datenblatt!$R:$R,"<="&EOMONTH(AL$8,0)) - SUMIFS(Datenblatt!$M:$M, Datenblatt!$E:$E,$C13, Datenblatt!$R:$R,">="&AL$8,Datenblatt!$R:$R,"<="&EOMONTH(AL$8,0)), "") -> 213 | AM13: =IF(ISNUMBER($C13), SUMIFS(Datenblatt!$M:$M, Datenblatt!$G:$G,$C13, Datenblatt!$R:$R,">="&AM$8,Datenblatt!$R:$R,"<="&EOMONTH(AM$8,0)) - SUMIFS(Datenblatt!$M:$M, Datenblatt!$E:$E,$C13, Datenblatt!$R:$R,">="&AM$8,Datenblatt!$R:$R,"<="&EOMONTH(AM$8,0)), "") -> 124 | AN13: =IF(ISNUMBER($C13), SUMIFS(Datenblatt!$M:$M, Datenblatt!$G:$G,$C13, Datenblatt!$R:$R,">="&AN$8,Datenblatt!$R:$R,"<="&EOMONTH(AN$8,0)) - SUMIFS(Datenblatt!$M:$M, Datenblatt!$E:$E,$C13, Datenblatt!$R:$R,">="&AN$8,Datenblatt!$R:$R,"<="&EOMONTH(AN$8,0)), "") -> 238 | AO13: =IF(ISNUMBER($C13), SUMIFS(Datenblatt!$M:$M, Datenblatt!$G:$G,$C13, Datenblatt!$R:$R,">="&AO$8,Datenblatt!$R:$R,"<="&EOMONTH(AO$8,0)) - SUMIFS(Datenblatt!$M:$M, Datenblatt!$E:$E,$C13, Datenblatt!$R:$R,">="&AO$8,Datenblatt!$R:$R,"<="&EOMONTH(AO$8,0)), "") -> 69 | AP13: =IF(ISNUMBER($C13), SUMIFS(Datenblatt!$M:$M, Datenblatt!$G:$G,$C13, Datenblatt!$R:$R,">="&AP$8,Datenblatt!$R:$R,"<="&EOMONTH(AP$8,0)) - SUMIFS(Datenblatt!$M:$M, Datenblatt!$E:$E,$C13, Datenblatt!$R:$R,">="&AP$8,Datenblatt!$R:$R,"<="&EOMONTH(AP$8,0)), "") -> 558.83 | AQ13: =IF(ISNUMBER($C13), SUMIFS(Datenblatt!$M:$M, Datenblatt!$G:$G,$C13, Datenblatt!$R:$R,">="&AQ$8,Datenblatt!$R:$R,"<="&EOMONTH(AQ$8,0)) - SUMIFS(Datenblatt!$M:$M, Datenblatt!$E:$E,$C13, Datenblatt!$R:$R,">="&AQ$8,Datenblatt!$R:$R,"<="&EOMONTH(AQ$8,0)), "") -> 265 | AR13: =IF(ISNUMBER($C13), SUMIFS(Datenblatt!$M:$M, Datenblatt!$G:$G,$C13, Datenblatt!$R:$R,">="&AR$8,Datenblatt!$R:$R,"<="&EOMONTH(AR$8,0)) - SUMIFS(Datenblatt!$M:$M, Datenblatt!$E:$E,$C13, Datenblatt!$R:$R,">="&AR$8,Datenblatt!$R:$R,"<="&EOMONTH(AR$8,0)), "") -> 0 | AS13: =IF(ISNUMBER($C13), SUMIFS(Datenblatt!$M:$M, Datenblatt!$G:$G,$C13, Datenblatt!$R:$R,">="&AS$8,Datenblatt!$R:$R,"<="&EOMONTH(AS$8,0)) - SUMIFS(Datenblatt!$M:$M, Datenblatt!$E:$E,$C13, Datenblatt!$R:$R,">="&AS$8,Datenblatt!$R:$R,"<="&EOMONTH(AS$8,0)), "") -> 256 | AT13: =IF(ISNUMBER($C13), SUMIFS(Datenblatt!$M:$M, Datenblatt!$G:$G,$C13, Datenblatt!$R:$R,">="&AT$8,Datenblatt!$R:$R,"<="&EOMONTH(AT$8,0)) - SUMIFS(Datenblatt!$M:$M, Datenblatt!$E:$E,$C13, Datenblatt!$R:$R,">="&AT$8,Datenblatt!$R:$R,"<="&EOMONTH(AT$8,0)), "") -> 70 | AU13: =IF(ISNUMBER($C13), SUMIFS(Datenblatt!$M:$M, Datenblatt!$G:$G,$C13, Datenblatt!$R:$R,">="&AU$8,Datenblatt!$R:$R,"<="&EOMONTH(AU$8,0)) - SUMIFS(Datenblatt!$M:$M, Datenblatt!$E:$E,$C13, Datenblatt!$R:$R,">="&AU$8,Datenblatt!$R:$R,"<="&EOMONTH(AU$8,0)), "") -> 89 | AV13: =IF(ISNUMBER($C13), SUMIFS(Datenblatt!$M:$M, Datenblatt!$G:$G,$C13, Datenblatt!$R:$R,">="&AV$8,Datenblatt!$R:$R,"<="&EOMONTH(AV$8,0)) - SUMIFS(Datenblatt!$M:$M, Datenblatt!$E:$E,$C13, Datenblatt!$R:$R,">="&AV$8,Datenblatt!$R:$R,"<="&EOMONTH(AV$8,0)), "") -> 70 | AW13: =IF(ISNUMBER($C13), SUMIFS(Datenblatt!$M:$M, Datenblatt!$G:$G,$C13, Datenblatt!$R:$R,">="&AW$8,Datenblatt!$R:$R,"<="&EOMONTH(AW$8,0)) - SUMIFS(Datenblatt!$M:$M, Datenblatt!$E:$E,$C13, Datenblatt!$R:$R,">="&AW$8,Datenblatt!$R:$R,"<="&EOMONTH(AW$8,0)), "") -> 69 | AX13: =IF(ISNUMBER($C13), SUMIFS(Datenblatt!$M:$M, Datenblatt!$G:$G,$C13, Datenblatt!$R:$R,">="&AX$8,Datenblatt!$R:$R,"<="&EOMONTH(AX$8,0)) - SUMIFS(Datenblatt!$M:$M, Datenblatt!$E:$E,$C13, Datenblatt!$R:$R,">="&AX$8,Datenblatt!$R:$R,"<="&EOMONTH(AX$8,0)), "") -> 311 | AY13: =IF(ISNUMBER($C13), SUMIFS(Datenblatt!$M:$M, Datenblatt!$G:$G,$C13, Datenblatt!$R:$R,">="&AY$8,Datenblatt!$R:$R,"<="&EOMONTH(AY$8,0)) - SUMIFS(Datenblatt!$M:$M, Datenblatt!$E:$E,$C13, Datenblatt!$R:$R,">="&AY$8,Datenblatt!$R:$R,"<="&EOMONTH(AY$8,0)), "") -> 0 | AZ13: =IF(ISNUMBER($C13), SUMIFS(Datenblatt!$M:$M, Datenblatt!$G:$G,$C13, Datenblatt!$R:$R,">="&AZ$8,Datenblatt!$R:$R,"<="&EOMONTH(AZ$8,0)) - SUMIFS(Datenblatt!$M:$M, Datenblatt!$E:$E,$C13, Datenblatt!$R:$R,">="&AZ$8,Datenblatt!$R:$R,"<="&EOMONTH(AZ$8,0)), "") -> 99 | BA13: =IF(ISNUMBER($C13), SUMIFS(Datenblatt!$M:$M, Datenblatt!$G:$G,$C13, Datenblatt!$R:$R,">="&BA$8,Datenblatt!$R:$R,"<="&EOMONTH(BA$8,0)) - SUMIFS(Datenblatt!$M:$M, Datenblatt!$E:$E,$C13, Datenblatt!$R:$R,">="&BA$8,Datenblatt!$R:$R,"<="&EOMONTH(BA$8,0)), "") -> 205 | BB13: =IF(ISNUMBER($C13), SUMIFS(Datenblatt!$M:$M, Datenblatt!$G:$G,$C13, Datenblatt!$R:$R,">="&BB$8,Datenblatt!$R:$R,"<="&EOMONTH(BB$8,0)) - SUMIFS(Datenblatt!$M:$M, Datenblatt!$E:$E,$C13, Datenblatt!$R:$R,">="&BB$8,Datenblatt!$R:$R,"<="&EOMONTH(BB$8,0)), "") -> 126 | BC13: =IF(ISNUMBER($C13), SUMIFS(Datenblatt!$M:$M, Datenblatt!$G:$G,$C13, Datenblatt!$R:$R,">="&BC$8,Datenblatt!$R:$R,"<="&EOMONTH(BC$8,0)) - SUMIFS(Datenblatt!$M:$M, Datenblatt!$E:$E,$C13, Datenblatt!$R:$R,">="&BC$8,Datenblatt!$R:$R,"<="&EOMONTH(BC$8,0)), "") -> 311 | BD13: =IF(ISNUMBER($C13), SUMIFS(Datenblatt!$M:$M, Datenblatt!$G:$G,$C13, Datenblatt!$R:$R,">="&BD$8,Datenblatt!$R:$R,"<="&EOMONTH(BD$8,0)) - SUMIFS(Datenblatt!$M:$M, Datenblatt!$E:$E,$C13, Datenblatt!$R:$R,">="&BD$8,Datenblatt!$R:$R,"<="&EOMONTH(BD$8,0)), "") -> 212 | BE13: =IF(ISNUMBER($C13), SUMIFS(Datenblatt!$M:$M, Datenblatt!$G:$G,$C13, Datenblatt!$R:$R,">="&BE$8,Datenblatt!$R:$R,"<="&EOMONTH(BE$8,0)) - SUMIFS(Datenblatt!$M:$M, Datenblatt!$E:$E,$C13, Datenblatt!$R:$R,">="&BE$8,Datenblatt!$R:$R,"<="&EOMONTH(BE$8,0)), "") -> 297 | BF13: =IF(ISNUMBER($C13), SUMIFS(Datenblatt!$M:$M, Datenblatt!$G:$G,$C13, Datenblatt!$R:$R,">="&BF$8,Datenblatt!$R:$R,"<="&EOMONTH(BF$8,0)) - SUMIFS(Datenblatt!$M:$M, Datenblatt!$E:$E,$C13, Datenblatt!$R:$R,">="&BF$8,Datenblatt!$R:$R,"<="&EOMONTH(BF$8,0)), "") -> 118 | BG13: =IF(ISNUMBER($C13), SUMIFS(Datenblatt!$M:$M, Datenblatt!$G:$G,$C13, Datenblatt!$R:$R,">="&BG$8,Datenblatt!$R:$R,"<="&EOMONTH(BG$8,0)) - SUMIFS(Datenblatt!$M:$M, Datenblatt!$E:$E,$C13, Datenblatt!$R:$R,">="&BG$8,Datenblatt!$R:$R,"<="&EOMONTH(BG$8,0)), "") -> 284 | BH13: =IF(ISNUMBER($C13), SUMIFS(Datenblatt!$M:$M, Datenblatt!$G:$G,$C13, Datenblatt!$R:$R,">="&BH$8,Datenblatt!$R:$R,"<="&EOMONTH(BH$8,0)) - SUMIFS(Datenblatt!$M:$M, Datenblatt!$E:$E,$C13, Datenblatt!$R:$R,">="&BH$8,Datenblatt!$R:$R,"<="&EOMONTH(BH$8,0)), "") -> 227 | BI13: =IF(ISNUMBER($C13), SUMIFS(Datenblatt!$M:$M, Datenblatt!$G:$G,$C13, Datenblatt!$R:$R,">="&BI$8,Datenblatt!$R:$R,"<="&EOMONTH(BI$8,0)) - SUMIFS(Datenblatt!$M:$M, Datenblatt!$E:$E,$C13, Datenblatt!$R:$R,">="&BI$8,Datenblatt!$R:$R,"<="&EOMONTH(BI$8,0)), "") -> 257 | BJ13: =IF(ISNUMBER($C13), SUMIFS(Datenblatt!$M:$M, Datenblatt!$G:$G,$C13, Datenblatt!$R:$R,">="&BJ$8,Datenblatt!$R:$R,"<="&EOMONTH(BJ$8,0)) - SUMIFS(Datenblatt!$M:$M, Datenblatt!$E:$E,$C13, Datenblatt!$R:$R,">="&BJ$8,Datenblatt!$R:$R,"<="&EOMONTH(BJ$8,0)), "") -> 0 | BK13: =IF(ISNUMBER($C13), SUMIFS(Datenblatt!$M:$M, Datenblatt!$G:$G,$C13, Datenblatt!$R:$R,">="&BK$8,Datenblatt!$R:$R,"<="&EOMONTH(BK$8,0)) - SUMIFS(Datenblatt!$M:$M, Datenblatt!$E:$E,$C13, Datenblatt!$R:$R,">="&BK$8,Datenblatt!$R:$R,"<="&EOMONTH(BK$8,0)), "") -> 453 | BL13: =IF(ISNUMBER($C13), SUMIFS(Datenblatt!$M:$M, Datenblatt!$G:$G,$C13, Datenblatt!$R:$R,">="&BL$8,Datenblatt!$R:$R,"<="&EOMONTH(BL$8,0)) - SUMIFS(Datenblatt!$M:$M, Datenblatt!$E:$E,$C13, Datenblatt!$R:$R,">="&BL$8,Datenblatt!$R:$R,"<="&EOMONTH(BL$8,0)), "") -> 201 | BM13: =IF(ISNUMBER($C13), SUMIFS(Datenblatt!$M:$M, Datenblatt!$G:$G,$C13, Datenblatt!$R:$R,">="&BM$8,Datenblatt!$R:$R,"<="&EOMONTH(BM$8,0)) - SUMIFS(Datenblatt!$M:$M, Datenblatt!$E:$E,$C13, Datenblatt!$R:$R,">="&BM$8,Datenblatt!$R:$R,"<="&EOMONTH(BM$8,0)), "") -> 614 | BN13: =IF(ISNUMBER($C13), SUMIFS(Datenblatt!$M:$M, Datenblatt!$G:$G,$C13, Datenblatt!$R:$R,">="&BN$8,Datenblatt!$R:$R,"<="&EOMONTH(BN$8,0)) - SUMIFS(Datenblatt!$M:$M, Datenblatt!$E:$E,$C13, Datenblatt!$R:$R,">="&BN$8,Datenblatt!$R:$R,"<="&EOMONTH(BN$8,0)), "") -> 203 | BO13: =IF(ISNUMBER($C13), SUMIFS(Datenblatt!$M:$M, Datenblatt!$G:$G,$C13, Datenblatt!$R:$R,">="&BO$8,Datenblatt!$R:$R,"<="&EOMONTH(BO$8,0)) - SUMIFS(Datenblatt!$M:$M, Datenblatt!$E:$E,$C13, Datenblatt!$R:$R,">="&BO$8,Datenblatt!$R:$R,"<="&EOMONTH(BO$8,0)), "") -> 327 | BP13: =IF(ISNUMBER($C13), SUMIFS(Datenblatt!$M:$M, Datenblatt!$G:$G,$C13, Datenblatt!$R:$R,">="&BP$8,Datenblatt!$R:$R,"<="&EOMONTH(BP$8,0)) - SUMIFS(Datenblatt!$M:$M, Datenblatt!$E:$E,$C13, Datenblatt!$R:$R,">="&BP$8,Datenblatt!$R:$R,"<="&EOMONTH(BP$8,0)), "") -> 54 | BQ13: =IF(ISNUMBER($C13), SUMIFS(Datenblatt!$M:$M, Datenblatt!$G:$G,$C13, Datenblatt!$R:$R,">="&BQ$8,Datenblatt!$R:$R,"<="&EOMONTH(BQ$8,0)) - SUMIFS(Datenblatt!$M:$M, Datenblatt!$E:$E,$C13, Datenblatt!$R:$R,">="&BQ$8,Datenblatt!$R:$R,"<="&EOMONTH(BQ$8,0)), "") -> 308 | BR13: =IF(ISNUMBER($C13), SUMIFS(Datenblatt!$M:$M, Datenblatt!$G:$G,$C13, Datenblatt!$R:$R,">="&BR$8,Datenblatt!$R:$R,"<="&EOMONTH(BR$8,0)) - SUMIFS(Datenblatt!$M:$M, Datenblatt!$E:$E,$C13, Datenblatt!$R:$R,">="&BR$8,Datenblatt!$R:$R,"<="&EOMONTH(BR$8,0)), "") -> 201 | BS13: =IF(ISNUMBER($C13), SUMIFS(Datenblatt!$M:$M, Datenblatt!$G:$G,$C13, Datenblatt!$R:$R,">="&BS$8,Datenblatt!$R:$R,"<="&EOMONTH(BS$8,0)) - SUMIFS(Datenblatt!$M:$M, Datenblatt!$E:$E,$C13, Datenblatt!$R:$R,">="&BS$8,Datenblatt!$R:$R,"<="&EOMONTH(BS$8,0)), "") -> 481 | BT13: =IF(ISNUMBER($C13), SUMIFS(Datenblatt!$M:$M, Datenblatt!$G:$G,$C13, Datenblatt!$R:$R,">="&BT$8,Datenblatt!$R:$R,"<="&EOMONTH(BT$8,0)) - SUMIFS(Datenblatt!$M:$M, Datenblatt!$E:$E,$C13, Datenblatt!$R:$R,">="&BT$8,Datenblatt!$R:$R,"<="&EOMONTH(BT$8,0)), "") -> 167 | BU13: =IF(ISNUMBER($C13), SUMIFS(Datenblatt!$M:$M, Datenblatt!$G:$G,$C13, Datenblatt!$R:$R,">="&BU$8,Datenblatt!$R:$R,"<="&EOMONTH(BU$8,0)) - SUMIFS(Datenblatt!$M:$M, Datenblatt!$E:$E,$C13, Datenblatt!$R:$R,">="&BU$8,Datenblatt!$R:$R,"<="&EOMONTH(BU$8,0)), "") -> 30 | BV13: =IF(ISNUMBER($C13), SUMIFS(Datenblatt!$M:$M, Datenblatt!$G:$G,$C13, Datenblatt!$R:$R,">="&BV$8,Datenblatt!$R:$R,"<="&EOMONTH(BV$8,0)) - SUMIFS(Datenblatt!$M:$M, Datenblatt!$E:$E,$C13, Datenblatt!$R:$R,">="&BV$8,Datenblatt!$R:$R,"<="&EOMONTH(BV$8,0)), "") -> 342 | BW13: =IF(ISNUMBER($C13), SUMIFS(Datenblatt!$M:$M, Datenblatt!$G:$G,$C13, Datenblatt!$R:$R,">="&BW$8,Datenblatt!$R:$R,"<="&EOMONTH(BW$8,0)) - SUMIFS(Datenblatt!$M:$M, Datenblatt!$E:$E,$C13, Datenblatt!$R:$R,">="&BW$8,Datenblatt!$R:$R,"<="&EOMONTH(BW$8,0)), "") -> 262 | BX13: =IF(ISNUMBER($C13), SUMIFS(Datenblatt!$M:$M, Datenblatt!$G:$G,$C13, Datenblatt!$R:$R,">="&BX$8,Datenblatt!$R:$R,"<="&EOMONTH(BX$8,0)) - SUMIFS(Datenblatt!$M:$M, Datenblatt!$E:$E,$C13, Datenblatt!$R:$R,">="&BX$8,Datenblatt!$R:$R,"<="&EOMONTH(BX$8,0)), "") -> 0 | BY13: =IF(ISNUMBER($C13), SUMIFS(Datenblatt!$M:$M, Datenblatt!$G:$G,$C13, Datenblatt!$R:$R,">="&BY$8,Datenblatt!$R:$R,"<="&EOMONTH(BY$8,0)) - SUMIFS(Datenblatt!$M:$M, Datenblatt!$E:$E,$C13, Datenblatt!$R:$R,">="&BY$8,Datenblatt!$R:$R,"<="&EOMONTH(BY$8,0)), "") -> 325 | BZ13: =IF(ISNUMBER($C13), SUMIFS(Datenblatt!$M:$M, Datenblatt!$G:$G,$C13, Datenblatt!$R:$R,">="&BZ$8,Datenblatt!$R:$R,"<="&EOMONTH(BZ$8,0)) - SUMIFS(Datenblatt!$M:$M, Datenblatt!$E:$E,$C13, Datenblatt!$R:$R,">="&BZ$8,Datenblatt!$R:$R,"<="&EOMONTH(BZ$8,0)), "") -> 477 | CA13: =IF(ISNUMBER($C13), SUMIFS(Datenblatt!$M:$M, Datenblatt!$G:$G,$C13, Datenblatt!$R:$R,">="&CA$8,Datenblatt!$R:$R,"<="&EOMONTH(CA$8,0)) - SUMIFS(Datenblatt!$M:$M, Datenblatt!$E:$E,$C13, Datenblatt!$R:$R,">="&CA$8,Datenblatt!$R:$R,"<="&EOMONTH(CA$8,0)), "") -> 274 | CB13: =IF(ISNUMBER($C13), SUMIFS(Datenblatt!$M:$M, Datenblatt!$G:$G,$C13, Datenblatt!$R:$R,">="&CB$8,Datenblatt!$R:$R,"<="&EOMONTH(CB$8,0)) - SUMIFS(Datenblatt!$M:$M, Datenblatt!$E:$E,$C13, Datenblatt!$R:$R,">="&CB$8,Datenblatt!$R:$R,"<="&EOMONTH(CB$8,0)), "") -> 192 | CC13: =IF(ISNUMBER($C13), SUMIFS(Datenblatt!$M:$M, Datenblatt!$G:$G,$C13, Datenblatt!$R:$R,">="&CC$8,Datenblatt!$R:$R,"<="&EOMONTH(CC$8,0)) - SUMIFS(Datenblatt!$M:$M, Datenblatt!$E:$E,$C13, Datenblatt!$R:$R,">="&CC$8,Datenblatt!$R:$R,"<="&EOMONTH(CC$8,0)), "") -> 373 | CD13: =IF(ISNUMBER($C13), SUMIFS(Datenblatt!$M:$M, Datenblatt!$G:$G,$C13, Datenblatt!$R:$R,">="&CD$8,Datenblatt!$R:$R,"<="&EOMONTH(CD$8,0)) - SUMIFS(Datenblatt!$M:$M, Datenblatt!$E:$E,$C13, Datenblatt!$R:$R,">="&CD$8,Datenblatt!$R:$R,"<="&EOMONTH(CD$8,0)), "") -> 284 | CE13: =IF(ISNUMBER($C13), SUMIFS(Datenblatt!$M:$M, Datenblatt!$G:$G,$C13, Datenblatt!$R:$R,">="&CE$8,Datenblatt!$R:$R,"<="&EOMONTH(CE$8,0)) - SUMIFS(Datenblatt!$M:$M, Datenblatt!$E:$E,$C13, Datenblatt!$R:$R,">="&CE$8,Datenblatt!$R:$R,"<="&EOMONTH(CE$8,0)), "") -> 302 | CF13: =IF(ISNUMBER($C13), SUMIFS(Datenblatt!$M:$M, Datenblatt!$G:$G,$C13, Datenblatt!$R:$R,">="&CF$8,Datenblatt!$R:$R,"<="&EOMONTH(CF$8,0)) - SUMIFS(Datenblatt!$M:$M, Datenblatt!$E:$E,$C13, Datenblatt!$R:$R,">="&CF$8,Datenblatt!$R:$R,"<="&EOMONTH(CF$8,0)), "") -> 333 | CG13: =IF(ISNUMBER($C13), SUMIFS(Datenblatt!$M:$M, Datenblatt!$G:$G,$C13, Datenblatt!$R:$R,">="&CG$8,Datenblatt!$R:$R,"<="&EOMONTH(CG$8,0)) - SUMIFS(Datenblatt!$M:$M, Datenblatt!$E:$E,$C13, Datenblatt!$R:$R,">="&CG$8,Datenblatt!$R:$R,"<="&EOMONTH(CG$8,0)), "") -> 672 | CH13: =IF(ISNUMBER($C13), SUMIFS(Datenblatt!$M:$M, Datenblatt!$G:$G,$C13, Datenblatt!$R:$R,">="&CH$8,Datenblatt!$R:$R,"<="&EOMONTH(CH$8,0)) - SUMIFS(Datenblatt!$M:$M, Datenblatt!$E:$E,$C13, Datenblatt!$R:$R,">="&CH$8,Datenblatt!$R:$R,"<="&EOMONTH(CH$8,0)), "") -> 435 | CI13: =IF(ISNUMBER($C13), SUMIFS(Datenblatt!$M:$M, Datenblatt!$G:$G,$C13, Datenblatt!$R:$R,">="&CI$8,Datenblatt!$R:$R,"<="&EOMONTH(CI$8,0)) - SUMIFS(Datenblatt!$M:$M, Datenblatt!$E:$E,$C13, Datenblatt!$R:$R,">="&CI$8,Datenblatt!$R:$R,"<="&EOMONTH(CI$8,0)), "") -> 0 | CJ13: =IF(ISNUMBER($C13), SUMIFS(Datenblatt!$M:$M, Datenblatt!$G:$G,$C13, Datenblatt!$R:$R,">="&CJ$8,Datenblatt!$R:$R,"<="&EOMONTH(CJ$8,0)) - SUMIFS(Datenblatt!$M:$M, Datenblatt!$E:$E,$C13, Datenblatt!$R:$R,">="&CJ$8,Datenblatt!$R:$R,"<="&EOMONTH(CJ$8,0)), "") -> 0 | CK13: =IF(ISNUMBER($C13), SUMIFS(Datenblatt!$M:$M, Datenblatt!$G:$G,$C13, Datenblatt!$R:$R,">="&CK$8,Datenblatt!$R:$R,"<="&EOMONTH(CK$8,0)) - SUMIFS(Datenblatt!$M:$M, Datenblatt!$E:$E,$C13, Datenblatt!$R:$R,">="&CK$8,Datenblatt!$R:$R,"<="&EOMONTH(CK$8,0)), "") -> 0 | CL13: =IF(ISNUMBER($C13), SUMIFS(Datenblatt!$M:$M, Datenblatt!$G:$G,$C13, Datenblatt!$R:$R,">="&CL$8,Datenblatt!$R:$R,"<="&EOMONTH(CL$8,0)) - SUMIFS(Datenblatt!$M:$M, Datenblatt!$E:$E,$C13, Datenblatt!$R:$R,">="&CL$8,Datenblatt!$R:$R,"<="&EOMONTH(CL$8,0)), "") -> 0 | CM13: =IF(ISNUMBER($C13), SUMIFS(Datenblatt!$M:$M, Datenblatt!$G:$G,$C13, Datenblatt!$R:$R,">="&CM$8,Datenblatt!$R:$R,"<="&EOMONTH(CM$8,0)) - SUMIFS(Datenblatt!$M:$M, Datenblatt!$E:$E,$C13, Datenblatt!$R:$R,">="&CM$8,Datenblatt!$R:$R,"<="&EOMONTH(CM$8,0)), "") -> 0 | CN13: =IF(ISNUMBER($C13), SUMIFS(Datenblatt!$M:$M, Datenblatt!$G:$G,$C13, Datenblatt!$R:$R,">="&CN$8,Datenblatt!$R:$R,"<="&EOMONTH(CN$8,0)) - SUMIFS(Datenblatt!$M:$M, Datenblatt!$E:$E,$C13, Datenblatt!$R:$R,">="&CN$8,Datenblatt!$R:$R,"<="&EOMONTH(CN$8,0)), "") -> 0 | CO13: =IF(ISNUMBER($C13), SUMIFS(Datenblatt!$M:$M, Datenblatt!$G:$G,$C13, Datenblatt!$R:$R,">="&CO$8,Datenblatt!$R:$R,"<="&EOMONTH(CO$8,0)) - SUMIFS(Datenblatt!$M:$M, Datenblatt!$E:$E,$C13, Datenblatt!$R:$R,">="&CO$8,Datenblatt!$R:$R,"<="&EOMONTH(CO$8,0)), "") -> 0 | CP13: =IF(ISNUMBER($C13), SUMIFS(Datenblatt!$M:$M, Datenblatt!$G:$G,$C13, Datenblatt!$R:$R,">="&CP$8,Datenblatt!$R:$R,"<="&EOMONTH(CP$8,0)) - SUMIFS(Datenblatt!$M:$M, Datenblatt!$E:$E,$C13, Datenblatt!$R:$R,">="&CP$8,Datenblatt!$R:$R,"<="&EOMONTH(CP$8,0)), "") -> 0 | CQ13: =IF(ISNUMBER($C13), SUMIFS(Datenblatt!$M:$M, Datenblatt!$G:$G,$C13, Datenblatt!$R:$R,">="&CQ$8,Datenblatt!$R:$R,"<="&EOMONTH(CQ$8,0)) - SUMIFS(Datenblatt!$M:$M, Datenblatt!$E:$E,$C13, Datenblatt!$R:$R,">="&CQ$8,Datenblatt!$R:$R,"<="&EOMONTH(CQ$8,0)), "") -> 0 | CR13: =IF(ISNUMBER($C13), SUMIFS(Datenblatt!$M:$M, Datenblatt!$G:$G,$C13, Datenblatt!$R:$R,">="&CR$8,Datenblatt!$R:$R,"<="&EOMONTH(CR$8,0)) - SUMIFS(Datenblatt!$M:$M, Datenblatt!$E:$E,$C13, Datenblatt!$R:$R,">="&CR$8,Datenblatt!$R:$R,"<="&EOMONTH(CR$8,0)), "") -> 0 | CS13: =IF(ISNUMBER($C13), SUMIFS(Datenblatt!$M:$M, Datenblatt!$G:$G,$C13, Datenblatt!$R:$R,">="&CS$8,Datenblatt!$R:$R,"<="&EOMONTH(CS$8,0)) - SUMIFS(Datenblatt!$M:$M, Datenblatt!$E:$E,$C13, Datenblatt!$R:$R,">="&CS$8,Datenblatt!$R:$R,"<="&EOMONTH(CS$8,0)), "") -> 0 | CT13: =IF(ISNUMBER($C13), SUMIFS(Datenblatt!$M:$M, Datenblatt!$G:$G,$C13, Datenblatt!$R:$R,">="&CT$8,Datenblatt!$R:$R,"<="&EOMONTH(CT$8,0)) - SUMIFS(Datenblatt!$M:$M, Datenblatt!$E:$E,$C13, Datenblatt!$R:$R,">="&CT$8,Datenblatt!$R:$R,"<="&EOMONTH(CT$8,0)), "") -> 0 | CU13: =IF(ISNUMBER($C13), SUMIFS(Datenblatt!$M:$M, Datenblatt!$G:$G,$C13, Datenblatt!$R:$R,">="&CU$8,Datenblatt!$R:$R,"<="&EOMONTH(CU$8,0)) - SUMIFS(Datenblatt!$M:$M, Datenblatt!$E:$E,$C13, Datenblatt!$R:$R,">="&CU$8,Datenblatt!$R:$R,"<="&EOMONTH(CU$8,0)), "") -> 0 | CV13: =IF(ISNUMBER($C13), SUMIFS(Datenblatt!$M:$M, Datenblatt!$G:$G,$C13, Datenblatt!$R:$R,">="&CV$8,Datenblatt!$R:$R,"<="&EOMONTH(CV$8,0)) - SUMIFS(Datenblatt!$M:$M, Datenblatt!$E:$E,$C13, Datenblatt!$R:$R,">="&CV$8,Datenblatt!$R:$R,"<="&EOMONTH(CV$8,0)), "") -> 0 | CW13: =IF(ISNUMBER($C13), SUMIFS(Datenblatt!$M:$M, Datenblatt!$G:$G,$C13, Datenblatt!$R:$R,">="&CW$8,Datenblatt!$R:$R,"<="&EOMONTH(CW$8,0)) - SUMIFS(Datenblatt!$M:$M, Datenblatt!$E:$E,$C13, Datenblatt!$R:$R,">="&CW$8,Datenblatt!$R:$R,"<="&EOMONTH(CW$8,0)), "") -> 0 | CX13: =IF(ISNUMBER($C13), SUMIFS(Datenblatt!$M:$M, Datenblatt!$G:$G,$C13, Datenblatt!$R:$R,">="&CX$8,Datenblatt!$R:$R,"<="&EOMONTH(CX$8,0)) - SUMIFS(Datenblatt!$M:$M, Datenblatt!$E:$E,$C13, Datenblatt!$R:$R,">="&CX$8,Datenblatt!$R:$R,"<="&EOMONTH(CX$8,0)), "") -> 0 | CY13: =IF(ISNUMBER($C13), SUMIFS(Datenblatt!$M:$M, Datenblatt!$G:$G,$C13, Datenblatt!$R:$R,">="&CY$8,Datenblatt!$R:$R,"<="&EOMONTH(CY$8,0)) - SUMIFS(Datenblatt!$M:$M, Datenblatt!$E:$E,$C13, Datenblatt!$R:$R,">="&CY$8,Datenblatt!$R:$R,"<="&EOMONTH(CY$8,0)), "") -> 0 | CZ13: =IF(ISNUMBER($C13), SUMIFS(Datenblatt!$M:$M, Datenblatt!$G:$G,$C13, Datenblatt!$R:$R,">="&CZ$8,Datenblatt!$R:$R,"<="&EOMONTH(CZ$8,0)) - SUMIFS(Datenblatt!$M:$M, Datenblatt!$E:$E,$C13, Datenblatt!$R:$R,">="&CZ$8,Datenblatt!$R:$R,"<="&EOMONTH(CZ$8,0)), "") -> 0 | DA13: =IF(ISNUMBER($C13), SUMIFS(Datenblatt!$M:$M, Datenblatt!$G:$G,$C13, Datenblatt!$R:$R,">="&DA$8,Datenblatt!$R:$R,"<="&EOMONTH(DA$8,0)) - SUMIFS(Datenblatt!$M:$M, Datenblatt!$E:$E,$C13, Datenblatt!$R:$R,">="&DA$8,Datenblatt!$R:$R,"<="&EOMONTH(DA$8,0)), "") -> 0 | DB13: =IF(ISNUMBER($C13), SUMIFS(Datenblatt!$M:$M, Datenblatt!$G:$G,$C13, Datenblatt!$R:$R,">="&DB$8,Datenblatt!$R:$R,"<="&EOMONTH(DB$8,0)) - SUMIFS(Datenblatt!$M:$M, Datenblatt!$E:$E,$C13, Datenblatt!$R:$R,">="&DB$8,Datenblatt!$R:$R,"<="&EOMONTH(DB$8,0)), "") -> 0 | DC13: =IF(ISNUMBER($C13), SUMIFS(Datenblatt!$M:$M, Datenblatt!$G:$G,$C13, Datenblatt!$R:$R,">="&DC$8,Datenblatt!$R:$R,"<="&EOMONTH(DC$8,0)) - SUMIFS(Datenblatt!$M:$M, Datenblatt!$E:$E,$C13, Datenblatt!$R:$R,">="&DC$8,Datenblatt!$R:$R,"<="&EOMONTH(DC$8,0)), "") -> 0 | DD13: =IF(ISNUMBER($C13), SUMIFS(Datenblatt!$M:$M, Datenblatt!$G:$G,$C13, Datenblatt!$R:$R,">="&DD$8,Datenblatt!$R:$R,"<="&EOMONTH(DD$8,0)) - SUMIFS(Datenblatt!$M:$M, Datenblatt!$E:$E,$C13, Datenblatt!$R:$R,">="&DD$8,Datenblatt!$R:$R,"<="&EOMONTH(DD$8,0)), "") -> 0 | DE13: =IF(ISNUMBER($C13), SUMIFS(Datenblatt!$M:$M, Datenblatt!$G:$G,$C13, Datenblatt!$R:$R,">="&DE$8,Datenblatt!$R:$R,"<="&EOMONTH(DE$8,0)) - SUMIFS(Datenblatt!$M:$M, Datenblatt!$E:$E,$C13, Datenblatt!$R:$R,">="&DE$8,Datenblatt!$R:$R,"<="&EOMONTH(DE$8,0)), "") -> 0 | DF13: =IF(ISNUMBER($C13), SUMIFS(Datenblatt!$M:$M, Datenblatt!$G:$G,$C13, Datenblatt!$R:$R,">="&DF$8,Datenblatt!$R:$R,"<="&EOMONTH(DF$8,0)) - SUMIFS(Datenblatt!$M:$M, Datenblatt!$E:$E,$C13, Datenblatt!$R:$R,">="&DF$8,Datenblatt!$R:$R,"<="&EOMONTH(DF$8,0)), "") -> 0
B14: Ertrag | C14: 3800 | D14: Erlösminderungen | G14: =IF(ISNUMBER($C14), SUMIFS(Datenblatt!$M:$M, Datenblatt!$G:$G,$C14, Datenblatt!$R:$R,">="&G$8,Datenblatt!$R:$R,"<="&EOMONTH(G$8,11)) - SUMIFS(Datenblatt!$M:$M, Datenblatt!$E:$E,$C14, Datenblatt!$R:$R,">="&G$8,Datenblatt!$R:$R,"<="&EOMONTH(G$8,11)), "") -> 2820.895959 | H14: =IF(ISNUMBER($C14), SUMIFS(Datenblatt!$M:$M, Datenblatt!$G:$G,$C14, Datenblatt!$R:$R,">="&H$8,Datenblatt!$R:$R,"<="&EOMONTH(H$8,11)) - SUMIFS(Datenblatt!$M:$M, Datenblatt!$E:$E,$C14, Datenblatt!$R:$R,">="&H$8,Datenblatt!$R:$R,"<="&EOMONTH(H$8,11)), "") -> 2072 | I14: =IF(ISNUMBER($C14), SUMIFS(Datenblatt!$M:$M, Datenblatt!$G:$G,$C14, Datenblatt!$R:$R,">="&I$8,Datenblatt!$R:$R,"<="&EOMONTH(I$8,11)) - SUMIFS(Datenblatt!$M:$M, Datenblatt!$E:$E,$C14, Datenblatt!$R:$R,">="&I$8,Datenblatt!$R:$R,"<="&EOMONTH(I$8,11)), "") -> 2615.3 | J14: =IF(ISNUMBER($C14), SUMIFS(Datenblatt!$M:$M, Datenblatt!$G:$G,$C14, Datenblatt!$R:$R,">="&J$8,Datenblatt!$R:$R,"<="&EOMONTH(J$8,11)) - SUMIFS(Datenblatt!$M:$M, Datenblatt!$E:$E,$C14, Datenblatt!$R:$R,">="&J$8,Datenblatt!$R:$R,"<="&EOMONTH(J$8,11)), "") -> 1969 | K14: =IF(ISNUMBER($C14), SUMIFS(Datenblatt!$M:$M, Datenblatt!$G:$G,$C14, Datenblatt!$R:$R,">="&K$8,Datenblatt!$R:$R,"<="&EOMONTH(K$8,11)) - SUMIFS(Datenblatt!$M:$M, Datenblatt!$E:$E,$C14, Datenblatt!$R:$R,">="&K$8,Datenblatt!$R:$R,"<="&EOMONTH(K$8,11)), "") -> 2712 | L14: =IF(ISNUMBER($C14), SUMIFS(Datenblatt!$M:$M, Datenblatt!$G:$G,$C14, Datenblatt!$R:$R,">="&L$8,Datenblatt!$R:$R,"<="&EOMONTH(L$8,11)) - SUMIFS(Datenblatt!$M:$M, Datenblatt!$E:$E,$C14, Datenblatt!$R:$R,">="&L$8,Datenblatt!$R:$R,"<="&EOMONTH(L$8,11)), "") -> 3544 | M14: =IF(ISNUMBER($C14), SUMIFS(Datenblatt!$M:$M, Datenblatt!$G:$G,$C14, Datenblatt!$R:$R,">="&M$8,Datenblatt!$R:$R,"<="&EOMONTH(M$8,11)) - SUMIFS(Datenblatt!$M:$M, Datenblatt!$E:$E,$C14, Datenblatt!$R:$R,">="&M$8,Datenblatt!$R:$R,"<="&EOMONTH(M$8,11)), "") -> 0 | N14: =IF(ISNUMBER($C14), SUMIFS(Datenblatt!$M:$M, Datenblatt!$G:$G,$C14, Datenblatt!$R:$R,">="&N$8,Datenblatt!$R:$R,"<="&EOMONTH(N$8,11)) - SUMIFS(Datenblatt!$M:$M, Datenblatt!$E:$E,$C14, Datenblatt!$R:$R,">="&N$8,Datenblatt!$R:$R,"<="&EOMONTH(N$8,11)), "") -> 0 | O14: =IF(ISNUMBER($C14), SUMIFS(Datenblatt!$M:$M, Datenblatt!$G:$G,$C14, Datenblatt!$R:$R,">="&O$8,Datenblatt!$R:$R,"<="&EOMONTH(O$8,0)) - SUMIFS(Datenblatt!$M:$M, Datenblatt!$E:$E,$C14, Datenblatt!$R:$R,">="&O$8,Datenblatt!$R:$R,"<="&EOMONTH(O$8,0)), "") -> 59.37595863 | P14: =IF(ISNUMBER($C14), SUMIFS(Datenblatt!$M:$M, Datenblatt!$G:$G,$C14, Datenblatt!$R:$R,">="&P$8,Datenblatt!$R:$R,"<="&EOMONTH(P$8,0)) - SUMIFS(Datenblatt!$M:$M, Datenblatt!$E:$E,$C14, Datenblatt!$R:$R,">="&P$8,Datenblatt!$R:$R,"<="&EOMONTH(P$8,0)), "") -> 0 | Q14: =IF(ISNUMBER($C14), SUMIFS(Datenblatt!$M:$M, Datenblatt!$G:$G,$C14, Datenblatt!$R:$R,">="&Q$8,Datenblatt!$R:$R,"<="&EOMONTH(Q$8,0)) - SUMIFS(Datenblatt!$M:$M, Datenblatt!$E:$E,$C14, Datenblatt!$R:$R,">="&Q$8,Datenblatt!$R:$R,"<="&EOMONTH(Q$8,0)), "") -> 190 | R14: =IF(ISNUMBER($C14), SUMIFS(Datenblatt!$M:$M, Datenblatt!$G:$G,$C14, Datenblatt!$R:$R,">="&R$8,Datenblatt!$R:$R,"<="&EOMONTH(R$8,0)) - SUMIFS(Datenblatt!$M:$M, Datenblatt!$E:$E,$C14, Datenblatt!$R:$R,">="&R$8,Datenblatt!$R:$R,"<="&EOMONTH(R$8,0)), "") -> 569 | S14: =IF(ISNUMBER($C14), SUMIFS(Datenblatt!$M:$M, Datenblatt!$G:$G,$C14, Datenblatt!$R:$R,">="&S$8,Datenblatt!$R:$R,"<="&EOMONTH(S$8,0)) - SUMIFS(Datenblatt!$M:$M, Datenblatt!$E:$E,$C14, Datenblatt!$R:$R,">="&S$8,Datenblatt!$R:$R,"<="&EOMONTH(S$8,0)), "") -> 70 | T14: =IF(ISNUMBER($C14), SUMIFS(Datenblatt!$M:$M, Datenblatt!$G:$G,$C14, Datenblatt!$R:$R,">="&T$8,Datenblatt!$R:$R,"<="&EOMONTH(T$8,0)) - SUMIFS(Datenblatt!$M:$M, Datenblatt!$E:$E,$C14, Datenblatt!$R:$R,">="&T$8,Datenblatt!$R:$R,"<="&EOMONTH(T$8,0)), "") -> 476 | U14: =IF(ISNUMBER($C14), SUMIFS(Datenblatt!$M:$M, Datenblatt!$G:$G,$C14, Datenblatt!$R:$R,">="&U$8,Datenblatt!$R:$R,"<="&EOMONTH(U$8,0)) - SUMIFS(Datenblatt!$M:$M, Datenblatt!$E:$E,$C14, Datenblatt!$R:$R,">="&U$8,Datenblatt!$R:$R,"<="&EOMONTH(U$8,0)), "") -> 146 | V14: =IF(ISNUMBER($C14), SUMIFS(Datenblatt!$M:$M, Datenblatt!$G:$G,$C14, Datenblatt!$R:$R,">="&V$8,Datenblatt!$R:$R,"<="&EOMONTH(V$8,0)) - SUMIFS(Datenblatt!$M:$M, Datenblatt!$E:$E,$C14, Datenblatt!$R:$R,">="&V$8,Datenblatt!$R:$R,"<="&EOMONTH(V$8,0)), "") -> 251 | W14: =IF(ISNUMBER($C14), SUMIFS(Datenblatt!$M:$M, Datenblatt!$G:$G,$C14, Datenblatt!$R:$R,">="&W$8,Datenblatt!$R:$R,"<="&EOMONTH(W$8,0)) - SUMIFS(Datenblatt!$M:$M, Datenblatt!$E:$E,$C14, Datenblatt!$R:$R,">="&W$8,Datenblatt!$R:$R,"<="&EOMONTH(W$8,0)), "") -> 0 | X14: =IF(ISNUMBER($C14), SUMIFS(Datenblatt!$M:$M, Datenblatt!$G:$G,$C14, Datenblatt!$R:$R,">="&X$8,Datenblatt!$R:$R,"<="&EOMONTH(X$8,0)) - SUMIFS(Datenblatt!$M:$M, Datenblatt!$E:$E,$C14, Datenblatt!$R:$R,">="&X$8,Datenblatt!$R:$R,"<="&EOMONTH(X$8,0)), "") -> 470.52 | Y14: =IF(ISNUMBER($C14), SUMIFS(Datenblatt!$M:$M, Datenblatt!$G:$G,$C14, Datenblatt!$R:$R,">="&Y$8,Datenblatt!$R:$R,"<="&EOMONTH(Y$8,0)) - SUMIFS(Datenblatt!$M:$M, Datenblatt!$E:$E,$C14, Datenblatt!$R:$R,">="&Y$8,Datenblatt!$R:$R,"<="&EOMONTH(Y$8,0)), "") -> 269 | Z14: =IF(ISNUMBER($C14), SUMIFS(Datenblatt!$M:$M, Datenblatt!$G:$G,$C14, Datenblatt!$R:$R,">="&Z$8,Datenblatt!$R:$R,"<="&EOMONTH(Z$8,0)) - SUMIFS(Datenblatt!$M:$M, Datenblatt!$E:$E,$C14, Datenblatt!$R:$R,">="&Z$8,Datenblatt!$R:$R,"<="&EOMONTH(Z$8,0)), "") -> 320 | AA14: =IF(ISNUMBER($C14), SUMIFS(Datenblatt!$M:$M, Datenblatt!$G:$G,$C14, Datenblatt!$R:$R,">="&AA$8,Datenblatt!$R:$R,"<="&EOMONTH(AA$8,0)) - SUMIFS(Datenblatt!$M:$M, Datenblatt!$E:$E,$C14, Datenblatt!$R:$R,">="&AA$8,Datenblatt!$R:$R,"<="&EOMONTH(AA$8,0)), "") -> 134 | AB14: =IF(ISNUMBER($C14), SUMIFS(Datenblatt!$M:$M, Datenblatt!$G:$G,$C14, Datenblatt!$R:$R,">="&AB$8,Datenblatt!$R:$R,"<="&EOMONTH(AB$8,0)) - SUMIFS(Datenblatt!$M:$M, Datenblatt!$E:$E,$C14, Datenblatt!$R:$R,">="&AB$8,Datenblatt!$R:$R,"<="&EOMONTH(AB$8,0)), "") -> 164 | AC14: =IF(ISNUMBER($C14), SUMIFS(Datenblatt!$M:$M, Datenblatt!$G:$G,$C14, Datenblatt!$R:$R,">="&AC$8,Datenblatt!$R:$R,"<="&EOMONTH(AC$8,0)) - SUMIFS(Datenblatt!$M:$M, Datenblatt!$E:$E,$C14, Datenblatt!$R:$R,">="&AC$8,Datenblatt!$R:$R,"<="&EOMONTH(AC$8,0)), "") -> 121 | AD14: =IF(ISNUMBER($C14), SUMIFS(Datenblatt!$M:$M, Datenblatt!$G:$G,$C14, Datenblatt!$R:$R,">="&AD$8,Datenblatt!$R:$R,"<="&EOMONTH(AD$8,0)) - SUMIFS(Datenblatt!$M:$M, Datenblatt!$E:$E,$C14, Datenblatt!$R:$R,">="&AD$8,Datenblatt!$R:$R,"<="&EOMONTH(AD$8,0)), "") -> 107 | AE14: =IF(ISNUMBER($C14), SUMIFS(Datenblatt!$M:$M, Datenblatt!$G:$G,$C14, Datenblatt!$R:$R,">="&AE$8,Datenblatt!$R:$R,"<="&EOMONTH(AE$8,0)) - SUMIFS(Datenblatt!$M:$M, Datenblatt!$E:$E,$C14, Datenblatt!$R:$R,">="&AE$8,Datenblatt!$R:$R,"<="&EOMONTH(AE$8,0)), "") -> 217 | AF14: =IF(ISNUMBER($C14), SUMIFS(Datenblatt!$M:$M, Datenblatt!$G:$G,$C14, Datenblatt!$R:$R,">="&AF$8,Datenblatt!$R:$R,"<="&EOMONTH(AF$8,0)) - SUMIFS(Datenblatt!$M:$M, Datenblatt!$E:$E,$C14, Datenblatt!$R:$R,">="&AF$8,Datenblatt!$R:$R,"<="&EOMONTH(AF$8,0)), "") -> 252 | AG14: =IF(ISNUMBER($C14), SUMIFS(Datenblatt!$M:$M, Datenblatt!$G:$G,$C14, Datenblatt!$R:$R,">="&AG$8,Datenblatt!$R:$R,"<="&EOMONTH(AG$8,0)) - SUMIFS(Datenblatt!$M:$M, Datenblatt!$E:$E,$C14, Datenblatt!$R:$R,">="&AG$8,Datenblatt!$R:$R,"<="&EOMONTH(AG$8,0)), "") -> 129 | AH14: =IF(ISNUMBER($C14), SUMIFS(Datenblatt!$M:$M, Datenblatt!$G:$G,$C14, Datenblatt!$R:$R,">="&AH$8,Datenblatt!$R:$R,"<="&EOMONTH(AH$8,0)) - SUMIFS(Datenblatt!$M:$M, Datenblatt!$E:$E,$C14, Datenblatt!$R:$R,">="&AH$8,Datenblatt!$R:$R,"<="&EOMONTH(AH$8,0)), "") -> 212 | AI14: =IF(ISNUMBER($C14), SUMIFS(Datenblatt!$M:$M, Datenblatt!$G:$G,$C14, Datenblatt!$R:$R,">="&AI$8,Datenblatt!$R:$R,"<="&EOMONTH(AI$8,0)) - SUMIFS(Datenblatt!$M:$M, Datenblatt!$E:$E,$C14, Datenblatt!$R:$R,">="&AI$8,Datenblatt!$R:$R,"<="&EOMONTH(AI$8,0)), "") -> 309 | AJ14: =IF(ISNUMBER($C14), SUMIFS(Datenblatt!$M:$M, Datenblatt!$G:$G,$C14, Datenblatt!$R:$R,">="&AJ$8,Datenblatt!$R:$R,"<="&EOMONTH(AJ$8,0)) - SUMIFS(Datenblatt!$M:$M, Datenblatt!$E:$E,$C14, Datenblatt!$R:$R,">="&AJ$8,Datenblatt!$R:$R,"<="&EOMONTH(AJ$8,0)), "") -> 294 | AK14: =IF(ISNUMBER($C14), SUMIFS(Datenblatt!$M:$M, Datenblatt!$G:$G,$C14, Datenblatt!$R:$R,">="&AK$8,Datenblatt!$R:$R,"<="&EOMONTH(AK$8,0)) - SUMIFS(Datenblatt!$M:$M, Datenblatt!$E:$E,$C14, Datenblatt!$R:$R,">="&AK$8,Datenblatt!$R:$R,"<="&EOMONTH(AK$8,0)), "") -> 100 | AL14: =IF(ISNUMBER($C14), SUMIFS(Datenblatt!$M:$M, Datenblatt!$G:$G,$C14, Datenblatt!$R:$R,">="&AL$8,Datenblatt!$R:$R,"<="&EOMONTH(AL$8,0)) - SUMIFS(Datenblatt!$M:$M, Datenblatt!$E:$E,$C14, Datenblatt!$R:$R,">="&AL$8,Datenblatt!$R:$R,"<="&EOMONTH(AL$8,0)), "") -> 33 | AM14: =IF(ISNUMBER($C14), SUMIFS(Datenblatt!$M:$M, Datenblatt!$G:$G,$C14, Datenblatt!$R:$R,">="&AM$8,Datenblatt!$R:$R,"<="&EOMONTH(AM$8,0)) - SUMIFS(Datenblatt!$M:$M, Datenblatt!$E:$E,$C14, Datenblatt!$R:$R,">="&AM$8,Datenblatt!$R:$R,"<="&EOMONTH(AM$8,0)), "") -> 49 | AN14: =IF(ISNUMBER($C14), SUMIFS(Datenblatt!$M:$M, Datenblatt!$G:$G,$C14, Datenblatt!$R:$R,">="&AN$8,Datenblatt!$R:$R,"<="&EOMONTH(AN$8,0)) - SUMIFS(Datenblatt!$M:$M, Datenblatt!$E:$E,$C14, Datenblatt!$R:$R,">="&AN$8,Datenblatt!$R:$R,"<="&EOMONTH(AN$8,0)), "") -> 58 | AO14: =IF(ISNUMBER($C14), SUMIFS(Datenblatt!$M:$M, Datenblatt!$G:$G,$C14, Datenblatt!$R:$R,">="&AO$8,Datenblatt!$R:$R,"<="&EOMONTH(AO$8,0)) - SUMIFS(Datenblatt!$M:$M, Datenblatt!$E:$E,$C14, Datenblatt!$R:$R,">="&AO$8,Datenblatt!$R:$R,"<="&EOMONTH(AO$8,0)), "") -> 219 | AP14: =IF(ISNUMBER($C14), SUMIFS(Datenblatt!$M:$M, Datenblatt!$G:$G,$C14, Datenblatt!$R:$R,">="&AP$8,Datenblatt!$R:$R,"<="&EOMONTH(AP$8,0)) - SUMIFS(Datenblatt!$M:$M, Datenblatt!$E:$E,$C14, Datenblatt!$R:$R,">="&AP$8,Datenblatt!$R:$R,"<="&EOMONTH(AP$8,0)), "") -> 420.3 | AQ14: =IF(ISNUMBER($C14), SUMIFS(Datenblatt!$M:$M, Datenblatt!$G:$G,$C14, Datenblatt!$R:$R,">="&AQ$8,Datenblatt!$R:$R,"<="&EOMONTH(AQ$8,0)) - SUMIFS(Datenblatt!$M:$M, Datenblatt!$E:$E,$C14, Datenblatt!$R:$R,">="&AQ$8,Datenblatt!$R:$R,"<="&EOMONTH(AQ$8,0)), "") -> 325 | AR14: =IF(ISNUMBER($C14), SUMIFS(Datenblatt!$M:$M, Datenblatt!$G:$G,$C14, Datenblatt!$R:$R,">="&AR$8,Datenblatt!$R:$R,"<="&EOMONTH(AR$8,0)) - SUMIFS(Datenblatt!$M:$M, Datenblatt!$E:$E,$C14, Datenblatt!$R:$R,">="&AR$8,Datenblatt!$R:$R,"<="&EOMONTH(AR$8,0)), "") -> 393 | AS14: =IF(ISNUMBER($C14), SUMIFS(Datenblatt!$M:$M, Datenblatt!$G:$G,$C14, Datenblatt!$R:$R,">="&AS$8,Datenblatt!$R:$R,"<="&EOMONTH(AS$8,0)) - SUMIFS(Datenblatt!$M:$M, Datenblatt!$E:$E,$C14, Datenblatt!$R:$R,">="&AS$8,Datenblatt!$R:$R,"<="&EOMONTH(AS$8,0)), "") -> 90 | AT14: =IF(ISNUMBER($C14), SUMIFS(Datenblatt!$M:$M, Datenblatt!$G:$G,$C14, Datenblatt!$R:$R,">="&AT$8,Datenblatt!$R:$R,"<="&EOMONTH(AT$8,0)) - SUMIFS(Datenblatt!$M:$M, Datenblatt!$E:$E,$C14, Datenblatt!$R:$R,">="&AT$8,Datenblatt!$R:$R,"<="&EOMONTH(AT$8,0)), "") -> 204 | AU14: =IF(ISNUMBER($C14), SUMIFS(Datenblatt!$M:$M, Datenblatt!$G:$G,$C14, Datenblatt!$R:$R,">="&AU$8,Datenblatt!$R:$R,"<="&EOMONTH(AU$8,0)) - SUMIFS(Datenblatt!$M:$M, Datenblatt!$E:$E,$C14, Datenblatt!$R:$R,">="&AU$8,Datenblatt!$R:$R,"<="&EOMONTH(AU$8,0)), "") -> 229 | AV14: =IF(ISNUMBER($C14), SUMIFS(Datenblatt!$M:$M, Datenblatt!$G:$G,$C14, Datenblatt!$R:$R,">="&AV$8,Datenblatt!$R:$R,"<="&EOMONTH(AV$8,0)) - SUMIFS(Datenblatt!$M:$M, Datenblatt!$E:$E,$C14, Datenblatt!$R:$R,">="&AV$8,Datenblatt!$R:$R,"<="&EOMONTH(AV$8,0)), "") -> 73 | AW14: =IF(ISNUMBER($C14), SUMIFS(Datenblatt!$M:$M, Datenblatt!$G:$G,$C14, Datenblatt!$R:$R,">="&AW$8,Datenblatt!$R:$R,"<="&EOMONTH(AW$8,0)) - SUMIFS(Datenblatt!$M:$M, Datenblatt!$E:$E,$C14, Datenblatt!$R:$R,">="&AW$8,Datenblatt!$R:$R,"<="&EOMONTH(AW$8,0)), "") -> 196 | AX14: =IF(ISNUMBER($C14), SUMIFS(Datenblatt!$M:$M, Datenblatt!$G:$G,$C14, Datenblatt!$R:$R,">="&AX$8,Datenblatt!$R:$R,"<="&EOMONTH(AX$8,0)) - SUMIFS(Datenblatt!$M:$M, Datenblatt!$E:$E,$C14, Datenblatt!$R:$R,">="&AX$8,Datenblatt!$R:$R,"<="&EOMONTH(AX$8,0)), "") -> 359 | AY14: =IF(ISNUMBER($C14), SUMIFS(Datenblatt!$M:$M, Datenblatt!$G:$G,$C14, Datenblatt!$R:$R,">="&AY$8,Datenblatt!$R:$R,"<="&EOMONTH(AY$8,0)) - SUMIFS(Datenblatt!$M:$M, Datenblatt!$E:$E,$C14, Datenblatt!$R:$R,">="&AY$8,Datenblatt!$R:$R,"<="&EOMONTH(AY$8,0)), "") -> 84 | AZ14: =IF(ISNUMBER($C14), SUMIFS(Datenblatt!$M:$M, Datenblatt!$G:$G,$C14, Datenblatt!$R:$R,">="&AZ$8,Datenblatt!$R:$R,"<="&EOMONTH(AZ$8,0)) - SUMIFS(Datenblatt!$M:$M, Datenblatt!$E:$E,$C14, Datenblatt!$R:$R,">="&AZ$8,Datenblatt!$R:$R,"<="&EOMONTH(AZ$8,0)), "") -> 195 | BA14: =IF(ISNUMBER($C14), SUMIFS(Datenblatt!$M:$M, Datenblatt!$G:$G,$C14, Datenblatt!$R:$R,">="&BA$8,Datenblatt!$R:$R,"<="&EOMONTH(BA$8,0)) - SUMIFS(Datenblatt!$M:$M, Datenblatt!$E:$E,$C14, Datenblatt!$R:$R,">="&BA$8,Datenblatt!$R:$R,"<="&EOMONTH(BA$8,0)), "") -> 164 | BB14: =IF(ISNUMBER($C14), SUMIFS(Datenblatt!$M:$M, Datenblatt!$G:$G,$C14, Datenblatt!$R:$R,">="&BB$8,Datenblatt!$R:$R,"<="&EOMONTH(BB$8,0)) - SUMIFS(Datenblatt!$M:$M, Datenblatt!$E:$E,$C14, Datenblatt!$R:$R,">="&BB$8,Datenblatt!$R:$R,"<="&EOMONTH(BB$8,0)), "") -> 326 | BC14: =IF(ISNUMBER($C14), SUMIFS(Datenblatt!$M:$M, Datenblatt!$G:$G,$C14, Datenblatt!$R:$R,">="&BC$8,Datenblatt!$R:$R,"<="&EOMONTH(BC$8,0)) - SUMIFS(Datenblatt!$M:$M, Datenblatt!$E:$E,$C14, Datenblatt!$R:$R,">="&BC$8,Datenblatt!$R:$R,"<="&EOMONTH(BC$8,0)), "") -> 0 | BD14: =IF(ISNUMBER($C14), SUMIFS(Datenblatt!$M:$M, Datenblatt!$G:$G,$C14, Datenblatt!$R:$R,">="&BD$8,Datenblatt!$R:$R,"<="&EOMONTH(BD$8,0)) - SUMIFS(Datenblatt!$M:$M, Datenblatt!$E:$E,$C14, Datenblatt!$R:$R,">="&BD$8,Datenblatt!$R:$R,"<="&EOMONTH(BD$8,0)), "") -> 167 | BE14: =IF(ISNUMBER($C14), SUMIFS(Datenblatt!$M:$M, Datenblatt!$G:$G,$C14, Datenblatt!$R:$R,">="&BE$8,Datenblatt!$R:$R,"<="&EOMONTH(BE$8,0)) - SUMIFS(Datenblatt!$M:$M, Datenblatt!$E:$E,$C14, Datenblatt!$R:$R,">="&BE$8,Datenblatt!$R:$R,"<="&EOMONTH(BE$8,0)), "") -> 93 | BF14: =IF(ISNUMBER($C14), SUMIFS(Datenblatt!$M:$M, Datenblatt!$G:$G,$C14, Datenblatt!$R:$R,">="&BF$8,Datenblatt!$R:$R,"<="&EOMONTH(BF$8,0)) - SUMIFS(Datenblatt!$M:$M, Datenblatt!$E:$E,$C14, Datenblatt!$R:$R,">="&BF$8,Datenblatt!$R:$R,"<="&EOMONTH(BF$8,0)), "") -> 246 | BG14: =IF(ISNUMBER($C14), SUMIFS(Datenblatt!$M:$M, Datenblatt!$G:$G,$C14, Datenblatt!$R:$R,">="&BG$8,Datenblatt!$R:$R,"<="&EOMONTH(BG$8,0)) - SUMIFS(Datenblatt!$M:$M, Datenblatt!$E:$E,$C14, Datenblatt!$R:$R,">="&BG$8,Datenblatt!$R:$R,"<="&EOMONTH(BG$8,0)), "") -> 46 | BH14: =IF(ISNUMBER($C14), SUMIFS(Datenblatt!$M:$M, Datenblatt!$G:$G,$C14, Datenblatt!$R:$R,">="&BH$8,Datenblatt!$R:$R,"<="&EOMONTH(BH$8,0)) - SUMIFS(Datenblatt!$M:$M, Datenblatt!$E:$E,$C14, Datenblatt!$R:$R,">="&BH$8,Datenblatt!$R:$R,"<="&EOMONTH(BH$8,0)), "") -> 212 | BI14: =IF(ISNUMBER($C14), SUMIFS(Datenblatt!$M:$M, Datenblatt!$G:$G,$C14, Datenblatt!$R:$R,">="&BI$8,Datenblatt!$R:$R,"<="&EOMONTH(BI$8,0)) - SUMIFS(Datenblatt!$M:$M, Datenblatt!$E:$E,$C14, Datenblatt!$R:$R,">="&BI$8,Datenblatt!$R:$R,"<="&EOMONTH(BI$8,0)), "") -> 34 | BJ14: =IF(ISNUMBER($C14), SUMIFS(Datenblatt!$M:$M, Datenblatt!$G:$G,$C14, Datenblatt!$R:$R,">="&BJ$8,Datenblatt!$R:$R,"<="&EOMONTH(BJ$8,0)) - SUMIFS(Datenblatt!$M:$M, Datenblatt!$E:$E,$C14, Datenblatt!$R:$R,">="&BJ$8,Datenblatt!$R:$R,"<="&EOMONTH(BJ$8,0)), "") -> 402 | BK14: =IF(ISNUMBER($C14), SUMIFS(Datenblatt!$M:$M, Datenblatt!$G:$G,$C14, Datenblatt!$R:$R,">="&BK$8,Datenblatt!$R:$R,"<="&EOMONTH(BK$8,0)) - SUMIFS(Datenblatt!$M:$M, Datenblatt!$E:$E,$C14, Datenblatt!$R:$R,">="&BK$8,Datenblatt!$R:$R,"<="&EOMONTH(BK$8,0)), "") -> 125 | BL14: =IF(ISNUMBER($C14), SUMIFS(Datenblatt!$M:$M, Datenblatt!$G:$G,$C14, Datenblatt!$R:$R,">="&BL$8,Datenblatt!$R:$R,"<="&EOMONTH(BL$8,0)) - SUMIFS(Datenblatt!$M:$M, Datenblatt!$E:$E,$C14, Datenblatt!$R:$R,">="&BL$8,Datenblatt!$R:$R,"<="&EOMONTH(BL$8,0)), "") -> 324 | BM14: =IF(ISNUMBER($C14), SUMIFS(Datenblatt!$M:$M, Datenblatt!$G:$G,$C14, Datenblatt!$R:$R,">="&BM$8,Datenblatt!$R:$R,"<="&EOMONTH(BM$8,0)) - SUMIFS(Datenblatt!$M:$M, Datenblatt!$E:$E,$C14, Datenblatt!$R:$R,">="&BM$8,Datenblatt!$R:$R,"<="&EOMONTH(BM$8,0)), "") -> 0 | BN14: =IF(ISNUMBER($C14), SUMIFS(Datenblatt!$M:$M, Datenblatt!$G:$G,$C14, Datenblatt!$R:$R,">="&BN$8,Datenblatt!$R:$R,"<="&EOMONTH(BN$8,0)) - SUMIFS(Datenblatt!$M:$M, Datenblatt!$E:$E,$C14, Datenblatt!$R:$R,">="&BN$8,Datenblatt!$R:$R,"<="&EOMONTH(BN$8,0)), "") -> 97 | BO14: =IF(ISNUMBER($C14), SUMIFS(Datenblatt!$M:$M, Datenblatt!$G:$G,$C14, Datenblatt!$R:$R,">="&BO$8,Datenblatt!$R:$R,"<="&EOMONTH(BO$8,0)) - SUMIFS(Datenblatt!$M:$M, Datenblatt!$E:$E,$C14, Datenblatt!$R:$R,">="&BO$8,Datenblatt!$R:$R,"<="&EOMONTH(BO$8,0)), "") -> 310 | BP14: =IF(ISNUMBER($C14), SUMIFS(Datenblatt!$M:$M, Datenblatt!$G:$G,$C14, Datenblatt!$R:$R,">="&BP$8,Datenblatt!$R:$R,"<="&EOMONTH(BP$8,0)) - SUMIFS(Datenblatt!$M:$M, Datenblatt!$E:$E,$C14, Datenblatt!$R:$R,">="&BP$8,Datenblatt!$R:$R,"<="&EOMONTH(BP$8,0)), "") -> 117 | BQ14: =IF(ISNUMBER($C14), SUMIFS(Datenblatt!$M:$M, Datenblatt!$G:$G,$C14, Datenblatt!$R:$R,">="&BQ$8,Datenblatt!$R:$R,"<="&EOMONTH(BQ$8,0)) - SUMIFS(Datenblatt!$M:$M, Datenblatt!$E:$E,$C14, Datenblatt!$R:$R,">="&BQ$8,Datenblatt!$R:$R,"<="&EOMONTH(BQ$8,0)), "") -> 189 | BR14: =IF(ISNUMBER($C14), SUMIFS(Datenblatt!$M:$M, Datenblatt!$G:$G,$C14, Datenblatt!$R:$R,">="&BR$8,Datenblatt!$R:$R,"<="&EOMONTH(BR$8,0)) - SUMIFS(Datenblatt!$M:$M, Datenblatt!$E:$E,$C14, Datenblatt!$R:$R,">="&BR$8,Datenblatt!$R:$R,"<="&EOMONTH(BR$8,0)), "") -> 35 | BS14: =IF(ISNUMBER($C14), SUMIFS(Datenblatt!$M:$M, Datenblatt!$G:$G,$C14, Datenblatt!$R:$R,">="&BS$8,Datenblatt!$R:$R,"<="&EOMONTH(BS$8,0)) - SUMIFS(Datenblatt!$M:$M, Datenblatt!$E:$E,$C14, Datenblatt!$R:$R,">="&BS$8,Datenblatt!$R:$R,"<="&EOMONTH(BS$8,0)), "") -> 462 | BT14: =IF(ISNUMBER($C14), SUMIFS(Datenblatt!$M:$M, Datenblatt!$G:$G,$C14, Datenblatt!$R:$R,">="&BT$8,Datenblatt!$R:$R,"<="&EOMONTH(BT$8,0)) - SUMIFS(Datenblatt!$M:$M, Datenblatt!$E:$E,$C14, Datenblatt!$R:$R,">="&BT$8,Datenblatt!$R:$R,"<="&EOMONTH(BT$8,0)), "") -> 151 | BU14: =IF(ISNUMBER($C14), SUMIFS(Datenblatt!$M:$M, Datenblatt!$G:$G,$C14, Datenblatt!$R:$R,">="&BU$8,Datenblatt!$R:$R,"<="&EOMONTH(BU$8,0)) - SUMIFS(Datenblatt!$M:$M, Datenblatt!$E:$E,$C14, Datenblatt!$R:$R,">="&BU$8,Datenblatt!$R:$R,"<="&EOMONTH(BU$8,0)), "") -> 82 | BV14: =IF(ISNUMBER($C14), SUMIFS(Datenblatt!$M:$M, Datenblatt!$G:$G,$C14, Datenblatt!$R:$R,">="&BV$8,Datenblatt!$R:$R,"<="&EOMONTH(BV$8,0)) - SUMIFS(Datenblatt!$M:$M, Datenblatt!$E:$E,$C14, Datenblatt!$R:$R,">="&BV$8,Datenblatt!$R:$R,"<="&EOMONTH(BV$8,0)), "") -> 820 | BW14: =IF(ISNUMBER($C14), SUMIFS(Datenblatt!$M:$M, Datenblatt!$G:$G,$C14, Datenblatt!$R:$R,">="&BW$8,Datenblatt!$R:$R,"<="&EOMONTH(BW$8,0)) - SUMIFS(Datenblatt!$M:$M, Datenblatt!$E:$E,$C14, Datenblatt!$R:$R,">="&BW$8,Datenblatt!$R:$R,"<="&EOMONTH(BW$8,0)), "") -> 254 | BX14: =IF(ISNUMBER($C14), SUMIFS(Datenblatt!$M:$M, Datenblatt!$G:$G,$C14, Datenblatt!$R:$R,">="&BX$8,Datenblatt!$R:$R,"<="&EOMONTH(BX$8,0)) - SUMIFS(Datenblatt!$M:$M, Datenblatt!$E:$E,$C14, Datenblatt!$R:$R,">="&BX$8,Datenblatt!$R:$R,"<="&EOMONTH(BX$8,0)), "") -> 226 | BY14: =IF(ISNUMBER($C14), SUMIFS(Datenblatt!$M:$M, Datenblatt!$G:$G,$C14, Datenblatt!$R:$R,">="&BY$8,Datenblatt!$R:$R,"<="&EOMONTH(BY$8,0)) - SUMIFS(Datenblatt!$M:$M, Datenblatt!$E:$E,$C14, Datenblatt!$R:$R,">="&BY$8,Datenblatt!$R:$R,"<="&EOMONTH(BY$8,0)), "") -> 548 | BZ14: =IF(ISNUMBER($C14), SUMIFS(Datenblatt!$M:$M, Datenblatt!$G:$G,$C14, Datenblatt!$R:$R,">="&BZ$8,Datenblatt!$R:$R,"<="&EOMONTH(BZ$8,0)) - SUMIFS(Datenblatt!$M:$M, Datenblatt!$E:$E,$C14, Datenblatt!$R:$R,">="&BZ$8,Datenblatt!$R:$R,"<="&EOMONTH(BZ$8,0)), "") -> 525 | CA14: =IF(ISNUMBER($C14), SUMIFS(Datenblatt!$M:$M, Datenblatt!$G:$G,$C14, Datenblatt!$R:$R,">="&CA$8,Datenblatt!$R:$R,"<="&EOMONTH(CA$8,0)) - SUMIFS(Datenblatt!$M:$M, Datenblatt!$E:$E,$C14, Datenblatt!$R:$R,">="&CA$8,Datenblatt!$R:$R,"<="&EOMONTH(CA$8,0)), "") -> 127 | CB14: =IF(ISNUMBER($C14), SUMIFS(Datenblatt!$M:$M, Datenblatt!$G:$G,$C14, Datenblatt!$R:$R,">="&CB$8,Datenblatt!$R:$R,"<="&EOMONTH(CB$8,0)) - SUMIFS(Datenblatt!$M:$M, Datenblatt!$E:$E,$C14, Datenblatt!$R:$R,">="&CB$8,Datenblatt!$R:$R,"<="&EOMONTH(CB$8,0)), "") -> 187 | CC14: =IF(ISNUMBER($C14), SUMIFS(Datenblatt!$M:$M, Datenblatt!$G:$G,$C14, Datenblatt!$R:$R,">="&CC$8,Datenblatt!$R:$R,"<="&EOMONTH(CC$8,0)) - SUMIFS(Datenblatt!$M:$M, Datenblatt!$E:$E,$C14, Datenblatt!$R:$R,">="&CC$8,Datenblatt!$R:$R,"<="&EOMONTH(CC$8,0)), "") -> 374 | CD14: =IF(ISNUMBER($C14), SUMIFS(Datenblatt!$M:$M, Datenblatt!$G:$G,$C14, Datenblatt!$R:$R,">="&CD$8,Datenblatt!$R:$R,"<="&EOMONTH(CD$8,0)) - SUMIFS(Datenblatt!$M:$M, Datenblatt!$E:$E,$C14, Datenblatt!$R:$R,">="&CD$8,Datenblatt!$R:$R,"<="&EOMONTH(CD$8,0)), "") -> 294 | CE14: =IF(ISNUMBER($C14), SUMIFS(Datenblatt!$M:$M, Datenblatt!$G:$G,$C14, Datenblatt!$R:$R,">="&CE$8,Datenblatt!$R:$R,"<="&EOMONTH(CE$8,0)) - SUMIFS(Datenblatt!$M:$M, Datenblatt!$E:$E,$C14, Datenblatt!$R:$R,">="&CE$8,Datenblatt!$R:$R,"<="&EOMONTH(CE$8,0)), "") -> 362 | CF14: =IF(ISNUMBER($C14), SUMIFS(Datenblatt!$M:$M, Datenblatt!$G:$G,$C14, Datenblatt!$R:$R,">="&CF$8,Datenblatt!$R:$R,"<="&EOMONTH(CF$8,0)) - SUMIFS(Datenblatt!$M:$M, Datenblatt!$E:$E,$C14, Datenblatt!$R:$R,">="&CF$8,Datenblatt!$R:$R,"<="&EOMONTH(CF$8,0)), "") -> 91 | CG14: =IF(ISNUMBER($C14), SUMIFS(Datenblatt!$M:$M, Datenblatt!$G:$G,$C14, Datenblatt!$R:$R,">="&CG$8,Datenblatt!$R:$R,"<="&EOMONTH(CG$8,0)) - SUMIFS(Datenblatt!$M:$M, Datenblatt!$E:$E,$C14, Datenblatt!$R:$R,">="&CG$8,Datenblatt!$R:$R,"<="&EOMONTH(CG$8,0)), "") -> 200 | CH14: =IF(ISNUMBER($C14), SUMIFS(Datenblatt!$M:$M, Datenblatt!$G:$G,$C14, Datenblatt!$R:$R,">="&CH$8,Datenblatt!$R:$R,"<="&EOMONTH(CH$8,0)) - SUMIFS(Datenblatt!$M:$M, Datenblatt!$E:$E,$C14, Datenblatt!$R:$R,">="&CH$8,Datenblatt!$R:$R,"<="&EOMONTH(CH$8,0)), "") -> 356 | CI14: =IF(ISNUMBER($C14), SUMIFS(Datenblatt!$M:$M, Datenblatt!$G:$G,$C14, Datenblatt!$R:$R,">="&CI$8,Datenblatt!$R:$R,"<="&EOMONTH(CI$8,0)) - SUMIFS(Datenblatt!$M:$M, Datenblatt!$E:$E,$C14, Datenblatt!$R:$R,">="&CI$8,Datenblatt!$R:$R,"<="&EOMONTH(CI$8,0)), "") -> 0 | CJ14: =IF(ISNUMBER($C14), SUMIFS(Datenblatt!$M:$M, Datenblatt!$G:$G,$C14, Datenblatt!$R:$R,">="&CJ$8,Datenblatt!$R:$R,"<="&EOMONTH(CJ$8,0)) - SUMIFS(Datenblatt!$M:$M, Datenblatt!$E:$E,$C14, Datenblatt!$R:$R,">="&CJ$8,Datenblatt!$R:$R,"<="&EOMONTH(CJ$8,0)), "") -> 0 | CK14: =IF(ISNUMBER($C14), SUMIFS(Datenblatt!$M:$M, Datenblatt!$G:$G,$C14, Datenblatt!$R:$R,">="&CK$8,Datenblatt!$R:$R,"<="&EOMONTH(CK$8,0)) - SUMIFS(Datenblatt!$M:$M, Datenblatt!$E:$E,$C14, Datenblatt!$R:$R,">="&CK$8,Datenblatt!$R:$R,"<="&EOMONTH(CK$8,0)), "") -> 0 | CL14: =IF(ISNUMBER($C14), SUMIFS(Datenblatt!$M:$M, Datenblatt!$G:$G,$C14, Datenblatt!$R:$R,">="&CL$8,Datenblatt!$R:$R,"<="&EOMONTH(CL$8,0)) - SUMIFS(Datenblatt!$M:$M, Datenblatt!$E:$E,$C14, Datenblatt!$R:$R,">="&CL$8,Datenblatt!$R:$R,"<="&EOMONTH(CL$8,0)), "") -> 0 | CM14: =IF(ISNUMBER($C14), SUMIFS(Datenblatt!$M:$M, Datenblatt!$G:$G,$C14, Datenblatt!$R:$R,">="&CM$8,Datenblatt!$R:$R,"<="&EOMONTH(CM$8,0)) - SUMIFS(Datenblatt!$M:$M, Datenblatt!$E:$E,$C14, Datenblatt!$R:$R,">="&CM$8,Datenblatt!$R:$R,"<="&EOMONTH(CM$8,0)), "") -> 0 | CN14: =IF(ISNUMBER($C14), SUMIFS(Datenblatt!$M:$M, Datenblatt!$G:$G,$C14, Datenblatt!$R:$R,">="&CN$8,Datenblatt!$R:$R,"<="&EOMONTH(CN$8,0)) - SUMIFS(Datenblatt!$M:$M, Datenblatt!$E:$E,$C14, Datenblatt!$R:$R,">="&CN$8,Datenblatt!$R:$R,"<="&EOMONTH(CN$8,0)), "") -> 0 | CO14: =IF(ISNUMBER($C14), SUMIFS(Datenblatt!$M:$M, Datenblatt!$G:$G,$C14, Datenblatt!$R:$R,">="&CO$8,Datenblatt!$R:$R,"<="&EOMONTH(CO$8,0)) - SUMIFS(Datenblatt!$M:$M, Datenblatt!$E:$E,$C14, Datenblatt!$R:$R,">="&CO$8,Datenblatt!$R:$R,"<="&EOMONTH(CO$8,0)), "") -> 0 | CP14: =IF(ISNUMBER($C14), SUMIFS(Datenblatt!$M:$M, Datenblatt!$G:$G,$C14, Datenblatt!$R:$R,">="&CP$8,Datenblatt!$R:$R,"<="&EOMONTH(CP$8,0)) - SUMIFS(Datenblatt!$M:$M, Datenblatt!$E:$E,$C14, Datenblatt!$R:$R,">="&CP$8,Datenblatt!$R:$R,"<="&EOMONTH(CP$8,0)), "") -> 0 | CQ14: =IF(ISNUMBER($C14), SUMIFS(Datenblatt!$M:$M, Datenblatt!$G:$G,$C14, Datenblatt!$R:$R,">="&CQ$8,Datenblatt!$R:$R,"<="&EOMONTH(CQ$8,0)) - SUMIFS(Datenblatt!$M:$M, Datenblatt!$E:$E,$C14, Datenblatt!$R:$R,">="&CQ$8,Datenblatt!$R:$R,"<="&EOMONTH(CQ$8,0)), "") -> 0 | CR14: =IF(ISNUMBER($C14), SUMIFS(Datenblatt!$M:$M, Datenblatt!$G:$G,$C14, Datenblatt!$R:$R,">="&CR$8,Datenblatt!$R:$R,"<="&EOMONTH(CR$8,0)) - SUMIFS(Datenblatt!$M:$M, Datenblatt!$E:$E,$C14, Datenblatt!$R:$R,">="&CR$8,Datenblatt!$R:$R,"<="&EOMONTH(CR$8,0)), "") -> 0 | CS14: =IF(ISNUMBER($C14), SUMIFS(Datenblatt!$M:$M, Datenblatt!$G:$G,$C14, Datenblatt!$R:$R,">="&CS$8,Datenblatt!$R:$R,"<="&EOMONTH(CS$8,0)) - SUMIFS(Datenblatt!$M:$M, Datenblatt!$E:$E,$C14, Datenblatt!$R:$R,">="&CS$8,Datenblatt!$R:$R,"<="&EOMONTH(CS$8,0)), "") -> 0 | CT14: =IF(ISNUMBER($C14), SUMIFS(Datenblatt!$M:$M, Datenblatt!$G:$G,$C14, Datenblatt!$R:$R,">="&CT$8,Datenblatt!$R:$R,"<="&EOMONTH(CT$8,0)) - SUMIFS(Datenblatt!$M:$M, Datenblatt!$E:$E,$C14, Datenblatt!$R:$R,">="&CT$8,Datenblatt!$R:$R,"<="&EOMONTH(CT$8,0)), "") -> 0 | CU14: =IF(ISNUMBER($C14), SUMIFS(Datenblatt!$M:$M, Datenblatt!$G:$G,$C14, Datenblatt!$R:$R,">="&CU$8,Datenblatt!$R:$R,"<="&EOMONTH(CU$8,0)) - SUMIFS(Datenblatt!$M:$M, Datenblatt!$E:$E,$C14, Datenblatt!$R:$R,">="&CU$8,Datenblatt!$R:$R,"<="&EOMONTH(CU$8,0)), "") -> 0 | CV14: =IF(ISNUMBER($C14), SUMIFS(Datenblatt!$M:$M, Datenblatt!$G:$G,$C14, Datenblatt!$R:$R,">="&CV$8,Datenblatt!$R:$R,"<="&EOMONTH(CV$8,0)) - SUMIFS(Datenblatt!$M:$M, Datenblatt!$E:$E,$C14, Datenblatt!$R:$R,">="&CV$8,Datenblatt!$R:$R,"<="&EOMONTH(CV$8,0)), "") -> 0 | CW14: =IF(ISNUMBER($C14), SUMIFS(Datenblatt!$M:$M, Datenblatt!$G:$G,$C14, Datenblatt!$R:$R,">="&CW$8,Datenblatt!$R:$R,"<="&EOMONTH(CW$8,0)) - SUMIFS(Datenblatt!$M:$M, Datenblatt!$E:$E,$C14, Datenblatt!$R:$R,">="&CW$8,Datenblatt!$R:$R,"<="&EOMONTH(CW$8,0)), "") -> 0 | CX14: =IF(ISNUMBER($C14), SUMIFS(Datenblatt!$M:$M, Datenblatt!$G:$G,$C14, Datenblatt!$R:$R,">="&CX$8,Datenblatt!$R:$R,"<="&EOMONTH(CX$8,0)) - SUMIFS(Datenblatt!$M:$M, Datenblatt!$E:$E,$C14, Datenblatt!$R:$R,">="&CX$8,Datenblatt!$R:$R,"<="&EOMONTH(CX$8,0)), "") -> 0 | CY14: =IF(ISNUMBER($C14), SUMIFS(Datenblatt!$M:$M, Datenblatt!$G:$G,$C14, Datenblatt!$R:$R,">="&CY$8,Datenblatt!$R:$R,"<="&EOMONTH(CY$8,0)) - SUMIFS(Datenblatt!$M:$M, Datenblatt!$E:$E,$C14, Datenblatt!$R:$R,">="&CY$8,Datenblatt!$R:$R,"<="&EOMONTH(CY$8,0)), "") -> 0 | CZ14: =IF(ISNUMBER($C14), SUMIFS(Datenblatt!$M:$M, Datenblatt!$G:$G,$C14, Datenblatt!$R:$R,">="&CZ$8,Datenblatt!$R:$R,"<="&EOMONTH(CZ$8,0)) - SUMIFS(Datenblatt!$M:$M, Datenblatt!$E:$E,$C14, Datenblatt!$R:$R,">="&CZ$8,Datenblatt!$R:$R,"<="&EOMONTH(CZ$8,0)), "") -> 0 | DA14: =IF(ISNUMBER($C14), SUMIFS(Datenblatt!$M:$M, Datenblatt!$G:$G,$C14, Datenblatt!$R:$R,">="&DA$8,Datenblatt!$R:$R,"<="&EOMONTH(DA$8,0)) - SUMIFS(Datenblatt!$M:$M, Datenblatt!$E:$E,$C14, Datenblatt!$R:$R,">="&DA$8,Datenblatt!$R:$R,"<="&EOMONTH(DA$8,0)), "") -> 0 | DB14: =IF(ISNUMBER($C14), SUMIFS(Datenblatt!$M:$M, Datenblatt!$G:$G,$C14, Datenblatt!$R:$R,">="&DB$8,Datenblatt!$R:$R,"<="&EOMONTH(DB$8,0)) - SUMIFS(Datenblatt!$M:$M, Datenblatt!$E:$E,$C14, Datenblatt!$R:$R,">="&DB$8,Datenblatt!$R:$R,"<="&EOMONTH(DB$8,0)), "") -> 0 | DC14: =IF(ISNUMBER($C14), SUMIFS(Datenblatt!$M:$M, Datenblatt!$G:$G,$C14, Datenblatt!$R:$R,">="&DC$8,Datenblatt!$R:$R,"<="&EOMONTH(DC$8,0)) - SUMIFS(Datenblatt!$M:$M, Datenblatt!$E:$E,$C14, Datenblatt!$R:$R,">="&DC$8,Datenblatt!$R:$R,"<="&EOMONTH(DC$8,0)), "") -> 0 | DD14: =IF(ISNUMBER($C14), SUMIFS(Datenblatt!$M:$M, Datenblatt!$G:$G,$C14, Datenblatt!$R:$R,">="&DD$8,Datenblatt!$R:$R,"<="&EOMONTH(DD$8,0)) - SUMIFS(Datenblatt!$M:$M, Datenblatt!$E:$E,$C14, Datenblatt!$R:$R,">="&DD$8,Datenblatt!$R:$R,"<="&EOMONTH(DD$8,0)), "") -> 0 | DE14: =IF(ISNUMBER($C14), SUMIFS(Datenblatt!$M:$M, Datenblatt!$G:$G,$C14, Datenblatt!$R:$R,">="&DE$8,Datenblatt!$R:$R,"<="&EOMONTH(DE$8,0)) - SUMIFS(Datenblatt!$M:$M, Datenblatt!$E:$E,$C14, Datenblatt!$R:$R,">="&DE$8,Datenblatt!$R:$R,"<="&EOMONTH(DE$8,0)), "") -> 0 | DF14: =IF(ISNUMBER($C14), SUMIFS(Datenblatt!$M:$M, Datenblatt!$G:$G,$C14, Datenblatt!$R:$R,">="&DF$8,Datenblatt!$R:$R,"<="&EOMONTH(DF$8,0)) - SUMIFS(Datenblatt!$M:$M, Datenblatt!$E:$E,$C14, Datenblatt!$R:$R,">="&DF$8,Datenblatt!$R:$R,"<="&EOMONTH(DF$8,0)), "") -> 0
